Workbook

Sheet Trays (hidden)
A1: Tray No | B1: mass (g)
A2: 1 | B2: 19.41
A3: 2 | B3: 19.28
A4: 3 | B4: 19.08
A5: 4 | B5: 19.27
A6: 5 | B6: 19.23
A7: 6 | B7: 19.36
A8: 7 | B8: 19.32
A9: 8 | B9: 19.37
A10: 9 | B10: 19.36
A11: 10 | B11: 19.13
A12: 11 | B12: 19.98
A13: 12 | B13: 19.1
A14: 13 | B14: 19.11
A15: 14 | B15: 19.24
A16: 15 | B16: 19.38
A17: 16 | B17: 18.85
A18: 17 | B18: 18.87
A19: 18 | B19: 18.85
A20: 19 | B20: 19.06
A21: 20 | B21: 19.17
A22: 21 | B22: 19.27
A23: 22 | B23: 17.81
A24: 23 | B24: 17.86
A25: 24 | B25: 17.76
A26: 25 | B26: 19.85
A27: 26 | B27: 19.74
A28: 27 | B28: 19.9
A29: 28 | B29: 19.88
A30: 29 | B30: 19.96
A31: 30 | B31: 19.98
A32: 31 | B32: 19.88
A33: 32 | B33: 19.87
A34: 33 | B34: 19.7
A35: 34 | B35: 19.67

Sheet All_Results
A1: Field | B1: Field_Num | C1: Treat | D1: Horizon | E1: Farm | I1: Management | J1: Soil Type | K1: Clay Content % | L1: EC (uS/cm2) | M1: pH | N1: Biomass_Dry (kg/ha) | O1: N-uptake (kg/ha) | P1: Min_NO3 (Kg/ha) | Q1: Min_NH4 (Kg/ha) | R1: Min_N (Kg/ha) | S1: ISNT_N (Kg/ha) | T1: Protein_N (Kg/ha) | U1: WEN (kg/ha) | V1: WEON (Kg/ha) | W1: Cummulative_N (Kg/ha) | X1: WEOC (Kg/ha) | Y1: WEOC/WEON | Z1: TN (Kg/ha) | AA1: TOC (Kg/ha) | AB1: TON (Kg/ha) | AC1: TC/TN | AD1: TOC/TON | AE1: Resp_C (kg/ha) | AF1: Resp_N (kg/ha) | AG1: SHS_Haney
A2: Pu-0-T | B2: 1 | C2: 0 | D2: 1 | E2: Pu | F2: =C2&"-"&G2 -> 0-T | G2: T | H2: =E2&"-"&C2 -> Pu-0 | I2: =VLOOKUP($H2,'Mng&Soil'!$B$2:$E$41,3,FALSE) -> 6 | J2: =VLOOKUP($H2,'Mng&Soil'!$B$2:$F$41,5,FALSE) -> 1 | K2: =VLOOKUP($H2,'Mng&Soil'!$B$2:$G$41,6,FALSE) -> 32 | L2: =VLOOKUP(A2,pH_EC!$A1:$C77,2,FALSE) -> 71.3 | M2: =VLOOKUP(A2,pH_EC!$A1:$C77,3,FALSE) -> 7.32 | N2: =VLOOKUP($H2,Biomass!$A$2:$L$41,11,FALSE) -> 2094.25 | O2: =VLOOKUP($H2,Biomass!$A$2:$O$41,15,FALSE) -> 41.89 | P2: =VLOOKUP($A2,Min_N_Corrected!$A$2:V$93,21,FALSE) -> 3.59 | Q2: =VLOOKUP($A2,Min_N_Corrected!$A$2:W$93,22,FALSE) -> 3.89 | R2: =P2+Q2 -> 7.49 | S2: =(VLOOKUP(A2,ISNT_Amino_N!A$2:O$103,15,FALSE))-Q2 -> 550 | T2: =VLOOKUP(A2,Protein!A$3:Q$86,17,FALSE) -> 387 | U2: =V2+R2 -> 50.13 | V2: =VLOOKUP(A2,WEON_WEOC!$B$2:$K$79,7,FALSE) -> 42.6 | W2: =SUM(R2,S2,T2,V2) -> 987 | X2: =VLOOKUP(A2,WEON_WEOC!$B2:$K$79,10,FALSE) -> 405 | Y2: =X2/V2 -> 9.5 | Z2: =VLOOKUP(A2,TC_TN!$A$2:$V$77,22,FALSE) -> 4071 | AA2: =VLOOKUP(A2,TC_TN!$A$2:$V$77,16,FALSE) -> 60239 | AB2: =Z2-R2 -> 4064 | AC2: =AA2/Z2 -> 14.8 | AD2: =AA2/AB2 -> 14.8 | AE2: =VLOOKUP($A2,'CO2'!$A$3:$O$78,15,FALSE) -> 88.7 | AF2: =VLOOKUP($A2,Nmin_SHS!$E$2:$S$77,13,FALSE) -> 44.9 | AG2: =VLOOKUP($A2,Nmin_SHS!$E$2:$S$77,14,FALSE) -> 48.5
A3: Pu-0-S | B3: 1 | C3: 0 | D3: 2 | E3: Pu | F3: 0-S | G3: S | H3: Pu-0 | I3: =VLOOKUP($H3,'Mng&Soil'!$B$2:$E$41,3,FALSE) -> 6 | J3: =VLOOKUP($H3,'Mng&Soil'!$B$2:$F$41,5,FALSE) -> 1 | K3: =VLOOKUP($H3,'Mng&Soil'!$B$2:$G$41,6,FALSE) -> 32 | L3: =VLOOKUP(A3,pH_EC!$A2:$C78,2,FALSE) -> 57.2 | M3: =VLOOKUP(A3,pH_EC!$A2:$C78,3,FALSE) -> 7.05 | N3: =VLOOKUP($H3,Biomass!$A$2:$L$41,11,FALSE) -> 2094.25 | O3: =VLOOKUP($H3,Biomass!$A$2:$O$41,15,FALSE) -> 41.89 | P3: =VLOOKUP($A3,Min_N_Corrected!$A$2:V$93,21,FALSE) -> 2.92 | Q3: =VLOOKUP($A3,Min_N_Corrected!$A$2:W$93,22,FALSE) -> 3.46 | R3: 6.38 | S3: =(VLOOKUP(A3,ISNT_Amino_N!A$2:O$103,15,FALSE))-Q3 -> 347 | T3: =VLOOKUP(A3,Protein!A$3:Q$86,17,FALSE) -> 246 | U3: 31.50 | V3: =VLOOKUP(A3,WEON_WEOC!$B$2:$K$79,7,FALSE) -> 25.1 | W3: 625 | X3: =VLOOKUP(A3,WEON_WEOC!$B3:$K$79,10,FALSE) -> 255 | Y3: 10.1 | Z3: =VLOOKUP(A3,TC_TN!$A$2:$V$77,22,FALSE) -> 2822 | AA3: =VLOOKUP(A3,TC_TN!$A$2:$V$77,16,FALSE) -> 42080 | AB3: 2815 | AC3: 14.9 | AD3: =AA3/AB3 -> 14.9 | AE3: =VLOOKUP($A3,'CO2'!$A$3:$O$78,15,FALSE) -> 49.5 | AF3: =VLOOKUP($A3,Nmin_SHS!$E$2:$S$77,13,FALSE) -> 23.0 | AG3: =VLOOKUP($A3,Nmin_SHS!$E$2:$S$77,14,FALSE) -> 31.6
A4: Pu-1-T | B4: 1 | C4: 1 | D4: 1 | E4: Pu | F4: 1-T | G4: T | H4: Pu-1 | I4: =VLOOKUP($H4,'Mng&Soil'!$B$2:$E$41,3,FALSE) -> 6 | J4: =VLOOKUP($H4,'Mng&Soil'!$B$2:$F$41,5,FALSE) -> 1 | K4: =VLOOKUP($H4,'Mng&Soil'!$B$2:$G$41,6,FALSE) -> 40 | L4: =VLOOKUP(A4,pH_EC!$A3:$C79,2,FALSE) -> 79.2 | M4: =VLOOKUP(A4,pH_EC!$A3:$C79,3,FALSE) -> 7.40 | N4: =VLOOKUP($H4,Biomass!$A$2:$L$41,11,FALSE) -> 3197.62 | O4: =VLOOKUP($H4,Biomass!$A$2:$O$41,15,FALSE) -> 63.95 | P4: =VLOOKUP($A4,Min_N_Corrected!$A$2:V$93,21,FALSE) -> 5.30 | Q4: =VLOOKUP($A4,Min_N_Corrected!$A$2:W$93,22,FALSE) -> 3.09 | R4: 8.39 | S4: =(VLOOKUP(A4,ISNT_Amino_N!A$2:O$103,15,FALSE))-Q4 -> 601 | T4: =VLOOKUP(A4,Protein!A$3:Q$86,17,FALSE) -> 401 | U4: 53.97 | V4: =VLOOKUP(A4,WEON_WEOC!$B$2:$K$79,7,FALSE) -> 45.6 | W4: 1055 | X4: =VLOOKUP(A4,WEON_WEOC!$B4:$K$79,10,FALSE) -> 506 | Y4: 11.1 | Z4: =VLOOKUP(A4,TC_TN!$A$2:$V$77,22,FALSE) -> 4962 | AA4: =VLOOKUP(A4,TC_TN!$A$2:$V$77,16,FALSE) -> 69871 | AB4: 4954 | AC4: 14.1 | AD4: 14.1 | AE4: =VLOOKUP($A4,'CO2'!$A$3:$O$78,15,FALSE) -> 119.0 | AF4: =VLOOKUP($A4,Nmin_SHS!$E$2:$S$77,13,FALSE) -> 53.7 | AG4: =VLOOKUP($A4,Nmin_SHS!$E$2:$S$77,14,FALSE) -> 60.6
A5: Pu-1-S | B5: 1 | C5: 1 | D5: 2 | E5: Pu | F5: 1-S | G5: S | H5: Pu-1 | I5: =VLOOKUP($H5,'Mng&Soil'!$B$2:$E$41,3,FALSE) -> 6 | J5: =VLOOKUP($H5,'Mng&Soil'!$B$2:$F$41,5,FALSE) -> 1 | K5: =VLOOKUP($H5,'Mng&Soil'!$B$2:$G$41,6,FALSE) -> 40 | L5: =VLOOKUP(A5,pH_EC!$A4:$C80,2,FALSE) -> 67.2 | M5: =VLOOKUP(A5,pH_EC!$A4:$C80,3,FALSE) -> 7.90 | N5: =VLOOKUP($H5,Biomass!$A$2:$L$41,11,FALSE) -> 3197.62 | O5: =VLOOKUP($H5,Biomass!$A$2:$O$41,15,FALSE) -> 63.95 | P5: =VLOOKUP($A5,Min_N_Corrected!$A$2:V$93,21,FALSE) -> 4.09 | Q5: =VLOOKUP($A5,Min_N_Corrected!$A$2:W$93,22,FALSE) -> 2.69 | R5: 6.78 | S5: =(VLOOKUP(A5,ISNT_Amino_N!A$2:O$103,15,FALSE))-Q5 -> 430 | T5: =VLOOKUP(A5,Protein!A$3:Q$86,17,FALSE) -> 311 | U5: 37.69 | V5: =VLOOKUP(A5,WEON_WEOC!$B$2:$K$79,7,FALSE) -> 30.9 | W5: 779 | X5: =VLOOKUP(A5,WEON_WEOC!$B5:$K$79,10,FALSE) -> 351 | Y5: 11.3 | Z5: =VLOOKUP(A5,TC_TN!$A$2:$V$77,22,FALSE) -> 3436 | AA5: =VLOOKUP(A5,TC_TN!$A$2:$V$77,16,FALSE) -> 48729 | AB5: 3429 | AC5: 14.2 | AD5: 14.2 | AE5: =VLOOKUP($A5,'CO2'!$A$3:$O$78,15,FALSE) -> 71.4 | AF5: =VLOOKUP($A5,Nmin_SHS!$E$2:$S$77,13,FALSE) -> 31.3 | AG5: =VLOOKUP($A5,Nmin_SHS!$E$2:$S$77,14,FALSE) -> 44.9
A6: Mo-0-T | B6: 2 | C6: 0 | D6: 1 | E6: Mo | F6: 0-T | G6: T | H6: Mo-0 | I6: =VLOOKUP($H6,'Mng&Soil'!$B$2:$E$41,3,FALSE) -> 2 | J6: =VLOOKUP($H6,'Mng&Soil'!$B$2:$F$41,5,FALSE) -> 8 | K6: =VLOOKUP($H6,'Mng&Soil'!$B$2:$G$41,6,FALSE) -> 44 | L6: =VLOOKUP(A6,pH_EC!$A5:$C81,2,FALSE) -> 81.4 | M6: =VLOOKUP(A6,pH_EC!$A5:$C81,3,FALSE) -> 6.22 | N6: =VLOOKUP($H6,Biomass!$A$2:$L$41,11,FALSE) -> 992.02 | O6: =VLOOKUP($H6,Biomass!$A$2:$O$41,15,FALSE) -> 34.72 | P6: =VLOOKUP($A6,Min_N_Corrected!$A$2:V$93,21,FALSE) -> 19.29 | Q6: =VLOOKUP($A6,Min_N_Corrected!$A$2:W$93,22,FALSE) -> 3.89 | R6: 23.18 | S6: =(VLOOKUP(A6,ISNT_Amino_N!A$2:O$103,15,FALSE))-Q6 -> 448 | T6: =VLOOKUP(A6,Protein!A$3:Q$86,17,FALSE) -> 241 | U6: 60.41 | V6: =VLOOKUP(A6,WEON_WEOC!$B$2:$K$79,7,FALSE) -> 37.2 | W6: 749 | X6: =VLOOKUP(A6,WEON_WEOC!$B6:$K$79,10,FALSE) -> 456 | Y6: 12.3 | Z6: =VLOOKUP(A6,TC_TN!$A$2:$V$77,22,FALSE) -> 3581 | AA6: =VLOOKUP(A6,TC_TN!$A$2:$V$77,16,FALSE) -> 47373 | AB6: 3558 | AC6: 13.2 | AD6: 13.3 | AE6: =VLOOKUP($A6,'CO2'!$A$3:$O$78,15,FALSE) -> 46.4 | AF6: =VLOOKUP($A6,Nmin_SHS!$E$2:$S$77,13,FALSE) -> 18.9 | AG6: =VLOOKUP($A6,Nmin_SHS!$E$2:$S$77,14,FALSE) -> 19.0
A7: Mo-0-S | B7: 2 | C7: 0 | D7: 2 | E7: Mo | F7: 0-S | G7: S | H7: Mo-0 | I7: =VLOOKUP($H7,'Mng&Soil'!$B$2:$E$41,3,FALSE) -> 2 | J7: =VLOOKUP($H7,'Mng&Soil'!$B$2:$F$41,5,FALSE) -> 8 | K7: =VLOOKUP($H7,'Mng&Soil'!$B$2:$G$41,6,FALSE) -> 44 | L7: =VLOOKUP(A7,pH_EC!$A6:$C82,2,FALSE) -> 60.2 | M7: =VLOOKUP(A7,pH_EC!$A6:$C82,3,FALSE) -> 6.47 | N7: =VLOOKUP($H7,Biomass!$A$2:$L$41,11,FALSE) -> 992.02 | O7: =VLOOKUP($H7,Biomass!$A$2:$O$41,15,FALSE) -> 34.72 | P7: =VLOOKUP($A7,Min_N_Corrected!$A$2:V$93,21,FALSE) -> 1.42 | Q7: =VLOOKUP($A7,Min_N_Corrected!$A$2:W$93,22,FALSE) -> 2.90 | R7: 4.32 | S7: =(VLOOKUP(A7,ISNT_Amino_N!A$2:O$103,15,FALSE))-Q7 -> 329 | T7: =VLOOKUP(A7,Protein!A$3:Q$86,17,FALSE) -> 177 | U7: 33.65 | V7: =VLOOKUP(A7,WEON_WEOC!$B$2:$K$79,7,FALSE) -> 29.3 | W7: 540 | X7: =VLOOKUP(A7,WEON_WEOC!$B7:$K$79,10,FALSE) -> 290 | Y7: 9.9 | Z7: =VLOOKUP(A7,TC_TN!$A$2:$V$77,22,FALSE) -> 2596 | AA7: =VLOOKUP(A7,TC_TN!$A$2:$V$77,16,FALSE) -> 33105 | AB7: 2592 | AC7: 12.8 | AD7: 12.8 | AE7: =VLOOKUP($A7,'CO2'!$A$3:$O$78,15,FALSE) -> 34.9 | AF7: =VLOOKUP($A7,Nmin_SHS!$E$2:$S$77,13,FALSE) -> 16.8 | AG7: =VLOOKUP($A7,Nmin_SHS!$E$2:$S$77,14,FALSE) -> 21.6
A8: Mo-1-T | B8: 2 | C8: 1 | D8: 1 | E8: Mo | F8: 1-T | G8: T | H8: Mo-1 | I8: =VLOOKUP($H8,'Mng&Soil'!$B$2:$E$41,3,FALSE) -> 2 | J8: =VLOOKUP($H8,'Mng&Soil'!$B$2:$F$41,5,FALSE) -> 8 | K8: =VLOOKUP($H8,'Mng&Soil'!$B$2:$G$41,6,FALSE) -> 43 | L8: =VLOOKUP(A8,pH_EC!$A7:$C83,2,FALSE) -> 41.1 | M8: =VLOOKUP(A8,pH_EC!$A7:$C83,3,FALSE) -> 6.33 | N8: =VLOOKUP($H8,Biomass!$A$2:$L$41,11,FALSE) -> 7542.14 | O8: =VLOOKUP($H8,Biomass!$A$2:$O$41,15,FALSE) -> 226.26 | P8: =VLOOKUP($A8,Min_N_Corrected!$A$2:V$93,21,FALSE) -> 0.73 | Q8: =VLOOKUP($A8,Min_N_Corrected!$A$2:W$93,22,FALSE) -> 2.74 | R8: 3.47 | S8: =(VLOOKUP(A8,ISNT_Amino_N!A$2:O$103,15,FALSE))-Q8 -> 457 | T8: =VLOOKUP(A8,Protein!A$3:Q$86,17,FALSE) -> 256 | U8: 38.02 | V8: =VLOOKUP(A8,WEON_WEOC!$B$2:$K$79,7,FALSE) -> 34.5 | W8: 751 | X8: =VLOOKUP(A8,WEON_WEOC!$B8:$K$79,10,FALSE) -> 540 | Y8: 15.6 | Z8: =VLOOKUP(A8,TC_TN!$A$2:$V$77,22,FALSE) -> 3902 | AA8: =VLOOKUP(A8,TC_TN!$A$2:$V$77,16,FALSE) -> 48937 | AB8: 3898 | AC8: 12.5 | AD8: 12.6 | AE8: =VLOOKUP($A8,'CO2'!$A$3:$O$78,15,FALSE) -> 93.9 | AF8: =VLOOKUP($A8,Nmin_SHS!$E$2:$S$77,13,FALSE) -> 31.3 | AG8: =VLOOKUP($A8,Nmin_SHS!$E$2:$S$77,14,FALSE) -> 31.8
A9: Mo-1-S | B9: 2 | C9: 1 | D9: 2 | E9: Mo | F9: 1-S | G9: S | H9: Mo-1 | I9: =VLOOKUP($H9,'Mng&Soil'!$B$2:$E$41,3,FALSE) -> 2 | J9: =VLOOKUP($H9,'Mng&Soil'!$B$2:$F$41,5,FALSE) -> 8 | K9: =VLOOKUP($H9,'Mng&Soil'!$B$2:$G$41,6,FALSE) -> 43 | L9: =VLOOKUP(A9,pH_EC!$A8:$C84,2,FALSE) -> 39.6 | M9: =VLOOKUP(A9,pH_EC!$A8:$C84,3,FALSE) -> 6.54 | N9: =VLOOKUP($H9,Biomass!$A$2:$L$41,11,FALSE) -> 7542.14 | O9: =VLOOKUP($H9,Biomass!$A$2:$O$41,15,FALSE) -> 226.26 | P9: =VLOOKUP($A9,Min_N_Corrected!$A$2:V$93,21,FALSE) -> 6.36 | Q9: =VLOOKUP($A9,Min_N_Corrected!$A$2:W$93,22,FALSE) -> 2.48 | R9: 8.84 | S9: =(VLOOKUP(A9,ISNT_Amino_N!A$2:O$103,15,FALSE))-Q9 -> 311 | T9: =VLOOKUP(A9,Protein!A$3:Q$86,17,FALSE) -> 176 | U9: 22.76 | V9: =VLOOKUP(A9,WEON_WEOC!$B$2:$K$79,7,FALSE) -> 13.9 | W9: 511 | X9: =VLOOKUP(A9,WEON_WEOC!$B9:$K$79,10,FALSE) -> 301 | Y9: 21.6 | Z9: =VLOOKUP(A9,TC_TN!$A$2:$V$77,22,FALSE) -> 2695 | AA9: =VLOOKUP(A9,TC_TN!$A$2:$V$77,16,FALSE) -> 35016 | AB9: 2686 | AC9: 13.0 | AD9: 13.0 | AE9: =VLOOKUP($A9,'CO2'!$A$3:$O$78,15,FALSE) -> 51.7 | AF9: =VLOOKUP($A9,Nmin_SHS!$E$2:$S$77,13,FALSE) -> 13.1 | AG9: =VLOOKUP($A9,Nmin_SHS!$E$2:$S$77,14,FALSE) -> 17.0
A10: Si-0-T | B10: 3 | C10: 0 | D10: 1 | E10: Si | F10: 0-T | G10: T | H10: Si-0 | I10: =VLOOKUP($H10,'Mng&Soil'!$B$2:$E$41,3,FALSE) -> 6 | J10: =VLOOKUP($H10,'Mng&Soil'!$B$2:$F$41,5,FALSE) -> 5 | K10: =VLOOKUP($H10,'Mng&Soil'!$B$2:$G$41,6,FALSE) -> 58 | L10: =VLOOKUP(A10,pH_EC!$A9:$C85,2,FALSE) -> 78.9 | M10: =VLOOKUP(A10,pH_EC!$A9:$C85,3,FALSE) -> 6.56 | N10: =VLOOKUP($H10,Biomass!$A$2:$L$41,11,FALSE) -> 6431.38 | O10: =VLOOKUP($H10,Biomass!$A$2:$O$41,15,FALSE) -> 128.63 | P10: =VLOOKUP($A10,Min_N_Corrected!$A$2:V$93,21,FALSE) -> 9.25 | Q10: =VLOOKUP($A10,Min_N_Corrected!$A$2:W$93,22,FALSE) -> 1.98 | R10: 11.24 | S10: =(VLOOKUP(A10,ISNT_Amino_N!A$2:O$103,15,FALSE))-Q10 -> 545 | T10: =VLOOKUP(A10,Protein!A$3:Q$86,17,FALSE) -> 238 | U10: 44.98 | V10: =VLOOKUP(A10,WEON_WEOC!$B$2:$K$79,7,FALSE) -> 33.7 | W10: 827 | X10: =VLOOKUP(A10,WEON_WEOC!$B10:$K$79,10,FALSE) -> 540 | Y10: 16.0 | Z10: =VLOOKUP(A10,TC_TN!$A$2:$V$77,22,FALSE) -> 4439 | AA10: =VLOOKUP(A10,TC_TN!$A$2:$V$77,16,FALSE) -> 55854 | AB10: 4427 | AC10: 12.6 | AD10: 12.6 | AE10: =VLOOKUP($A10,'CO2'!$A$3:$O$78,15,FALSE) -> 82.1 | AF10: =VLOOKUP($A10,Nmin_SHS!$E$2:$S$77,13,FALSE) -> 26.9 | AG10: =VLOOKUP($A10,Nmin_SHS!$E$2:$S$77,14,FALSE) -> 28.3
A11: Si-0-S | B11: 3 | C11: 0 | D11: 2 | E11: Si | F11: 0-S | G11: S | H11: Si-0 | I11: =VLOOKUP($H11,'Mng&Soil'!$B$2:$E$41,3,FALSE) -> 6 | J11: =VLOOKUP($H11,'Mng&Soil'!$B$2:$F$41,5,FALSE) -> 5 | K11: =VLOOKUP($H11,'Mng&Soil'!$B$2:$G$41,6,FALSE) -> 58 | L11: =VLOOKUP(A11,pH_EC!$A10:$C86,2,FALSE) -> 46.0 | M11: =VLOOKUP(A11,pH_EC!$A10:$C86,3,FALSE) -> 6.57 | N11: =VLOOKUP($H11,Biomass!$A$2:$L$41,11,FALSE) -> 6431.38 | O11: =VLOOKUP($H11,Biomass!$A$2:$O$41,15,FALSE) -> 128.63 | P11: =VLOOKUP($A11,Min_N_Corrected!$A$2:V$93,21,FALSE) -> 2.82 | Q11: =VLOOKUP($A11,Min_N_Corrected!$A$2:W$93,22,FALSE) -> 1.21 | R11: 4.03 | S11: =(VLOOKUP(A11,ISNT_Amino_N!A$2:O$103,15,FALSE))-Q11 -> 367 | T11: =VLOOKUP(A11,Protein!A$3:Q$86,17,FALSE) -> 129 | U11: 19.08 | V11: =VLOOKUP(A11,WEON_WEOC!$B$2:$K$79,7,FALSE) -> 15.0 | W11: 515 | X11: =VLOOKUP(A11,WEON_WEOC!$B11:$K$79,10,FALSE) -> 313 | Y11: 20.8 | Z11: =VLOOKUP(A11,TC_TN!$A$2:$V$77,22,FALSE) -> 2933 | AA11: =VLOOKUP(A11,TC_TN!$A$2:$V$77,16,FALSE) -> 37423 | AB11: 2929 | AC11: 12.8 | AD11: 12.8 | AE11: =VLOOKUP($A11,'CO2'!$A$3:$O$78,15,FALSE) -> 39.6 | AF11: =VLOOKUP($A11,Nmin_SHS!$E$2:$S$77,13,FALSE) -> 10.3 | AG11: =VLOOKUP($A11,Nmin_SHS!$E$2:$S$77,14,FALSE) -> 13.7
A12: Si-1-T | B12: 3 | C12: 1 | D12: 1 | E12: Si | F12: 1-T | G12: T | H12: Si-1 | I12: =VLOOKUP($H12,'Mng&Soil'!$B$2:$E$41,3,FALSE) -> 6 | J12: =VLOOKUP($H12,'Mng&Soil'!$B$2:$F$41,5,FALSE) -> 5 | K12: =VLOOKUP($H12,'Mng&Soil'!$B$2:$G$41,6,FALSE) -> 63 | L12: =VLOOKUP(A12,pH_EC!$A11:$C87,2,FALSE) -> 81.3 | M12: =VLOOKUP(A12,pH_EC!$A11:$C87,3,FALSE) -> 6.52 | N12: =VLOOKUP($H12,Biomass!$A$2:$L$41,11,FALSE) -> 5208.42 | O12: =VLOOKUP($H12,Biomass!$A$2:$O$41,15,FALSE) -> 104.17 | P12: =VLOOKUP($A12,Min_N_Corrected!$A$2:V$93,21,FALSE) -> 10.51 | Q12: =VLOOKUP($A12,Min_N_Corrected!$A$2:W$93,22,FALSE) -> 6.05 | R12: 16.56 | S12: =(VLOOKUP(A12,ISNT_Amino_N!A$2:O$103,15,FALSE))-Q12 -> 567 | T12: =VLOOKUP(A12,Protein!A$3:Q$86,17,FALSE) -> 202 | U12: 42.63 | V12: =VLOOKUP(A12,WEON_WEOC!$B$2:$K$79,7,FALSE) -> 26.1 | W12: 812 | X12: =VLOOKUP(A12,WEON_WEOC!$B12:$K$79,10,FALSE) -> 412 | Y12: 15.8 | Z12: =VLOOKUP(A12,TC_TN!$A$2:$V$77,22,FALSE) -> 4430 | AA12: =VLOOKUP(A12,TC_TN!$A$2:$V$77,16,FALSE) -> 57166 | AB12: 4413 | AC12: 12.9 | AD12: 13.0 | AE12: =VLOOKUP($A12,'CO2'!$A$3:$O$78,15,FALSE) -> 72.8 | AF12: =VLOOKUP($A12,Nmin_SHS!$E$2:$S$77,13,FALSE) -> 23.8 | AG12: =VLOOKUP($A12,Nmin_SHS!$E$2:$S$77,14,FALSE) -> 25.3
A13: Si-1-S | B13: 3 | C13: 1 | D13: 2 | E13: Si | F13: 1-S | G13: S | H13: Si-1 | I13: =VLOOKUP($H13,'Mng&Soil'!$B$2:$E$41,3,FALSE) -> 6 | J13: =VLOOKUP($H13,'Mng&Soil'!$B$2:$F$41,5,FALSE) -> 5 | K13: =VLOOKUP($H13,'Mng&Soil'!$B$2:$G$41,6,FALSE) -> 63 | L13: =VLOOKUP(A13,pH_EC!$A12:$C88,2,FALSE) -> 46.0 | M13: =VLOOKUP(A13,pH_EC!$A12:$C88,3,FALSE) -> 6.34 | N13: =VLOOKUP($H13,Biomass!$A$2:$L$41,11,FALSE) -> 5208.42 | O13: =VLOOKUP($H13,Biomass!$A$2:$O$41,15,FALSE) -> 104.17 | P13: =VLOOKUP($A13,Min_N_Corrected!$A$2:V$93,21,FALSE) -> 2.26 | Q13: =VLOOKUP($A13,Min_N_Corrected!$A$2:W$93,22,FALSE) -> 1.81 | R13: 4.07 | S13: =(VLOOKUP(A13,ISNT_Amino_N!A$2:O$103,15,FALSE))-Q13 -> 357 | T13: =VLOOKUP(A13,Protein!A$3:Q$86,17,FALSE) -> 111 | U13: 15.92 | V13: =VLOOKUP(A13,WEON_WEOC!$B$2:$K$79,7,FALSE) -> 11.8 | W13: 484 | X13: =VLOOKUP(A13,WEON_WEOC!$B13:$K$79,10,FALSE) -> 181 | Y13: 15.3 | Z13: =VLOOKUP(A13,TC_TN!$A$2:$V$77,22,FALSE) -> 2932 | AA13: =VLOOKUP(A13,TC_TN!$A$2:$V$77,16,FALSE) -> 35151 | AB13: 2928 | AC13: 12.0 | AD13: 12.0 | AE13: =VLOOKUP($A13,'CO2'!$A$3:$O$78,15,FALSE) -> 44.8 | AF13: =VLOOKUP($A13,Nmin_SHS!$E$2:$S$77,13,FALSE) -> 14.5 | AG13: =VLOOKUP($A13,Nmin_SHS!$E$2:$S$77,14,FALSE) -> 18.9
A14: Mi-0-T | B14: 4 | C14: 0 | D14: 1 | E14: Mi | F14: 0-T | G14: T | H14: Mi-0 | I14: =VLOOKUP($H14,'Mng&Soil'!$B$2:$E$41,3,FALSE) -> 3 | J14: =VLOOKUP($H14,'Mng&Soil'!$B$2:$F$41,5,FALSE) -> 8 | K14: =VLOOKUP($H14,'Mng&Soil'!$B$2:$G$41,6,FALSE) -> 47 | L14: =VLOOKUP(A14,pH_EC!$A13:$C89,2,FALSE) -> 70.4 | M14: =VLOOKUP(A14,pH_EC!$A13:$C89,3,FALSE) -> 6.53 | N14: =VLOOKUP($H14,Biomass!$A$2:$L$41,11,FALSE) -> 2744.73 | O14: =VLOOKUP($H14,Biomass!$A$2:$O$41,15,FALSE) -> 68.62 | P14: =VLOOKUP($A14,Min_N_Corrected!$A$2:V$93,21,FALSE) -> 5.28 | Q14: =VLOOKUP($A14,Min_N_Corrected!$A$2:W$93,22,FALSE) -> 2.24 | R14: 7.53 | S14: =(VLOOKUP(A14,ISNT_Amino_N!A$2:O$103,15,FALSE))-Q14 -> 815 | T14: =VLOOKUP(A14,Protein!A$3:Q$86,17,FALSE) -> 386 | U14: 54.32 | V14: =VLOOKUP(A14,WEON_WEOC!$B$2:$K$79,7,FALSE) -> 46.8 | W14: 1255 | X14: =VLOOKUP(A14,WEON_WEOC!$B14:$K$79,10,FALSE) -> 664 | Y14: 14.2 | Z14: =VLOOKUP(A14,TC_TN!$A$2:$V$77,22,FALSE) -> 6284 | AA14: =VLOOKUP(A14,TC_TN!$A$2:$V$77,16,FALSE) -> 77254 | AB14: 6277 | AC14: 12.3 | AD14: 12.3 | AE14: =VLOOKUP($A14,'CO2'!$A$3:$O$78,15,FALSE) -> 110.5 | AF14: =VLOOKUP($A14,Nmin_SHS!$E$2:$S$77,13,FALSE) -> 40.4 | AG14: =VLOOKUP($A14,Nmin_SHS!$E$2:$S$77,14,FALSE) -> 47.1
A15: Mi-0-S | B15: 4 | C15: 0 | D15: 2 | E15: Mi | F15: 0-S | G15: S | H15: Mi-0 | I15: =VLOOKUP($H15,'Mng&Soil'!$B$2:$E$41,3,FALSE) -> 3 | J15: =VLOOKUP($H15,'Mng&Soil'!$B$2:$F$41,5,FALSE) -> 8 | K15: =VLOOKUP($H15,'Mng&Soil'!$B$2:$G$41,6,FALSE) -> 47 | L15: =VLOOKUP(A15,pH_EC!$A14:$C90,2,FALSE) -> 48.3 | M15: =VLOOKUP(A15,pH_EC!$A14:$C90,3,FALSE) -> 6.70 | N15: =VLOOKUP($H15,Biomass!$A$2:$L$41,11,FALSE) -> 2744.73 | O15: =VLOOKUP($H15,Biomass!$A$2:$O$41,15,FALSE) -> 68.62 | P15: =VLOOKUP($A15,Min_N_Corrected!$A$2:V$93,21,FALSE) -> 2.86 | Q15: =VLOOKUP($A15,Min_N_Corrected!$A$2:W$93,22,FALSE) -> 1.73 | R15: 4.59 | S15: =(VLOOKUP(A15,ISNT_Amino_N!A$2:O$103,15,FALSE))-Q15 -> 398 | T15: =VLOOKUP(A15,Protein!A$3:Q$86,17,FALSE) -> 170 | U15: 19.13 | V15: =VLOOKUP(A15,WEON_WEOC!$B$2:$K$79,7,FALSE) -> 14.5 | W15: 586 | X15: =VLOOKUP(A15,WEON_WEOC!$B15:$K$79,10,FALSE) -> 348 | Y15: 23.9 | Z15: =VLOOKUP(A15,TC_TN!$A$2:$V$77,22,FALSE) -> 2902 | AA15: =VLOOKUP(A15,TC_TN!$A$2:$V$77,16,FALSE) -> 37290 | AB15: 2898 | AC15: 12.8 | AD15: 12.9 | AE15: =VLOOKUP($A15,'CO2'!$A$3:$O$78,15,FALSE) -> 39.6 | AF15: =VLOOKUP($A15,Nmin_SHS!$E$2:$S$77,13,FALSE) -> 9.1 | AG15: =VLOOKUP($A15,Nmin_SHS!$E$2:$S$77,14,FALSE) -> 12.0
A16: Mi-1-T | B16: 4 | C16: 1 | D16: 1 | E16: Mi | F16: 1-T | G16: T | H16: Mi-1 | I16: =VLOOKUP($H16,'Mng&Soil'!$B$2:$E$41,3,FALSE) -> 3 | J16: =VLOOKUP($H16,'Mng&Soil'!$B$2:$F$41,5,FALSE) -> 1 | K16: =VLOOKUP($H16,'Mng&Soil'!$B$2:$G$41,6,FALSE) -> 35 | L16: =VLOOKUP(A16,pH_EC!$A15:$C91,2,FALSE) -> 69.2 | M16: =VLOOKUP(A16,pH_EC!$A15:$C91,3,FALSE) -> 6.63 | N16: =VLOOKUP($H16,Biomass!$A$2:$L$41,11,FALSE) -> 10087.28 | O16: =VLOOKUP($H16,Biomass!$A$2:$O$41,15,FALSE) -> 252.18 | P16: =VLOOKUP($A16,Min_N_Corrected!$A$2:V$93,21,FALSE) -> 5.41 | Q16: =VLOOKUP($A16,Min_N_Corrected!$A$2:W$93,22,FALSE) -> 1.95 | R16: 7.36 | S16: =(VLOOKUP(A16,ISNT_Amino_N!A$2:O$103,15,FALSE))-Q16 -> 796 | T16: =VLOOKUP(A16,Protein!A$3:Q$86,17,FALSE) -> 381 | U16: 53.31 | V16: =VLOOKUP(A16,WEON_WEOC!$B$2:$K$79,7,FALSE) -> 45.9 | W16: 1229 | X16: =VLOOKUP(A16,WEON_WEOC!$B16:$K$79,10,FALSE) -> 656 | Y16: 14.3 | Z16: =VLOOKUP(A16,TC_TN!$A$2:$V$77,22,FALSE) -> 5904 | AA16: =VLOOKUP(A16,TC_TN!$A$2:$V$77,16,FALSE) -> 73307 | AB16: 5896 | AC16: 12.4 | AD16: 12.4 | AE16: =VLOOKUP($A16,'CO2'!$A$3:$O$78,15,FALSE) -> 63.4 | AF16: =VLOOKUP($A16,Nmin_SHS!$E$2:$S$77,13,FALSE) -> 23.0 | AG16: =VLOOKUP($A16,Nmin_SHS!$E$2:$S$77,14,FALSE) -> 26.4
A17: Mi-1-S | B17: 4 | C17: 1 | D17: 2 | E17: Mi | F17: 1-S | G17: S | H17: Mi-1 | I17: =VLOOKUP($H17,'Mng&Soil'!$B$2:$E$41,3,FALSE) -> 3 | J17: =VLOOKUP($H17,'Mng&Soil'!$B$2:$F$41,5,FALSE) -> 1 | K17: =VLOOKUP($H17,'Mng&Soil'!$B$2:$G$41,6,FALSE) -> 35 | L17: =VLOOKUP(A17,pH_EC!$A16:$C92,2,FALSE) -> 63.0 | M17: =VLOOKUP(A17,pH_EC!$A16:$C92,3,FALSE) -> 6.71 | N17: =VLOOKUP($H17,Biomass!$A$2:$L$41,11,FALSE) -> 10087.28 | O17: =VLOOKUP($H17,Biomass!$A$2:$O$41,15,FALSE) -> 252.18 | P17: =VLOOKUP($A17,Min_N_Corrected!$A$2:V$93,21,FALSE) -> 6.08 | Q17: =VLOOKUP($A17,Min_N_Corrected!$A$2:W$93,22,FALSE) -> 1.30 | R17: 7.39 | S17: =(VLOOKUP(A17,ISNT_Amino_N!A$2:O$103,15,FALSE))-Q17 -> 425 | T17: =VLOOKUP(A17,Protein!A$3:Q$86,17,FALSE) -> 184 | U17: 27.53 | V17: =VLOOKUP(A17,WEON_WEOC!$B$2:$K$79,7,FALSE) -> 20.1 | W17: 637 | X17: =VLOOKUP(A17,WEON_WEOC!$B17:$K$79,10,FALSE) -> 432 | Y17: 21.4 | Z17: =VLOOKUP(A17,TC_TN!$A$2:$V$77,22,FALSE) -> 3123 | AA17: =VLOOKUP(A17,TC_TN!$A$2:$V$77,16,FALSE) -> 36493 | AB17: 3116 | AC17: 11.7 | AD17: 11.7 | AE17: =VLOOKUP($A17,'CO2'!$A$3:$O$78,15,FALSE) -> 40.9 | AF17: =VLOOKUP($A17,Nmin_SHS!$E$2:$S$77,13,FALSE) -> 10.3 | AG17: =VLOOKUP($A17,Nmin_SHS!$E$2:$S$77,14,FALSE) -> 13.5
A18: Li-0-T | B18: 5 | C18: 0 | D18: 1 | E18: Li | F18: 0-T | G18: T | H18: Li-0 | I18: =VLOOKUP($H18,'Mng&Soil'!$B$2:$E$41,3,FALSE) -> 4 | J18: =VLOOKUP($H18,'Mng&Soil'!$B$2:$F$41,5,FALSE) -> 5 | K18: =VLOOKUP($H18,'Mng&Soil'!$B$2:$G$41,6,FALSE) -> 49 | L18: =VLOOKUP(A18,pH_EC!$A17:$C93,2,FALSE) -> 49.6 | M18: =VLOOKUP(A18,pH_EC!$A17:$C93,3,FALSE) -> 6.24 | N18: =VLOOKUP($H18,Biomass!$A$2:$L$41,11,FALSE) -> 601.23 | O18: =VLOOKUP($H18,Biomass!$A$2:$O$41,15,FALSE) -> 18.04 | P18: =VLOOKUP($A18,Min_N_Corrected!$A$2:V$93,21,FALSE) -> 6.45 | Q18: =VLOOKUP($A18,Min_N_Corrected!$A$2:W$93,22,FALSE) -> 1.81 | R18: 8.26 | S18: =(VLOOKUP(A18,ISNT_Amino_N!A$2:O$103,15,FALSE))-Q18 -> 735 | T18: =VLOOKUP(A18,Protein!A$3:Q$86,17,FALSE) -> 286 | U18: 43.77 | V18: =VLOOKUP(A18,WEON_WEOC!$B$2:$K$79,7,FALSE) -> 35.5 | W18: 1065 | X18: =VLOOKUP(A18,WEON_WEOC!$B18:$K$79,10,FALSE) -> 628 | Y18: 17.7 | Z18: =VLOOKUP(A18,TC_TN!$A$2:$V$77,22,FALSE) -> 5146 | AA18: =VLOOKUP(A18,TC_TN!$A$2:$V$77,16,FALSE) -> 62938 | AB18: 5137 | AC18: 12.2 | AD18: 12.3 | AE18: =VLOOKUP($A18,'CO2'!$A$3:$O$78,15,FALSE) -> 95.2 | AF18: =VLOOKUP($A18,Nmin_SHS!$E$2:$S$77,13,FALSE) -> 28.4 | AG18: =VLOOKUP($A18,Nmin_SHS!$E$2:$S$77,14,FALSE) -> 31.0
A19: Li-0-S | B19: 5 | C19: 0 | D19: 2 | E19: Li | F19: 0-S | G19: S | H19: Li-0 | I19: =VLOOKUP($H19,'Mng&Soil'!$B$2:$E$41,3,FALSE) -> 4 | J19: =VLOOKUP($H19,'Mng&Soil'!$B$2:$F$41,5,FALSE) -> 5 | K19: =VLOOKUP($H19,'Mng&Soil'!$B$2:$G$41,6,FALSE) -> 49 | L19: =VLOOKUP(A19,pH_EC!$A18:$C94,2,FALSE) -> 38.8 | M19: =VLOOKUP(A19,pH_EC!$A18:$C94,3,FALSE) -> 6.55 | N19: =VLOOKUP($H19,Biomass!$A$2:$L$41,11,FALSE) -> 601.23 | O19: =VLOOKUP($H19,Biomass!$A$2:$O$41,15,FALSE) -> 18.04 | P19: =VLOOKUP($A19,Min_N_Corrected!$A$2:V$93,21,FALSE) -> 2.06 | Q19: =VLOOKUP($A19,Min_N_Corrected!$A$2:W$93,22,FALSE) -> 1.28 | R19: 3.34 | S19: =(VLOOKUP(A19,ISNT_Amino_N!A$2:O$103,15,FALSE))-Q19 -> 370 | T19: =VLOOKUP(A19,Protein!A$3:Q$86,17,FALSE) -> 110 | U19: 14.60 | V19: =VLOOKUP(A19,WEON_WEOC!$B$2:$K$79,7,FALSE) -> 11.3 | W19: 495 | X19: =VLOOKUP(A19,WEON_WEOC!$B19:$K$79,10,FALSE) -> 274 | Y19: 24.3 | Z19: =VLOOKUP(A19,TC_TN!$A$2:$V$77,22,FALSE) -> 2593 | AA19: =VLOOKUP(A19,TC_TN!$A$2:$V$77,16,FALSE) -> 32413 | AB19: 2590 | AC19: 12.5 | AD19: 12.5 | AE19: =VLOOKUP($A19,'CO2'!$A$3:$O$78,15,FALSE) -> 39.5 | AF19: =VLOOKUP($A19,Nmin_SHS!$E$2:$S$77,13,FALSE) -> 8.9 | AG19: =VLOOKUP($A19,Nmin_SHS!$E$2:$S$77,14,FALSE) -> 11.4
A20: Li-1-T | B20: 5 | C20: 1 | D20: 1 | E20: Li | F20: 1-T | G20: T | H20: Li-1 | I20: =VLOOKUP($H20,'Mng&Soil'!$B$2:$E$41,3,FALSE) -> 4 | J20: =VLOOKUP($H20,'Mng&Soil'!$B$2:$F$41,5,FALSE) -> 5 | K20: =VLOOKUP($H20,'Mng&Soil'!$B$2:$G$41,6,FALSE) -> 57 | L20: =VLOOKUP(A20,pH_EC!$A19:$C95,2,FALSE) -> 61.8 | M20: =VLOOKUP(A20,pH_EC!$A19:$C95,3,FALSE) -> 6.66 | N20: =VLOOKUP($H20,Biomass!$A$2:$L$41,11,FALSE) -> 680.38 | O20: =VLOOKUP($H20,Biomass!$A$2:$O$41,15,FALSE) -> 20.41 | P20: =VLOOKUP($A20,Min_N_Corrected!$A$2:V$93,21,FALSE) -> 4.70 | Q20: =VLOOKUP($A20,Min_N_Corrected!$A$2:W$93,22,FALSE) -> 3.30 | R20: 8.00 | S20: =(VLOOKUP(A20,ISNT_Amino_N!A$2:O$103,15,FALSE))-Q20 -> 764 | T20: =VLOOKUP(A20,Protein!A$3:Q$86,17,FALSE) -> 297 | U20: 39.46 | V20: =VLOOKUP(A20,WEON_WEOC!$B$2:$K$79,7,FALSE) -> 31.5 | W20: 1100 | X20: =VLOOKUP(A20,WEON_WEOC!$B20:$K$79,10,FALSE) -> 594 | Y20: 18.9 | Z20: =VLOOKUP(A20,TC_TN!$A$2:$V$77,22,FALSE) -> 5901 | AA20: =VLOOKUP(A20,TC_TN!$A$2:$V$77,16,FALSE) -> 74926 | AB20: 5893 | AC20: 12.7 | AD20: 12.7 | AE20: =VLOOKUP($A20,'CO2'!$A$3:$O$78,15,FALSE) -> 134.2 | AF20: =VLOOKUP($A20,Nmin_SHS!$E$2:$S$77,13,FALSE) -> 37.7 | AG20: =VLOOKUP($A20,Nmin_SHS!$E$2:$S$77,14,FALSE) -> 43.5
A21: Li-1-S | B21: 5 | C21: 1 | D21: 2 | E21: Li | F21: 1-S | G21: S | H21: Li-1 | I21: =VLOOKUP($H21,'Mng&Soil'!$B$2:$E$41,3,FALSE) -> 4 | J21: =VLOOKUP($H21,'Mng&Soil'!$B$2:$F$41,5,FALSE) -> 5 | K21: =VLOOKUP($H21,'Mng&Soil'!$B$2:$G$41,6,FALSE) -> 57 | L21: =VLOOKUP(A21,pH_EC!$A20:$C96,2,FALSE) -> 49.8 | M21: =VLOOKUP(A21,pH_EC!$A20:$C96,3,FALSE) -> 6.93 | N21: =VLOOKUP($H21,Biomass!$A$2:$L$41,11,FALSE) -> 680.38 | O21: =VLOOKUP($H21,Biomass!$A$2:$O$41,15,FALSE) -> 20.41 | P21: =VLOOKUP($A21,Min_N_Corrected!$A$2:V$93,21,FALSE) -> 1.76 | Q21: =VLOOKUP($A21,Min_N_Corrected!$A$2:W$93,22,FALSE) -> 1.52 | R21: 3.28 | S21: =(VLOOKUP(A21,ISNT_Amino_N!A$2:O$103,15,FALSE))-Q21 -> 419 | T21: =VLOOKUP(A21,Protein!A$3:Q$86,17,FALSE) -> 135 | U21: 18.89 | V21: =VLOOKUP(A21,WEON_WEOC!$B$2:$K$79,7,FALSE) -> 15.6 | W21: 573 | X21: =VLOOKUP(A21,WEON_WEOC!$B21:$K$79,10,FALSE) -> 177 | Y21: 11.4 | Z21: =VLOOKUP(A21,TC_TN!$A$2:$V$77,22,FALSE) -> 3184 | AA21: =VLOOKUP(A21,TC_TN!$A$2:$V$77,16,FALSE) -> 38213 | AB21: 3181 | AC21: 12.0 | AD21: 12.0 | AE21: =VLOOKUP($A21,'CO2'!$A$3:$O$78,15,FALSE) -> 52.5 | AF21: =VLOOKUP($A21,Nmin_SHS!$E$2:$S$77,13,FALSE) -> 20.8 | AG21: =VLOOKUP($A21,Nmin_SHS!$E$2:$S$77,14,FALSE) -> 27.8
A22: Ai-0-T | B22: 6 | C22: 0 | D22: 1 | E22: Ai | F22: 0-T | G22: T | H22: Ai-0 | I22: =VLOOKUP($H22,'Mng&Soil'!$B$2:$E$41,3,FALSE) -> 2 | J22: =VLOOKUP($H22,'Mng&Soil'!$B$2:$F$41,5,FALSE) -> 2 | K22: =VLOOKUP($H22,'Mng&Soil'!$B$2:$G$41,6,FALSE) -> 18 | L22: =VLOOKUP(A22,pH_EC!$A21:$C97,2,FALSE) -> 66.3 | M22: =VLOOKUP(A22,pH_EC!$A21:$C97,3,FALSE) -> 7.01 | N22: =VLOOKUP($H22,Biomass!$A$2:$L$41,11,FALSE) -> 1624.58 | O22: =VLOOKUP($H22,Biomass!$A$2:$O$41,15,FALSE) -> 32.49 | P22: =VLOOKUP($A22,Min_N_Corrected!$A$2:V$93,21,FALSE) -> 4.42 | Q22: =VLOOKUP($A22,Min_N_Corrected!$A$2:W$93,22,FALSE) -> 5.95 | R22: 10.37 | S22: =(VLOOKUP(A22,ISNT_Amino_N!A$2:O$103,15,FALSE))-Q22 -> 389 | T22: =VLOOKUP(A22,Protein!A$3:Q$86,17,FALSE) -> 347 | U22: 24.67 | V22: =VLOOKUP(A22,WEON_WEOC!$B$2:$K$79,7,FALSE) -> 14.3 | W22: 760 | X22: =VLOOKUP(A22,WEON_WEOC!$B22:$K$79,10,FALSE) -> 230 | Y22: 16.1 | Z22: =VLOOKUP(A22,TC_TN!$A$2:$V$77,22,FALSE) -> 3073 | AA22: =VLOOKUP(A22,TC_TN!$A$2:$V$77,16,FALSE) -> 35289 | AB22: 3062 | AC22: 11.5 | AD22: 11.5 | AE22: =VLOOKUP($A22,'CO2'!$A$3:$O$78,15,FALSE) -> 71.9 | AF22: =VLOOKUP($A22,Nmin_SHS!$E$2:$S$77,13,FALSE) -> 22.0 | AG22: =VLOOKUP($A22,Nmin_SHS!$E$2:$S$77,14,FALSE) -> 20.5
A23: Ai-0-S | B23: 6 | C23: 0 | D23: 2 | E23: Ai | F23: 0-S | G23: S | H23: Ai-0 | I23: =VLOOKUP($H23,'Mng&Soil'!$B$2:$E$41,3,FALSE) -> 2 | J23: =VLOOKUP($H23,'Mng&Soil'!$B$2:$F$41,5,FALSE) -> 2 | K23: =VLOOKUP($H23,'Mng&Soil'!$B$2:$G$41,6,FALSE) -> 18 | L23: =VLOOKUP(A23,pH_EC!$A22:$C98,2,FALSE) -> 66.7 | M23: =VLOOKUP(A23,pH_EC!$A22:$C98,3,FALSE) -> 7.20 | N23: =VLOOKUP($H23,Biomass!$A$2:$L$41,11,FALSE) -> 1624.58 | O23: =VLOOKUP($H23,Biomass!$A$2:$O$41,15,FALSE) -> 32.49 | P23: =VLOOKUP($A23,Min_N_Corrected!$A$2:V$93,21,FALSE) -> 4.33 | Q23: =VLOOKUP($A23,Min_N_Corrected!$A$2:W$93,22,FALSE) -> 3.19 | R23: 7.52 | S23: =(VLOOKUP(A23,ISNT_Amino_N!A$2:O$103,15,FALSE))-Q23 -> 266 | T23: =VLOOKUP(A23,Protein!A$3:Q$86,17,FALSE) -> 224 | U23: 13.03 | V23: =VLOOKUP(A23,WEON_WEOC!$B$2:$K$79,7,FALSE) -> 5.5 | W23: 503 | X23: =VLOOKUP(A23,WEON_WEOC!$B23:$K$79,10,FALSE) -> 146 | Y23: 26.4 | Z23: =VLOOKUP(A23,TC_TN!$A$2:$V$77,22,FALSE) -> 2120 | AA23: =VLOOKUP(A23,TC_TN!$A$2:$V$77,16,FALSE) -> 22916 | AB23: 2112 | AC23: 10.8 | AD23: 10.8 | AE23: =VLOOKUP($A23,'CO2'!$A$3:$O$78,15,FALSE) -> 48.9 | AF23: =VLOOKUP($A23,Nmin_SHS!$E$2:$S$77,13,FALSE) -> 10.9 | AG23: =VLOOKUP($A23,Nmin_SHS!$E$2:$S$77,14,FALSE) -> 12.8
A24: Ai-1-T | B24: 6 | C24: 1 | D24: 1 | E24: Ai | F24: 1-T | G24: T | H24: Ai-1 | I24: =VLOOKUP($H24,'Mng&Soil'!$B$2:$E$41,3,FALSE) -> 2 | J24: =VLOOKUP($H24,'Mng&Soil'!$B$2:$F$41,5,FALSE) -> 3 | K24: =VLOOKUP($H24,'Mng&Soil'!$B$2:$G$41,6,FALSE) -> 26 | L24: =VLOOKUP(A24,pH_EC!$A23:$C99,2,FALSE) -> 68.9 | M24: =VLOOKUP(A24,pH_EC!$A23:$C99,3,FALSE) -> 7.15 | N24: =VLOOKUP($H24,Biomass!$A$2:$L$41,11,FALSE) -> 6316.15 | O24: =VLOOKUP($H24,Biomass!$A$2:$O$41,15,FALSE) -> 189.48 | P24: =VLOOKUP($A24,Min_N_Corrected!$A$2:V$93,21,FALSE) -> 0.71 | Q24: =VLOOKUP($A24,Min_N_Corrected!$A$2:W$93,22,FALSE) -> 1.75 | R24: 2.46 | S24: =(VLOOKUP(A24,ISNT_Amino_N!A$2:O$103,15,FALSE))-Q24 -> 453 | T24: =VLOOKUP(A24,Protein!A$3:Q$86,17,FALSE) -> 316 | U24: 28.09 | V24: =VLOOKUP(A24,WEON_WEOC!$B$2:$K$79,7,FALSE) -> 25.6 | W24: 798 | X24: =VLOOKUP(A24,WEON_WEOC!$B24:$K$79,10,FALSE) -> 333 | Y24: 13.0 | Z24: =VLOOKUP(A24,TC_TN!$A$2:$V$77,22,FALSE) -> 3543 | AA24: =VLOOKUP(A24,TC_TN!$A$2:$V$77,16,FALSE) -> 42749 | AB24: 3541 | AC24: 12.1 | AD24: 12.1 | AE24: =VLOOKUP($A24,'CO2'!$A$3:$O$78,15,FALSE) -> 122.9 | AF24: =VLOOKUP($A24,Nmin_SHS!$E$2:$S$77,13,FALSE) -> 46.0 | AG24: =VLOOKUP($A24,Nmin_SHS!$E$2:$S$77,14,FALSE) -> 45.1
A25: Ai-1-S | B25: 6 | C25: 1 | D25: 2 | E25: Ai | F25: 1-S | G25: S | H25: Ai-1 | I25: =VLOOKUP($H25,'Mng&Soil'!$B$2:$E$41,3,FALSE) -> 2 | J25: =VLOOKUP($H25,'Mng&Soil'!$B$2:$F$41,5,FALSE) -> 3 | K25: =VLOOKUP($H25,'Mng&Soil'!$B$2:$G$41,6,FALSE) -> 26 | L25: =VLOOKUP(A25,pH_EC!$A24:$C100,2,FALSE) -> 68.9 | M25: =VLOOKUP(A25,pH_EC!$A24:$C100,3,FALSE) -> 7.24 | N25: =VLOOKUP($H25,Biomass!$A$2:$L$41,11,FALSE) -> 6316.15 | O25: =VLOOKUP($H25,Biomass!$A$2:$O$41,15,FALSE) -> 189.48 | P25: =VLOOKUP($A25,Min_N_Corrected!$A$2:V$93,21,FALSE) -> 2.92 | Q25: =VLOOKUP($A25,Min_N_Corrected!$A$2:W$93,22,FALSE) -> 0.91 | R25: 3.83 | S25: =(VLOOKUP(A25,ISNT_Amino_N!A$2:O$103,15,FALSE))-Q25 -> 331 | T25: =VLOOKUP(A25,Protein!A$3:Q$86,17,FALSE) -> 265 | U25: 21.75 | V25: =VLOOKUP(A25,WEON_WEOC!$B$2:$K$79,7,FALSE) -> 17.9 | W25: 618 | X25: =VLOOKUP(A25,WEON_WEOC!$B25:$K$79,10,FALSE) -> 258 | Y25: 14.4 | Z25: =VLOOKUP(A25,TC_TN!$A$2:$V$77,22,FALSE) -> 2632 | AA25: =VLOOKUP(A25,TC_TN!$A$2:$V$77,16,FALSE) -> 31437 | AB25: 2628 | AC25: 11.9 | AD25: 12.0 | AE25: =VLOOKUP($A25,'CO2'!$A$3:$O$78,15,FALSE) -> 79.1 | AF25: =VLOOKUP($A25,Nmin_SHS!$E$2:$S$77,13,FALSE) -> 27.3 | AG25: =VLOOKUP($A25,Nmin_SHS!$E$2:$S$77,14,FALSE) -> 34.6
A26: Pi-0-T | B26: 7 | C26: 0 | D26: 1 | E26: Pi | F26: 0-T | G26: T | H26: Pi-0 | I26: =VLOOKUP($H26,'Mng&Soil'!$B$2:$E$41,3,FALSE) -> 4 | J26: =VLOOKUP($H26,'Mng&Soil'!$B$2:$F$41,5,FALSE) -> 9 | K26: =VLOOKUP($H26,'Mng&Soil'!$B$2:$G$41,6,FALSE) -> 37 | L26: =VLOOKUP(A26,pH_EC!$A25:$C101,2,FALSE) -> 83.2 | M26: =VLOOKUP(A26,pH_EC!$A25:$C101,3,FALSE) -> 7.35 | N26: =VLOOKUP($H26,Biomass!$A$2:$L$41,11,FALSE) -> 7876.97 | O26: =VLOOKUP($H26,Biomass!$A$2:$O$41,15,FALSE) -> 110.28 | P26: =VLOOKUP($A26,Min_N_Corrected!$A$2:V$93,21,FALSE) -> 8.30 | Q26: =VLOOKUP($A26,Min_N_Corrected!$A$2:W$93,22,FALSE) -> 2.76 | R26: 11.06 | S26: =(VLOOKUP(A26,ISNT_Amino_N!A$2:O$103,15,FALSE))-Q26 -> 715 | T26: =VLOOKUP(A26,Protein!A$3:Q$86,17,FALSE) -> 331 | U26: 30.55 | V26: =VLOOKUP(A26,WEON_WEOC!$B$2:$K$79,7,FALSE) -> 19.5 | W26: 1076 | X26: =VLOOKUP(A26,WEON_WEOC!$B26:$K$79,10,FALSE) -> 331 | Y26: 17.0 | Z26: =VLOOKUP(A26,TC_TN!$A$2:$V$77,22,FALSE) -> 5291 | AA26: =VLOOKUP(A26,TC_TN!$A$2:$V$77,16,FALSE) -> 67745 | AB26: 5280 | AC26: 12.8 | AD26: 12.8 | AE26: =VLOOKUP($A26,'CO2'!$A$3:$O$78,15,FALSE) -> 82.8 | AF26: =VLOOKUP($A26,Nmin_SHS!$E$2:$S$77,13,FALSE) -> 25.1 | AG26: =VLOOKUP($A26,Nmin_SHS!$E$2:$S$77,14,FALSE) -> 28.0
A27: Pi-0-S | B27: 7 | C27: 0 | D27: 2 | E27: Pi | F27: 0-S | G27: S | H27: Pi-0 | I27: =VLOOKUP($H27,'Mng&Soil'!$B$2:$E$41,3,FALSE) -> 4 | J27: =VLOOKUP($H27,'Mng&Soil'!$B$2:$F$41,5,FALSE) -> 9 | K27: =VLOOKUP($H27,'Mng&Soil'!$B$2:$G$41,6,FALSE) -> 37 | L27: =VLOOKUP(A27,pH_EC!$A26:$C102,2,FALSE) -> 57.5 | M27: =VLOOKUP(A27,pH_EC!$A26:$C102,3,FALSE) -> 7.00 | N27: =VLOOKUP($H27,Biomass!$A$2:$L$41,11,FALSE) -> 7876.97 | O27: =VLOOKUP($H27,Biomass!$A$2:$O$41,15,FALSE) -> 110.28 | P27: =VLOOKUP($A27,Min_N_Corrected!$A$2:V$93,21,FALSE) -> 1.67 | Q27: =VLOOKUP($A27,Min_N_Corrected!$A$2:W$93,22,FALSE) -> 1.40 | R27: 3.06 | S27: =(VLOOKUP(A27,ISNT_Amino_N!A$2:O$103,15,FALSE))-Q27 -> 468 | T27: =VLOOKUP(A27,Protein!A$3:Q$86,17,FALSE) -> 240 | U27: 15.18 | V27: =VLOOKUP(A27,WEON_WEOC!$B$2:$K$79,7,FALSE) -> 12.1 | W27: 723 | X27: =VLOOKUP(A27,WEON_WEOC!$B27:$K$79,10,FALSE) -> 286 | Y27: 23.7 | Z27: =VLOOKUP(A27,TC_TN!$A$2:$V$77,22,FALSE) -> 3275 | AA27: =VLOOKUP(A27,TC_TN!$A$2:$V$77,16,FALSE) -> 42207 | AB27: 3272 | AC27: 12.9 | AD27: 12.9 | AE27: =VLOOKUP($A27,'CO2'!$A$3:$O$78,15,FALSE) -> 46.6 | AF27: =VLOOKUP($A27,Nmin_SHS!$E$2:$S$77,13,FALSE) -> 10.9 | AG27: =VLOOKUP($A27,Nmin_SHS!$E$2:$S$77,14,FALSE) -> 15.0
A28: Pi-1-T | B28: 7 | C28: 1 | D28: 1 | E28: Pi | F28: 1-T | G28: T | H28: Pi-1 | I28: =VLOOKUP($H28,'Mng&Soil'!$B$2:$E$41,3,FALSE) -> 4 | J28: =VLOOKUP($H28,'Mng&Soil'!$B$2:$F$41,5,FALSE) -> 5 | K28: =VLOOKUP($H28,'Mng&Soil'!$B$2:$G$41,6,FALSE) -> 46 | L28: =VLOOKUP(A28,pH_EC!$A27:$C103,2,FALSE) -> 100.3 | M28: =VLOOKUP(A28,pH_EC!$A27:$C103,3,FALSE) -> 7.53 | N28: =VLOOKUP($H28,Biomass!$A$2:$L$41,11,FALSE) -> 8127.79 | O28: =VLOOKUP($H28,Biomass!$A$2:$O$41,15,FALSE) -> 113.79 | P28: =VLOOKUP($A28,Min_N_Corrected!$A$2:V$93,21,FALSE) -> 3.82 | Q28: =VLOOKUP($A28,Min_N_Corrected!$A$2:W$93,22,FALSE) -> 2.10 | R28: 5.92 | S28: =(VLOOKUP(A28,ISNT_Amino_N!A$2:O$103,15,FALSE))-Q28 -> 711 | T28: =VLOOKUP(A28,Protein!A$3:Q$86,17,FALSE) -> 321 | U28: 32.15 | V28: =VLOOKUP(A28,WEON_WEOC!$B$2:$K$79,7,FALSE) -> 26.2 | W28: 1064 | X28: =VLOOKUP(A28,WEON_WEOC!$B28:$K$79,10,FALSE) -> 504 | Y28: 19.2 | Z28: =VLOOKUP(A28,TC_TN!$A$2:$V$77,22,FALSE) -> 5511 | AA28: =VLOOKUP(A28,TC_TN!$A$2:$V$77,16,FALSE) -> 70173 | AB28: 5505 | AC28: 12.7 | AD28: 12.7 | AE28: =VLOOKUP($A28,'CO2'!$A$3:$O$78,15,FALSE) -> 83.0 | AF28: =VLOOKUP($A28,Nmin_SHS!$E$2:$S$77,13,FALSE) -> 23.1 | AG28: =VLOOKUP($A28,Nmin_SHS!$E$2:$S$77,14,FALSE) -> 26.0
A29: Pi-1-S | B29: 7 | C29: 1 | D29: 2 | E29: Pi | F29: 1-S | G29: S | H29: Pi-1 | I29: =VLOOKUP($H29,'Mng&Soil'!$B$2:$E$41,3,FALSE) -> 4 | J29: =VLOOKUP($H29,'Mng&Soil'!$B$2:$F$41,5,FALSE) -> 5 | K29: =VLOOKUP($H29,'Mng&Soil'!$B$2:$G$41,6,FALSE) -> 46 | L29: =VLOOKUP(A29,pH_EC!$A28:$C104,2,FALSE) -> 64.8 | M29: =VLOOKUP(A29,pH_EC!$A28:$C104,3,FALSE) -> 7.27 | N29: =VLOOKUP($H29,Biomass!$A$2:$L$41,11,FALSE) -> 8127.79 | O29: =VLOOKUP($H29,Biomass!$A$2:$O$41,15,FALSE) -> 113.79 | P29: =VLOOKUP($A29,Min_N_Corrected!$A$2:V$93,21,FALSE) -> 2.64 | Q29: =VLOOKUP($A29,Min_N_Corrected!$A$2:W$93,22,FALSE) -> 1.72 | R29: 4.35 | S29: =(VLOOKUP(A29,ISNT_Amino_N!A$2:O$103,15,FALSE))-Q29 -> 470 | T29: =VLOOKUP(A29,Protein!A$3:Q$86,17,FALSE) -> 213 | U29: 13.47 | V29: =VLOOKUP(A29,WEON_WEOC!$B$2:$K$79,7,FALSE) -> 9.1 | W29: 696 | X29: =VLOOKUP(A29,WEON_WEOC!$B29:$K$79,10,FALSE) -> 349 | Y29: 38.3 | Z29: =VLOOKUP(A29,TC_TN!$A$2:$V$77,22,FALSE) -> 3490 | AA29: =VLOOKUP(A29,TC_TN!$A$2:$V$77,16,FALSE) -> 43465 | AB29: 3486 | AC29: 12.5 | AD29: 12.5 | AE29: =VLOOKUP($A29,'CO2'!$A$3:$O$78,15,FALSE) -> 39.8 | AF29: =VLOOKUP($A29,Nmin_SHS!$E$2:$S$77,13,FALSE) -> 6.5 | AG29: =VLOOKUP($A29,Nmin_SHS!$E$2:$S$77,14,FALSE) -> 9.0
A30: Ja-0-T | B30: 8 | C30: 0 | D30: 1 | E30: Ja | F30: 0-T | G30: T | H30: Ja-0 | I30: =VLOOKUP($H30,'Mng&Soil'!$B$2:$E$41,3,FALSE) -> 2 | J30: =VLOOKUP($H30,'Mng&Soil'!$B$2:$F$41,5,FALSE) -> 5 | K30: =VLOOKUP($H30,'Mng&Soil'!$B$2:$G$41,6,FALSE) -> 53 | L30: =VLOOKUP(A30,pH_EC!$A29:$C105,2,FALSE) -> 65.9 | M30: =VLOOKUP(A30,pH_EC!$A29:$C105,3,FALSE) -> 6.80 | N30: =VLOOKUP($H30,Biomass!$A$2:$L$41,11,FALSE) -> 0.00 | O30: =VLOOKUP($H30,Biomass!$A$2:$O$41,15,FALSE) -> 0.00 | P30: =VLOOKUP($A30,Min_N_Corrected!$A$2:V$93,21,FALSE) -> 12.06 | Q30: =VLOOKUP($A30,Min_N_Corrected!$A$2:W$93,22,FALSE) -> 3.25 | R30: 15.31 | S30: =(VLOOKUP(A30,ISNT_Amino_N!A$2:O$103,15,FALSE))-Q30 -> 578 | T30: =VLOOKUP(A30,Protein!A$3:Q$86,17,FALSE) -> 321 | U30: 29.44 | V30: =VLOOKUP(A30,WEON_WEOC!$B$2:$K$79,7,FALSE) -> 14.1 | W30: 928 | X30: =VLOOKUP(A30,WEON_WEOC!$B30:$K$79,10,FALSE) -> 383 | Y30: 27.1 | Z30: =VLOOKUP(A30,TC_TN!$A$2:$V$77,22,FALSE) -> 4551 | AA30: =VLOOKUP(A30,TC_TN!$A$2:$V$77,16,FALSE) -> 61990 | AB30: 4536 | AC30: 13.6 | AD30: 13.7 | AE30: =VLOOKUP($A30,'CO2'!$A$3:$O$78,15,FALSE) -> 60.2 | AF30: =VLOOKUP($A30,Nmin_SHS!$E$2:$S$77,13,FALSE) -> 12.7 | AG30: =VLOOKUP($A30,Nmin_SHS!$E$2:$S$77,14,FALSE) -> 13.8
A31: Ja-1-T | B31: 8 | C31: 1 | D31: 1 | E31: Ja | F31: 1-T | G31: T | H31: Ja-1 | I31: =VLOOKUP($H31,'Mng&Soil'!$B$2:$E$41,3,FALSE) -> 2 | J31: =VLOOKUP($H31,'Mng&Soil'!$B$2:$F$41,5,FALSE) -> 5 | K31: =VLOOKUP($H31,'Mng&Soil'!$B$2:$G$41,6,FALSE) -> 58 | L31: =VLOOKUP(A31,pH_EC!$A30:$C106,2,FALSE) -> 56.3 | M31: =VLOOKUP(A31,pH_EC!$A30:$C106,3,FALSE) -> 6.69 | N31: =VLOOKUP($H31,Biomass!$A$2:$L$41,11,FALSE) -> 0.00 | O31: =VLOOKUP($H31,Biomass!$A$2:$O$41,15,FALSE) -> 0.00 | P31: =VLOOKUP($A31,Min_N_Corrected!$A$2:V$93,21,FALSE) -> 9.90 | Q31: =VLOOKUP($A31,Min_N_Corrected!$A$2:W$93,22,FALSE) -> 2.75 | R31: 12.65 | S31: =(VLOOKUP(A31,ISNT_Amino_N!A$2:O$103,15,FALSE))-Q31 -> 607 | T31: =VLOOKUP(A31,Protein!A$3:Q$86,17,FALSE) -> 256 | U31: 27.90 | V31: =VLOOKUP(A31,WEON_WEOC!$B$2:$K$79,7,FALSE) -> 15.3 | W31: 891 | X31: =VLOOKUP(A31,WEON_WEOC!$B31:$K$79,10,FALSE) -> 432 | Y31: 28.3 | Z31: =VLOOKUP(A31,TC_TN!$A$2:$V$77,22,FALSE) -> 4583 | AA31: =VLOOKUP(A31,TC_TN!$A$2:$V$77,16,FALSE) -> 57818 | AB31: 4571 | AC31: 12.6 | AD31: 12.6 | AE31: =VLOOKUP($A31,'CO2'!$A$3:$O$78,15,FALSE) -> 78.1 | AF31: =VLOOKUP($A31,Nmin_SHS!$E$2:$S$77,13,FALSE) -> 15.9 | AG31: =VLOOKUP($A31,Nmin_SHS!$E$2:$S$77,14,FALSE) -> 16.9
A32: Mu-0-T | B32: 9 | C32: 0 | D32: 1 | E32: Mu | F32: 0-T | G32: T | H32: Mu-0 | I32: =VLOOKUP($H32,'Mng&Soil'!$B$2:$E$41,3,FALSE) -> 5 | J32: =VLOOKUP($H32,'Mng&Soil'!$B$2:$F$41,5,FALSE) -> 8 | K32: =VLOOKUP($H32,'Mng&Soil'!$B$2:$G$41,6,FALSE) -> 54 | L32: =VLOOKUP(A32,pH_EC!$A31:$C107,2,FALSE) -> 72.6 | M32: =VLOOKUP(A32,pH_EC!$A31:$C107,3,FALSE) -> 6.15 | N32: =VLOOKUP($H32,Biomass!$A$2:$L$41,11,FALSE) -> 2047.96 | O32: =VLOOKUP($H32,Biomass!$A$2:$O$41,15,FALSE) -> 61.44 | P32: =VLOOKUP($A32,Min_N_Corrected!$A$2:V$93,21,FALSE) -> 6.37 | Q32: =VLOOKUP($A32,Min_N_Corrected!$A$2:W$93,22,FALSE) -> 3.23 | R32: 9.60 | S32: =(VLOOKUP(A32,ISNT_Amino_N!A$2:O$103,15,FALSE))-Q32 -> 862 | T32: =VLOOKUP(A32,Protein!A$3:Q$86,17,FALSE) -> 399 | U32: 45.16 | V32: =VLOOKUP(A32,WEON_WEOC!$B$2:$K$79,7,FALSE) -> 35.6 | W32: 1306 | X32: =VLOOKUP(A32,WEON_WEOC!$B32:$K$79,10,FALSE) -> 735 | Y32: 20.7 | Z32: =VLOOKUP(A32,TC_TN!$A$2:$V$77,22,FALSE) -> 6100 | AA32: =VLOOKUP(A32,TC_TN!$A$2:$V$77,16,FALSE) -> 83645 | AB32: 6091 | AC32: 13.7 | AD32: 13.7 | AE32: =VLOOKUP($A32,'CO2'!$A$3:$O$78,15,FALSE) -> 148.8 | AF32: =VLOOKUP($A32,Nmin_SHS!$E$2:$S$77,13,FALSE) -> 39.3 | AG32: =VLOOKUP($A32,Nmin_SHS!$E$2:$S$77,14,FALSE) -> 47.0
A33: Mu-0-S | B33: 9 | C33: 0 | D33: 2 | E33: Mu | F33: 0-S | G33: S | H33: Mu-0 | I33: =VLOOKUP($H33,'Mng&Soil'!$B$2:$E$41,3,FALSE) -> 5 | J33: =VLOOKUP($H33,'Mng&Soil'!$B$2:$F$41,5,FALSE) -> 8 | K33: =VLOOKUP($H33,'Mng&Soil'!$B$2:$G$41,6,FALSE) -> 54 | L33: =VLOOKUP(A33,pH_EC!$A32:$C108,2,FALSE) -> 48.8 | M33: =VLOOKUP(A33,pH_EC!$A32:$C108,3,FALSE) -> 6.31 | N33: =VLOOKUP($H33,Biomass!$A$2:$L$41,11,FALSE) -> 2047.96 | O33: =VLOOKUP($H33,Biomass!$A$2:$O$41,15,FALSE) -> 61.44 | P33: =VLOOKUP($A33,Min_N_Corrected!$A$2:V$93,21,FALSE) -> 2.21 | Q33: =VLOOKUP($A33,Min_N_Corrected!$A$2:W$93,22,FALSE) -> 2.55 | R33: 4.76 | S33: =(VLOOKUP(A33,ISNT_Amino_N!A$2:O$103,15,FALSE))-Q33 -> 532 | T33: =VLOOKUP(A33,Protein!A$3:Q$86,17,FALSE) -> 251 | U33: 20.42 | V33: =VLOOKUP(A33,WEON_WEOC!$B$2:$K$79,7,FALSE) -> 15.7 | W33: 804 | X33: =VLOOKUP(A33,WEON_WEOC!$B33:$K$79,10,FALSE) -> 377 | Y33: 24.1 | Z33: =VLOOKUP(A33,TC_TN!$A$2:$V$77,22,FALSE) -> 3681 | AA33: =VLOOKUP(A33,TC_TN!$A$2:$V$77,16,FALSE) -> 50984 | AB33: 3677 | AC33: 13.8 | AD33: 13.9 | AE33: =VLOOKUP($A33,'CO2'!$A$3:$O$78,15,FALSE) -> 58.9 | AF33: =VLOOKUP($A33,Nmin_SHS!$E$2:$S$77,13,FALSE) -> 13.7 | AG33: =VLOOKUP($A33,Nmin_SHS!$E$2:$S$77,14,FALSE) -> 19.9
A34: Mu-1-T | B34: 9 | C34: 1 | D34: 1 | E34: Mu | F34: =C34&"-"&G34 -> 1-T | G34: T | H34: =E34&"-"&C34 -> Mu-1 | I34: =VLOOKUP($H34,'Mng&Soil'!$B$2:$E$41,3,FALSE) -> 5 | J34: =VLOOKUP($H34,'Mng&Soil'!$B$2:$F$41,5,FALSE) -> 1 | K34: =VLOOKUP($H34,'Mng&Soil'!$B$2:$G$41,6,FALSE) -> 37 | L34: =VLOOKUP(A34,pH_EC!$A33:$C109,2,FALSE) -> 73.6 | M34: =VLOOKUP(A34,pH_EC!$A33:$C109,3,FALSE) -> 6.39 | N34: =VLOOKUP($H34,Biomass!$A$2:$L$41,11,FALSE) -> 2211.24 | O34: =VLOOKUP($H34,Biomass!$A$2:$O$41,15,FALSE) -> 66.34 | P34: =VLOOKUP($A34,Min_N_Corrected!$A$2:V$93,21,FALSE) -> 5.59 | Q34: =VLOOKUP($A34,Min_N_Corrected!$A$2:W$93,22,FALSE) -> 3.71 | R34: =P34+Q34 -> 9.30 | S34: =(VLOOKUP(A34,ISNT_Amino_N!A$2:O$103,15,FALSE))-Q34 -> 865 | T34: =VLOOKUP(A34,Protein!A$3:Q$86,17,FALSE) -> 387 | U34: =V34+R34 -> 43.05 | V34: =VLOOKUP(A34,WEON_WEOC!$B$2:$K$79,7,FALSE) -> 33.8 | W34: =SUM(R34,S34,T34,V34) -> 1295 | X34: =VLOOKUP(A34,WEON_WEOC!$B34:$K$79,10,FALSE) -> 620 | Y34: =X34/V34 -> 18.4 | Z34: =VLOOKUP(A34,TC_TN!$A$2:$V$77,22,FALSE) -> 6524 | AA34: =VLOOKUP(A34,TC_TN!$A$2:$V$77,16,FALSE) -> 85311 | AB34: =Z34-R34 -> 6515 | AC34: =AA34/Z34 -> 13.1 | AD34: 13.1 | AE34: =VLOOKUP($A34,'CO2'!$A$3:$O$78,15,FALSE) -> 133.2 | AF34: =VLOOKUP($A34,Nmin_SHS!$E$2:$S$77,13,FALSE) -> 38.9 | AG34: =VLOOKUP($A34,Nmin_SHS!$E$2:$S$77,14,FALSE) -> 46.9
A35: Mu-1-S | B35: 9 | C35: 1 | D35: 2 | E35: Mu | F35: 1-S | G35: S | H35: Mu-1 | I35: =VLOOKUP($H35,'Mng&Soil'!$B$2:$E$41,3,FALSE) -> 5 | J35: =VLOOKUP($H35,'Mng&Soil'!$B$2:$F$41,5,FALSE) -> 1 | K35: =VLOOKUP($H35,'Mng&Soil'!$B$2:$G$41,6,FALSE) -> 37 | L35: =VLOOKUP(A35,pH_EC!$A34:$C110,2,FALSE) -> 56.7 | M35: =VLOOKUP(A35,pH_EC!$A34:$C110,3,FALSE) -> 6.59 | N35: =VLOOKUP($H35,Biomass!$A$2:$L$41,11,FALSE) -> 2211.24 | O35: =VLOOKUP($H35,Biomass!$A$2:$O$41,15,FALSE) -> 66.34 | P35: =VLOOKUP($A35,Min_N_Corrected!$A$2:V$93,21,FALSE) -> 3.00 | Q35: =VLOOKUP($A35,Min_N_Corrected!$A$2:W$93,22,FALSE) -> 2.47 | R35: 5.47 | S35: =(VLOOKUP(A35,ISNT_Amino_N!A$2:O$103,15,FALSE))-Q35 -> 548 | T35: =VLOOKUP(A35,Protein!A$3:Q$86,17,FALSE) -> 245 | U35: 18.81 | V35: =VLOOKUP(A35,WEON_WEOC!$B$2:$K$79,7,FALSE) -> 13.3 | W35: 811 | X35: =VLOOKUP(A35,WEON_WEOC!$B35:$K$79,10,FALSE) -> 299 | Y35: 22.4 | Z35: =VLOOKUP(A35,TC_TN!$A$2:$V$77,22,FALSE) -> 3903 | AA35: =VLOOKUP(A35,TC_TN!$A$2:$V$77,16,FALSE) -> 52039 | AB35: 3897 | AC35: 13.3 | AD35: 13.4 | AE35: =VLOOKUP($A35,'CO2'!$A$3:$O$78,15,FALSE) -> 70.4 | AF35: =VLOOKUP($A35,Nmin_SHS!$E$2:$S$77,13,FALSE) -> 17.3 | AG35: =VLOOKUP($A35,Nmin_SHS!$E$2:$S$77,14,FALSE) -> 25.3
A36: Kp-0-T | B36: 10 | C36: 0 | D36: 1 | E36: Kp | F36: 0-T | G36: T | H36: Kp-0 | I36: =VLOOKUP($H36,'Mng&Soil'!$B$2:$E$41,3,FALSE) -> 1 | J36: =VLOOKUP($H36,'Mng&Soil'!$B$2:$F$41,5,FALSE) -> 5 | K36: =VLOOKUP($H36,'Mng&Soil'!$B$2:$G$41,6,FALSE) -> 58 | L36: =VLOOKUP(A36,pH_EC!$A35:$C111,2,FALSE) -> 76.3 | M36: =VLOOKUP(A36,pH_EC!$A35:$C111,3,FALSE) -> 6.96 | N36: =VLOOKUP($H36,Biomass!$A$2:$L$41,11,FALSE) -> 1993.46 | O36: =VLOOKUP($H36,Biomass!$A$2:$O$41,15,FALSE) -> 59.80 | P36: =VLOOKUP($A36,Min_N_Corrected!$A$2:V$93,21,FALSE) -> 3.33 | Q36: =VLOOKUP($A36,Min_N_Corrected!$A$2:W$93,22,FALSE) -> 2.11 | R36: 5.44 | S36: =(VLOOKUP(A36,ISNT_Amino_N!A$2:O$103,15,FALSE))-Q36 -> 620 | T36: =VLOOKUP(A36,Protein!A$3:Q$86,17,FALSE) -> 332 | U36: 33.85 | V36: =VLOOKUP(A36,WEON_WEOC!$B$2:$K$79,7,FALSE) -> 28.4 | W36: 986 | X36: =VLOOKUP(A36,WEON_WEOC!$B36:$K$79,10,FALSE) -> 510 | Y36: 18.0 | Z36: =VLOOKUP(A36,TC_TN!$A$2:$V$77,22,FALSE) -> 4723 | AA36: =VLOOKUP(A36,TC_TN!$A$2:$V$77,16,FALSE) -> 59918 | AB36: 4717 | AC36: 12.7 | AD36: 12.7 | AE36: =VLOOKUP($A36,'CO2'!$A$3:$O$78,15,FALSE) -> 140.6 | AF36: =VLOOKUP($A36,Nmin_SHS!$E$2:$S$77,13,FALSE) -> 41.6 | AG36: =VLOOKUP($A36,Nmin_SHS!$E$2:$S$77,14,FALSE) -> 44.8
A37: Kp-0-S | B37: 10 | C37: 0 | D37: 2 | E37: Kp | F37: 0-S | G37: S | H37: Kp-0 | I37: =VLOOKUP($H37,'Mng&Soil'!$B$2:$E$41,3,FALSE) -> 1 | J37: =VLOOKUP($H37,'Mng&Soil'!$B$2:$F$41,5,FALSE) -> 5 | K37: =VLOOKUP($H37,'Mng&Soil'!$B$2:$G$41,6,FALSE) -> 58 | L37: =VLOOKUP(A37,pH_EC!$A36:$C112,2,FALSE) -> 41.3 | M37: =VLOOKUP(A37,pH_EC!$A36:$C112,3,FALSE) -> 6.56 | N37: =VLOOKUP($H37,Biomass!$A$2:$L$41,11,FALSE) -> 1993.46 | O37: =VLOOKUP($H37,Biomass!$A$2:$O$41,15,FALSE) -> 59.80 | P37: =VLOOKUP($A37,Min_N_Corrected!$A$2:V$93,21,FALSE) -> 2.29 | Q37: =VLOOKUP($A37,Min_N_Corrected!$A$2:W$93,22,FALSE) -> 1.76 | R37: 4.06 | S37: =(VLOOKUP(A37,ISNT_Amino_N!A$2:O$103,15,FALSE))-Q37 -> 393 | T37: =VLOOKUP(A37,Protein!A$3:Q$86,17,FALSE) -> 195 | U37: 15.92 | V37: =VLOOKUP(A37,WEON_WEOC!$B$2:$K$79,7,FALSE) -> 11.9 | W37: 605 | X37: =VLOOKUP(A37,WEON_WEOC!$B37:$K$79,10,FALSE) -> 369 | Y37: 31.1 | Z37: =VLOOKUP(A37,TC_TN!$A$2:$V$77,22,FALSE) -> 2852 | AA37: =VLOOKUP(A37,TC_TN!$A$2:$V$77,16,FALSE) -> 35690 | AB37: 2848 | AC37: 12.5 | AD37: 12.5 | AE37: =VLOOKUP($A37,'CO2'!$A$3:$O$78,15,FALSE) -> 63.9 | AF37: =VLOOKUP($A37,Nmin_SHS!$E$2:$S$77,13,FALSE) -> 12.2 | AG37: =VLOOKUP($A37,Nmin_SHS!$E$2:$S$77,14,FALSE) -> 16.0
A38: Kp-1-T | B38: 10 | C38: 1 | D38: 1 | E38: Kp | F38: 1-T | G38: T | H38: Kp-1 | I38: =VLOOKUP($H38,'Mng&Soil'!$B$2:$E$41,3,FALSE) -> 1 | J38: =VLOOKUP($H38,'Mng&Soil'!$B$2:$F$41,5,FALSE) -> 5 | K38: =VLOOKUP($H38,'Mng&Soil'!$B$2:$G$41,6,FALSE) -> 59 | L38: =VLOOKUP(A38,pH_EC!$A37:$C113,2,FALSE) -> 84.8 | M38: =VLOOKUP(A38,pH_EC!$A37:$C113,3,FALSE) -> 7.00 | N38: =VLOOKUP($H38,Biomass!$A$2:$L$41,11,FALSE) -> 2296.30 | O38: =VLOOKUP($H38,Biomass!$A$2:$O$41,15,FALSE) -> 68.89 | P38: =VLOOKUP($A38,Min_N_Corrected!$A$2:V$93,21,FALSE) -> 4.12 | Q38: =VLOOKUP($A38,Min_N_Corrected!$A$2:W$93,22,FALSE) -> 1.98 | R38: 6.11 | S38: =(VLOOKUP(A38,ISNT_Amino_N!A$2:O$103,15,FALSE))-Q38 -> 591 | T38: =VLOOKUP(A38,Protein!A$3:Q$86,17,FALSE) -> 308 | U38: 35.18 | V38: =VLOOKUP(A38,WEON_WEOC!$B$2:$K$79,7,FALSE) -> 29.1 | W38: 934 | X38: =VLOOKUP(A38,WEON_WEOC!$B38:$K$79,10,FALSE) -> 459 | Y38: 15.8 | Z38: =VLOOKUP(A38,TC_TN!$A$2:$V$77,22,FALSE) -> 4946 | AA38: =VLOOKUP(A38,TC_TN!$A$2:$V$77,16,FALSE) -> 63566 | AB38: 4940 | AC38: 12.9 | AD38: 12.9 | AE38: =VLOOKUP($A38,'CO2'!$A$3:$O$78,15,FALSE) -> 128.7 | AF38: =VLOOKUP($A38,Nmin_SHS!$E$2:$S$77,13,FALSE) -> 42.4 | AG38: =VLOOKUP($A38,Nmin_SHS!$E$2:$S$77,14,FALSE) -> 46.4
A39: Kp-1-S | B39: 10 | C39: 1 | D39: 2 | E39: Kp | F39: 1-S | G39: S | H39: Kp-1 | I39: =VLOOKUP($H39,'Mng&Soil'!$B$2:$E$41,3,FALSE) -> 1 | J39: =VLOOKUP($H39,'Mng&Soil'!$B$2:$F$41,5,FALSE) -> 5 | K39: =VLOOKUP($H39,'Mng&Soil'!$B$2:$G$41,6,FALSE) -> 59 | L39: =VLOOKUP(A39,pH_EC!$A38:$C114,2,FALSE) -> 43.2 | M39: =VLOOKUP(A39,pH_EC!$A38:$C114,3,FALSE) -> 6.55 | N39: =VLOOKUP($H39,Biomass!$A$2:$L$41,11,FALSE) -> 2296.30 | O39: =VLOOKUP($H39,Biomass!$A$2:$O$41,15,FALSE) -> 68.89 | P39: =VLOOKUP($A39,Min_N_Corrected!$A$2:V$93,21,FALSE) -> 2.72 | Q39: =VLOOKUP($A39,Min_N_Corrected!$A$2:W$93,22,FALSE) -> 1.49 | R39: 4.21 | S39: =(VLOOKUP(A39,ISNT_Amino_N!A$2:O$103,15,FALSE))-Q39 -> 409 | T39: =VLOOKUP(A39,Protein!A$3:Q$86,17,FALSE) -> 173 | U39: 18.97 | V39: =VLOOKUP(A39,WEON_WEOC!$B$2:$K$79,7,FALSE) -> 14.8 | W39: 601 | X39: =VLOOKUP(A39,WEON_WEOC!$B39:$K$79,10,FALSE) -> 362 | Y39: 24.5 | Z39: =VLOOKUP(A39,TC_TN!$A$2:$V$77,22,FALSE) -> 3134 | AA39: =VLOOKUP(A39,TC_TN!$A$2:$V$77,16,FALSE) -> 38213 | AB39: 3130 | AC39: 12.2 | AD39: 12.2 | AE39: =VLOOKUP($A39,'CO2'!$A$3:$O$78,15,FALSE) -> 57.4 | AF39: =VLOOKUP($A39,Nmin_SHS!$E$2:$S$77,13,FALSE) -> 13.1 | AG39: =VLOOKUP($A39,Nmin_SHS!$E$2:$S$77,14,FALSE) -> 17.6
A40: Ki-0-T | B40: 11 | C40: 0 | D40: 1 | E40: Ki | F40: 0-T | G40: T | H40: Ki-0 | I40: =VLOOKUP($H40,'Mng&Soil'!$B$2:$E$41,3,FALSE) -> 4 | J40: =VLOOKUP($H40,'Mng&Soil'!$B$2:$F$41,5,FALSE) -> 2 | K40: =VLOOKUP($H40,'Mng&Soil'!$B$2:$G$41,6,FALSE) -> 6 | L40: =VLOOKUP(A40,pH_EC!$A39:$C115,2,FALSE) -> 107.8 | M40: =VLOOKUP(A40,pH_EC!$A39:$C115,3,FALSE) -> 6.73 | N40: =VLOOKUP($H40,Biomass!$A$2:$L$41,11,FALSE) -> 891.93 | O40: =VLOOKUP($H40,Biomass!$A$2:$O$41,15,FALSE) -> 17.84 | P40: =VLOOKUP($A40,Min_N_Corrected!$A$2:V$93,21,FALSE) -> 34.15 | Q40: =VLOOKUP($A40,Min_N_Corrected!$A$2:W$93,22,FALSE) -> 10.40 | R40: 44.55 | S40: =(VLOOKUP(A40,ISNT_Amino_N!A$2:O$103,15,FALSE))-Q40 -> 352 | T40: =VLOOKUP(A40,Protein!A$3:Q$86,17,FALSE) -> 752 | U40: 55.84 | V40: =VLOOKUP(A40,WEON_WEOC!$B$2:$K$79,7,FALSE) -> 11.3 | W40: 1160 | X40: =VLOOKUP(A40,WEON_WEOC!$B40:$K$79,10,FALSE) -> 198 | Y40: 17.6 | Z40: =VLOOKUP(A40,TC_TN!$A$2:$V$77,22,FALSE) -> 2676 | AA40: =VLOOKUP(A40,TC_TN!$A$2:$V$77,16,FALSE) -> 41293 | AB40: 2631 | AC40: 15.4 | AD40: 15.7 | AE40: =VLOOKUP($A40,'CO2'!$A$3:$O$78,15,FALSE) -> 61.2 | AF40: =VLOOKUP($A40,Nmin_SHS!$E$2:$S$77,13,FALSE) -> 17.7 | AG40: =VLOOKUP($A40,Nmin_SHS!$E$2:$S$77,14,FALSE) -> 17.2
A41: Ki-0-S | B41: 11 | C41: 0 | D41: 2 | E41: Ki | F41: 0-S | G41: S | H41: Ki-0 | I41: =VLOOKUP($H41,'Mng&Soil'!$B$2:$E$41,3,FALSE) -> 4 | J41: =VLOOKUP($H41,'Mng&Soil'!$B$2:$F$41,5,FALSE) -> 2 | K41: =VLOOKUP($H41,'Mng&Soil'!$B$2:$G$41,6,FALSE) -> 6 | L41: =VLOOKUP(A41,pH_EC!$A40:$C116,2,FALSE) -> 53.2 | M41: =VLOOKUP(A41,pH_EC!$A40:$C116,3,FALSE) -> 7.06 | N41: =VLOOKUP($H41,Biomass!$A$2:$L$41,11,FALSE) -> 891.93 | O41: =VLOOKUP($H41,Biomass!$A$2:$O$41,15,FALSE) -> 17.84 | P41: =VLOOKUP($A41,Min_N_Corrected!$A$2:V$93,21,FALSE) -> 6.59 | Q41: =VLOOKUP($A41,Min_N_Corrected!$A$2:W$93,22,FALSE) -> 2.31 | R41: 8.90 | S41: =(VLOOKUP(A41,ISNT_Amino_N!A$2:O$103,15,FALSE))-Q41 -> 203 | T41: =VLOOKUP(A41,Protein!A$3:Q$86,17,FALSE) -> 482 | U41: 13.60 | V41: =VLOOKUP(A41,WEON_WEOC!$B$2:$K$79,7,FALSE) -> 4.7 | W41: 699 | X41: =VLOOKUP(A41,WEON_WEOC!$B41:$K$79,10,FALSE) -> 127 | Y41: 26.9 | Z41: =VLOOKUP(A41,TC_TN!$A$2:$V$77,22,FALSE) -> 1546 | AA41: =VLOOKUP(A41,TC_TN!$A$2:$V$77,16,FALSE) -> 22606 | AB41: 1537 | AC41: 14.6 | AD41: 14.7 | AE41: =VLOOKUP($A41,'CO2'!$A$3:$O$78,15,FALSE) -> 26.8 | AF41: =VLOOKUP($A41,Nmin_SHS!$E$2:$S$77,13,FALSE) -> 6.0 | AG41: =VLOOKUP($A41,Nmin_SHS!$E$2:$S$77,14,FALSE) -> 7.1
A42: Ki-1-T | B42: 11 | C42: 1 | D42: 1 | E42: Ki | F42: 1-T | G42: T | H42: Ki-1 | I42: =VLOOKUP($H42,'Mng&Soil'!$B$2:$E$41,3,FALSE) -> 4 | J42: =VLOOKUP($H42,'Mng&Soil'!$B$2:$F$41,5,FALSE) -> 7 | K42: =VLOOKUP($H42,'Mng&Soil'!$B$2:$G$41,6,FALSE) -> 4 | L42: =VLOOKUP(A42,pH_EC!$A41:$C117,2,FALSE) -> 84.8 | M42: =VLOOKUP(A42,pH_EC!$A41:$C117,3,FALSE) -> 7.16 | N42: =VLOOKUP($H42,Biomass!$A$2:$L$41,11,FALSE) -> 1504.18 | O42: =VLOOKUP($H42,Biomass!$A$2:$O$41,15,FALSE) -> 30.08 | P42: =VLOOKUP($A42,Min_N_Corrected!$A$2:V$93,21,FALSE) -> 14.22 | Q42: =VLOOKUP($A42,Min_N_Corrected!$A$2:W$93,22,FALSE) -> 9.77 | R42: 23.99 | S42: =(VLOOKUP(A42,ISNT_Amino_N!A$2:O$103,15,FALSE))-Q42 -> 404 | T42: =VLOOKUP(A42,Protein!A$3:Q$86,17,FALSE) -> 629 | U42: 38.09 | V42: =VLOOKUP(A42,WEON_WEOC!$B$2:$K$79,7,FALSE) -> 14.1 | W42: 1071 | X42: =VLOOKUP(A42,WEON_WEOC!$B42:$K$79,10,FALSE) -> 212 | Y42: 15.0 | Z42: =VLOOKUP(A42,TC_TN!$A$2:$V$77,22,FALSE) -> 3042 | AA42: =VLOOKUP(A42,TC_TN!$A$2:$V$77,16,FALSE) -> 48937 | AB42: 3018 | AC42: 16.1 | AD42: 16.2 | AE42: =VLOOKUP($A42,'CO2'!$A$3:$O$78,15,FALSE) -> 91.2 | AF42: =VLOOKUP($A42,Nmin_SHS!$E$2:$S$77,13,FALSE) -> 29.6 | AG42: =VLOOKUP($A42,Nmin_SHS!$E$2:$S$77,14,FALSE) -> 30.1
A43: Ki-1-S | B43: 11 | C43: 1 | D43: 2 | E43: Ki | F43: 1-S | G43: S | H43: Ki-1 | I43: =VLOOKUP($H43,'Mng&Soil'!$B$2:$E$41,3,FALSE) -> 4 | J43: =VLOOKUP($H43,'Mng&Soil'!$B$2:$F$41,5,FALSE) -> 7 | K43: =VLOOKUP($H43,'Mng&Soil'!$B$2:$G$41,6,FALSE) -> 4 | L43: =VLOOKUP(A43,pH_EC!$A42:$C118,2,FALSE) -> 62.7 | M43: =VLOOKUP(A43,pH_EC!$A42:$C118,3,FALSE) -> 7.50 | N43: =VLOOKUP($H43,Biomass!$A$2:$L$41,11,FALSE) -> 1504.18 | O43: =VLOOKUP($H43,Biomass!$A$2:$O$41,15,FALSE) -> 30.08 | P43: =VLOOKUP($A43,Min_N_Corrected!$A$2:V$93,21,FALSE) -> 2.86 | Q43: =VLOOKUP($A43,Min_N_Corrected!$A$2:W$93,22,FALSE) -> 1.69 | R43: 4.55 | S43: =(VLOOKUP(A43,ISNT_Amino_N!A$2:O$103,15,FALSE))-Q43 -> 229 | T43: =VLOOKUP(A43,Protein!A$3:Q$86,17,FALSE) -> 373 | U43: 15.07 | V43: =VLOOKUP(A43,WEON_WEOC!$B$2:$K$79,7,FALSE) -> 10.5 | W43: 617 | X43: =VLOOKUP(A43,WEON_WEOC!$B43:$K$79,10,FALSE) -> 192 | Y43: 18.3 | Z43: =VLOOKUP(A43,TC_TN!$A$2:$V$77,22,FALSE) -> 1770 | AA43: =VLOOKUP(A43,TC_TN!$A$2:$V$77,16,FALSE) -> 28445 | AB43: 1766 | AC43: 16.1 | AD43: 16.1 | AE43: =VLOOKUP($A43,'CO2'!$A$3:$O$78,15,FALSE) -> 35.4 | AF43: =VLOOKUP($A43,Nmin_SHS!$E$2:$S$77,13,FALSE) -> 10.1 | AG43: =VLOOKUP($A43,Nmin_SHS!$E$2:$S$77,14,FALSE) -> 12.4
A44: Na-0-T | B44: 12 | C44: 0 | D44: 1 | E44: Na | F44: 0-T | G44: T | H44: Na-0 | I44: =VLOOKUP($H44,'Mng&Soil'!$B$2:$E$41,3,FALSE) -> 6 | J44: =VLOOKUP($H44,'Mng&Soil'!$B$2:$F$41,5,FALSE) -> 1 | K44: =VLOOKUP($H44,'Mng&Soil'!$B$2:$G$41,6,FALSE) -> 35 | L44: =VLOOKUP(A44,pH_EC!$A43:$C119,2,FALSE) -> 76.8 | M44: =VLOOKUP(A44,pH_EC!$A43:$C119,3,FALSE) -> 6.63 | N44: =VLOOKUP($H44,Biomass!$A$2:$L$41,11,FALSE) -> 7185.91 | O44: =VLOOKUP($H44,Biomass!$A$2:$O$41,15,FALSE) -> 114.97 | P44: =VLOOKUP($A44,Min_N_Corrected!$A$2:V$93,21,FALSE) -> 6.18 | Q44: =VLOOKUP($A44,Min_N_Corrected!$A$2:W$93,22,FALSE) -> 2.90 | R44: 9.08 | S44: =(VLOOKUP(A44,ISNT_Amino_N!A$2:O$103,15,FALSE))-Q44 -> 664 | T44: =VLOOKUP(A44,Protein!A$3:Q$86,17,FALSE) -> 695 | U44: 48.92 | V44: =VLOOKUP(A44,WEON_WEOC!$B$2:$K$79,7,FALSE) -> 39.8 | W44: 1407 | X44: =VLOOKUP(A44,WEON_WEOC!$B44:$K$79,10,FALSE) -> 649 | Y44: 16.3 | Z44: =VLOOKUP(A44,TC_TN!$A$2:$V$77,22,FALSE) -> 5289 | AA44: =VLOOKUP(A44,TC_TN!$A$2:$V$77,16,FALSE) -> 75365 | AB44: 5280 | AC44: 14.2 | AD44: 14.3 | AE44: =VLOOKUP($A44,'CO2'!$A$3:$O$78,15,FALSE) -> 60.2 | AF44: =VLOOKUP($A44,Nmin_SHS!$E$2:$S$77,13,FALSE) -> 18.9 | AG44: =VLOOKUP($A44,Nmin_SHS!$E$2:$S$77,14,FALSE) -> 21.9
A45: Na-0-S | B45: 12 | C45: 0 | D45: 2 | E45: Na | F45: 0-S | G45: S | H45: Na-0 | I45: =VLOOKUP($H45,'Mng&Soil'!$B$2:$E$41,3,FALSE) -> 6 | J45: =VLOOKUP($H45,'Mng&Soil'!$B$2:$F$41,5,FALSE) -> 1 | K45: =VLOOKUP($H45,'Mng&Soil'!$B$2:$G$41,6,FALSE) -> 35 | L45: =VLOOKUP(A45,pH_EC!$A44:$C120,2,FALSE) -> 79.7 | M45: =VLOOKUP(A45,pH_EC!$A44:$C120,3,FALSE) -> 6.38 | N45: =VLOOKUP($H45,Biomass!$A$2:$L$41,11,FALSE) -> 7185.91 | O45: =VLOOKUP($H45,Biomass!$A$2:$O$41,15,FALSE) -> 114.97 | P45: =VLOOKUP($A45,Min_N_Corrected!$A$2:V$93,21,FALSE) -> 2.59 | Q45: =VLOOKUP($A45,Min_N_Corrected!$A$2:W$93,22,FALSE) -> 1.60 | R45: 4.19 | S45: =(VLOOKUP(A45,ISNT_Amino_N!A$2:O$103,15,FALSE))-Q45 -> 438 | T45: =VLOOKUP(A45,Protein!A$3:Q$86,17,FALSE) -> 508 | U45: 30.29 | V45: =VLOOKUP(A45,WEON_WEOC!$B$2:$K$79,7,FALSE) -> 26.1 | W45: 976 | X45: =VLOOKUP(A45,WEON_WEOC!$B45:$K$79,10,FALSE) -> 511 | Y45: 19.6 | Z45: =VLOOKUP(A45,TC_TN!$A$2:$V$77,22,FALSE) -> 3454 | AA45: =VLOOKUP(A45,TC_TN!$A$2:$V$77,16,FALSE) -> 47888 | AB45: 3450 | AC45: 13.9 | AD45: 13.9 | AE45: =VLOOKUP($A45,'CO2'!$A$3:$O$78,15,FALSE) -> 33.3 | AF45: =VLOOKUP($A45,Nmin_SHS!$E$2:$S$77,13,FALSE) -> 8.9 | AG45: =VLOOKUP($A45,Nmin_SHS!$E$2:$S$77,14,FALSE) -> 12.6
A46: Na-1-T | B46: 12 | C46: 1 | D46: 1 | E46: Na | F46: 1-T | G46: T | H46: Na-1 | I46: =VLOOKUP($H46,'Mng&Soil'!$B$2:$E$41,3,FALSE) -> 6 | J46: =VLOOKUP($H46,'Mng&Soil'!$B$2:$F$41,5,FALSE) -> 1 | K46: =VLOOKUP($H46,'Mng&Soil'!$B$2:$G$41,6,FALSE) -> 37 | L46: =VLOOKUP(A46,pH_EC!$A45:$C121,2,FALSE) -> 78.4 | M46: =VLOOKUP(A46,pH_EC!$A45:$C121,3,FALSE) -> 6.38 | N46: =VLOOKUP($H46,Biomass!$A$2:$L$41,11,FALSE) -> 6973.17 | O46: =VLOOKUP($H46,Biomass!$A$2:$O$41,15,FALSE) -> 111.57 | P46: =VLOOKUP($A46,Min_N_Corrected!$A$2:V$93,21,FALSE) -> 7.29 | Q46: =VLOOKUP($A46,Min_N_Corrected!$A$2:W$93,22,FALSE) -> 3.68 | R46: 10.97 | S46: =(VLOOKUP(A46,ISNT_Amino_N!A$2:O$103,15,FALSE))-Q46 -> 681 | T46: =VLOOKUP(A46,Protein!A$3:Q$86,17,FALSE) -> 727 | U46: 44.75 | V46: =VLOOKUP(A46,WEON_WEOC!$B$2:$K$79,7,FALSE) -> 33.8 | W46: 1452 | X46: =VLOOKUP(A46,WEON_WEOC!$B46:$K$79,10,FALSE) -> 626 | Y46: 18.5 | Z46: =VLOOKUP(A46,TC_TN!$A$2:$V$77,22,FALSE) -> 5198 | AA46: =VLOOKUP(A46,TC_TN!$A$2:$V$77,16,FALSE) -> 77688 | AB46: 5187 | AC46: 14.9 | AD46: 15.0 | AE46: =VLOOKUP($A46,'CO2'!$A$3:$O$78,15,FALSE) -> 73.3 | AF46: =VLOOKUP($A46,Nmin_SHS!$E$2:$S$77,13,FALSE) -> 20.5 | AG46: =VLOOKUP($A46,Nmin_SHS!$E$2:$S$77,14,FALSE) -> 23.9
A47: Na-1-S | B47: 12 | C47: 1 | D47: 2 | E47: Na | F47: 1-S | G47: S | H47: Na-1 | I47: =VLOOKUP($H47,'Mng&Soil'!$B$2:$E$41,3,FALSE) -> 6 | J47: =VLOOKUP($H47,'Mng&Soil'!$B$2:$F$41,5,FALSE) -> 1 | K47: =VLOOKUP($H47,'Mng&Soil'!$B$2:$G$41,6,FALSE) -> 37 | L47: =VLOOKUP(A47,pH_EC!$A46:$C122,2,FALSE) -> 69.3 | M47: =VLOOKUP(A47,pH_EC!$A46:$C122,3,FALSE) -> 6.09 | N47: =VLOOKUP($H47,Biomass!$A$2:$L$41,11,FALSE) -> 6973.17 | O47: =VLOOKUP($H47,Biomass!$A$2:$O$41,15,FALSE) -> 111.57 | P47: =VLOOKUP($A47,Min_N_Corrected!$A$2:V$93,21,FALSE) -> 2.31 | Q47: =VLOOKUP($A47,Min_N_Corrected!$A$2:W$93,22,FALSE) -> 2.25 | R47: 4.56 | S47: =(VLOOKUP(A47,ISNT_Amino_N!A$2:O$103,15,FALSE))-Q47 -> 459 | T47: =VLOOKUP(A47,Protein!A$3:Q$86,17,FALSE) -> 467 | U47: 21.18 | V47: =VLOOKUP(A47,WEON_WEOC!$B$2:$K$79,7,FALSE) -> 16.6 | W47: 947 | X47: =VLOOKUP(A47,WEON_WEOC!$B47:$K$79,10,FALSE) -> 482 | Y47: 29.0 | Z47: =VLOOKUP(A47,TC_TN!$A$2:$V$77,22,FALSE) -> 3879 | AA47: =VLOOKUP(A47,TC_TN!$A$2:$V$77,16,FALSE) -> 57744 | AB47: 3875 | AC47: 14.9 | AD47: 14.9 | AE47: =VLOOKUP($A47,'CO2'!$A$3:$O$78,15,FALSE) -> 35.0 | AF47: =VLOOKUP($A47,Nmin_SHS!$E$2:$S$77,13,FALSE) -> 6.6 | AG47: =VLOOKUP($A47,Nmin_SHS!$E$2:$S$77,14,FALSE) -> 9.9
A48: Ik-0-T | B48: 13 | C48: 0 | D48: 1 | E48: Ik | F48: 0-T | G48: T | H48: Ik-0 | I48: =VLOOKUP($H48,'Mng&Soil'!$B$2:$E$41,3,FALSE) -> 2 | J48: =VLOOKUP($H48,'Mng&Soil'!$B$2:$F$41,5,FALSE) -> 6 | K48: =VLOOKUP($H48,'Mng&Soil'!$B$2:$G$41,6,FALSE) -> 13 | L48: =VLOOKUP(A48,pH_EC!$A47:$C123,2,FALSE) -> 112.7 | M48: =VLOOKUP(A48,pH_EC!$A47:$C123,3,FALSE) -> 6.01 | N48: =VLOOKUP($H48,Biomass!$A$2:$L$41,11,FALSE) -> 5122.87 | O48: =VLOOKUP($H48,Biomass!$A$2:$O$41,15,FALSE) -> 179.30 | P48: =VLOOKUP($A48,Min_N_Corrected!$A$2:V$93,21,FALSE) -> 15.79 | Q48: =VLOOKUP($A48,Min_N_Corrected!$A$2:W$93,22,FALSE) -> 2.82 | R48: 18.61 | S48: =(VLOOKUP(A48,ISNT_Amino_N!A$2:O$103,15,FALSE))-Q48 -> 662 | T48: =VLOOKUP(A48,Protein!A$3:Q$86,17,FALSE) -> 1297 | U48: 47.70 | V48: =VLOOKUP(A48,WEON_WEOC!$B$2:$K$79,7,FALSE) -> 29.1 | W48: 2007 | X48: =VLOOKUP(A48,WEON_WEOC!$B48:$K$79,10,FALSE) -> 433 | Y48: 14.9 | Z48: =VLOOKUP(A48,TC_TN!$A$2:$V$77,22,FALSE) -> 5281 | AA48: =VLOOKUP(A48,TC_TN!$A$2:$V$77,16,FALSE) -> 120947 | AB48: 5263 | AC48: 22.9 | AD48: 23.0 | AE48: =VLOOKUP($A48,'CO2'!$A$3:$O$78,15,FALSE) -> 77.9 | AF48: =VLOOKUP($A48,Nmin_SHS!$E$2:$S$77,13,FALSE) -> 26.1 | AG48: =VLOOKUP($A48,Nmin_SHS!$E$2:$S$77,14,FALSE) -> 35.9
A49: Ik-0-S | B49: 13 | C49: 0 | D49: 2 | E49: Ik | F49: 0-S | G49: S | H49: Ik-0 | I49: =VLOOKUP($H49,'Mng&Soil'!$B$2:$E$41,3,FALSE) -> 2 | J49: =VLOOKUP($H49,'Mng&Soil'!$B$2:$F$41,5,FALSE) -> 6 | K49: =VLOOKUP($H49,'Mng&Soil'!$B$2:$G$41,6,FALSE) -> 13 | L49: =VLOOKUP(A49,pH_EC!$A48:$C124,2,FALSE) -> 118.0 | M49: =VLOOKUP(A49,pH_EC!$A48:$C124,3,FALSE) -> 5.96 | N49: =VLOOKUP($H49,Biomass!$A$2:$L$41,11,FALSE) -> 5122.87 | O49: =VLOOKUP($H49,Biomass!$A$2:$O$41,15,FALSE) -> 179.30 | P49: =VLOOKUP($A49,Min_N_Corrected!$A$2:V$93,21,FALSE) -> 5.92 | Q49: =VLOOKUP($A49,Min_N_Corrected!$A$2:W$93,22,FALSE) -> 3.53 | R49: 9.45 | S49: =(VLOOKUP(A49,ISNT_Amino_N!A$2:O$103,15,FALSE))-Q49 -> 433 | T49: =VLOOKUP(A49,Protein!A$3:Q$86,17,FALSE) -> 930 | U49: 23.88 | V49: =VLOOKUP(A49,WEON_WEOC!$B$2:$K$79,7,FALSE) -> 14.4 | W49: 1388 | X49: =VLOOKUP(A49,WEON_WEOC!$B49:$K$79,10,FALSE) -> 373 | Y49: 25.8 | Z49: =VLOOKUP(A49,TC_TN!$A$2:$V$77,22,FALSE) -> 3476 | AA49: =VLOOKUP(A49,TC_TN!$A$2:$V$77,16,FALSE) -> 81336 | AB49: 3467 | AC49: 23.4 | AD49: 23.5 | AE49: =VLOOKUP($A49,'CO2'!$A$3:$O$78,15,FALSE) -> 51.6 | AF49: =VLOOKUP($A49,Nmin_SHS!$E$2:$S$77,13,FALSE) -> 10.6 | AG49: =VLOOKUP($A49,Nmin_SHS!$E$2:$S$77,14,FALSE) -> 18.1
A50: Ik-1-T | B50: 13 | C50: 1 | D50: 1 | E50: Ik | F50: 1-T | G50: T | H50: Ik-1 | I50: =VLOOKUP($H50,'Mng&Soil'!$B$2:$E$41,3,FALSE) -> 2 | J50: =VLOOKUP($H50,'Mng&Soil'!$B$2:$F$41,5,FALSE) -> 6 | K50: =VLOOKUP($H50,'Mng&Soil'!$B$2:$G$41,6,FALSE) -> 13 | L50: =VLOOKUP(A50,pH_EC!$A49:$C125,2,FALSE) -> 56.6 | M50: =VLOOKUP(A50,pH_EC!$A49:$C125,3,FALSE) -> 6.24 | N50: =VLOOKUP($H50,Biomass!$A$2:$L$41,11,FALSE) -> 9356.12 | O50: =VLOOKUP($H50,Biomass!$A$2:$O$41,15,FALSE) -> 280.68 | P50: =VLOOKUP($A50,Min_N_Corrected!$A$2:V$93,21,FALSE) -> 2.53 | Q50: =VLOOKUP($A50,Min_N_Corrected!$A$2:W$93,22,FALSE) -> 4.66 | R50: 7.19 | S50: =(VLOOKUP(A50,ISNT_Amino_N!A$2:O$103,15,FALSE))-Q50 -> 661 | T50: =VLOOKUP(A50,Protein!A$3:Q$86,17,FALSE) -> 864 | U50: 37.73 | V50: =VLOOKUP(A50,WEON_WEOC!$B$2:$K$79,7,FALSE) -> 30.5 | W50: 1563 | X50: =VLOOKUP(A50,WEON_WEOC!$B50:$K$79,10,FALSE) -> 400 | Y50: 13.1 | Z50: =VLOOKUP(A50,TC_TN!$A$2:$V$77,22,FALSE) -> 4892 | AA50: =VLOOKUP(A50,TC_TN!$A$2:$V$77,16,FALSE) -> 97490 | AB50: 4885 | AC50: 19.9 | AD50: 20.0 | AE50: =VLOOKUP($A50,'CO2'!$A$3:$O$78,15,FALSE) -> 75.0 | AF50: =VLOOKUP($A50,Nmin_SHS!$E$2:$S$77,13,FALSE) -> 27.9 | AG50: =VLOOKUP($A50,Nmin_SHS!$E$2:$S$77,14,FALSE) -> 35.2
A51: Ik-1-S | B51: 13 | C51: 1 | D51: 2 | E51: Ik | F51: 1-S | G51: S | H51: Ik-1 | I51: =VLOOKUP($H51,'Mng&Soil'!$B$2:$E$41,3,FALSE) -> 2 | J51: =VLOOKUP($H51,'Mng&Soil'!$B$2:$F$41,5,FALSE) -> 6 | K51: =VLOOKUP($H51,'Mng&Soil'!$B$2:$G$41,6,FALSE) -> 13 | L51: =VLOOKUP(A51,pH_EC!$A50:$C126,2,FALSE) -> 72.2 | M51: =VLOOKUP(A51,pH_EC!$A50:$C126,3,FALSE) -> 6.06 | N51: =VLOOKUP($H51,Biomass!$A$2:$L$41,11,FALSE) -> 9356.12 | O51: =VLOOKUP($H51,Biomass!$A$2:$O$41,15,FALSE) -> 280.68 | P51: =VLOOKUP($A51,Min_N_Corrected!$A$2:V$93,21,FALSE) -> 2.01 | Q51: =VLOOKUP($A51,Min_N_Corrected!$A$2:W$93,22,FALSE) -> 2.54 | R51: 4.55 | S51: =(VLOOKUP(A51,ISNT_Amino_N!A$2:O$103,15,FALSE))-Q51 -> 473 | T51: =VLOOKUP(A51,Protein!A$3:Q$86,17,FALSE) -> 839 | U51: 27.20 | V51: =VLOOKUP(A51,WEON_WEOC!$B$2:$K$79,7,FALSE) -> 22.7 | W51: 1339 | X51: =VLOOKUP(A51,WEON_WEOC!$B51:$K$79,10,FALSE) -> 332 | Y51: 14.7 | Z51: =VLOOKUP(A51,TC_TN!$A$2:$V$77,22,FALSE) -> 3408 | AA51: =VLOOKUP(A51,TC_TN!$A$2:$V$77,16,FALSE) -> 66186 | AB51: 3404 | AC51: 19.4 | AD51: 19.4 | AE51: =VLOOKUP($A51,'CO2'!$A$3:$O$78,15,FALSE) -> 45.8 | AF51: =VLOOKUP($A51,Nmin_SHS!$E$2:$S$77,13,FALSE) -> 15.5 | AG51: =VLOOKUP($A51,Nmin_SHS!$E$2:$S$77,14,FALSE) -> 24.5
A52: Ne-0-T | B52: 14 | C52: 0 | D52: 1 | E52: Ne | F52: 0-T | G52: T | H52: Ne-0 | I52: =VLOOKUP($H52,'Mng&Soil'!$B$2:$E$41,3,FALSE) -> 6 | J52: =VLOOKUP($H52,'Mng&Soil'!$B$2:$F$41,5,FALSE) -> 1 | K52: =VLOOKUP($H52,'Mng&Soil'!$B$2:$G$41,6,FALSE) -> 29 | L52: =VLOOKUP(A52,pH_EC!$A51:$C127,2,FALSE) -> 99.0 | M52: =VLOOKUP(A52,pH_EC!$A51:$C127,3,FALSE) -> 7.03 | N52: =VLOOKUP($H52,Biomass!$A$2:$L$41,11,FALSE) -> 10811.25 | O52: =VLOOKUP($H52,Biomass!$A$2:$O$41,15,FALSE) -> 172.98 | P52: =VLOOKUP($A52,Min_N_Corrected!$A$2:V$93,21,FALSE) -> 2.59 | Q52: =VLOOKUP($A52,Min_N_Corrected!$A$2:W$93,22,FALSE) -> 0.76 | R52: 3.34 | S52: =(VLOOKUP(A52,ISNT_Amino_N!A$2:O$103,15,FALSE))-Q52 -> 676 | T52: =VLOOKUP(A52,Protein!A$3:Q$86,17,FALSE) -> 692 | U52: 52.61 | V52: =VLOOKUP(A52,WEON_WEOC!$B$2:$K$79,7,FALSE) -> 49.3 | W52: 1421 | X52: =VLOOKUP(A52,WEON_WEOC!$B52:$K$79,10,FALSE) -> 624 | Y52: 12.7 | Z52: =VLOOKUP(A52,TC_TN!$A$2:$V$77,22,FALSE) -> 4830 | AA52: =VLOOKUP(A52,TC_TN!$A$2:$V$77,16,FALSE) -> 85449 | AB52: 4826 | AC52: 17.7 | AD52: 17.7 | AE52: =VLOOKUP($A52,'CO2'!$A$3:$O$78,15,FALSE) -> 108.3 | AF52: =VLOOKUP($A52,Nmin_SHS!$E$2:$S$77,13,FALSE) -> 43.2 | AG52: =VLOOKUP($A52,Nmin_SHS!$E$2:$S$77,14,FALSE) -> 52.1
A53: Ne-0-S | B53: 14 | C53: 0 | D53: 2 | E53: Ne | F53: 0-S | G53: S | H53: Ne-0 | I53: =VLOOKUP($H53,'Mng&Soil'!$B$2:$E$41,3,FALSE) -> 6 | J53: =VLOOKUP($H53,'Mng&Soil'!$B$2:$F$41,5,FALSE) -> 1 | K53: =VLOOKUP($H53,'Mng&Soil'!$B$2:$G$41,6,FALSE) -> 29 | L53: =VLOOKUP(A53,pH_EC!$A52:$C128,2,FALSE) -> 87.3 | M53: =VLOOKUP(A53,pH_EC!$A52:$C128,3,FALSE) -> 6.60 | N53: =VLOOKUP($H53,Biomass!$A$2:$L$41,11,FALSE) -> 10811.25 | O53: =VLOOKUP($H53,Biomass!$A$2:$O$41,15,FALSE) -> 172.98 | P53: =VLOOKUP($A53,Min_N_Corrected!$A$2:V$93,21,FALSE) -> 1.33 | Q53: =VLOOKUP($A53,Min_N_Corrected!$A$2:W$93,22,FALSE) -> 0.84 | R53: 2.17 | S53: =(VLOOKUP(A53,ISNT_Amino_N!A$2:O$103,15,FALSE))-Q53 -> 448 | T53: =VLOOKUP(A53,Protein!A$3:Q$86,17,FALSE) -> 507 | U53: 37.80 | V53: =VLOOKUP(A53,WEON_WEOC!$B$2:$K$79,7,FALSE) -> 35.6 | W53: 993 | X53: =VLOOKUP(A53,WEON_WEOC!$B53:$K$79,10,FALSE) -> 487 | Y53: 13.7 | Z53: =VLOOKUP(A53,TC_TN!$A$2:$V$77,22,FALSE) -> 3094 | AA53: =VLOOKUP(A53,TC_TN!$A$2:$V$77,16,FALSE) -> 55264 | AB53: 3091 | AC53: 17.9 | AD53: 17.9 | AE53: =VLOOKUP($A53,'CO2'!$A$3:$O$78,15,FALSE) -> 48.0 | AF53: =VLOOKUP($A53,Nmin_SHS!$E$2:$S$77,13,FALSE) -> 17.8 | AG53: =VLOOKUP($A53,Nmin_SHS!$E$2:$S$77,14,FALSE) -> 26.6
A54: Ne-1-T | B54: 14 | C54: 1 | D54: 1 | E54: Ne | F54: 1-T | G54: T | H54: Ne-1 | I54: =VLOOKUP($H54,'Mng&Soil'!$B$2:$E$41,3,FALSE) -> 6 | J54: =VLOOKUP($H54,'Mng&Soil'!$B$2:$F$41,5,FALSE) -> 1 | K54: =VLOOKUP($H54,'Mng&Soil'!$B$2:$G$41,6,FALSE) -> 32 | L54: =VLOOKUP(A54,pH_EC!$A53:$C129,2,FALSE) -> 105.5 | M54: =VLOOKUP(A54,pH_EC!$A53:$C129,3,FALSE) -> 6.99 | N54: =VLOOKUP($H54,Biomass!$A$2:$L$41,11,FALSE) -> 8934.30 | O54: =VLOOKUP($H54,Biomass!$A$2:$O$41,15,FALSE) -> 142.95 | P54: =VLOOKUP($A54,Min_N_Corrected!$A$2:V$93,21,FALSE) -> 2.15 | Q54: =VLOOKUP($A54,Min_N_Corrected!$A$2:W$93,22,FALSE) -> 1.57 | R54: 3.72 | S54: =(VLOOKUP(A54,ISNT_Amino_N!A$2:O$103,15,FALSE))-Q54 -> 696 | T54: =VLOOKUP(A54,Protein!A$3:Q$86,17,FALSE) -> 863 | U54: 62.86 | V54: =VLOOKUP(A54,WEON_WEOC!$B$2:$K$79,7,FALSE) -> 59.1 | W54: 1622 | X54: =VLOOKUP(A54,WEON_WEOC!$B54:$K$79,10,FALSE) -> 671 | Y54: 11.3 | Z54: =VLOOKUP(A54,TC_TN!$A$2:$V$77,22,FALSE) -> 5157 | AA54: =VLOOKUP(A54,TC_TN!$A$2:$V$77,16,FALSE) -> 88464 | AB54: 5154 | AC54: 17.2 | AD54: 17.2 | AE54: =VLOOKUP($A54,'CO2'!$A$3:$O$78,15,FALSE) -> 118.3 | AF54: =VLOOKUP($A54,Nmin_SHS!$E$2:$S$77,13,FALSE) -> 52.7 | AG54: =VLOOKUP($A54,Nmin_SHS!$E$2:$S$77,14,FALSE) -> 64.4
A55: Ne-1-S | B55: 14 | C55: 1 | D55: 2 | E55: Ne | F55: 1-S | G55: S | H55: Ne-1 | I55: =VLOOKUP($H55,'Mng&Soil'!$B$2:$E$41,3,FALSE) -> 6 | J55: =VLOOKUP($H55,'Mng&Soil'!$B$2:$F$41,5,FALSE) -> 1 | K55: =VLOOKUP($H55,'Mng&Soil'!$B$2:$G$41,6,FALSE) -> 32 | L55: =VLOOKUP(A55,pH_EC!$A54:$C130,2,FALSE) -> 97.2 | M55: =VLOOKUP(A55,pH_EC!$A54:$C130,3,FALSE) -> 6.37 | N55: =VLOOKUP($H55,Biomass!$A$2:$L$41,11,FALSE) -> 8934.30 | O55: =VLOOKUP($H55,Biomass!$A$2:$O$41,15,FALSE) -> 142.95 | P55: =VLOOKUP($A55,Min_N_Corrected!$A$2:V$93,21,FALSE) -> 0.94 | Q55: =VLOOKUP($A55,Min_N_Corrected!$A$2:W$93,22,FALSE) -> 0.79 | R55: 1.73 | S55: =(VLOOKUP(A55,ISNT_Amino_N!A$2:O$103,15,FALSE))-Q55 -> 465 | T55: =VLOOKUP(A55,Protein!A$3:Q$86,17,FALSE) -> 575 | U55: 37.20 | V55: =VLOOKUP(A55,WEON_WEOC!$B$2:$K$79,7,FALSE) -> 35.5 | W55: 1077 | X55: =VLOOKUP(A55,WEON_WEOC!$B55:$K$79,10,FALSE) -> 450 | Y55: 12.7 | Z55: =VLOOKUP(A55,TC_TN!$A$2:$V$77,22,FALSE) -> 3296 | AA55: =VLOOKUP(A55,TC_TN!$A$2:$V$77,16,FALSE) -> 58078 | AB55: 3294 | AC55: 17.6 | AD55: 17.6 | AE55: =VLOOKUP($A55,'CO2'!$A$3:$O$78,15,FALSE) -> 44.2 | AF55: =VLOOKUP($A55,Nmin_SHS!$E$2:$S$77,13,FALSE) -> 17.5 | AG55: =VLOOKUP($A55,Nmin_SHS!$E$2:$S$77,14,FALSE) -> 26.5
A56: Ae-0-T | B56: 15 | C56: 0 | D56: 1 | E56: Ae | F56: 0-T | G56: T | H56: Ae-0 | I56: =VLOOKUP($H56,'Mng&Soil'!$B$2:$E$41,3,FALSE) -> 1 | J56: =VLOOKUP($H56,'Mng&Soil'!$B$2:$F$41,5,FALSE) -> 1 | K56: =VLOOKUP($H56,'Mng&Soil'!$B$2:$G$41,6,FALSE) -> 35 | L56: =VLOOKUP(A56,pH_EC!$A55:$C131,2,FALSE) -> 56.9 | M56: =VLOOKUP(A56,pH_EC!$A55:$C131,3,FALSE) -> 6.29 | N56: =VLOOKUP($H56,Biomass!$A$2:$L$41,11,FALSE) -> 4308.38 | O56: =VLOOKUP($H56,Biomass!$A$2:$O$41,15,FALSE) -> 129.25 | P56: =VLOOKUP($A56,Min_N_Corrected!$A$2:V$93,21,FALSE) -> 1.60 | Q56: =VLOOKUP($A56,Min_N_Corrected!$A$2:W$93,22,FALSE) -> 2.27 | R56: 3.87 | S56: =(VLOOKUP(A56,ISNT_Amino_N!A$2:O$103,15,FALSE))-Q56 -> 916 | T56: =VLOOKUP(A56,Protein!A$3:Q$86,17,FALSE) -> 928 | U56: 43.37 | V56: =VLOOKUP(A56,WEON_WEOC!$B$2:$K$79,7,FALSE) -> 39.5 | W56: 1888 | X56: =VLOOKUP(A56,WEON_WEOC!$B56:$K$79,10,FALSE) -> 521 | Y56: 13.2 | Z56: =VLOOKUP(A56,TC_TN!$A$2:$V$77,22,FALSE) -> 6261 | AA56: =VLOOKUP(A56,TC_TN!$A$2:$V$77,16,FALSE) -> 117807 | AB56: 6257 | AC56: 18.8 | AD56: 18.8 | AE56: =VLOOKUP($A56,'CO2'!$A$3:$O$78,15,FALSE) -> 98.3 | AF56: =VLOOKUP($A56,Nmin_SHS!$E$2:$S$77,13,FALSE) -> 37.5 | AG56: =VLOOKUP($A56,Nmin_SHS!$E$2:$S$77,14,FALSE) -> 51.0
A57: Ae-0-S | B57: 15 | C57: 0 | D57: 2 | E57: Ae | F57: 0-S | G57: S | H57: Ae-0 | I57: =VLOOKUP($H57,'Mng&Soil'!$B$2:$E$41,3,FALSE) -> 1 | J57: =VLOOKUP($H57,'Mng&Soil'!$B$2:$F$41,5,FALSE) -> 1 | K57: =VLOOKUP($H57,'Mng&Soil'!$B$2:$G$41,6,FALSE) -> 35 | L57: =VLOOKUP(A57,pH_EC!$A56:$C132,2,FALSE) -> 58.6 | M57: =VLOOKUP(A57,pH_EC!$A56:$C132,3,FALSE) -> 5.90 | N57: =VLOOKUP($H57,Biomass!$A$2:$L$41,11,FALSE) -> 4308.38 | O57: =VLOOKUP($H57,Biomass!$A$2:$O$41,15,FALSE) -> 129.25 | P57: =VLOOKUP($A57,Min_N_Corrected!$A$2:V$93,21,FALSE) -> 1.15 | Q57: =VLOOKUP($A57,Min_N_Corrected!$A$2:W$93,22,FALSE) -> 2.29 | R57: 3.44 | S57: =(VLOOKUP(A57,ISNT_Amino_N!A$2:O$103,15,FALSE))-Q57 -> 574 | T57: =VLOOKUP(A57,Protein!A$3:Q$86,17,FALSE) -> 562 | U57: 24.69 | V57: =VLOOKUP(A57,WEON_WEOC!$B$2:$K$79,7,FALSE) -> 21.2 | W57: 1161 | X57: =VLOOKUP(A57,WEON_WEOC!$B57:$K$79,10,FALSE) -> 439 | Y57: 20.7 | Z57: =VLOOKUP(A57,TC_TN!$A$2:$V$77,22,FALSE) -> 3912 | AA57: =VLOOKUP(A57,TC_TN!$A$2:$V$77,16,FALSE) -> 74848 | AB57: 3908 | AC57: 19.1 | AD57: 19.2 | AE57: =VLOOKUP($A57,'CO2'!$A$3:$O$78,15,FALSE) -> 38.4 | AF57: =VLOOKUP($A57,Nmin_SHS!$E$2:$S$77,13,FALSE) -> 9.7 | AG57: =VLOOKUP($A57,Nmin_SHS!$E$2:$S$77,14,FALSE) -> 16.0
A58: Ae-1-T | B58: 15 | C58: 1 | D58: 1 | E58: Ae | F58: 1-T | G58: T | H58: Ae-1 | I58: =VLOOKUP($H58,'Mng&Soil'!$B$2:$E$41,3,FALSE) -> 1 | J58: =VLOOKUP($H58,'Mng&Soil'!$B$2:$F$41,5,FALSE) -> 1 | K58: =VLOOKUP($H58,'Mng&Soil'!$B$2:$G$41,6,FALSE) -> 33 | L58: =VLOOKUP(A58,pH_EC!$A57:$C133,2,FALSE) -> 59.7 | M58: =VLOOKUP(A58,pH_EC!$A57:$C133,3,FALSE) -> 6.31 | N58: =VLOOKUP($H58,Biomass!$A$2:$L$41,11,FALSE) -> 4004.67 | O58: =VLOOKUP($H58,Biomass!$A$2:$O$41,15,FALSE) -> 120.14 | P58: =VLOOKUP($A58,Min_N_Corrected!$A$2:V$93,21,FALSE) -> 1.87 | Q58: =VLOOKUP($A58,Min_N_Corrected!$A$2:W$93,22,FALSE) -> 2.18 | R58: 4.06 | S58: =(VLOOKUP(A58,ISNT_Amino_N!A$2:O$103,15,FALSE))-Q58 -> 801 | T58: =VLOOKUP(A58,Protein!A$3:Q$86,17,FALSE) -> 812 | U58: 36.84 | V58: =VLOOKUP(A58,WEON_WEOC!$B$2:$K$79,7,FALSE) -> 32.8 | W58: 1649 | X58: =VLOOKUP(A58,WEON_WEOC!$B58:$K$79,10,FALSE) -> 408 | Y58: 12.4 | Z58: =VLOOKUP(A58,TC_TN!$A$2:$V$77,22,FALSE) -> 6215 | AA58: =VLOOKUP(A58,TC_TN!$A$2:$V$77,16,FALSE) -> 103113 | AB58: 6210 | AC58: 16.6 | AD58: 16.6 | AE58: =VLOOKUP($A58,'CO2'!$A$3:$O$78,15,FALSE) -> 107.1 | AF58: =VLOOKUP($A58,Nmin_SHS!$E$2:$S$77,13,FALSE) -> 41.9 | AG58: =VLOOKUP($A58,Nmin_SHS!$E$2:$S$77,14,FALSE) -> 54.1
A59: Ae-1-S | B59: 15 | C59: 1 | D59: 2 | E59: Ae | F59: 1-S | G59: S | H59: Ae-1 | I59: =VLOOKUP($H59,'Mng&Soil'!$B$2:$E$41,3,FALSE) -> 1 | J59: =VLOOKUP($H59,'Mng&Soil'!$B$2:$F$41,5,FALSE) -> 1 | K59: =VLOOKUP($H59,'Mng&Soil'!$B$2:$G$41,6,FALSE) -> 33 | L59: =VLOOKUP(A59,pH_EC!$A58:$C134,2,FALSE) -> 59.2 | M59: =VLOOKUP(A59,pH_EC!$A58:$C134,3,FALSE) -> 6.07 | N59: =VLOOKUP($H59,Biomass!$A$2:$L$41,11,FALSE) -> 4004.67 | O59: =VLOOKUP($H59,Biomass!$A$2:$O$41,15,FALSE) -> 120.14 | P59: =VLOOKUP($A59,Min_N_Corrected!$A$2:V$93,21,FALSE) -> 1.90 | Q59: =VLOOKUP($A59,Min_N_Corrected!$A$2:W$93,22,FALSE) -> 2.01 | R59: 3.92 | S59: =(VLOOKUP(A59,ISNT_Amino_N!A$2:O$103,15,FALSE))-Q59 -> 537 | T59: =VLOOKUP(A59,Protein!A$3:Q$86,17,FALSE) -> 516 | U59: 23.12 | V59: =VLOOKUP(A59,WEON_WEOC!$B$2:$K$79,7,FALSE) -> 19.2 | W59: 1076 | X59: =VLOOKUP(A59,WEON_WEOC!$B59:$K$79,10,FALSE) -> 405 | Y59: 21.1 | Z59: =VLOOKUP(A59,TC_TN!$A$2:$V$77,22,FALSE) -> 3592 | AA59: =VLOOKUP(A59,TC_TN!$A$2:$V$77,16,FALSE) -> 65449 | AB59: 3588 | AC59: 18.2 | AD59: 18.2 | AE59: =VLOOKUP($A59,'CO2'!$A$3:$O$78,15,FALSE) -> 37.7 | AF59: =VLOOKUP($A59,Nmin_SHS!$E$2:$S$77,13,FALSE) -> 9.3 | AG59: =VLOOKUP($A59,Nmin_SHS!$E$2:$S$77,14,FALSE) -> 14.6
A60: Jn-0-T | B60: 16 | C60: 0 | D60: 1 | E60: Jn | F60: 0-T | G60: T | H60: Jn-0 | I60: =VLOOKUP($H60,'Mng&Soil'!$B$2:$E$41,3,FALSE) -> 3 | J60: =VLOOKUP($H60,'Mng&Soil'!$B$2:$F$41,5,FALSE) -> 6 | K60: =VLOOKUP($H60,'Mng&Soil'!$B$2:$G$41,6,FALSE) -> 11 | L60: =VLOOKUP(A60,pH_EC!$A59:$C135,2,FALSE) -> 51.2 | M60: =VLOOKUP(A60,pH_EC!$A59:$C135,3,FALSE) -> 6.30 | N60: =VLOOKUP($H60,Biomass!$A$2:$L$41,11,FALSE) -> 2527.75 | O60: =VLOOKUP($H60,Biomass!$A$2:$O$41,15,FALSE) -> 63.19 | P60: =VLOOKUP($A60,Min_N_Corrected!$A$2:V$93,21,FALSE) -> 3.01 | Q60: =VLOOKUP($A60,Min_N_Corrected!$A$2:W$93,22,FALSE) -> 1.84 | R60: 4.85 | S60: =(VLOOKUP(A60,ISNT_Amino_N!A$2:O$103,15,FALSE))-Q60 -> 584 | T60: =VLOOKUP(A60,Protein!A$3:Q$86,17,FALSE) -> 693 | U60: 36.50 | V60: =VLOOKUP(A60,WEON_WEOC!$B$2:$K$79,7,FALSE) -> 31.6 | W60: 1313 | X60: =VLOOKUP(A60,WEON_WEOC!$B60:$K$79,10,FALSE) -> 490 | Y60: 15.5 | Z60: =VLOOKUP(A60,TC_TN!$A$2:$V$77,22,FALSE) -> 4286 | AA60: =VLOOKUP(A60,TC_TN!$A$2:$V$77,16,FALSE) -> 67898 | AB60: 4281 | AC60: 15.8 | AD60: 15.9 | AE60: =VLOOKUP($A60,'CO2'!$A$3:$O$78,15,FALSE) -> 112.9 | AF60: =VLOOKUP($A60,Nmin_SHS!$E$2:$S$77,13,FALSE) -> 35.5 | AG60: =VLOOKUP($A60,Nmin_SHS!$E$2:$S$77,14,FALSE) -> 39.7
A61: Jn-0-S | B61: 16 | C61: 0 | D61: 2 | E61: Jn | F61: 0-S | G61: S | H61: Jn-0 | I61: =VLOOKUP($H61,'Mng&Soil'!$B$2:$E$41,3,FALSE) -> 3 | J61: =VLOOKUP($H61,'Mng&Soil'!$B$2:$F$41,5,FALSE) -> 6 | K61: =VLOOKUP($H61,'Mng&Soil'!$B$2:$G$41,6,FALSE) -> 11 | L61: =VLOOKUP(A61,pH_EC!$A60:$C136,2,FALSE) -> 43.2 | M61: =VLOOKUP(A61,pH_EC!$A60:$C136,3,FALSE) -> 6.45 | N61: =VLOOKUP($H61,Biomass!$A$2:$L$41,11,FALSE) -> 2527.75 | O61: =VLOOKUP($H61,Biomass!$A$2:$O$41,15,FALSE) -> 63.19 | P61: =VLOOKUP($A61,Min_N_Corrected!$A$2:V$93,21,FALSE) -> 1.95 | Q61: =VLOOKUP($A61,Min_N_Corrected!$A$2:W$93,22,FALSE) -> 1.00 | R61: 2.95 | S61: =(VLOOKUP(A61,ISNT_Amino_N!A$2:O$103,15,FALSE))-Q61 -> 341 | T61: =VLOOKUP(A61,Protein!A$3:Q$86,17,FALSE) -> 433 | U61: 18.78 | V61: =VLOOKUP(A61,WEON_WEOC!$B$2:$K$79,7,FALSE) -> 15.8 | W61: 793 | X61: =VLOOKUP(A61,WEON_WEOC!$B61:$K$79,10,FALSE) -> 276 | Y61: 17.4 | Z61: =VLOOKUP(A61,TC_TN!$A$2:$V$77,22,FALSE) -> 2398 | AA61: =VLOOKUP(A61,TC_TN!$A$2:$V$77,16,FALSE) -> 39127 | AB61: 2395 | AC61: 16.3 | AD61: 16.3 | AE61: =VLOOKUP($A61,'CO2'!$A$3:$O$78,15,FALSE) -> 34.8 | AF61: =VLOOKUP($A61,Nmin_SHS!$E$2:$S$77,13,FALSE) -> 9.4 | AG61: =VLOOKUP($A61,Nmin_SHS!$E$2:$S$77,14,FALSE) -> 12.7
A62: Jn-1-T | B62: 16 | C62: 1 | D62: 1 | E62: Jn | F62: 1-T | G62: T | H62: Jn-1 | I62: =VLOOKUP($H62,'Mng&Soil'!$B$2:$E$41,3,FALSE) -> 3 | J62: =VLOOKUP($H62,'Mng&Soil'!$B$2:$F$41,5,FALSE) -> 6 | K62: =VLOOKUP($H62,'Mng&Soil'!$B$2:$G$41,6,FALSE) -> 23 | L62: =VLOOKUP(A62,pH_EC!$A61:$C137,2,FALSE) -> 54.9 | M62: =VLOOKUP(A62,pH_EC!$A61:$C137,3,FALSE) -> 6.35 | N62: =VLOOKUP($H62,Biomass!$A$2:$L$41,11,FALSE) -> 8805.15 | O62: =VLOOKUP($H62,Biomass!$A$2:$O$41,15,FALSE) -> 220.13 | P62: =VLOOKUP($A62,Min_N_Corrected!$A$2:V$93,21,FALSE) -> 4.37 | Q62: =VLOOKUP($A62,Min_N_Corrected!$A$2:W$93,22,FALSE) -> 4.16 | R62: 8.54 | S62: =(VLOOKUP(A62,ISNT_Amino_N!A$2:O$103,15,FALSE))-Q62 -> 578 | T62: =VLOOKUP(A62,Protein!A$3:Q$86,17,FALSE) -> 646 | U62: 45.20 | V62: =VLOOKUP(A62,WEON_WEOC!$B$2:$K$79,7,FALSE) -> 36.7 | W62: 1270 | X62: =VLOOKUP(A62,WEON_WEOC!$B62:$K$79,10,FALSE) -> 498 | Y62: 13.6 | Z62: =VLOOKUP(A62,TC_TN!$A$2:$V$77,22,FALSE) -> 4337 | AA62: =VLOOKUP(A62,TC_TN!$A$2:$V$77,16,FALSE) -> 64348 | AB62: 4329 | AC62: 14.8 | AD62: 14.9 | AE62: =VLOOKUP($A62,'CO2'!$A$3:$O$78,15,FALSE) -> 113.5 | AF62: =VLOOKUP($A62,Nmin_SHS!$E$2:$S$77,13,FALSE) -> 40.3 | AG62: =VLOOKUP($A62,Nmin_SHS!$E$2:$S$77,14,FALSE) -> 44.3
A63: Jn-1-S | B63: 16 | C63: 1 | D63: 2 | E63: Jn | F63: 1-S | G63: S | H63: Jn-1 | I63: =VLOOKUP($H63,'Mng&Soil'!$B$2:$E$41,3,FALSE) -> 3 | J63: =VLOOKUP($H63,'Mng&Soil'!$B$2:$F$41,5,FALSE) -> 6 | K63: =VLOOKUP($H63,'Mng&Soil'!$B$2:$G$41,6,FALSE) -> 23 | L63: =VLOOKUP(A63,pH_EC!$A62:$C138,2,FALSE) -> 48.0 | M63: =VLOOKUP(A63,pH_EC!$A62:$C138,3,FALSE) -> 6.55 | N63: =VLOOKUP($H63,Biomass!$A$2:$L$41,11,FALSE) -> 8805.15 | O63: =VLOOKUP($H63,Biomass!$A$2:$O$41,15,FALSE) -> 220.13 | P63: =VLOOKUP($A63,Min_N_Corrected!$A$2:V$93,21,FALSE) -> 2.63 | Q63: =VLOOKUP($A63,Min_N_Corrected!$A$2:W$93,22,FALSE) -> 2.08 | R63: 4.72 | S63: =(VLOOKUP(A63,ISNT_Amino_N!A$2:O$103,15,FALSE))-Q63 -> 333 | T63: =VLOOKUP(A63,Protein!A$3:Q$86,17,FALSE) -> 398 | U63: 18.91 | V63: =VLOOKUP(A63,WEON_WEOC!$B$2:$K$79,7,FALSE) -> 14.2 | W63: 750 | X63: =VLOOKUP(A63,WEON_WEOC!$B63:$K$79,10,FALSE) -> 277 | Y63: 19.5 | Z63: =VLOOKUP(A63,TC_TN!$A$2:$V$77,22,FALSE) -> 2471 | AA63: =VLOOKUP(A63,TC_TN!$A$2:$V$77,16,FALSE) -> 38736 | AB63: 2466 | AC63: 15.7 | AD63: 15.7 | AE63: =VLOOKUP($A63,'CO2'!$A$3:$O$78,15,FALSE) -> 35.9 | AF63: =VLOOKUP($A63,Nmin_SHS!$E$2:$S$77,13,FALSE) -> 8.8 | AG63: =VLOOKUP($A63,Nmin_SHS!$E$2:$S$77,14,FALSE) -> 11.8
A64: Ni-0-T | B64: 17 | C64: 0 | D64: 1 | E64: Ni | F64: 0-T | G64: T | H64: Ni-0 | I64: =VLOOKUP($H64,'Mng&Soil'!$B$2:$E$41,3,FALSE) -> 3 | J64: =VLOOKUP($H64,'Mng&Soil'!$B$2:$F$41,5,FALSE) -> 6 | K64: =VLOOKUP($H64,'Mng&Soil'!$B$2:$G$41,6,FALSE) -> 15 | L64: =VLOOKUP(A64,pH_EC!$A63:$C139,2,FALSE) -> 61.8 | M64: =VLOOKUP(A64,pH_EC!$A63:$C139,3,FALSE) -> 6.00 | N64: =VLOOKUP($H64,Biomass!$A$2:$L$41,11,FALSE) -> 0.00 | O64: =VLOOKUP($H64,Biomass!$A$2:$O$41,15,FALSE) -> 0.00 | P64: =VLOOKUP($A64,Min_N_Corrected!$A$2:V$93,21,FALSE) -> 5.30 | Q64: =VLOOKUP($A64,Min_N_Corrected!$A$2:W$93,22,FALSE) -> 6.09 | R64: 11.39 | S64: =(VLOOKUP(A64,ISNT_Amino_N!A$2:O$103,15,FALSE))-Q64 -> 719 | T64: =VLOOKUP(A64,Protein!A$3:Q$86,17,FALSE) -> 1198 | U64: 47.61 | V64: =VLOOKUP(A64,WEON_WEOC!$B$2:$K$79,7,FALSE) -> 36.2 | W64: 1965 | X64: =VLOOKUP(A64,WEON_WEOC!$B64:$K$79,10,FALSE) -> 380 | Y64: 10.5 | Z64: =VLOOKUP(A64,TC_TN!$A$2:$V$77,22,FALSE) -> 5255 | AA64: =VLOOKUP(A64,TC_TN!$A$2:$V$77,16,FALSE) -> 111502 | AB64: 5244 | AC64: 21.2 | AD64: 21.3 | AE64: =VLOOKUP($A64,'CO2'!$A$3:$O$78,15,FALSE) -> 118.4 | AF64: =VLOOKUP($A64,Nmin_SHS!$E$2:$S$77,13,FALSE) -> 52.2 | AG64: =VLOOKUP($A64,Nmin_SHS!$E$2:$S$77,14,FALSE) -> 69.5
A65: Ni-1-T | B65: 17 | C65: 1 | D65: 1 | E65: Ni | F65: 1-T | G65: T | H65: Ni-1 | I65: =VLOOKUP($H65,'Mng&Soil'!$B$2:$E$41,3,FALSE) -> 3 | J65: =VLOOKUP($H65,'Mng&Soil'!$B$2:$F$41,5,FALSE) -> 6 | K65: =VLOOKUP($H65,'Mng&Soil'!$B$2:$G$41,6,FALSE) -> 18 | L65: =VLOOKUP(A65,pH_EC!$A64:$C140,2,FALSE) -> 58.6 | M65: =VLOOKUP(A65,pH_EC!$A64:$C140,3,FALSE) -> 6.01 | N65: =VLOOKUP($H65,Biomass!$A$2:$L$41,11,FALSE) -> 0.00 | O65: =VLOOKUP($H65,Biomass!$A$2:$O$41,15,FALSE) -> 0.00 | P65: =VLOOKUP($A65,Min_N_Corrected!$A$2:V$93,21,FALSE) -> 4.39 | Q65: =VLOOKUP($A65,Min_N_Corrected!$A$2:W$93,22,FALSE) -> 5.39 | R65: 9.78 | S65: =(VLOOKUP(A65,ISNT_Amino_N!A$2:O$103,15,FALSE))-Q65 -> 816 | T65: =VLOOKUP(A65,Protein!A$3:Q$86,17,FALSE) -> 1068 | U65: 44.45 | V65: =VLOOKUP(A65,WEON_WEOC!$B$2:$K$79,7,FALSE) -> 34.7 | W65: 1929 | X65: =VLOOKUP(A65,WEON_WEOC!$B65:$K$79,10,FALSE) -> 417 | Y65: 12.0 | Z65: =VLOOKUP(A65,TC_TN!$A$2:$V$77,22,FALSE) -> 5488 | AA65: =VLOOKUP(A65,TC_TN!$A$2:$V$77,16,FALSE) -> 120369 | AB65: 5478 | AC65: 21.9 | AD65: 22.0 | AE65: =VLOOKUP($A65,'CO2'!$A$3:$O$78,15,FALSE) -> 120.2 | AF65: =VLOOKUP($A65,Nmin_SHS!$E$2:$S$77,13,FALSE) -> 47.2 | AG65: =VLOOKUP($A65,Nmin_SHS!$E$2:$S$77,14,FALSE) -> 64.7
A66: La-0-T | B66: 18 | C66: 0 | D66: 1 | E66: La | F66: =C66&"-"&G66 -> 0-T | G66: T | H66: =E66&"-"&C66 -> La-0 | I66: =VLOOKUP($H66,'Mng&Soil'!$B$2:$E$41,3,FALSE) -> 1 | J66: =VLOOKUP($H66,'Mng&Soil'!$B$2:$F$41,5,FALSE) -> 1 | K66: =VLOOKUP($H66,'Mng&Soil'!$B$2:$G$41,6,FALSE) -> 29 | L66: =VLOOKUP(A66,pH_EC!$A65:$C141,2,FALSE) -> 46.4 | M66: =VLOOKUP(A66,pH_EC!$A65:$C141,3,FALSE) -> 6.46 | N66: =VLOOKUP($H66,Biomass!$A$2:$L$41,11,FALSE) -> 1649.61 | O66: =VLOOKUP($H66,Biomass!$A$2:$O$41,15,FALSE) -> 49.49 | P66: =VLOOKUP($A66,Min_N_Corrected!$A$2:V$93,21,FALSE) -> 5.17 | Q66: =VLOOKUP($A66,Min_N_Corrected!$A$2:W$93,22,FALSE) -> 4.85 | R66: =P66+Q66 -> 10.02 | S66: =(VLOOKUP(A66,ISNT_Amino_N!A$2:O$103,15,FALSE))-Q66 -> 588 | T66: =VLOOKUP(A66,Protein!A$3:Q$86,17,FALSE) -> 403 | U66: =V66+R66 -> 43.96 | V66: =VLOOKUP(A66,WEON_WEOC!$B$2:$K$79,7,FALSE) -> 33.9 | W66: =SUM(R66,S66,T66,V66) -> 1034 | X66: =VLOOKUP(A66,WEON_WEOC!$B66:$K$79,10,FALSE) -> 403 | Y66: =X66/V66 -> 11.9 | Z66: =VLOOKUP(A66,TC_TN!$A$2:$V$77,22,FALSE) -> 4368 | AA66: =VLOOKUP(A66,TC_TN!$A$2:$V$77,16,FALSE) -> 51506 | AB66: =Z66-R66 -> 4358 | AC66: =AA66/Z66 -> 11.8 | AD66: 11.8 | AE66: =VLOOKUP($A66,'CO2'!$A$3:$O$78,15,FALSE) -> 134.8 | AF66: =VLOOKUP($A66,Nmin_SHS!$E$2:$S$77,13,FALSE) -> 55.0 | AG66: =VLOOKUP($A66,Nmin_SHS!$E$2:$S$77,14,FALSE) -> 56.7
A67: La-0-S | B67: 18 | C67: 0 | D67: 2 | E67: La | F67: 0-S | G67: S | H67: La-0 | I67: =VLOOKUP($H67,'Mng&Soil'!$B$2:$E$41,3,FALSE) -> 1 | J67: =VLOOKUP($H67,'Mng&Soil'!$B$2:$F$41,5,FALSE) -> 1 | K67: =VLOOKUP($H67,'Mng&Soil'!$B$2:$G$41,6,FALSE) -> 29 | L67: =VLOOKUP(A67,pH_EC!$A66:$C142,2,FALSE) -> 43.3 | M67: =VLOOKUP(A67,pH_EC!$A66:$C142,3,FALSE) -> 6.31 | N67: =VLOOKUP($H67,Biomass!$A$2:$L$41,11,FALSE) -> 1649.61 | O67: =VLOOKUP($H67,Biomass!$A$2:$O$41,15,FALSE) -> 49.49 | P67: =VLOOKUP($A67,Min_N_Corrected!$A$2:V$93,21,FALSE) -> 5.09 | Q67: =VLOOKUP($A67,Min_N_Corrected!$A$2:W$93,22,FALSE) -> 4.38 | R67: 9.47 | S67: =(VLOOKUP(A67,ISNT_Amino_N!A$2:O$103,15,FALSE))-Q67 -> 389 | T67: =VLOOKUP(A67,Protein!A$3:Q$86,17,FALSE) -> 260 | U67: 28.13 | V67: =VLOOKUP(A67,WEON_WEOC!$B$2:$K$79,7,FALSE) -> 18.7 | W67: 677 | X67: =VLOOKUP(A67,WEON_WEOC!$B67:$K$79,10,FALSE) -> 269 | Y67: 14.4 | Z67: =VLOOKUP(A67,TC_TN!$A$2:$V$77,22,FALSE) -> 2891 | AA67: =VLOOKUP(A67,TC_TN!$A$2:$V$77,16,FALSE) -> 33929 | AB67: 2881 | AC67: 11.7 | AD67: =AA67/AB67 -> 11.8 | AE67: =VLOOKUP($A67,'CO2'!$A$3:$O$78,15,FALSE) -> 63.1 | AF67: =VLOOKUP($A67,Nmin_SHS!$E$2:$S$77,13,FALSE) -> 21.4 | AG67: =VLOOKUP($A67,Nmin_SHS!$E$2:$S$77,14,FALSE) -> 27.7
A68: La-1-T | B68: 18 | C68: 1 | D68: 1 | E68: La | F68: 1-T | G68: T | H68: La-1 | I68: =VLOOKUP($H68,'Mng&Soil'!$B$2:$E$41,3,FALSE) -> 1 | J68: =VLOOKUP($H68,'Mng&Soil'!$B$2:$F$41,5,FALSE) -> 6 | K68: =VLOOKUP($H68,'Mng&Soil'!$B$2:$G$41,6,FALSE) -> 23 | L68: =VLOOKUP(A68,pH_EC!$A67:$C143,2,FALSE) -> 52.9 | M68: =VLOOKUP(A68,pH_EC!$A67:$C143,3,FALSE) -> 6.39 | N68: =VLOOKUP($H68,Biomass!$A$2:$L$41,11,FALSE) -> 1846.77 | O68: =VLOOKUP($H68,Biomass!$A$2:$O$41,15,FALSE) -> 55.40 | P68: =VLOOKUP($A68,Min_N_Corrected!$A$2:V$93,21,FALSE) -> 6.90 | Q68: =VLOOKUP($A68,Min_N_Corrected!$A$2:W$93,22,FALSE) -> 4.74 | R68: 11.64 | S68: =(VLOOKUP(A68,ISNT_Amino_N!A$2:O$103,15,FALSE))-Q68 -> 542 | T68: =VLOOKUP(A68,Protein!A$3:Q$86,17,FALSE) -> 390 | U68: 47.69 | V68: =VLOOKUP(A68,WEON_WEOC!$B$2:$K$79,7,FALSE) -> 36.0 | W68: 981 | X68: =VLOOKUP(A68,WEON_WEOC!$B68:$K$79,10,FALSE) -> 394 | Y68: 10.9 | Z68: =VLOOKUP(A68,TC_TN!$A$2:$V$77,22,FALSE) -> 3873 | AA68: =VLOOKUP(A68,TC_TN!$A$2:$V$77,16,FALSE) -> 45259 | AB68: 3861 | AC68: 11.7 | AD68: 11.7 | AE68: =VLOOKUP($A68,'CO2'!$A$3:$O$78,15,FALSE) -> 132.8 | AF68: =VLOOKUP($A68,Nmin_SHS!$E$2:$S$77,13,FALSE) -> 57.9 | AG68: =VLOOKUP($A68,Nmin_SHS!$E$2:$S$77,14,FALSE) -> 57.6
A69: La-1-S | B69: 18 | C69: 1 | D69: 2 | E69: La | F69: 1-S | G69: S | H69: La-1 | I69: =VLOOKUP($H69,'Mng&Soil'!$B$2:$E$41,3,FALSE) -> 1 | J69: =VLOOKUP($H69,'Mng&Soil'!$B$2:$F$41,5,FALSE) -> 6 | K69: =VLOOKUP($H69,'Mng&Soil'!$B$2:$G$41,6,FALSE) -> 23 | L69: =VLOOKUP(A69,pH_EC!$A68:$C144,2,FALSE) -> 44.7 | M69: =VLOOKUP(A69,pH_EC!$A68:$C144,3,FALSE) -> 6.38 | N69: =VLOOKUP($H69,Biomass!$A$2:$L$41,11,FALSE) -> 1846.77 | O69: =VLOOKUP($H69,Biomass!$A$2:$O$41,15,FALSE) -> 55.40 | P69: =VLOOKUP($A69,Min_N_Corrected!$A$2:V$93,21,FALSE) -> 6.14 | Q69: =VLOOKUP($A69,Min_N_Corrected!$A$2:W$93,22,FALSE) -> 3.95 | R69: 10.10 | S69: =(VLOOKUP(A69,ISNT_Amino_N!A$2:O$103,15,FALSE))-Q69 -> 322 | T69: =VLOOKUP(A69,Protein!A$3:Q$86,17,FALSE) -> 203 | U69: 24.13 | V69: =VLOOKUP(A69,WEON_WEOC!$B$2:$K$79,7,FALSE) -> 14.0 | W69: 549 | X69: =VLOOKUP(A69,WEON_WEOC!$B69:$K$79,10,FALSE) -> 247 | Y69: 17.6 | Z69: =VLOOKUP(A69,TC_TN!$A$2:$V$77,22,FALSE) -> 2515 | AA69: =VLOOKUP(A69,TC_TN!$A$2:$V$77,16,FALSE) -> 28590 | AB69: 2505 | AC69: 11.4 | AD69: 11.4 | AE69: =VLOOKUP($A69,'CO2'!$A$3:$O$78,15,FALSE) -> 62.9 | AF69: =VLOOKUP($A69,Nmin_SHS!$E$2:$S$77,13,FALSE) -> 18.0 | AG69: =VLOOKUP($A69,Nmin_SHS!$E$2:$S$77,14,FALSE) -> 22.2
A70: Ko-0-T | B70: 19 | C70: 0 | D70: 1 | E70: Ko | F70: 0-T | G70: T | H70: Ko-0 | I70: =VLOOKUP($H70,'Mng&Soil'!$B$2:$E$41,3,FALSE) -> 5 | J70: =VLOOKUP($H70,'Mng&Soil'!$B$2:$F$41,5,FALSE) -> 6 | K70: =VLOOKUP($H70,'Mng&Soil'!$B$2:$G$41,6,FALSE) -> 17 | L70: =VLOOKUP(A70,pH_EC!$A69:$C145,2,FALSE) -> 53.9 | M70: =VLOOKUP(A70,pH_EC!$A69:$C145,3,FALSE) -> 6.51 | N70: =VLOOKUP($H70,Biomass!$A$2:$L$41,11,FALSE) -> 2321.57 | O70: =VLOOKUP($H70,Biomass!$A$2:$O$41,15,FALSE) -> 69.65 | P70: =VLOOKUP($A70,Min_N_Corrected!$A$2:V$93,21,FALSE) -> 4.56 | Q70: =VLOOKUP($A70,Min_N_Corrected!$A$2:W$93,22,FALSE) -> 5.13 | R70: 9.69 | S70: =(VLOOKUP(A70,ISNT_Amino_N!A$2:O$103,15,FALSE))-Q70 -> 392 | T70: =VLOOKUP(A70,Protein!A$3:Q$86,17,FALSE) -> 316 | U70: 30.15 | V70: =VLOOKUP(A70,WEON_WEOC!$B$2:$K$79,7,FALSE) -> 20.5 | W70: 738 | X70: =VLOOKUP(A70,WEON_WEOC!$B70:$K$79,10,FALSE) -> 236 | Y70: 11.5 | Z70: =VLOOKUP(A70,TC_TN!$A$2:$V$77,22,FALSE) -> 2889 | AA70: =VLOOKUP(A70,TC_TN!$A$2:$V$77,16,FALSE) -> 32562 | AB70: 2879 | AC70: 11.3 | AD70: 11.3 | AE70: =VLOOKUP($A70,'CO2'!$A$3:$O$78,15,FALSE) -> 92.1 | AF70: =VLOOKUP($A70,Nmin_SHS!$E$2:$S$77,13,FALSE) -> 35.4 | AG70: =VLOOKUP($A70,Nmin_SHS!$E$2:$S$77,14,FALSE) -> 32.4
A71: Ko-0-S | B71: 19 | C71: 0 | D71: 2 | E71: Ko | F71: 0-S | G71: S | H71: Ko-0 | I71: =VLOOKUP($H71,'Mng&Soil'!$B$2:$E$41,3,FALSE) -> 5 | J71: =VLOOKUP($H71,'Mng&Soil'!$B$2:$F$41,5,FALSE) -> 6 | K71: =VLOOKUP($H71,'Mng&Soil'!$B$2:$G$41,6,FALSE) -> 17 | L71: =VLOOKUP(A71,pH_EC!$A70:$C146,2,FALSE) -> 39.3 | M71: =VLOOKUP(A71,pH_EC!$A70:$C146,3,FALSE) -> 6.52 | N71: =VLOOKUP($H71,Biomass!$A$2:$L$41,11,FALSE) -> 2321.57 | O71: =VLOOKUP($H71,Biomass!$A$2:$O$41,15,FALSE) -> 69.65 | P71: =VLOOKUP($A71,Min_N_Corrected!$A$2:V$93,21,FALSE) -> 3.25 | Q71: =VLOOKUP($A71,Min_N_Corrected!$A$2:W$93,22,FALSE) -> 2.28 | R71: 5.54 | S71: =(VLOOKUP(A71,ISNT_Amino_N!A$2:O$103,15,FALSE))-Q71 -> 258 | T71: =VLOOKUP(A71,Protein!A$3:Q$86,17,FALSE) -> 207 | U71: 14.61 | V71: =VLOOKUP(A71,WEON_WEOC!$B$2:$K$79,7,FALSE) -> 9.1 | W71: 480 | X71: =VLOOKUP(A71,WEON_WEOC!$B71:$K$79,10,FALSE) -> 172 | Y71: 18.9 | Z71: =VLOOKUP(A71,TC_TN!$A$2:$V$77,22,FALSE) -> 1819 | AA71: =VLOOKUP(A71,TC_TN!$A$2:$V$77,16,FALSE) -> 18655 | AB71: 1814 | AC71: 10.3 | AD71: 10.3 | AE71: =VLOOKUP($A71,'CO2'!$A$3:$O$78,15,FALSE) -> 29.5 | AF71: =VLOOKUP($A71,Nmin_SHS!$E$2:$S$77,13,FALSE) -> 7.7 | AG71: =VLOOKUP($A71,Nmin_SHS!$E$2:$S$77,14,FALSE) -> 8.7
A72: Ko-1-T | B72: 19 | C72: 1 | D72: 1 | E72: Ko | F72: 1-T | G72: T | H72: Ko-1 | I72: =VLOOKUP($H72,'Mng&Soil'!$B$2:$E$41,3,FALSE) -> 5 | J72: =VLOOKUP($H72,'Mng&Soil'!$B$2:$F$41,5,FALSE) -> 6 | K72: =VLOOKUP($H72,'Mng&Soil'!$B$2:$G$41,6,FALSE) -> 24 | L72: =VLOOKUP(A72,pH_EC!$A71:$C147,2,FALSE) -> 53.2 | M72: =VLOOKUP(A72,pH_EC!$A71:$C147,3,FALSE) -> 6.37 | N72: =VLOOKUP($H72,Biomass!$A$2:$L$41,11,FALSE) -> 2600.00 | O72: =VLOOKUP($H72,Biomass!$A$2:$O$41,15,FALSE) -> 78.00 | P72: =VLOOKUP($A72,Min_N_Corrected!$A$2:V$93,21,FALSE) -> 4.70 | Q72: =VLOOKUP($A72,Min_N_Corrected!$A$2:W$93,22,FALSE) -> 5.24 | R72: 9.94 | S72: =(VLOOKUP(A72,ISNT_Amino_N!A$2:O$103,15,FALSE))-Q72 -> 405 | T72: =VLOOKUP(A72,Protein!A$3:Q$86,17,FALSE) -> 334 | U72: 32.32 | V72: =VLOOKUP(A72,WEON_WEOC!$B$2:$K$79,7,FALSE) -> 22.4 | W72: 771 | X72: =VLOOKUP(A72,WEON_WEOC!$B72:$K$79,10,FALSE) -> 282 | Y72: 12.6 | Z72: =VLOOKUP(A72,TC_TN!$A$2:$V$77,22,FALSE) -> 3023 | AA72: =VLOOKUP(A72,TC_TN!$A$2:$V$77,16,FALSE) -> 33152 | AB72: 3013 | AC72: 11.0 | AD72: 11.0 | AE72: =VLOOKUP($A72,'CO2'!$A$3:$O$78,15,FALSE) -> 77.8 | AF72: =VLOOKUP($A72,Nmin_SHS!$E$2:$S$77,13,FALSE) -> 28.5 | AG72: =VLOOKUP($A72,Nmin_SHS!$E$2:$S$77,14,FALSE) -> 26.2
A73: Ko-1-S | B73: 19 | C73: 1 | D73: 2 | E73: Ko | F73: 1-S | G73: S | H73: Ko-1 | I73: =VLOOKUP($H73,'Mng&Soil'!$B$2:$E$41,3,FALSE) -> 5 | J73: =VLOOKUP($H73,'Mng&Soil'!$B$2:$F$41,5,FALSE) -> 6 | K73: =VLOOKUP($H73,'Mng&Soil'!$B$2:$G$41,6,FALSE) -> 24 | L73: =VLOOKUP(A73,pH_EC!$A72:$C148,2,FALSE) -> 36.2 | M73: =VLOOKUP(A73,pH_EC!$A72:$C148,3,FALSE) -> 6.38 | N73: =VLOOKUP($H73,Biomass!$A$2:$L$41,11,FALSE) -> 2600.00 | O73: =VLOOKUP($H73,Biomass!$A$2:$O$41,15,FALSE) -> 78.00 | P73: =VLOOKUP($A73,Min_N_Corrected!$A$2:V$93,21,FALSE) -> 4.38 | Q73: =VLOOKUP($A73,Min_N_Corrected!$A$2:W$93,22,FALSE) -> 2.58 | R73: 6.96 | S73: =(VLOOKUP(A73,ISNT_Amino_N!A$2:O$103,15,FALSE))-Q73 -> 269 | T73: =VLOOKUP(A73,Protein!A$3:Q$86,17,FALSE) -> 211 | U73: 16.42 | V73: =VLOOKUP(A73,WEON_WEOC!$B$2:$K$79,7,FALSE) -> 9.5 | W73: 496 | X73: =VLOOKUP(A73,WEON_WEOC!$B73:$K$79,10,FALSE) -> 190 | Y73: 20.1 | Z73: =VLOOKUP(A73,TC_TN!$A$2:$V$77,22,FALSE) -> 1912 | AA73: =VLOOKUP(A73,TC_TN!$A$2:$V$77,16,FALSE) -> 20082 | AB73: 1905 | AC73: 10.5 | AD73: 10.5 | AE73: =VLOOKUP($A73,'CO2'!$A$3:$O$78,15,FALSE) -> 34.0 | AF73: =VLOOKUP($A73,Nmin_SHS!$E$2:$S$77,13,FALSE) -> 8.6 | AG73: =VLOOKUP($A73,Nmin_SHS!$E$2:$S$77,14,FALSE) -> 9.8
A74: Pa-0-T | B74: 20 | C74: 0 | D74: 1 | E74: Pa | F74: 0-T | G74: T | H74: Pa-0 | I74: =VLOOKUP($H74,'Mng&Soil'!$B$2:$E$41,3,FALSE) -> 4 | J74: =VLOOKUP($H74,'Mng&Soil'!$B$2:$F$41,5,FALSE) -> 8 | K74: =VLOOKUP($H74,'Mng&Soil'!$B$2:$G$41,6,FALSE) -> 41 | L74: =VLOOKUP(A74,pH_EC!$A73:$C149,2,FALSE) -> 165.4 | M74: =VLOOKUP(A74,pH_EC!$A73:$C149,3,FALSE) -> 7.60 | N74: =VLOOKUP($H74,Biomass!$A$2:$L$41,11,FALSE) -> 13426.40 | O74: =VLOOKUP($H74,Biomass!$A$2:$O$41,15,FALSE) -> 134.26 | P74: =VLOOKUP($A74,Min_N_Corrected!$A$2:V$93,21,FALSE) -> 6.45 | Q74: =VLOOKUP($A74,Min_N_Corrected!$A$2:W$93,22,FALSE) -> 3.08 | R74: 9.53 | S74: =(VLOOKUP(A74,ISNT_Amino_N!A$2:O$103,15,FALSE))-Q74 -> 683 | T74: =VLOOKUP(A74,Protein!A$3:Q$86,17,FALSE) -> 433 | U74: 48.51 | V74: =VLOOKUP(A74,WEON_WEOC!$B$2:$K$79,7,FALSE) -> 39.0 | W74: 1164 | X74: =VLOOKUP(A74,WEON_WEOC!$B74:$K$79,10,FALSE) -> 471 | Y74: 12.1 | Z74: =VLOOKUP(A74,TC_TN!$A$2:$V$77,22,FALSE) -> 4700 | AA74: =VLOOKUP(A74,TC_TN!$A$2:$V$77,16,FALSE) -> 68203 | AB74: 4691 | AC74: 14.5 | AD74: 14.5 | AE74: =VLOOKUP($A74,'CO2'!$A$3:$O$78,15,FALSE) -> 150.1 | AF74: =VLOOKUP($A74,Nmin_SHS!$E$2:$S$77,13,FALSE) -> 62.0 | AG74: =VLOOKUP($A74,Nmin_SHS!$E$2:$S$77,14,FALSE) -> 69.4
A75: Pa-0-S | B75: 20 | C75: 0 | D75: 2 | E75: Pa | F75: 0-S | G75: S | H75: Pa-0 | I75: =VLOOKUP($H75,'Mng&Soil'!$B$2:$E$41,3,FALSE) -> 4 | J75: =VLOOKUP($H75,'Mng&Soil'!$B$2:$F$41,5,FALSE) -> 8 | K75: =VLOOKUP($H75,'Mng&Soil'!$B$2:$G$41,6,FALSE) -> 41 | L75: =VLOOKUP(A75,pH_EC!$A74:$C150,2,FALSE) -> 76.4 | M75: =VLOOKUP(A75,pH_EC!$A74:$C150,3,FALSE) -> 7.17 | N75: =VLOOKUP($H75,Biomass!$A$2:$L$41,11,FALSE) -> 13426.40 | O75: =VLOOKUP($H75,Biomass!$A$2:$O$41,15,FALSE) -> 134.26 | P75: =VLOOKUP($A75,Min_N_Corrected!$A$2:V$93,21,FALSE) -> 5.17 | Q75: =VLOOKUP($A75,Min_N_Corrected!$A$2:W$93,22,FALSE) -> 2.18 | R75: 7.34 | S75: =(VLOOKUP(A75,ISNT_Amino_N!A$2:O$103,15,FALSE))-Q75 -> 438 | T75: =VLOOKUP(A75,Protein!A$3:Q$86,17,FALSE) -> 309 | U75: 30.77 | V75: =VLOOKUP(A75,WEON_WEOC!$B$2:$K$79,7,FALSE) -> 23.4 | W75: 778 | X75: =VLOOKUP(A75,WEON_WEOC!$B75:$K$79,10,FALSE) -> 376 | Y75: 16.1 | Z75: =VLOOKUP(A75,TC_TN!$A$2:$V$77,22,FALSE) -> 3030 | AA75: =VLOOKUP(A75,TC_TN!$A$2:$V$77,16,FALSE) -> 45451 | AB75: 3023 | AC75: 15.0 | AD75: 15.0 | AE75: =VLOOKUP($A75,'CO2'!$A$3:$O$78,15,FALSE) -> 55.7 | AF75: =VLOOKUP($A75,Nmin_SHS!$E$2:$S$77,13,FALSE) -> 17.9 | AG75: =VLOOKUP($A75,Nmin_SHS!$E$2:$S$77,14,FALSE) -> 25.2
A76: Pa-1-T | B76: 20 | C76: 1 | D76: 1 | E76: Pa | F76: 1-T | G76: T | H76: Pa-1 | I76: =VLOOKUP($H76,'Mng&Soil'!$B$2:$E$41,3,FALSE) -> 4 | J76: =VLOOKUP($H76,'Mng&Soil'!$B$2:$F$41,5,FALSE) -> 5 | K76: =VLOOKUP($H76,'Mng&Soil'!$B$2:$G$41,6,FALSE) -> 43 | L76: =VLOOKUP(A76,pH_EC!$A75:$C151,2,FALSE) -> 161.8 | M76: =VLOOKUP(A76,pH_EC!$A75:$C151,3,FALSE) -> 7.45 | N76: =VLOOKUP($H76,Biomass!$A$2:$L$41,11,FALSE) -> 12088.89 | O76: =VLOOKUP($H76,Biomass!$A$2:$O$41,15,FALSE) -> 120.89 | P76: =VLOOKUP($A76,Min_N_Corrected!$A$2:V$93,21,FALSE) -> 4.28 | Q76: =VLOOKUP($A76,Min_N_Corrected!$A$2:W$93,22,FALSE) -> 2.77 | R76: 7.05 | S76: =(VLOOKUP(A76,ISNT_Amino_N!A$2:O$103,15,FALSE))-Q76 -> 659 | T76: =VLOOKUP(A76,Protein!A$3:Q$86,17,FALSE) -> 416 | U76: 42.53 | V76: =VLOOKUP(A76,WEON_WEOC!$B$2:$K$79,7,FALSE) -> 35.5 | W76: 1118 | X76: =VLOOKUP(A76,WEON_WEOC!$B76:$K$79,10,FALSE) -> 471 | Y76: 13.3 | Z76: =VLOOKUP(A76,TC_TN!$A$2:$V$77,22,FALSE) -> 4540 | AA76: =VLOOKUP(A76,TC_TN!$A$2:$V$77,16,FALSE) -> 68203 | AB76: 4533 | AC76: 15.0 | AD76: 15.0 | AE76: =VLOOKUP($A76,'CO2'!$A$3:$O$78,15,FALSE) -> 188.1 | AF76: =VLOOKUP($A76,Nmin_SHS!$E$2:$S$77,13,FALSE) -> 71.4 | AG76: =VLOOKUP($A76,Nmin_SHS!$E$2:$S$77,14,FALSE) -> 79.9
A77: Pa-1-S | B77: 20 | C77: 1 | D77: 2 | E77: Pa | F77: 1-S | G77: S | H77: Pa-1 | I77: =VLOOKUP($H77,'Mng&Soil'!$B$2:$E$41,3,FALSE) -> 4 | J77: =VLOOKUP($H77,'Mng&Soil'!$B$2:$F$41,5,FALSE) -> 5 | K77: =VLOOKUP($H77,'Mng&Soil'!$B$2:$G$41,6,FALSE) -> 43 | L77: =VLOOKUP(A77,pH_EC!$A76:$C152,2,FALSE) -> 79.3 | M77: =VLOOKUP(A77,pH_EC!$A76:$C152,3,FALSE) -> 7.08 | N77: =VLOOKUP($H77,Biomass!$A$2:$L$41,11,FALSE) -> 12088.89 | O77: =VLOOKUP($H77,Biomass!$A$2:$O$41,15,FALSE) -> 120.89 | P77: =VLOOKUP($A77,Min_N_Corrected!$A$2:V$93,21,FALSE) -> 3.68 | Q77: =VLOOKUP($A77,Min_N_Corrected!$A$2:W$93,22,FALSE) -> 1.78 | R77: 5.46 | S77: =(VLOOKUP(A77,ISNT_Amino_N!A$2:O$103,15,FALSE))-Q77 -> 437 | T77: =VLOOKUP(A77,Protein!A$3:Q$86,17,FALSE) -> 229 | U77: 24.63 | V77: =VLOOKUP(A77,WEON_WEOC!$B$2:$K$79,7,FALSE) -> 19.2 | W77: 691 | X77: =VLOOKUP(A77,WEON_WEOC!$B77:$K$79,10,FALSE) -> 379 | Y77: 19.8 | Z77: =VLOOKUP(A77,TC_TN!$A$2:$V$77,22,FALSE) -> 3154 | AA77: =VLOOKUP(A77,TC_TN!$A$2:$V$77,16,FALSE) -> 44089 | AB77: 3148 | AC77: 14.0 | AD77: 14.0 | AE77: =VLOOKUP($A77,'CO2'!$A$3:$O$78,15,FALSE) -> 61.7 | AF77: =VLOOKUP($A77,Nmin_SHS!$E$2:$S$77,13,FALSE) -> 16.6 | AG77: =VLOOKUP($A77,Nmin_SHS!$E$2:$S$77,14,FALSE) -> 23.0

Sheet Notes
A1: Ki 1 and 0 might be swaped because of the very high min N content.
A2: Mo 0 and Ki 0 too high N contents. Could be analysed again?
B4: 1. How does N differ across different horizons in diferent treatments
B5: 2. How does N differ across different management practices
B6: 3. What are the relations between N and C pools
B8: How much of the Amino N and Protein N is extracted by WEON?

Sheet Biomass
A1: Site | B1: Tila | C1: Treat | D1: Crop | E1: Area (m2) | F1: Fresh weight (g) | G1: Container (g) | H1: Subsample (g) | I1: Dried sample + container (g) | J1: Biomass g/m2 | K1: Biomass kg/ha | L1: Dry-% | N1: N-% | O1: N-uptake kg/ha
A2: AE-0 | B2: AE | C2: 0 | D2: Grass | E2: 0.5766 | F2: 1180 | G2: 11 | H2: 57 | I2: 23 | J2: 431 | K2: 4,308 | L2: 21% | N2: 3% | O2: =K2*N2 -> 129.2513281
A3: AE-1 | B3: AE | C3: 1 | D3: Grass | E3: 0.5766 | F3: 1270 | G3: 11 | H3: 77 | I3: 25 | J3: 400 | K3: 4,005 | L3: 18% | N3: 3% | O3: =K3*N3 -> 120.1400057
A4: Ai-0 | B4: Ai | C4: 0 | D4: Wheat | E4: 0.5766 | F4: 270 | G4: 11 | H4: 49 | I4: 28 | J4: 162 | K4: 1,625 | L4: 35% | N4: 2% | O4: 32.49166472
A5: Ai-1 | B5: Ai | C5: 1 | D5: Grass | E5: 0.5766 | F5: 770 | G5: 11 | H5: 74 | I5: 46 | J5: 632 | K5: 6,316 | L5: 47% | N5: 3% | O5: 189.4844897
A6: Ik-0 | B6: Ik | C6: 0 | D6: Rapeseed | E6: 0.5766 | F6: 1920 | G6: 11 | H6: 78 | I6: 23 | J6: 512 | K6: 5,123 | L6: 15% | N6: 4% | O6: 179.3004082
A7: Ik-1 | B7: Ik | C7: 1 | D7: Grass | E7: 0.5766 | F7: 1640 | G7: 11 | H7: 76 | I7: 36 | J7: 936 | K7: 9,356 | L7: 33% | N7: 3% | O7: 280.6834985
A8: Ja-0 | B8: Ja | C8: 0 | D8: Peas | E8: 0.5766 | G8: 11 | N8: 3% | O8: 0
A9: Ja-1 | B9: Ja | C9: 1 | D9: Grass | E9: 0.5766 | G9: 11 | N9: 3% | O9: 0
A10: Jn-0 | B10: Jn | C10: 0 | D10: Pasture | E10: 0.5766 | F10: 530 | G10: 11 | H10: 80 | I10: 33 | J10: 253 | K10: 2,528 | L10: 28% | N10: 3% | O10: 63.19372182
A11: Jn-1 | B11: Jn | C11: 1 | D11: Pasture | E11: 0.5766 | F11: 1630 | G11: 11 | H11: 61 | I11: 30 | J11: 881 | K11: 8,805 | L11: 31% | N11: 3% | O11: 220.1287366
A12: Ki-0 | B12: Ki | C12: 0 | D12: Spelt | E12: 0.5766 | F12: 210 | G12: 11 | H12: 49 | I12: 23 | J12: 89 | K12: 892 | L12: 24% | N12: 2% | O12: 17.83856102
A13: Ki-1 | B13: Ki | C13: 1 | D13: Spelt | E13: 0.5766 | F13: 410 | G13: 11 | H13: 52 | I13: 22 | J13: 150 | K13: 1,504 | L13: 21% | N13: 2% | O13: 30.08351343
A14: Ko-0 | B14: Ko | C14: 0 | D14: Grass | E14: 0.375 | F14: 370 | G14: 11 | H14: 68 | I14: 27 | J14: 232 | K14: 2,322 | L14: 24% | N14: 3% | O14: 69.64705882
A15: Ko-1 | B15: Ko | C15: 1 | D15: Grass | E15: 0.375 | F15: 390 | G15: 11 | H15: 60 | I15: 26 | J15: 260 | K15: 2,600 | L15: 25% | N15: 3% | O15: 78
A16: KP-0 | B16: KP | C16: 0 | D16: Oats | E16: 0.9 | F16: 610 | G16: 10 | H16: 51 | I16: 25 | J16: 199 | K16: 1,993 | L16: 29% | N16: 3% | O16: 59.80392157
A17: KP-1 | B17: KP | C17: 1 | D17: Oats | E17: 0.9 | F17: 620 | G17: 10 | H17: 51 | I17: 27 | J17: 230 | K17: 2,296 | L17: 33% | N17: 3% | O17: 68.88888889
A18: La-0 | B18: La | C18: 0 | D18: Grass | E18: 0.375 | F18: 190 | G18: 11 | H18: 86 | I18: 39 | J18: 165 | K18: 1,650 | L18: 33% | N18: 3% | O18: 49.48837209
A19: La-1 | B19: La | C19: 1 | D19: Grass | E19: 0.375 | F19: 290 | G19: 11 | H19: 67 | I19: 27 | J19: 185 | K19: 1,847 | L19: 24% | N19: 3% | O19: 55.40298507
A20: Li-0 | B20: Li | C20: 0 | D20: Grass | E20: 0.5766 | F20: 130 | G20: 11 | H20: 45 | I20: 23 | J20: 60 | K20: 601 | L20: 27% | N20: 3% | O20: 18.03676726
A21: Li-1 | B21: Li | C21: 1 | D21: Grass | E21: 0.5766 | F21: 170 | G21: 12 | H21: 52 | I21: 24 | J21: 68 | K21: 680 | L21: 23% | N21: 3% | O21: 20.4114304
A22: Mi-0 | B22: Mi | C22: 0 | D22: Pasture | E22: 0.5766 | F22: 520 | G22: 11 | H22: 46 | I22: 25 | J22: 274 | K22: 2,745 | L22: 30% | N22: 3% | O22: 68.6181363
A23: Mi-1 | B23: Mi | C23: 1 | D23: Pasture | E23: 0.5766 | F23: 1900 | G23: 11 | H23: 49 | I23: 26 | J23: 1,009 | K23: 10,087 | L23: 31% | N23: 3% | O23: 252.1820383
A24: Mo-0 | B24: Mo | C24: 0 | D24: Rapeseed | E24: 0.5766 | F24: 220 | G24: 11 | H24: 50 | I24: 24 | J24: 99 | K24: 992 | L24: 26% | N24: 4% | O24: 34.72077697
A25: Mo-1 | B25: Mo | C25: 1 | D25: Grass | E25: 0.5766 | F25: 906 | G25: 10 | H25: 50 | I25: 34 | J25: 754 | K25: 7,542 | L25: 48% | N25: 3% | O25: 226.264308
A26: Mu-0 | B26: Mu | C26: 0 | D26: Grass | E26: 0.5766 | F26: 370 | G26: 11 | H26: 47 | I26: 26 | J26: 205 | K26: 2,048 | L26: 32% | N26: 3% | O26: 61.43866097
A27: Mu-1 | B27: Mu | C27: 1 | D27: Grass | E27: 0.5766 | F27: 510 | G27: 11 | H27: 64 | I27: 27 | J27: 221 | K27: 2,211 | L27: 25% | N27: 3% | O27: 66.3371488
A28: Na-0 | B28: Na | C28: 0 | D28: Oats | E28: 0.5766 | F28: 1830 | G28: 11 | H28: 53 | I28: 23 | J28: 719 | K28: 7,186 | L28: 23% | N28: 2% | O28: 114.9745744
A29: Na-1 | B29: Na | C29: 1 | D29: Oats | E29: 0.5766 | F29: 1570 | G29: 11 | H29: 82 | I29: 32 | J29: 697 | K29: 6,973 | L29: 26% | N29: 2% | O29: 111.5707723
A30: Ne-0 | B30: Ne | C30: 0 | D30: Barley | E30: 0.5766 | F30: 2000 | G30: 11 | H30: 77 | I30: 35 | J30: 1,081 | K30: 10,811 | L30: 31% | N30: 2% | O30: 172.9799857
A31: Ne-1 | B31: Ne | C31: 1 | D31: Barley | E31: 0.5766 | F31: 1700 | G31: 11 | H31: 66 | I31: 31 | J31: 893 | K31: 8,934 | L31: 30% | N31: 2% | O31: 142.9487382
A32: Ni-0 | B32: Ni | C32: 0 | D32: Pasture | E32: 0.5766 | F32: 0 | G32: 0 | H32: 0 | I32: 0 | N32: 3% | O32: 0
A33: Ni-1 | B33: Ni | C33: 1 | D33: Pasture | E33: 0.5766 | G33: 11 | N33: 3% | O33: 0
A34: Pa-0 | B34: Pa | C34: 0 | D34: Oats | E34: 0.375 | F34: 1210 | G34: 11 | H34: 149 | I34: 73 | J34: 1,343 | K34: 13,426 | L34: 42% | N34: 1% | O34: 134.2639821
A35: Pa-1 | B35: Pa | C35: 1 | D35: Oats | E35: 0.375 | F35: 1360 | G35: 11 | H35: 102 | I35: 45 | J35: 1,209 | K35: 12,089 | L35: 33% | N35: 1% | O35: 120.8888889
A36: Pi-0 | B36: Pi | C36: 0 | D36: Rye | E36: 0.5766 | F36: 930 | G36: 10 | H36: 43 | I36: 31 | J36: 788 | K36: 7,877 | L36: 49% | N36: 1% | O36: 110.2775694
A37: Pi-1 | B37: Pi | C37: 1 | D37: Rye | E37: 0.5766 | F37: 1020 | G37: 11 | H37: 37 | I37: 28 | J37: 813 | K37: 8,128 | L37: 46% | N37: 1% | O37: 113.7891273
A38: Pu-0 | B38: Pu | C38: 0 | D38: Barley | E38: 0.5766 | F38: 400 | G38: 11 | H38: 53 | I38: 27 | J38: 209 | K38: 2,094 | L38: 30% | N38: 2% | O38: 41.88509087
A39: Pu-1 | B39: Pu | C39: 1 | D39: Barley | E39: 0.5766 | F39: 590 | G39: 11 | H39: 80 | I39: 36 | J39: 320 | K39: 3,198 | L39: 31% | N39: 2% | O39: 63.95248006
A40: Si-0 | B40: Si | C40: 0 | D40: Oats | E40: 0.5766 | F40: 890 | G40: 11 | H40: 48 | I40: 31 | J40: 643 | K40: 6,431 | L40: 42% | N40: 2% | O40: 128.627587
A41: Si-1 | B41: Si | C41: 1 | D41: Oats | E41: 0.5766 | F41: 860 | G41: 11 | H41: 63 | I41: 33 | J41: 521 | K41: 5,208 | L41: 35% | N41: 2% | O41: 104.1683872

Sheet Mng&Soil
A1: Site | B1: Site | C1: Management | D1: Management | E1: Soil type USDA | F1: attribute | G1: Clay content
A2: 1 | B2: AE-0 | C2: 0 | D2: 1 | E2: Silty clay loam | F2: 1 | G2: 35.07
A3: 1 | B3: AE-1 | C3: Subsoiling | D3: 1 | E3: Silty clay loam | F3: 1 | G3: 32.96
A4: 2 | B4: Ai-0 | C4: 0 | D4: 2 | E4: Sandy loam | F4: 2 | G4: 18.00
A5: 2 | B5: Ai-1 | C5: Ley in rotation | D5: 2 | E5: Loam | F5: 3 | G5: 26.00
A6: 3 | B6: Ik-0 | C6: 0 | D6: 2 | E6: Silt loam | F6: 6 | G6: 13.00
A7: 3 | B7: Ik-1 | C7: Ley in rotation | D7: 2 | E7: Silt loam | F7: 6 | G7: 13.00
A8: 4 | B8: Ja-0 | C8: 0 | D8: 2 | E8: Clay | F8: 5 | G8: 53.00
A9: 4 | B9: Ja-1 | C9: Ley in rotation | D9: 2 | E9: Clay | F9: 5 | G9: 58.00
A10: 5 | B10: Jn-0 | C10: 0 | D10: 3 | E10: Silt loam | F10: 6 | G10: 11.00
A11: 5 | B11: Jn-1 | C11: Grazing | D11: 3 | E11: Silt loam | F11: 6 | G11: 23.00
A12: 6 | B12: Ki-0 | C12: 0 | D12: 4 | E12: Sandy loam | F12: 2 | G12: 6.00
A13: 6 | B13: Ki-1 | C13: Org.amendments | D13: 4 | E13: Loamy sand | F13: 7 | G13: 4.00
A14: 7 | B14: Ko-0 | C14: 0 | D14: 5 | E14: Silt loam | F14: 6 | G14: 17.00
A15: 7 | B15: Ko-1 | C15: Diverse grass | D15: 5 | E15: Silt loam | F15: 6 | G15: 24.00
A16: 8 | B16: KP-0 | C16: 0 | D16: 1 | E16: Clay | F16: 5 | G16: 58.00
A17: 8 | B17: KP-1 | C17: Subsoiling | D17: 1 | E17: Clay | F17: 5 | G17: 59.00
A18: 9 | B18: La-0 | C18: 0 | D18: 1 | E18: Silty clay loam | F18: 1 | G18: 29.00
A19: 9 | B19: La-1 | C19: Subsoiling | D19: 1 | E19: Silt loam | F19: 6 | G19: 23.00
A20: 10 | B20: Li-0 | C20: 0 | D20: 4 | E20: Clay | F20: 5 | G20: 49.00
A21: 10 | B21: Li-1 | C21: Org.amendments | D21: 4 | E21: Clay | F21: 5 | G21: 57.00
A22: 11 | B22: Mi-0 | C22: 0 | D22: 3 | E22: Silty clay | F22: 8 | G22: 47.00
A23: 11 | B23: Mi-1 | C23: Grazing | D23: 3 | E23: Silty clay loam | F23: 1 | G23: 35.00
A24: 12 | B24: Mo-0 | C24: 0 | D24: 2 | E24: Silty clay | F24: 8 | G24: 44.00
A25: 12 | B25: Mo-1 | C25: Ley in rotation | D25: 2 | E25: Silty clay | F25: 8 | G25: 43.00
A26: 13 | B26: Mu-0 | C26: 0 | D26: 5 | E26: Silty clay | F26: 8 | G26: 54.00
A27: 13 | B27: Mu-1 | C27: Diverse grass | D27: 5 | E27: Silty clay loam | F27: 1 | G27: 37.00
A28: 14 | B28: Na-0 | C28: 0 | D28: 6 | E28: Silty clay loam | F28: 1 | G28: 35.00
A29: 14 | B29: Na-1 | C29: Cover crops | D29: 6 | E29: Silty clay loam | F29: 1 | G29: 37.00
A30: 15 | B30: Ne-0 | C30: 0 | D30: 6 | E30: Silty clay loam | F30: 1 | G30: 29.00
A31: 15 | B31: Ne-1 | C31: Cover crops | D31: 6 | E31: Silty clay loam | F31: 1 | G31: 32.00
A32: 16 | B32: Ni-0 | C32: 0 | D32: 3 | E32: Silt loam | F32: 6 | G32: 15.00
A33: 16 | B33: Ni-1 | C33: Grazing | D33: 3 | E33: Silt loam | F33: 6 | G33: 18.00
A34: 17 | B34: Pa-0 | C34: 0 | D34: 4 | E34: Silty clay | F34: 8 | G34: 41.00
A35: 17 | B35: Pa-1 | C35: Org.amendments | D35: 4 | E35: Clay | F35: 5 | G35: 43.00
A36: 18 | B36: Pi-0 | C36: 0 | D36: 4 | E36: Clay loam | F36: 9 | G36: 37.00
A37: 18 | B37: Pi-1 | C37: Org.amendments | D37: 4 | E37: Clay | F37: 5 | G37: 46.00
A38: 19 | B38: Pu-0 | C38: 0 | D38: 6 | E38: silty clay loam | F38: 1 | G38: 32.00
A39: 19 | B39: Pu-1 | C39: Cover crops | D39: 6 | E39: silty clay loam | F39: 1 | G39: 40.00
A40: 20 | B40: Si-0 | C40: 0 | D40: 6 | E40: Clay | F40: 5 | G40: 58.00
A41: 20 | B41: Si-1 | C41: Cover crops | D41: 6 | E41: Clay | F41: 5 | G41: 63.00

Sheet Mass
D1: 105 Celsius | K1: air-dry 30 Celsius
A2: Sample | B2: Sampling depth (m) | C2: Sampling depth (cm) | D2: crucible (g) | E2: fresh (g) | F2: dry (g) | G2: NO crucible dry (g) | H2: water (g) | I2: water (%) | J2: DM% | K2: tray (g) | L2: fresh (g) | M2: dry (g) | N2: NO tray fresh (g) | O2: No tray dry (g) | P2: water (g) | Q2: water (%) | R2: water left in air-dry soil (%) | S2: air dry soil DM (%)
A3: Pu-0-T | B3: =C3/100 -> 0.17 | C3: 17 | D3: 6.27 | E3: 10.01 | F3: 15.38 | G3: =F3-D3 -> 9.11 | H3: =E3-G3 -> 0.90 | I3: =(1-(G3/E3))*100 -> 8.99 | J3: =100-I3 -> 91.009 | K3: 19.41 | L3: 361.3 | M3: 337.9 | N3: =L3-K3 -> 341.89 | O3: =M3-K3 -> 318.49 | P3: =N3-O3 -> 23.4 | Q3: =(1-(O3/N3))*100 -> 6.844 | R3: =I3-Q3 -> 2.147 | S3: =100-R3 -> 97.853
A4: Pu-0-S | B4: =C4/100 -> 0.13 | C4: 13 | D4: 6.17 | E4: ='CALC mass'!T12 -> 11.46 | F4: 15.92 | G4: 9.75 | H4: =E4-G4 -> 1.71 | I4: =(1-(G4/E4))*100 -> 14.96 | J4: =100-I4 -> 85.042 | K4: 19.28 | L4: 348.62 | M4: 306.54 | N4: 329.34 | O4: 287.26 | P4: =N4-O4 -> 42.08 | Q4: =(1-(O4/N4))*100 -> 12.777 | R4: 2.181 | S4: =100-R4 -> 97.819
A5: Pu-1-T | B5: 0.17 | C5: 17 | D5: 5.23 | E5: 10.01 | F5: 14.17 | G5: 8.94 | H5: 1.07 | I5: 10.69 | J5: 89.311 | K5: 19.08 | L5: 353.73 | M5: 328.13 | N5: 334.65 | O5: 309.05 | P5: 25.6 | Q5: =(1-(O5/N5))*100 -> 7.650 | R5: 3.040 | S5: 96.960
A6: Pu-1-S | B6: 0.13 | C6: 13 | D6: 6.63 | E6: 10.01 | F6: 15.12 | G6: 8.49 | H6: 1.52 | I6: 15.18 | J6: 84.815 | K6: 19.27 | L6: 318.47 | M6: 281.8 | N6: 299.2 | O6: 262.53 | P6: 36.67 | Q6: 12.256 | R6: 2.929 | S6: 97.071
A7: Mo-0-T | B7: 0.17 | C7: 17 | D7: 6.87 | E7: 10 | F7: 15.37 | G7: 8.5 | H7: 1.50 | I7: 15.00 | J7: 85.000 | K7: 19.23 | L7: 339.52 | M7: 299.12 | N7: =L7-K7 -> 320.29 | O7: =M7-K7 -> 279.89 | P7: 40.4 | Q7: 12.614 | R7: 2.386 | S7: 97.614
A8: Mo-0-S | B8: 0.13 | C8: 13 | D8: 5.92 | E8: 10 | F8: 14.1 | G8: 8.18 | H8: 1.82 | I8: 18.20 | J8: 81.800 | K8: 19.36 | L8: 337.32 | M8: 289.86 | N8: =L8-K8 -> 317.96 | O8: =M8-K8 -> 270.5 | P8: 47.46 | Q8: 14.926 | R8: 3.274 | S8: 96.726
A9: Mo-1-T | B9: 0.17 | C9: 17 | D9: 6.16 | E9: 10.01 | F9: 14.76 | G9: 8.6 | H9: 1.41 | I9: 14.09 | J9: 85.914 | K9: 19.32 | L9: 297.75 | M9: 265.04 | N9: 278.43 | O9: 245.72 | P9: 32.71 | Q9: 11.748 | R9: 2.338 | S9: 97.662
A10: Mo-1-S | B10: 0.13 | C10: 13 | D10: 6.03 | E10: 10 | F10: 14.26 | G10: 8.23 | H10: 1.77 | I10: 17.70 | J10: 82.300 | K10: 19.37 | L10: 322.67 | M10: 295.67 | N10: 303.3 | O10: 276.3 | P10: 27 | Q10: 8.902 | R10: 8.798 | S10: 91.202
A11: Si-0-T | B11: 0.17 | C11: 17 | D11: 6.23 | E11: 10.02 | F11: 14.66 | G11: 8.43 | H11: 1.59 | I11: 15.87 | J11: 84.132 | K11: 19.36 | L11: 303.46 | M11: 287.58 | N11: 284.1 | O11: 268.22 | P11: 15.88 | Q11: 5.590 | R11: 10.279 | S11: 89.721
A12: Si-0-S | B12: 0.13 | C12: 13 | D12: 6.63 | E12: 10.01 | F12: 14.81 | G12: 8.18 | H12: 1.83 | I12: 18.28 | J12: 81.718 | K12: 19.13 | L12: 263.94 | M12: 247.35 | N12: 244.81 | O12: 228.22 | P12: 16.59 | Q12: 6.777 | R12: 11.505 | S12: 88.495
A13: Si-1-T | B13: 0.17 | C13: 17 | D13: 6.57 | E13: 10.01 | F13: 14.91 | G13: 8.34 | H13: 1.67 | I13: 16.68 | J13: 83.317 | K13: 19.98 | L13: 399.25 | M13: 377.01 | N13: 379.27 | O13: 357.03 | P13: 22.24 | Q13: 5.864 | R13: 10.819 | S13: 89.181
A14: Si-1-S | B14: 0.13 | C14: 13 | D14: 5.83 | E14: 10.01 | F14: 13.88 | G14: 8.05 | H14: 1.96 | I14: 19.58 | J14: 80.420 | K14: 19.1 | L14: 380.13 | M14: 352.69 | N14: 361.03 | O14: 333.59 | P14: 27.44 | Q14: 7.600 | R14: 11.980 | S14: 88.020
A15: Mi-0-T | B15: 0.17 | C15: 17 | D15: 6.78 | E15: 10 | F15: 15.34 | G15: 8.56 | H15: 1.44 | I15: 14.40 | J15: 85.600 | K15: 19.41 | L15: 354.82 | M15: 315.2 | N15: 335.41 | O15: 295.79 | P15: 39.62 | Q15: 11.812 | R15: 2.588 | S15: 97.412
A16: Mi-0-S | B16: 0.13 | C16: 13 | D16: 5.68 | E16: 10 | F16: 14.22 | G16: 8.54 | H16: 1.46 | I16: 14.60 | J16: 85.400 | K16: 19.28 | L16: 403.99 | M16: 376.73 | N16: 384.71 | O16: 357.45 | P16: 27.26 | Q16: 7.086 | R16: 7.514 | S16: 92.486
A17: Mi-1-T | B17: 0.17 | C17: 17 | D17: 6.5 | E17: 10 | F17: 15.02 | G17: 8.52 | H17: 1.48 | I17: 14.80 | J17: 85.200 | K17: 19.08 | L17: 408.56 | M17: 381.17 | N17: 389.48 | O17: 362.09 | P17: 27.39 | Q17: 7.032 | R17: 7.768 | S17: 92.232
A18: Mi-1-S | B18: 0.13 | C18: 13 | D18: 6.53 | E18: 10 | F18: 15.01 | G18: 8.48 | H18: 1.52 | I18: 15.20 | J18: 84.800 | K18: 19.27 | L18: 355.84 | M18: 329.78 | N18: 336.57 | O18: 310.51 | P18: 26.06 | Q18: 7.743 | R18: 7.457 | S18: 92.543
A19: Li-0-T | B19: 0.17 | C19: 17 | D19: 6.51 | E19: 10.01 | F19: 15.08 | G19: 8.57 | H19: 1.44 | I19: 14.39 | J19: 85.614 | K19: 19.23 | L19: 416.95 | M19: 391.93 | N19: 397.72 | O19: 372.7 | P19: 25.02 | Q19: 6.291 | R19: 8.095 | S19: 91.905
A20: Li-0-S | B20: 0.13 | C20: 13 | D20: 6.16 | E20: 10 | F20: 14.46 | G20: 8.3 | H20: 1.70 | I20: 17.00 | J20: 83.000 | K20: 19.36 | L20: 476.18 | M20: 436.76 | N20: 456.82 | O20: 417.4 | P20: 39.42 | Q20: 8.629 | R20: 8.371 | S20: 91.629
A21: Li-1-T | B21: 0.17 | C21: 17 | D21: 6.02 | E21: 10 | F21: 14.44 | G21: 8.42 | H21: 1.58 | I21: 15.80 | J21: 84.200 | K21: 19.32 | L21: 410.5 | M21: 384.41 | N21: 391.18 | O21: 365.09 | P21: 26.09 | Q21: 6.670 | R21: 9.130 | S21: 90.870
A22: Li-1-S | B22: 0.13 | C22: 13 | D22: 6.97 | E22: 10.01 | F22: 15.29 | G22: 8.32 | H22: 1.69 | I22: 16.88 | J22: 83.117 | K22: 19.37 | L22: 411.87 | M22: 376.74 | N22: 392.5 | O22: 357.37 | P22: 35.13 | Q22: 8.950 | R22: 7.933 | S22: 92.067
A23: Ai-0-T | B23: 0.17 | C23: 17 | D23: 6.21 | E23: 10.02 | F23: 15.15 | G23: 8.94 | H23: 1.08 | I23: 10.78 | J23: 89.222 | K23: 19.41 | L23: 399.08 | M23: 364.15 | N23: 379.67 | O23: 344.74 | P23: 34.93 | Q23: 9.200 | R23: 1.578 | S23: 98.422
A24: Ai-0-S | B24: 0.13 | C24: 13 | D24: 6.16 | E24: 10 | F24: 15.22 | G24: 9.06 | H24: 0.94 | I24: 9.40 | J24: 90.600 | K24: 19.28 | L24: 508.96 | M24: 472.79 | N24: 489.68 | O24: 453.51 | P24: 36.17 | Q24: 7.386 | R24: 2.014 | S24: 97.986
A25: Ai-1-T | B25: 0.17 | C25: 17 | D25: 6.17 | E25: 10.03 | F25: 14.79 | G25: 8.62 | H25: 1.41 | I25: 14.06 | J25: 85.942 | K25: 19.08 | L25: 346.56 | M25: 307.99 | N25: 327.48 | O25: 288.91 | P25: 38.57 | Q25: 11.778 | R25: 2.280 | S25: 97.720
A26: Ai-1-S | B26: 0.13 | C26: 13 | D26: 6.52 | E26: 10 | F26: 15.45 | G26: 8.93 | H26: 1.07 | I26: 10.70 | J26: 89.300 | K26: 19.27 | L26: 424.75 | M26: 388.7 | N26: 405.48 | O26: 369.43 | P26: 36.05 | Q26: 8.891 | R26: 1.809 | S26: 98.191
A27: Pi-0-T | B27: 0.17 | C27: 17 | D27: 5.68 | E27: 10.01 | F27: 13.83 | G27: 8.15 | H27: 1.86 | I27: 18.58 | J27: 81.419 | K27: 19.23 | L27: 450.58 | M27: 398.23 | N27: 431.35 | O27: 379 | P27: 52.35 | Q27: 12.136 | R27: 6.445 | S27: 93.555
A28: Pi-0-S | B28: 0.13 | C28: 13 | D28: 6.88 | E28: 10 | F28: 15.1 | G28: 8.22 | H28: 1.78 | I28: 17.80 | J28: 82.200 | K28: 19.36 | L28: 410.36 | M28: 362.35 | N28: 391 | O28: 342.99 | P28: 48.01 | Q28: 12.279 | R28: 5.521 | S28: 94.479
A29: Pi-1-T | B29: 0.17 | C29: 17 | D29: 6.03 | E29: 10.01 | F29: 14.1 | G29: 8.07 | H29: 1.94 | I29: 19.38 | J29: 80.619 | K29: 19.32 | L29: 324.15 | M29: 287.09 | N29: 304.83 | O29: 267.77 | P29: 37.06 | Q29: 12.158 | R29: 7.223 | S29: 92.777
A30: Pi-1-S | B30: 0.13 | C30: 13 | D30: 6.97 | E30: 10.01 | F30: 15.1 | G30: 8.13 | H30: 1.88 | I30: 18.78 | J30: 81.219 | K30: 19.37 | L30: 419.49 | M30: 367.54 | N30: 400.12 | O30: 348.17 | P30: 51.95 | Q30: 12.984 | R30: 5.798 | S30: 94.202
A31: Ja-0-T | B31: 0.17 | C31: 17 | D31: 6.63 | E31: 10.01 | F31: 14.42 | G31: 7.79 | H31: 2.22 | I31: 22.18 | J31: 77.822 | K31: 19.36 | L31: 345.75 | M31: 290.98 | N31: 326.39 | O31: 271.62 | P31: 54.77 | Q31: 16.781 | R31: 5.397 | S31: 94.603
A32: Ja-1-T | B32: 0.17 | C32: 17 | D32: 5.92 | E32: 10 | F32: 13.79 | G32: 7.87 | H32: 2.13 | I32: 21.30 | J32: 78.700 | K32: 19.13 | L32: 360.31 | M32: 305.88 | N32: 341.18 | O32: 286.75 | P32: 54.43 | Q32: 15.953 | R32: 5.347 | S32: 94.653
A33: Mu-0-T | B33: 0.17 | C33: 17 | D33: 6.27 | E33: 10 | F33: 14.24 | G33: 7.97 | H33: 2.03 | I33: 20.30 | J33: 79.700 | K33: 19.06 | L33: 359.61 | M33: 305.01 | N33: 340.55 | O33: 285.95 | P33: 54.6 | Q33: 16.033 | R33: 4.267 | S33: 95.733
A34: Mu-0-S | B34: 0.13 | C34: 13 | D34: 6.51 | E34: 10.01 | F34: 14.49 | G34: 7.98 | H34: 2.03 | I34: 20.28 | J34: 79.720 | K34: 19.17 | L34: 391.95 | M34: 334.68 | N34: 372.78 | O34: 315.51 | P34: 57.27 | Q34: 15.363 | R34: 4.917 | S34: 95.083
A35: Mu-1-T | B35: 0.17 | C35: 17 | D35: 6.59 | E35: 10.01 | F35: 14.49 | G35: =F35-D35 -> 7.9 | H35: 2.11 | I35: 21.08 | J35: 78.921 | K35: 19.27 | L35: 366.45 | M35: 313.27 | N35: 347.18 | O35: 294 | P35: 53.18 | Q35: 15.318 | R35: =I35-Q35 -> 5.761 | S35: 94.239
A36: Mu-1-S | B36: 0.13 | C36: 13 | D36: 6.62 | E36: 10.01 | F36: 14.52 | G36: 7.9 | H36: 2.11 | I36: 21.08 | J36: 78.921 | K36: 17.81 | L36: 416.71 | M36: 354.6 | N36: 398.9 | O36: 336.79 | P36: 62.11 | Q36: 15.570 | R36: 5.509 | S36: 94.491
A37: Kp-0-T | B37: 0.17 | C37: 17 | D37: 5.84 | E37: 10 | F37: 14.23 | G37: 8.39 | H37: 1.61 | I37: 16.10 | J37: 83.900 | K37: 17.86 | L37: 447.34 | M37: 397.03 | N37: 429.48 | O37: 379.17 | P37: 50.31 | Q37: 11.714 | R37: 4.386 | S37: 95.614
A38: Kp-0-S | B38: 0.13 | C38: 13 | D38: 6.79 | E38: 10.01 | F38: 15.02 | G38: 8.23 | H38: 1.78 | I38: 17.78 | J38: 82.218 | K38: 17.76 | L38: 477.38 | M38: 415.92 | N38: 459.62 | O38: 398.16 | P38: 61.46 | Q38: 13.372 | R38: 4.410 | S38: 95.590
A39: Kp-1-T | B39: 0.17 | C39: 17 | D39: 6.57 | E39: 10 | F39: 14.97 | G39: 8.4 | H39: 1.60 | I39: 16.00 | J39: 84.000 | K39: 19.85 | L39: 390.97 | M39: 347 | N39: 371.12 | O39: 327.15 | P39: 43.97 | Q39: 11.848 | R39: 4.152 | S39: =100-R39 -> 95.848
A40: Kp-1-S | B40: 0.13 | C40: 13 | D40: 6.03 | E40: 10 | F40: 14.21 | G40: 8.18 | H40: 1.82 | I40: 18.20 | J40: 81.800 | K40: 19.74 | L40: 406.13 | M40: 352.98 | N40: 386.39 | O40: 333.24 | P40: 53.15 | Q40: 13.756 | R40: 4.444 | S40: 95.556
A41: Ki-0-T | B41: 0.17 | C41: 17 | D41: 5.23 | E41: 10.01 | F41: 14.23 | G41: 9 | H41: 1.01 | I41: 10.09 | J41: 89.910 | K41: 19.9 | L41: 437.61 | M41: 400.51 | N41: 417.71 | O41: 380.61 | P41: 37.1 | Q41: 8.882 | R41: 1.208 | S41: 98.792
A42: Ki-0-S | B42: 0.13 | C42: 13 | D42: 6.17 | E42: 10 | F42: 15.23 | G42: 9.06 | H42: 0.94 | I42: 9.40 | J42: 90.600 | K42: 19.88 | L42: 498.11 | M42: 459.13 | N42: 478.23 | O42: 439.25 | P42: 38.98 | Q42: 8.151 | R42: 1.249 | S42: 98.751
A43: Ki-1-T | B43: 0.17 | C43: 17 | D43: 6.82 | E43: 10.01 | F43: 15.86 | G43: 9.04 | H43: 0.97 | I43: 9.69 | J43: 90.310 | K43: 19.96 | L43: 376.8 | M43: 347.54 | N43: 356.84 | O43: 327.58 | P43: 29.26 | Q43: 8.200 | R43: 1.491 | S43: 98.509
A44: Ki-1-S | B44: 0.13 | C44: 13 | D44: 6.73 | E44: 10 | F44: 15.96 | G44: 9.23 | H44: 0.77 | I44: 7.70 | J44: 92.300 | K44: 19.98 | L44: ='CALC mass'!J6 -> 435.50 | M44: 407.63 | N44: 415.52 | O44: 387.65 | P44: 27.87 | Q44: 6.708 | R44: 0.992 | S44: 99.008
A45: Na-0-T | B45: 0.17 | C45: 17 | D45: 5.69 | E45: 10.01 | F45: 13.44 | G45: 7.75 | H45: 2.26 | I45: 22.58 | J45: 77.423 | K45: 19.41 | L45: 345.19 | M45: 279.29 | N45: 325.78 | O45: 259.88 | P45: 65.9 | Q45: 20.228 | R45: 2.349 | S45: 97.651
A46: Na-0-S | B46: 0.13 | C46: 13 | D46: 6.16 | E46: 10.01 | F46: 14.21 | G46: 8.05 | H46: 1.96 | I46: 19.58 | J46: 80.420 | K46: 19.28 | L46: 424.56 | M46: 354.26 | N46: 405.28 | O46: 334.98 | P46: 70.3 | Q46: 17.346 | R46: 2.234 | S46: 97.766
A47: Na-1-T | B47: 0.17 | C47: 17 | D47: 5.83 | E47: 10 | F47: 13.67 | G47: 7.84 | H47: 2.16 | I47: 21.60 | J47: 78.400 | K47: 19.08 | L47: 444.38 | M47: 363.71 | N47: 425.3 | O47: 344.63 | P47: 80.67 | Q47: 18.968 | R47: 2.632 | S47: 97.368
A48: Na-1-S | B48: 0.13 | C48: 13 | D48: 6.17 | E48: 10 | F48: 14.25 | G48: 8.08 | H48: 1.92 | I48: 19.20 | J48: 80.800 | K48: 19.27 | L48: 439.38 | M48: 368.21 | N48: 420.11 | O48: 348.94 | P48: 71.17 | Q48: 16.941 | R48: 2.259 | S48: 97.741
A49: Ik-0-T | B49: 0.17 | C49: 17 | D49: 6.58 | E49: 10 | F49: 14.17 | G49: 7.59 | H49: 2.41 | I49: 24.10 | J49: 75.900 | K49: 19.23 | L49: 328.1 | M49: 259.76 | N49: 308.87 | O49: 240.53 | P49: 68.34 | Q49: 22.126 | R49: 1.974 | S49: 98.026
A50: Ik-0-S | B50: 0.13 | C50: 13 | D50: 6.83 | E50: 10 | F50: 14.44 | G50: 7.61 | H50: 2.39 | I50: 23.90 | J50: 76.100 | K50: 19.36 | L50: 362.97 | M50: 285.97 | N50: 343.61 | O50: 266.61 | P50: 77 | Q50: 22.409 | R50: 1.491 | S50: 98.509
A51: Ik-1-T | B51: 0.17 | C51: 17 | D51: 6.56 | E51: 10.01 | F51: 14.32 | G51: 7.76 | H51: 2.25 | I51: 22.48 | J51: 77.522 | K51: 19.32 | L51: 369.09 | M51: 298.28 | N51: 349.77 | O51: 278.96 | P51: 70.81 | Q51: 20.245 | R51: 2.233 | S51: 97.767
A52: Ik-1-S | B52: 0.13 | C52: 13 | D52: 6.79 | E52: 10 | F52: 14.74 | G52: 7.95 | H52: 2.05 | I52: 20.50 | J52: 79.500 | K52: 19.37 | L52: 423.44 | M52: 348.27 | N52: 404.07 | O52: 328.9 | P52: 75.17 | Q52: 18.603 | R52: 1.897 | S52: 98.103
A53: Ne-0-T | B53: 0.17 | C53: 17 | D53: 6.27 | E53: 10 | F53: 14.63 | G53: 8.36 | H53: 1.64 | I53: 16.40 | J53: 83.600 | K53: 19.36 | L53: 444.09 | M53: 382.87 | N53: 424.73 | O53: 363.51 | P53: 61.22 | Q53: 14.414 | R53: 1.986 | S53: 98.014
A54: Ne-0-S | B54: 0.13 | C54: 13 | D54: 6.04 | E54: 10 | F54: 14.47 | G54: 8.43 | H54: 1.57 | I54: 15.70 | J54: 84.300 | K54: 19.13 | L54: 498.7 | M54: 433.58 | N54: 479.57 | O54: 414.45 | P54: 65.12 | Q54: 13.579 | R54: 2.121 | S54: 97.879
A55: Ne-1-T | B55: 0.17 | C55: 17 | D55: 6.62 | E55: 10.01 | F55: 14.76 | G55: 8.14 | H55: 1.87 | I55: 18.68 | J55: 81.319 | K55: 19.98 | L55: 427.42 | M55: 361.28 | N55: 407.44 | O55: 341.3 | P55: 66.14 | Q55: 16.233 | R55: 2.448 | S55: 97.552
A56: Ne-1-S | B56: 0.13 | C56: 13 | D56: 6.51 | E56: 10 | F56: 14.7 | G56: 8.19 | H56: 1.81 | I56: 18.10 | J56: 81.900 | K56: 19.1 | L56: 522.2 | M56: 441.76 | N56: 503.1 | O56: 422.66 | P56: 80.44 | Q56: 15.989 | R56: 2.111 | S56: 97.889
A57: Ae-0-T | B57: 0.17 | C57: 17 | D57: 6.16 | E57: 10 | F57: 13.93 | G57: 7.77 | H57: 2.23 | I57: 22.30 | J57: 77.700 | K57: 19.11 | L57: 395.91 | M57: 325.15 | N57: 376.8 | O57: 306.04 | P57: 70.76 | Q57: 18.779 | R57: 3.521 | S57: 96.479
A58: Ae-0-S | B58: 0.13 | C58: 13 | D58: 6.03 | E58: 10 | F58: 13.71 | G58: 7.68 | H58: 2.32 | I58: 23.20 | J58: 76.800 | K58: 19.24 | L58: 404.4 | M58: 327.03 | N58: 385.16 | O58: 307.79 | P58: 77.37 | Q58: 20.088 | R58: 3.112 | S58: 96.888
A59: Ae-1-T | B59: 0.17 | C59: 17 | D59: 6.62 | E59: 10 | F59: 14.33 | G59: 7.71 | H59: 2.29 | I59: 22.90 | J59: 77.100 | K59: 19.38 | L59: 448.18 | M59: 367.56 | N59: 428.8 | O59: 348.18 | P59: 80.62 | Q59: 18.801 | R59: 4.099 | S59: 95.901
A60: Ae-1-S | B60: 0.13 | C60: 13 | D60: 6.73 | E60: 10.01 | F60: 14.38 | G60: 7.65 | H60: 2.36 | I60: 23.58 | J60: 76.424 | K60: 18.85 | L60: 456.02 | M60: 366.96 | N60: 437.17 | O60: 348.11 | P60: 89.06 | Q60: 20.372 | R60: 3.204 | S60: 96.796
A61: Jn-0-T | B61: 0.17 | C61: 17 | D61: 6.97 | E61: 10.01 | F61: 14.94 | G61: 7.97 | H61: 2.04 | I61: 20.38 | J61: 79.620 | K61: 18.87 | L61: 440.75 | M61: 369.06 | N61: 421.88 | O61: 350.19 | P61: 71.69 | Q61: 16.993 | R61: 3.387 | S61: 96.613
A62: Jn-0-S | B62: 0.13 | C62: 13 | D62: 6.86 | E62: 10.01 | F62: 15.12 | G62: 8.26 | H62: 1.75 | I62: 17.48 | J62: 82.517 | K62: 18.85 | L62: 466.41 | M62: 394.75 | N62: 447.56 | O62: 375.9 | P62: 71.66 | Q62: 16.011 | R62: 1.471 | S62: 98.529
A63: Jn-1-T | B63: 0.17 | C63: 17 | D63: 5.9 | E63: 10 | F63: 13.84 | G63: 7.94 | H63: 2.06 | I63: 20.60 | J63: 79.400 | K63: 19.06 | L63: 506.54 | M63: 413.95 | N63: 487.48 | O63: 394.89 | P63: 92.59 | Q63: 18.994 | R63: 1.606 | S63: 98.394
A64: Jn-1-S | B64: 0.13 | C64: 13 | D64: 5.23 | E64: 10 | F64: 13.53 | G64: 8.3 | H64: 1.70 | I64: 17.00 | J64: 83.000 | K64: 19.17 | L64: 531.18 | M64: 451.73 | N64: =L64-K64 -> 512.01 | O64: =M64-K64 -> 432.56 | P64: 79.45 | Q64: 15.517 | R64: 1.483 | S64: 98.517
A65: Ni-0-T | B65: 0.17 | C65: 17 | D65: 6.21 | E65: 10.02 | F65: 12.83 | G65: 6.62 | H65: 3.40 | I65: 33.93 | J65: 66.068 | K65: 19.27 | L65: ='CALC mass'!J7 -> 397.06 | M65: 275.56 | N65: =L65-K65 -> 377.79 | O65: 256.29 | P65: 121.50 | Q65: =(1-(O65/N65))*100 -> 32.161 | R65: 1.771 | S65: 98.229
A66: Ni-1-T | B66: 0.17 | C66: 17 | D66: 6.53 | E66: 10 | F66: 12.8 | G66: 6.27 | H66: 3.73 | I66: 37.30 | J66: 62.700 | K66: 17.81 | L66: ='CALC mass'!J8 -> 447.48 | M66: 296.68 | N66: 429.67 | O66: 278.87 | P66: 150.80 | Q66: 35.097 | R66: 2.203 | S66: 97.797
A67: La-0-T | B67: 0.17 | C67: 17 | D67: 6.87 | E67: 10 | F67: 14.99 | G67: =F67-D67 -> 8.12 | H67: 1.88 | I67: 18.80 | J67: 81.200 | K67: 19.41 | L67: 439.05 | M67: 367.46 | N67: 419.64 | O67: 348.05 | P67: 71.59 | Q67: 17.060 | R67: =I67-Q67 -> 1.740 | S67: 98.260
A68: La-0-S | B68: =C68/100 -> 0.13 | C68: 13 | D68: 6.27 | E68: 10 | F68: 14.4 | G68: 8.13 | H68: =E68-G68 -> 1.87 | I68: =(1-(G68/E68))*100 -> 18.70 | J68: =100-I68 -> 81.300 | K68: 19.28 | L68: 438.55 | M68: 367.01 | N68: 419.27 | O68: 347.73 | P68: =N68-O68 -> 71.54 | Q68: 17.063 | R68: 1.637 | S68: =100-R68 -> 98.363
A69: La-1-T | B69: 0.17 | C69: 17 | D69: 6.15 | E69: 10 | F69: 14.29 | G69: 8.14 | H69: 1.86 | I69: 18.60 | J69: 81.400 | K69: 19.08 | L69: 407.37 | M69: 339.93 | N69: 388.29 | O69: 320.85 | P69: 67.44 | Q69: =(1-(O69/N69))*100 -> 17.368 | R69: 1.232 | S69: 98.768
A70: La-1-S | B70: 0.13 | C70: 13 | D70: 6.16 | E70: 10 | F70: 14.32 | G70: 8.16 | H70: 1.84 | I70: 18.40 | J70: 81.600 | K70: 19.27 | L70: 490.26 | M70: 409.69 | N70: 470.99 | O70: 390.42 | P70: 80.57 | Q70: 17.107 | R70: 1.293 | S70: 98.707
A71: Ko-0-T | B71: 0.17 | C71: 17 | D71: 5.23 | E71: 10.01 | F71: 13.18 | G71: 7.95 | H71: 2.06 | I71: 20.58 | J71: 79.421 | K71: 19.23 | L71: 575.12 | M71: 468.92 | N71: 555.89 | O71: 449.69 | P71: 106.2 | Q71: 19.104 | R71: 1.475 | S71: 98.525
A72: Ko-0-S | B72: 0.13 | C72: 13 | D72: 6.03 | E72: 10 | F72: 14.18 | G72: 8.15 | H72: 1.85 | I72: 18.50 | J72: 81.500 | K72: 19.36 | L72: 531.28 | M72: 441.07 | N72: =L72-K72 -> 511.92 | O72: 421.71 | P72: 90.21 | Q72: 17.622 | R72: 0.878 | S72: 99.122
A73: Ko-1-T | B73: 0.17 | C73: 17 | D73: 6.21 | E73: 10.01 | F73: 14.14 | G73: 7.93 | H73: 2.08 | I73: 20.78 | J73: 79.221 | K73: 19.32 | L73: 531.81 | M73: 430.45 | N73: 512.49 | O73: 411.13 | P73: 101.36 | Q73: 19.778 | R73: 1.001 | S73: 98.999
A74: Ko-1-S | B74: 0.13 | C74: 13 | D74: 6.04 | E74: 10 | F74: 14.13 | G74: 8.09 | H74: 1.91 | I74: 19.10 | J74: 80.900 | K74: 19.37 | L74: 513.73 | M74: 424.01 | N74: 494.36 | O74: 404.64 | P74: 89.72 | Q74: 18.149 | R74: 0.951 | S74: 99.049
A75: Pa-0-T | B75: 0.17 | C75: 17 | D75: 6.82 | E75: 10 | F75: 14.91 | G75: 8.09 | H75: 1.91 | I75: 19.10 | J75: 80.900 | K75: 18.87 | L75: 495.42 | M75: 420.24 | N75: 476.55 | O75: 401.37 | P75: 75.18 | Q75: 15.776 | R75: 3.324 | S75: 96.676
A76: Pa-0-S | B76: 0.13 | C76: 13 | D76: 6.58 | E76: 10 | F76: 14.78 | G76: 8.2 | H76: 1.80 | I76: 18.00 | J76: 82.000 | K76: 18.85 | L76: 492.89 | M76: 424.48 | N76: 474.04 | O76: 405.63 | P76: 68.41 | Q76: 14.431 | R76: 3.569 | S76: 96.431
A77: Pa-1-T | B77: 0.17 | C77: 17 | D77: 6.16 | E77: 10.01 | F77: 14.17 | G77: 8.01 | H77: 2.00 | I77: 19.98 | J77: 80.020 | K77: 19.06 | L77: 475.16 | M77: 402.86 | N77: 456.1 | O77: 383.8 | P77: 72.3 | Q77: 15.852 | R77: 4.128 | S77: 95.872
A78: Pa-1-S | B78: 0.13 | C78: 13 | D78: 6.52 | E78: 10.01 | F78: 14.6 | G78: 8.08 | H78: 1.93 | I78: 19.28 | J78: 80.719 | K78: 19.17 | L78: 511.51 | M78: 435.78 | N78: 492.34 | O78: 416.61 | P78: 75.73 | Q78: 15.382 | R78: 3.899 | S78: 96.101

Sheet CALC mass (hidden)
B1: 105 Celsius | I1: air-dry 30 Celsius
A2: Sample | B2: crucible (g) | C2: fresh (g) | D2: dry (g) | E2: NO crucible dry (g) | F2: water (g) | G2: water (%) | H2: DM% | I2: tray (g) | J2: fresh (g) | K2: air dry (g) | L2: NO tray fresh (g) | M2: No tray air dry (g) | N2: evaporated water (g) | O2: evaporated water (%) | P2: water left in air-dry soil (%) | Q2: air dry soil DM (%)
A3: Pu-0-T | B3: 6.27 | C3: 10.01 | D3: 15.38 | E3: =D3-B3 -> 9.11 | F3: =C3-E3 -> 0.90 | G3: =(1-(E3/C3))*100 -> 9.0 | H3: =100-G3 -> 91.01 | I3: 19.41 | J3: 361.3 | K3: 337.9 | L3: =J3-I3 -> 341.89 | M3: =K3-I3 -> 318.49 | N3: =L3-M3 -> 23.4 | O3: =(1-(M3/L3))*100 -> 6.8 | P3: =G3-O3 -> 2.147 | Q3: =100-P3 -> 97.853 | U3: g water | W3: soil
A4: Pu-0-S | B4: 6.17 | C4: =T12 -> 11.46 | D4: 15.92 | E4: 9.75 | F4: =C4-E4 -> 1.71 | G4: =(1-(E4/C4))*100 -> 15.0 | H4: =100-G4 -> 85.04 | I4: 19.28 | J4: 348.62 | K4: 306.54 | L4: 329.34 | M4: 287.26 | N4: =L4-M4 -> 42.08 | O4: =(1-(M4/L4))*100 -> 12.8 | P4: =G4-O4 -> 2.181 | Q4: =100-P4 -> 97.819 | S4: fresh | T4: 10 | U4: =(T4*O4)/100 -> 1.278 | V4: 30c | W4: =T4-U4 -> 8.722
A5: Ki-1-T | B5: 6.82 | C5: 10.01 | D5: 15.86 | E5: 9.04 | F5: 0.97 | G5: 9.7 | H5: 90.31 | I5: 19.96 | J5: 376.8 | K5: 347.54 | L5: 356.84 | M5: 327.58 | N5: 29.26 | O5: =(1-(M5/L5))*100 -> 8.2 | P5: 1.491 | Q5: 98.509 | S5: airdry | T5: 10 | U5: 0.25 | V5: 105c | W5: =T5-U5 -> 9.75
A6: Ki-1-S | B6: 6.73 | C6: 10 | D6: 15.96 | E6: 9.23 | F6: =C6-E6 -> 0.77 | G6: 7.7 | H6: 92.30 | I6: 19.98 | J6: =A22 -> 435.50 | K6: 407.63 | L6: =J6-I6 -> 415.52 | M6: =K6-I6 -> 387.65 | N6: =L6-M6 -> 27.87 | O6: 6.7 | P6: 0.992 | Q6: 99.008 | T6: 8.722 | U6: =(T6*U5)/T5 -> 0.218 | V6: 105c
A7: Ni-0-T | B7: 6.21 | C7: 10.02 | D7: 12.83 | E7: 6.62 | F7: 3.40 | G7: 33.9 | H7: 66.07 | I7: 19.27 | J7: =H29 -> 397.06 | K7: 275.56 | L7: 377.79 | M7: 256.29 | N7: 121.50 | O7: 32.2 | P7: 1.771 | Q7: 98.229
A8: Ni-1-T | B8: 6.53 | C8: 10 | D8: 12.8 | E8: 6.27 | F8: 3.73 | G8: 37.3 | H8: 62.70 | I8: 17.81 | J8: =H22 -> 447.48 | K8: 296.68 | L8: 429.67 | M8: =K8-I8 -> 278.87 | N8: 150.80 | O8: 35.1 | P8: =G8-O8 -> 2.203 | Q8: 97.797 | T8: fresh | U8: water
T9: 10 | U9: =U4+U6 -> 1.496 | V9: 105c
A10: air-dry soil dried at 105C
A11: Ki-1-S | B11: 6.52 | C11: 10 | D11: 16.39 | E11: =D11-B11 -> 9.87 | F11: =C11-E11 -> 0.13 | G11: =(1-(E11/C11))*100 -> 1.3 | H11: =100-G11 -> 98.70 | T11: fresh | U11: dry soil
A12: Ni-0-T | B12: 6.62 | C12: 10.01 | D12: 16.28 | E12: =D12-B12 -> 9.66 | F12: 0.35 | G12: =(1-(E12/C12))*100 -> 3.5 | H12: 96.50 | T12: =(T13*U12)/U13 -> 11.46 | U12: 9.75 | V12: 105c
A13: Ni-1-T | B13: 5.83 | C13: 10 | D13: 15.47 | E13: 9.64 | F13: 0.36 | G13: 3.6 | H13: 96.40 | T13: 10 | U13: =T9-U9 -> 8.504 | V13: 105c
A18: soil g | B18: type soil | C18: dried to | D18: g water | E18: soil g | F18: water (%) | H18: soil g | I18: type soil | J18: dried to | K18: g water | L18: soil g | M18: water (%)
A19: 10 | B19: fresh | C19: 105c | D19: 0.77 | E19: =A19-D19 -> 9.23 | F19: =(1-(E19/A19))*100 -> 7.7 | H19: 10 | I19: fresh | J19: 105c | K19: =F8 -> 3.730 | L19: =H19-K19 -> 6.270 | M19: =(1-(L19/H19))*100 -> 37.3
A20: 10 | B20: airdry | C20: 105c | D20: =A20-E20 -> 0.13 | E20: 9.87 | F20: =(1-(E20/A20))*100 -> 1.3 | H20: 10 | I20: airdry | J20: 105c | K20: =H20-L20 -> 0.36 | L20: =E13 -> 9.64 | M20: =(1-(L20/H20))*100 -> 3.6
A21: 10 | B21: fresh | C21: 30c | D21: =D19-D20 -> 0.64 | E21: =A21-D21 -> 9.36 | F21: =(1-(E21/A21))*100 -> 6.4 | H21: 10 | I21: fresh | J21: 30c | K21: =K19-K20 -> 3.370 | L21: =H21-K21 -> 6.630 | M21: =(1-(L21/H21))*100 -> 33.7
A22: =(A21*E22)/E21 -> 435.50 | B22: fresh | C22: 30c | D22: =A22-E22 -> 27.87 | E22: 407.63 | F22: =(1-(E22/A22))*100 -> 6.4 | H22: =(H21*L22)/L21 -> 447.48 | I22: fresh | J22: 30c | K22: =H22-L22 -> 150.801 | L22: 296.68 | M22: =(1-(L22/H22))*100 -> 33.7
H25: soil g | I25: type soil | J25: dried to | K25: g water | L25: soil g | M25: water (%)
H26: 10.02 | I26: fresh | J26: 105c | K26: =F7 -> 3.400 | L26: =H26-K26 -> 6.620 | M26: =(1-(L26/H26))*100 -> 33.93
H27: 10 | I27: airdry | J27: 105c | K27: =H27-L27 -> 0.34 | L27: =E12 -> 9.66 | M27: =(1-(L27/H27))*100 -> 3.4
H28: 10 | I28: fresh | J28: 30c | K28: =K26-K27 -> 3.060 | L28: =H28-K28 -> 6.940 | M28: =(1-(L28/H28))*100 -> 30.6
H29: =(H28*L29)/L28 -> 397.06 | I29: fresh | J29: 30c | K29: =H29-L29 -> 121.501 | L29: 275.56 | M29: =(1-(L29/H29))*100 -> 30.6

Sheet BD
J1: 0.75 | N1: =PI()*(0.8/2)^2*0.5 -> 0.2513274123 | O1: =N1*3 -> 0.7539822369
D2: tray included | F2: NO tray
A3: Field | B3: treat/cont | C3: tray (g) | D3: fresh (g) | E3: dry (g) | F3: fresh (g) | G3: 105 C dry (g) | H3: Water (%) | I3: Water (g) | J3: Water (g) / 10g soil | K3: BD (kg/l) | L3: BD (kg/m3) | M3: Porosity (%) | N3: Moisture (vol-%) | R3: =TC_TN!O1 -> TC % (kg/kg) | S3: BD calculated (kg/m3) | T3: BD calculated (kg/l)
A4: Pu-0 | B4: 0 | C4: =Trays!B14 -> 19.11 | D4: 835.18 | E4: 768.32 | F4: =D4-C4 -> 816.07 | G4: =E4-C4 -> 749.21 | H4: =((I4*1)/F4)*100 -> 8.19 | I4: =F4-G4 -> 66.86 | J4: =(10*I4)/F4 -> 0.82 | K4: =G4/1000/$J$1 -> 0.999 | L4: =K4*1000 -> 998.947 | M4: =1-K4/2.65 -> 62.30% | N4: =I4/1000/$J$1 -> 8.91% | Q4: Pu-0-T | R4: 2.90% | S4: =(1.52-(0.28*LN(R4*100)))*1000 -> 1221.880994 | T4: =1.52-0.28*LN(R4*100) -> 1.221880994
A5: Pu-1 | B5: 1 | C5: =Trays!B15 -> 19.24 | D5: 817.52 | E5: 752.38 | F5: 798.28 | G5: 733.14 | H5: 8.16 | I5: 65.14 | J5: =(10*I5)/F5 -> 0.82 | K5: =G5/1000/$J$1 -> 0.978 | L5: =K5*1000 -> 977.520 | M5: =1-K5/2.65 -> 63.11% | N5: =I5/1000/$J$1 -> 8.69% | Q5: Pu-0-S | R5: 2.58% | S5: =(1.52-(0.28*LN(R5*100)))*1000 -> 1254.618968 | T5: =1.52-0.28*LN(R5*100) -> 1.254618968
A6: Mo-0 | B6: 0 | C6: =Trays!B16 -> 19.38 | D6: 998.78 | E6: 845.84 | F6: 979.4 | G6: 826.46 | H6: 15.62 | I6: 152.94 | J6: 1.56 | K6: 1.102 | L6: 1101.947 | M6: 58.42% | N6: 20.39% | Q6: Pu-1-T | R6: 3.52% | S6: 1167.630923 | T6: 1.167630923
A7: Mo-1 | B7: 1 | C7: =Trays!B17 -> 18.85 | D7: 976.16 | E7: 837.58 | F7: 957.31 | G7: 818.73 | H7: 14.48 | I7: 138.58 | J7: 1.45 | K7: 1.092 | L7: 1091.640 | M7: 58.81% | N7: 18.48% | Q7: Pu-1-S | R7: 3.12% | S7: 1201.406759 | T7: 1.201406759
A8: Si-0 | B8: 0 | C8: =Trays!B18 -> 18.87 | D8: 843.1 | E8: 722.28 | F8: 824.23 | G8: 703.41 | H8: 14.66 | I8: 120.82 | J8: 1.47 | K8: 0.938 | L8: 937.880 | M8: 64.61% | N8: 16.11% | Q8: Mo-0-T | R8: 2.13% | S8: 1308.285846 | T8: 1.308285846
A9: Si-1 | B9: 1 | C9: =Trays!B19 -> 18.85 | D9: 850.52 | E9: 717.92 | F9: 831.67 | G9: 699.07 | H9: 15.94 | I9: 132.6 | J9: 1.59 | K9: 0.932 | L9: 932.093 | M9: 64.83% | N9: 17.68% | Q9: Mo-0-S | R9: 1.90% | S9: 1340.280912 | T9: 1.340280912
A10: Mi-0 | B10: 0 | C10: =Trays!B22 -> 19.27 | D10: 903.82 | E10: 779.94 | F10: 884.55 | G10: 760.67 | H10: 14.00 | I10: 123.88 | J10: 1.40 | K10: 1.014 | L10: 1014.227 | M10: 61.73% | N10: 16.52% | Q10: Mo-1-T | R10: 2.22% | S10: 1296.697985 | T10: 1.296697985
A11: Mi-1 | B11: 1 | C11: =Trays!B23 -> 17.81 | D11: 852.88 | E11: 720.56 | F11: 835.07 | G11: 702.75 | H11: 15.85 | I11: 132.32 | J11: 1.58 | K11: 0.937 | L11: 937.000 | M11: 64.64% | N11: 17.64% | Q11: Mo-1-S | R11: 2.04% | S11: 1320.374054 | T11: 1.320374054
A12: Li-0 | B12: 0 | C12: =Trays!B20 -> 19.06 | D12: 759.64 | E12: 679.9 | F12: 740.58 | G12: 660.84 | H12: 10.77 | I12: 79.74 | J12: 1.08 | K12: 0.881 | L12: 881.120 | M12: 66.75% | N12: 10.63% | Q12: Si-0-T | R12: 2.63% | S12: 1249.244523 | T12: 1.249244523
A13: Li-1 | B13: 1 | C13: =Trays!B21 -> 19.17 | D13: 797.04 | E13: 695.88 | F13: 777.87 | G13: 676.71 | H13: 13.00 | I13: 101.16 | J13: 1.30 | K13: 0.902 | L13: 902.280 | M13: 65.95% | N13: 13.49% | Q13: Si-0-S | R13: 2.22% | S13: 1296.697985 | T13: 1.296697985
A14: Ai-0 | B14: 0 | C14: 19.98 | D14: 1192.5 | E14: 1034.48 | F14: 1172.52 | G14: 1014.5 | H14: 13.48 | I14: 158.02 | J14: 1.35 | K14: 1.353 | L14: 1352.667 | M14: 48.96% | N14: 21.07% | Q14: Si-1-T | R14: 2.71% | S14: 1240.854382 | T14: 1.240854382
A15: Ai-1 | B15: 1 | C15: 19.1 | D15: 1205.5 | E15: 1010.76 | F15: 1186.4 | G15: 991.66 | H15: 16.41 | I15: 194.74 | J15: 1.64 | K15: 1.322 | L15: 1322.213 | M15: 50.11% | N15: 25.97% | Q15: Si-1-S | R15: 2.05% | S15: 1319.004858 | T15: 1.319004858
A16: Pi-0 | B16: 0 | C16: 19.11 | D16: 942 | E16: 763 | F16: 922.89 | G16: 743.89 | H16: 19.40 | I16: 179 | J16: 1.94 | K16: 0.992 | L16: 991.853 | M16: 62.57% | N16: 23.87% | Q16: Mi-0-T | R16: 4.02% | S16: 1130.441067 | T16: 1.130441067
A17: Pi-1 | B17: 1 | C17: 19.24 | D17: 855.32 | E17: 679.32 | F17: 836.08 | G17: 660.08 | H17: 21.05 | I17: 176 | J17: 2.11 | K17: 0.880 | L17: 880.107 | M17: 66.79% | N17: 23.47% | Q17: Mi-0-S | R17: 2.21% | S17: 1297.962096 | T17: 1.297962096
A18: Ja-0 | B18: 0 | C18: 19.88 | D18: 718.98 | E18: 570.75 | F18: =D18-C18 -> 699.1 | G18: =E18-C18 -> 550.87 | H18: =((I18*1)/F18)*100 -> 21.20 | I18: =F18-G18 -> 148.23 | J18: =(10*I18)/F18 -> 2.12 | K18: =G18/1000/$J$1 -> 0.734 | L18: 734.493 | M18: =1-K18/2.65 -> 72.28% | N18: =I18/1000/$J$1 -> 19.76% | Q18: Mi-1-T | R18: 3.75% | S18: 1149.908365 | T18: 1.149908365
A19: Ja-1 | B19: 1 | C19: 19.87 | D19: 961.52 | E19: 766.74 | F19: =D19-C19 -> 941.65 | G19: =E19-C19 -> 746.87 | H19: =((I19*1)/F19)*100 -> 20.68 | I19: =F19-G19 -> 194.78 | J19: =(10*I19)/F19 -> 2.07 | K19: =G19/1000/$J$1 -> 0.996 | L19: 995.827 | M19: =1-K19/2.65 -> 62.42% | N19: =I19/1000/$J$1 -> 25.97% | Q19: Mi-1-S | R19: 2.15% | S19: 1305.669004 | T19: 1.305669004
A20: Mu-0 | B20: 0 | C20: 19.38 | D20: 1004.06 | E20: 807.5 | F20: 984.68 | G20: 788.12 | H20: 19.96 | I20: 196.56 | J20: 2.00 | K20: 1.051 | L20: 1050.827 | M20: 60.35% | N20: 26.21% | Q20: Li-0-T | R20: 3.07% | S20: 1205.930283 | T20: 1.205930283
A21: Mu-1 | B21: 1 | C21: 18.85 | D21: 990.12 | E21: 787.8 | F21: 971.27 | G21: 768.95 | H21: 20.83 | I21: 202.32 | J21: 2.08 | K21: 1.025 | L21: 1025.267 | M21: 61.31% | N21: 26.98% | Q21: Li-0-S | R21: 1.85% | S21: 1347.748021 | T21: 1.347748021
A22: Kp-0 | B22: 0 | C22: 19.7 | D22: 770.34 | E22: 647.86 | F22: =D22-C22 -> 750.64 | G22: =E22-C22 -> 628.16 | H22: =((I22*1)/F22)*100 -> 16.32 | I22: =F22-G22 -> 122.48 | J22: =(10*I22)/F22 -> 1.63 | K22: =G22/1000/$J$1 -> 0.838 | L22: 837.547 | M22: =1-K22/2.65 -> 68.39% | N22: =I22/1000/$J$1 -> 16.33% | Q22: Li-1-T | R22: 3.86% | S22: 1141.813189 | T22: 1.141813189
A23: Kp-1 | B23: 1 | C23: 19.67 | D23: 747.58 | E23: 654.96 | F23: =D23-C23 -> 727.91 | G23: =E23-C23 -> 635.29 | H23: =((I23*1)/F23)*100 -> 12.72 | I23: =F23-G23 -> 92.62 | J23: =(10*I23)/F23 -> 1.27 | K23: =G23/1000/$J$1 -> 0.847 | L23: 847.053 | M23: =1-K23/2.65 -> 68.04% | N23: =I23/1000/$J$1 -> 12.35% | Q23: Li-1-S | R23: 2.28% | S23: 1289.230876 | T23: 1.289230876
A24: Ki-0 | B24: 0 | C24: 18.87 | D24: 888.7 | E24: 788.04 | F24: =D24-C24 -> 869.83 | G24: =E24-C24 -> 769.17 | H24: =((I24*1)/F24)*100 -> 11.57 | I24: =F24-G24 -> 100.66 | J24: =(10*I24)/F24 -> 1.16 | K24: =G24/1000/$J$1 -> 1.026 | L24: 1025.560 | M24: =1-K24/2.65 -> 61.30% | N24: =I24/1000/$J$1 -> 13.42% | Q24: Ai-0-T | R24: 1.47% | S24: 1412.126528 | T24: 1.412126528
A25: Ki-1 | B25: 1 | C25: 18.85 | D25: 866.48 | E25: 755 | F25: =D25-C25 -> 847.63 | G25: =E25-C25 -> 736.15 | H25: =((I25*1)/F25)*100 -> 13.15 | I25: =F25-G25 -> 111.48 | J25: =(10*I25)/F25 -> 1.32 | K25: =G25/1000/$J$1 -> 0.982 | L25: 981.533 | M25: =1-K25/2.65 -> 62.96% | N25: =I25/1000/$J$1 -> 14.86% | Q25: Ai-0-S | R25: 1.20% | S25: 1468.949964 | T25: 1.468949964
A26: Na-0 | B26: 0 | C26: 19.41 | D26: 1018.36 | E26: 771.78 | F26: 998.95 | G26: 752.37 | H26: =((I26*1)/F26)*100 -> 24.68 | I26: =F26-G26 -> 246.58 | J26: =(10*I26)/F26 -> 2.47 | K26: 1.003 | L26: 1003.160 | M26: 62.14% | N26: 32.88% | Q26: Ai-1-T | R26: 1.87% | S26: 1344.737239 | T26: 1.344737239
A27: Na-1 | B27: 1 | C27: 19.28 | D27: 942.38 | E27: 714.08 | F27: 923.1 | G27: 694.8 | H27: =((I27*1)/F27)*100 -> 24.73 | I27: 228.3 | J27: 2.47 | K27: 0.926 | L27: 926.400 | M27: 65.04% | N27: 30.44% | Q27: Ai-1-S | R27: 1.78% | S27: 1358.548258 | T27: 1.358548258
A28: Ik-0 | B28: 0 | C28: 19.08 | D28: 845.38 | E28: 651.82 | F28: 826.3 | G28: 632.74 | H28: 23.42 | I28: 193.56 | J28: 2.34 | K28: 0.844 | L28: 843.653 | M28: 68.16% | N28: 25.81% | Q28: Pi-0-T | R28: 3.38% | S28: 1178.994801 | T28: 1.178994801
A29: Ik-1 | B29: 1 | C29: 19.27 | D29: 967.12 | E29: 723.54 | F29: 947.85 | G29: 704.27 | H29: 25.70 | I29: 243.58 | J29: 2.57 | K29: 0.939 | L29: 939.027 | M29: 64.57% | N29: 32.48% | Q29: Pi-0-S | R29: 2.59% | S29: 1253.535795 | T29: 1.253535795
A30: Ne-0 | B30: 0 | C30: 19.23 | D30: 888.22 | E30: 726.76 | F30: 868.99 | G30: 707.53 | H30: 18.58 | I30: 161.46 | J30: 1.86 | K30: 0.943 | L30: 943.373 | M30: 64.40% | N30: 21.53% | Q30: Pi-1-T | R30: 3.54% | S30: 1166.044516 | T30: 1.166044516
A31: Ne-1 | B31: 1 | C31: 19.36 | D31: 896.26 | E31: 720.4 | F31: 876.9 | G31: 701.04 | H31: 20.05 | I31: 175.86 | J31: 2.01 | K31: 0.935 | L31: 934.720 | M31: 64.73% | N31: 23.45% | Q31: Pi-1-S | R31: 2.69% | S31: 1242.928466 | T31: 1.242928466
A32: Ae-0 | B32: 0 | C32: 19.32 | D32: 878.68 | E32: 671.26 | F32: 859.36 | G32: 651.94 | H32: 24.14 | I32: 207.42 | J32: 2.41 | K32: 0.869 | L32: 869.253 | M32: 67.20% | N32: 27.66% | Q32: Ja-0-T | R32: 3.01% | S32: 1211.456778 | T32: 1.211456778
A33: Ae-1 | B33: 1 | C33: 19.37 | D33: 861.48 | E33: 661.6 | F33: 842.11 | G33: 642.23 | H33: 23.74 | I33: 199.88 | J33: 2.37 | K33: 0.856 | L33: 856.307 | M33: 67.69% | N33: 26.65% | Q33: Ja-1-T | R33: 2.75% | S33: 1236.751745 | T33: 1.236751745
A34: Jn-0 | B34: 0 | C34: 19.36 | D34: 1052.24 | E34: 786.7 | F34: 1032.88 | G34: 767.34 | H34: 25.71 | I34: 265.54 | J34: 2.57 | K34: 1.023 | L34: 1023.120 | M34: 61.39% | N34: 35.41% | Q34: Mu-0-T | R34: 4.47% | S34: 1100.731246 | T34: 1.100731246
A35: Jn-1 | B35: 1 | C35: 19.13 | D35: 923.22 | E35: 697.38 | F35: 904.09 | G35: 678.25 | H35: 24.98 | I35: 225.84 | J35: 2.50 | K35: 0.904 | L35: 904.333 | M35: 65.87% | N35: 30.11% | Q35: Mu-0-S | R35: 3.31% | S35: 1184.854507 | T35: 1.184854507
A36: Ni-0 | B36: 0 | C36: 19.98 | D36: 1053.58 | E36: 720.54 | F36: 1033.6 | G36: 700.56 | H36: 32.22 | I36: 333.04 | J36: 3.22 | K36: 0.934 | L36: 934.080 | M36: 64.75% | N36: 44.41% | Q36: Mu-1-T | R36: 4.59% | S36: 1093.313593 | T36: 1.093313593
A37: Ni-1 | B37: 1 | C37: 19.1 | D37: 849.36 | E37: 549.72 | F37: 830.26 | G37: 530.62 | H37: 36.09 | I37: 299.64 | J37: 3.61 | K37: 0.707 | L37: 707.493 | M37: 73.30% | N37: 39.95% | Q37: Mu-1-S | R37: 3.40% | S37: 1177.342879 | T37: 1.177342879
A38: La-0 | B38: 0 | C38: 19.11 | D38: 1122.48 | E38: 897.28 | F38: 1103.37 | G38: 878.17 | H38: 20.41 | I38: 225.2 | J38: 2.04 | K38: 1.171 | L38: 1170.893 | M38: 55.82% | N38: 30.03% | Q38: Kp-0-T | R38: 2.88% | S38: 1223.818718 | T38: 1.223818718
A39: La-1 | B39: 1 | C39: 19.24 | D39: 1116.42 | E39: 894.74 | F39: 1097.18 | G39: 875.5 | H39: 20.20 | I39: 221.68 | J39: 2.02 | K39: 1.167 | L39: 1167.333 | M39: 55.95% | N39: 29.56% | Q39: Kp-0-S | R39: 2.09% | S39: 1313.594062 | T39: 1.313594062
A40: Ko-0 | B40: 0 | C40: 19.38 | D40: 1156.98 | E40: 885.96 | F40: 1137.6 | G40: 866.58 | H40: 23.82 | I40: 271.02 | J40: 2.38 | K40: 1.155 | L40: 1155.440 | M40: 56.40% | N40: 36.14% | Q40: Kp-1-T | R40: 3.11% | S40: 1202.305637 | T40: 1.202305637
A41: Ko-1 | B41: 1 | C41: 18.85 | D41: 1148.84 | E41: 891.34 | F41: 1129.99 | G41: 872.49 | H41: 22.79 | I41: 257.5 | J41: 2.28 | K41: 1.163 | L41: 1163.320 | M41: 56.10% | N41: 34.33% | Q41: Kp-1-S | R41: 2.28% | S41: 1289.230876 | T41: 1.289230876
A42: Pa-0 | B42: 0 | C42: 18.87 | D42: 959.42 | E42: 774.06 | F42: 940.55 | G42: 755.19 | H42: 19.71 | I42: 185.36 | J42: 1.97 | K42: 1.007 | L42: 1006.920 | M42: 62.00% | N42: 24.71% | Q42: Ki-0-T | R42: 1.79% | S42: 1356.979626 | T42: 1.356979626
A43: Pa-1 | B43: 1 | C43: 18.85 | D43: 952.04 | E43: 756.94 | F43: 933.19 | G43: 738.09 | H43: 20.91 | I43: 195.1 | J43: 2.09 | K43: 0.984 | L43: 984.120 | M43: 62.86% | N43: 26.01% | Q43: Ki-0-S | R43: 1.18% | S43: 1473.655957 | T43: 1.473655957
Q44: Ki-1-T | R44: 2.22% | S44: 1296.697985 | T44: 1.296697985
Q45: Ki-1-S | R45: 1.57% | S45: 1393.698827 | T45: 1.393698827
Q46: Na-0-T | R46: 3.89% | S46: 1139.645436 | T46: 1.139645436
Q47: Na-0-S | R47: 3.05% | S47: 1207.760355 | T47: 1.207760355
Q48: Na-1-T | R48: 4.05% | S48: 1128.359273 | T48: 1.128359273
Q49: Na-1-S | R49: 3.90% | S49: 1138.926565 | T49: 1.138926565
Q50: Jn-0-T | R50: 3.39% | S50: 1178.167622 | T50: 1.178167622
Q51: Jn-0-S | R51: 2.35% | S51: 1280.763708 | T51: 1.280763708
Q52: Jn-1-T | R52: 3.16% | S52: 1197.839832 | T52: 1.197839832
Q53: Jn-1-S | R53: 2.32% | S53: 1284.361188 | T53: 1.284361188
Q54: La-0-T | R54: 2.37% | S54: 1278.390813 | T54: 1.278390813
Q55: La-0-S | R55: 1.96% | S55: 1331.575547 | T55: 1.331575547
Q56: La-1-T | R56: 2.01% | S56: 1324.522278 | T56: 1.324522278
Q57: La-1-S | R57: 1.58% | S57: 1391.921043 | T57: 1.391921043
Q58: Ne-0-T | R58: 4.60% | S58: 1092.704235 | T58: 1.092704235
Q59: Ne-0-S | R59: 3.68% | S59: 1155.184429 | T59: 1.155184429
Q60: Ne-1-S | R60: 3.93% | S60: 1136.780961 | T60: 1.136780961
Q61: Ae-0-S | R61: 5.53% | S61: 1041.147412 | T61: 1.041147412
Q62: Ae-1-S | R62: 4.61% | S62: 1092.0962 | T62: 1.0920962
Q63: Ko-0-T | R63: 1.33% | S63: 1440.149896 | T63: 1.440149896
Q64: Ko-0-S | R64: 0.93% | S64: 1539.71829 | T64: 1.53971829
Q65: Ko-1-T | R65: 1.36% | S65: 1433.904284 | T65: 1.433904284
Q66: Ko-1-S | R66: 1.02% | S66: 1514.455264 | T66: 1.514455264
Q67: Pa-0-T | R67: 3.41% | S67: 1176.520558 | T67: 1.176520558
Q68: Pa-0-S | R68: 2.85% | S68: 1226.750682 | T68: 1.226750682
Q69: Pa-1-T | R69: 3.41% | S69: =(1.52-(0.28*LN(R69*100)))*1000 -> 1176.520558 | T69: =1.52-0.28*LN(R69*100) -> 1.176520558
Q70: Pa-1-S | R70: 2.74% | S70: 1237.771782 | T70: 1.237771782
Q71: Ni-0-T | R71: 6.62% | S71: 990.7732964 | T71: 0.9907732964
Q72: Ni-1-T | R72: 7.37% | S72: 960.7230423 | T72: 0.9607230423
Q73: Ae-1-T | R73: 5.94% | S73: 1021.121443 | T73: 1.021121443
Q74: Ae-0-T | R74: 7.15% | S74: 969.2085401 | T74: 0.9692085401
Q75: Ne-1-T | R75: 4.82% | S75: 1079.6233 | T75: 1.0796233
Q76: Ik-0-T | R76: 7.42% | S76: 958.829864 | T76: 0.958829864
Q77: Ik-0-S | R77: 6.20% | S77: 1009.126198 | T77: 1.009126198
Q78: Ik-1-T | R78: 5.50% | S78: 1042.670534 | T78: 1.042670534
Q79: Ik-1-S | R79: 4.68% | S79: 1087.876529 | T79: 1.087876529

Sheet pH_EC
A1: Field | B1: EC (uS/cm2) | C1: pH
A2: Pu-0-T | B2: 71.3 | C2: 7.32
A3: Pu-0-S | B3: 57.2 | C3: 7.05
A4: Pu-1-T | B4: 79.2 | C4: 7.4
A5: Pu-1-S | B5: 67.2 | C5: 7.9
A6: Mo-0-T | B6: 81.4 | C6: 6.22
A7: Mo-0-S | B7: 60.2 | C7: 6.47
A8: Mo-1-T | B8: 41.07 | C8: 6.33
A9: Mo-1-S | B9: 39.6 | C9: 6.54
A10: Si-0-T | B10: 78.9 | C10: 6.56
A11: Si-0-S | B11: 46 | C11: 6.57
A12: Si-1-T | B12: 81.3 | C12: 6.52
A13: Si-1-S | B13: 46 | C13: 6.34
A14: Mi-0-T | B14: 70.4 | C14: 6.53
A15: Mi-0-S | B15: 48.3 | C15: 6.7
A16: Mi-1-T | B16: 69.2 | C16: 6.63
A17: Mi-1-S | B17: 63 | C17: 6.71
A18: Li-0-T | B18: 49.6 | C18: 6.24
A19: Li-0-S | B19: 38.84 | C19: 6.55
A20: Li-1-T | B20: 61.8 | C20: 6.66
A21: Li-1-S | B21: 49.8 | C21: 6.93
A22: =Mass!A23 -> Ai-0-T | B22: 66.3 | C22: 7.01
A23: =Mass!A24 -> Ai-0-S | B23: 66.7 | C23: 7.2
A24: =Mass!A25 -> Ai-1-T | B24: 68.9 | C24: 7.15
A25: =Mass!A26 -> Ai-1-S | B25: 68.9 | C25: 7.24
A26: =Mass!A27 -> Pi-0-T | B26: 83.2 | C26: 7.35
A27: =Mass!A28 -> Pi-0-S | B27: 57.5 | C27: 7
A28: =Mass!A29 -> Pi-1-T | B28: 100.3 | C28: 7.53
A29: =Mass!A30 -> Pi-1-S | B29: 64.8 | C29: 7.27
A30: =Mass!A31 -> Ja-0-T | B30: 65.9 | C30: 6.8
A31: =Mass!A32 -> Ja-1-T | B31: 56.3 | C31: 6.69
A32: =Mass!A33 -> Mu-0-T | B32: 72.6 | C32: 6.15
A33: =Mass!A34 -> Mu-0-S | B33: 48.8 | C33: 6.31
A34: =Mass!A35 -> Mu-1-T | B34: 73.6 | C34: 6.39
A35: =Mass!A36 -> Mu-1-S | B35: 56.7 | C35: 6.59
A36: =Mass!A37 -> Kp-0-T | B36: 76.3 | C36: 6.96
A37: =Mass!A38 -> Kp-0-S | B37: 41.27 | C37: 6.56
A38: =Mass!A39 -> Kp-1-T | B38: 84.8 | C38: 7
A39: =Mass!A40 -> Kp-1-S | B39: 43.17 | C39: 6.55
A40: =Mass!A41 -> Ki-0-T | B40: 107.8 | C40: 6.73
A41: =Mass!A42 -> Ki-0-S | B41: 53.2 | C41: 7.06
A42: =Mass!A43 -> Ki-1-T | B42: 84.8 | C42: 7.16
A43: =Mass!A44 -> Ki-1-S | B43: 62.7 | C43: 7.5
A44: =Mass!A45 -> Na-0-T | B44: 76.8 | C44: 6.63
A45: =Mass!A46 -> Na-0-S | B45: 79.7 | C45: 6.38
A46: =Mass!A47 -> Na-1-T | B46: 78.4 | C46: 6.38
A47: =Mass!A48 -> Na-1-S | B47: 69.3 | C47: 6.09
A48: =Mass!A49 -> Ik-0-T | B48: 112.7 | C48: 6.01
A49: =Mass!A50 -> Ik-0-S | B49: 118 | C49: 5.96
A50: =Mass!A51 -> Ik-1-T | B50: 56.6 | C50: 6.24
A51: =Mass!A52 -> Ik-1-S | B51: 72.2 | C51: 6.06
A52: =Mass!A53 -> Ne-0-T | B52: 99 | C52: 7.03
A53: =Mass!A54 -> Ne-0-S | B53: 87.3 | C53: 6.6
A54: =Mass!A55 -> Ne-1-T | B54: 105.5 | C54: 6.99
A55: =Mass!A56 -> Ne-1-S | B55: 97.2 | C55: 6.37
A56: =Mass!A57 -> Ae-0-T | B56: 56.9 | C56: 6.29
A57: =Mass!A58 -> Ae-0-S | B57: 58.6 | C57: 5.9
A58: =Mass!A59 -> Ae-1-T | B58: 59.7 | C58: 6.31
A59: =Mass!A60 -> Ae-1-S | B59: 59.2 | C59: 6.07
A60: =Mass!A61 -> Jn-0-T | B60: 51.2 | C60: 6.3
A61: =Mass!A62 -> Jn-0-S | B61: 43.19 | C61: 6.45
A62: =Mass!A63 -> Jn-1-T | B62: 54.9 | C62: 6.35
A63: =Mass!A64 -> Jn-1-S | B63: 48 | C63: 6.55
A64: =Mass!A65 -> Ni-0-T | B64: 61.8 | C64: 6
A65: =Mass!A66 -> Ni-1-T | B65: 58.6 | C65: 6.01
A66: =Mass!A67 -> La-0-T | B66: 46.4 | C66: 6.46
A67: =Mass!A68 -> La-0-S | B67: 43.3 | C67: 6.31
A68: =Mass!A69 -> La-1-T | B68: 52.9 | C68: 6.39
A69: =Mass!A70 -> La-1-S | B69: 44.7 | C69: 6.38
A70: =Mass!A71 -> Ko-0-T | B70: 53.9 | C70: 6.51
A71: =Mass!A72 -> Ko-0-S | B71: 39.25 | C71: 6.52
A72: =Mass!A73 -> Ko-1-T | B72: 53.2 | C72: 6.37
A73: =Mass!A74 -> Ko-1-S | B73: 36.22 | C73: 6.38
A74: =Mass!A75 -> Pa-0-T | B74: 165.4 | C74: 7.6
A75: =Mass!A76 -> Pa-0-S | B75: 76.4 | C75: 7.17
A76: =Mass!A77 -> Pa-1-T | B76: 161.8 | C76: 7.45
A77: =Mass!A78 -> Pa-1-S | B77: 79.3 | C77: 7.08

Sheet Min_N (hidden)
A1: Field | D1: sampling depth (m) | E1: fresh soil (g) | F1: soil DM (g) | G1: water % | H1: =Mass!J2 -> DM% | I1: water (g) | J1: water (L) | K1: 2 M KCl (L) | L1: BD (kg/l) | M1: NO3 (mg N/L) | N1: NO3 (mg N/L) Corrected | O1: NO3 (mg N/g weighed soil) | P1: NO3 (mg N/10 g soil) | Q1: NO3 (mg N/Kg) | R1: NH4 (mg N/L) | S1: NH4 (mg N/L) Corrected | T1: NH4 (mg N/g weighed soil) | U1: NH4 (mg N/10 g soil) | V1: NH4 (mg N/Kg) | W1: NO3 (Kg N/ha) | X1: NH4 (Kg N/ha)
A2: BL1-06.07 | K2: 0.05 | M2: 0.05692 | N2: 0.07507444987 | R2: 0.02311 | S2: -0.002901032924
A3: BL2-06.07 | K3: 0.05 | M3: 0.07545 | N3: 0.09234922105 | R3: -0.00519 | S3: -0.02895771588
A4: Pu-0-T | B4: Pu-0 | C4: 0-T | D4: 0.17 | E4: 11 | F4: =E4*(H4/100) -> 10.01099 | G4: =Mass!I3 -> 8.99 | H4: =Mass!J3 -> 91.01 | I4: =(E4-F4) -> 0.989011 | J4: =I4/1000 -> 0.000989 | K4: =0.05+J4 -> 0.050989 | L4: =VLOOKUP($B4,BD!$A$2:$O$93,11,FALSE) -> 0.998947 | M4: 0.430 | N4: 0.4233107167 | O4: =N4*K4 -> 0.0216 | P4: =(10*O4)/F4 -> 0.0216 | Q4: =O4*100 -> 2.16 | R4: 0.409 | S4: 0.3520407085 | T4: =S4*K4 -> 0.0180 | U4: =(10*T4)/F4 -> 0.0179 | V4: =U4*100 -> 1.79 | W4: =((L4*1000)*D4*10000)*(Q4/1000000) -> 3.67 | X4: =((L4*1000)*D4*10000)*(V4/1000000) -> 3.04
A5: Pu-0-S | B5: Pu-0 | C5: 0-S | D5: 0.13 | E5: 11.01 | F5: =E5*(H5/100) -> 9.36316 | G5: =Mass!I4 -> 14.96 | H5: =Mass!J4 -> 85.04 | I5: =(E5-F5) -> 1.646836 | J5: =I5/1000 -> 0.001647 | K5: =0.05+J5 -> 0.051647 | L5: =VLOOKUP($B5,BD!$A$2:$O$93,11,FALSE) -> 0.998947 | M5: 0.445 | N5: 0.4364649003 | O5: =N5*K5 -> 0.0225 | P5: =(10*O5)/F5 -> 0.0241 | Q5: =P5*100 -> 2.41 | R5: 0.463 | S5: 0.4022757835 | T5: =S5*K5 -> 0.0208 | U5: =(10*T5)/F5 -> 0.0222 | V5: 2.22 | W5: =((L5*1000)*D5*10000)*(Q5/1000000) -> 3.13 | X5: =((L5*1000)*D5*10000)*(V5/1000000) -> 2.88
A6: Pu-1-T | B6: Pu-1 | C6: 1-T | D6: 0.17 | E6: 11.03 | F6: 9.85097 | G6: =Mass!I5 -> 10.69 | H6: =Mass!J5 -> 89.31 | I6: 1.179031 | J6: 0.001179 | K6: 0.051179 | L6: =VLOOKUP($B6,BD!$A$2:$O$93,11,FALSE) -> 0.977520 | M6: 0.713 | N6: 0.6869071306 | O6: 0.0352 | P6: 0.0357 | Q6: 3.57 | R6: 0.391 | S6: 0.3358174309 | T6: 0.0172 | U6: 0.0174 | V6: 1.74 | W6: 5.93 | X6: 2.90
A7: Pu-1-S | B7: Pu-1 | C7: 1-S | D7: 0.13 | E7: 11.03 | F7: 9.35511 | G7: =Mass!I6 -> 15.18 | H7: =Mass!J6 -> 84.82 | I7: 1.674885 | J7: 0.001675 | K7: 0.051675 | L7: =VLOOKUP($B7,BD!$A$2:$O$93,11,FALSE) -> 0.977520 | M7: 0.706 | N7: 0.680222829 | O7: 0.0352 | P7: 0.0376 | Q7: 3.76 | R7: 0.435 | S7: 0.3766794659 | T7: 0.0195 | U7: 0.0208 | V7: 2.08 | W7: 4.77 | X7: 2.64
A8: Mo-0-T | B8: Mo-0 | C8: 0-T | D8: 0.17 | E8: 11.01 | F8: 9.35850 | G8: =Mass!I7 -> 15.00 | H8: =Mass!J7 -> 85.00 | I8: 1.651500 | J8: 0.001652 | K8: 0.051652 | L8: =VLOOKUP($B8,BD!$A$2:$O$93,11,FALSE) -> 1.101947 | M8: 2.336 | N8: 2.199834014 | O8: 0.1136 | P8: 0.1214 | Q8: =P8*100 -> 12.14 | R8: 0.472 | S8: 0.4107833365 | T8: 0.0212 | U8: 0.0227 | V8: 2.27 | W8: 22.74 | X8: 4.25
A9: Mo-0-S | B9: Mo-0 | C9: 0-S | D9: 0.13 | E9: 11.01 | F9: 9.00618 | G9: =Mass!I8 -> 18.20 | H9: =Mass!J8 -> 81.80 | I9: 2.003820 | J9: 0.002004 | K9: 0.052004 | L9: =VLOOKUP($B9,BD!$A$2:$O$93,11,FALSE) -> 1.101947 | M9: 1.174 | N9: 0.284842192 | O9: 0.0148 | P9: 0.0164 | Q9: 1.64 | R9: 0.457 | S9: 0.3962910329 | T9: 0.0206 | U9: 0.0229 | V9: 2.29 | W9: 2.36 | X9: 3.28
A10: Mo-1-T | B10: Mo-1 | C10: 1-T | D10: 0.17 | E10: 11.03 | F10: 9.47632 | G10: =Mass!I9 -> 14.09 | H10: =Mass!J9 -> 85.91 | I10: 1.553676 | J10: 0.001554 | K10: 0.051554 | L10: =VLOOKUP($B10,BD!$A$2:$O$93,11,FALSE) -> 1.091640 | M10: 0.165 | N10: 0.1762432663 | O10: 0.0091 | P10: 0.0096 | Q10: 0.96 | R10: 0.385 | S10: 0.330237802 | T10: 0.0170 | U10: 0.0180 | V10: 1.80 | W10: 1.78 | X10: 3.33
A11: Mo-1-S | B11: Mo-1 | C11: 1-S | D11: 0.13 | E11: 11.01 | F11: 9.06123 | G11: =Mass!I10 -> 17.70 | H11: =Mass!J10 -> 82.30 | I11: 1.948770 | J11: 0.001949 | K11: 0.051949 | L11: =VLOOKUP($B11,BD!$A$2:$O$93,11,FALSE) -> 1.091640 | M11: 0.282 | N11: 1.116343212 | O11: 0.0580 | P11: 0.0640 | Q11: 6.40 | R11: 0.445 | S11: 0.3857026282 | T11: 0.0200 | U11: 0.0221 | V11: 2.21 | W11: 9.08 | X11: 3.14
A12: Si-0-T | B12: Si-0 | C12: 0-T | D12: 0.17 | E12: 11.01 | F12: 9.26290 | G12: =Mass!I11 -> 15.87 | H12: =Mass!J11 -> 84.13 | I12: 1.747096 | J12: 0.001747 | K12: 0.051747 | L12: =VLOOKUP($B12,BD!$A$2:$O$93,11,FALSE) -> 0.937880 | M12: 1.475 | N12: 1.397419495 | O12: 0.0723 | P12: 0.0781 | Q12: 7.81 | R12: 0.315 | S12: 0.2658050574 | T12: 0.0138 | U12: 0.0148 | V12: 1.48 | W12: 12.45 | X12: 2.37
A13: Si-0-S | B13: Si-0 | C13: 0-S | D13: 0.13 | E13: 11 | F13: 8.98901 | G13: =Mass!I12 -> 18.28 | H13: =Mass!J12 -> 81.72 | I13: 2.010989 | J13: 0.002011 | K13: 0.052011 | L13: =VLOOKUP($B13,BD!$A$2:$O$93,11,FALSE) -> 0.937880 | M13: 0.612 | N13: 0.5929633265 | O13: 0.0308 | P13: 0.0343 | Q13: 3.43 | R13: 0.247 | S13: 0.2030296282 | T13: 0.0106 | U13: 0.0117 | V13: 1.17 | W13: 4.18 | X13: 1.43
A14: Si-1-T | B14: Si-1 | C14: 1-T | D14: 0.17 | E14: 11.02 | F14: 9.18150 | G14: =Mass!I13 -> 16.68 | H14: =Mass!J13 -> 83.32 | I14: 1.838501 | J14: 0.001839 | K14: 0.051839 | L14: =VLOOKUP($B14,BD!$A$2:$O$93,11,FALSE) -> 0.932093 | M14: 1.813 | N14: 1.712392737 | O14: 0.0888 | P14: 0.0967 | Q14: 9.67 | R14: 1.028 | S14: 0.9222769437 | T14: 0.0478 | U14: 0.0521 | V14: 5.21 | W14: 15.32 | X14: 8.25
A15: Si-1-S | B15: Si-1 | C15: 1-S | D15: 0.13 | E15: 11.01 | F15: 8.85420 | G15: =Mass!I14 -> 19.58 | H15: =Mass!J14 -> 80.42 | I15: 2.155804 | J15: 0.002156 | K15: 0.052156 | L15: =VLOOKUP($B15,BD!$A$2:$O$93,11,FALSE) -> 0.932093 | M15: 0.527 | N15: 0.5133110626 | O15: 0.0268 | P15: 0.0302 | Q15: 3.02 | R15: 0.383 | S15: 0.3286633523 | T15: 0.0171 | U15: 0.0194 | V15: 1.94 | W15: 3.66 | X15: 2.35
A16: BL1-07-07 | C16: 0-T | F16: 0.00000 | I16: 0.000000 | J16: 0.000000 | K16: 0.050000 | M16: -0.01023 | N16: 0.01247321488 | O16: 0.0006 | R16: 0.09316 | S16: 0.06159616288 | T16: 0.0031
A17: BL2-07-07 | C17: 0-S | F17: 0.00000 | I17: 0.000000 | J17: 0.000000 | K17: 0.050000 | M17: -0.02025 | N17: 0.003131973261 | O17: 0.0002 | R17: 0.12832 | S17: 0.09396905945 | T17: 0.0047
A18: Mi-0-T | B18: Mi-0 | C18: 0-T | D18: 0.17 | E18: 11.02 | F18: 9.43312 | G18: =Mass!I15 -> 14.40 | H18: =Mass!J15 -> 85.60 | I18: 1.586880 | J18: 0.001587 | K18: 0.051587 | L18: =VLOOKUP($B18,BD!$A$2:$O$93,11,FALSE) -> 1.01 | M18: 0.524 | N18: 0.5103557995 | O18: 0.0263 | P18: =(10*O18)/F18 -> 0.0279 | Q18: 2.79 | R18: 0.343 | S18: 0.2913829603 | T18: 0.0150 | U18: 0.0159 | V18: 1.59 | W18: =((L18*1000)*D18*10000)*(Q18/1000000) -> 4.81 | X18: =((L18*1000)*D18*10000)*(V18/1000000) -> 2.75
A19: Mi-0-S | B19: Mi-0 | C19: 0-S | D19: 0.13 | E19: 11.03 | F19: 9.41962 | G19: =Mass!I16 -> 14.60 | H19: =Mass!J16 -> 85.40 | I19: 1.610380 | J19: 0.001610 | K19: 0.051610 | L19: =VLOOKUP($B19,BD!$A$2:$O$93,11,FALSE) -> 1.01 | M19: 0.316 | N19: 0.3170610853 | O19: 0.0164 | P19: 0.0174 | Q19: 1.74 | R19: 0.314 | S19: 0.2653723139 | T19: 0.0137 | U19: 0.0145 | V19: 1.45 | W19: =((L19*1000)*D19*10000)*(Q19/1000000) -> 2.29 | X19: 1.92
A20: Mi-1-T | B20: Mi-1 | C20: 1-T | D20: 0.17 | E20: 11.01 | F20: 9.38052 | G20: =Mass!I17 -> 14.80 | H20: =Mass!J17 -> 85.20 | I20: 1.629480 | J20: 0.001629 | K20: 0.051629 | L20: =VLOOKUP($B20,BD!$A$2:$O$93,11,FALSE) -> 0.94 | M20: 0.524 | N20: 0.5107193808 | O20: 0.0264 | P20: 0.0281 | Q20: 2.81 | R20: 0.308 | S20: 0.2589732345 | T20: 0.0134 | U20: 0.0143 | V20: 1.43 | W20: 4.48 | X20: 2.27
A21: Mi-1-S | B21: Mi-1 | C21: 1-S | D21: 0.13 | E21: 11.01 | F21: 9.33648 | G21: =Mass!I18 -> 15.20 | H21: =Mass!J18 -> 84.80 | I21: 1.673520 | J21: 0.001674 | K21: 0.051674 | L21: =VLOOKUP($B21,BD!$A$2:$O$93,11,FALSE) -> 0.94 | M21: 0.679 | N21: 0.6551916576 | O21: 0.0339 | P21: 0.0363 | Q21: 3.63 | R21: 0.261 | S21: 0.2165643717 | T21: 0.0112 | U21: 0.0120 | V21: 1.20 | W21: 4.42 | X21: 1.46
A22: Li-0-T | B22: Li-0 | C22: 0-T | D22: 0.17 | E22: 11.01 | F22: 9.42614 | G22: =Mass!I19 -> 14.39 | H22: =Mass!J19 -> 85.61 | I22: 1.583856 | J22: 0.001584 | K22: 0.051584 | L22: =VLOOKUP($B22,BD!$A$2:$O$93,11,FALSE) -> 0.88 | M22: 0.602 | N22: 0.5828949223 | O22: 0.0301 | P22: 0.0319 | Q22: 3.19 | R22: 0.286 | S22: 0.2390578263 | T22: 0.0123 | U22: 0.0131 | V22: 1.31 | W22: 4.78 | X22: 1.96
A23: Li-0-S | B23: Li-0 | C23: 0-S | D23: 0.13 | E23: 11.01 | F23: 9.13830 | G23: =Mass!I20 -> 17.00 | H23: =Mass!J20 -> 83.00 | I23: 1.871700 | J23: 0.001872 | K23: 0.051872 | L23: =VLOOKUP($B23,BD!$A$2:$O$93,11,FALSE) -> 0.88 | M23: 0.207 | N23: 0.2152583323 | O23: 0.0112 | P23: 0.0122 | Q23: 1.22 | R23: 0.251 | S23: 0.2066112712 | T23: 0.0107 | U23: 0.0117 | V23: 1.17 | W23: 1.40 | X23: 1.34
A24: Li-1-T | B24: Li-1 | C24: 1-T | D24: 0.17 | E24: 11.01 | F24: 9.27042 | G24: =Mass!I21 -> 15.80 | H24: =Mass!J21 -> 84.20 | I24: 1.739580 | J24: 0.001740 | K24: 0.051740 | L24: =VLOOKUP($B24,BD!$A$2:$O$93,11,FALSE) -> 0.90 | M24: 0.450 | N24: 0.4418160706 | O24: 0.0229 | P24: 0.0247 | Q24: 2.47 | R24: 0.442 | S24: 0.3824616556 | T24: 0.0198 | U24: 0.0213 | V24: 2.13 | W24: 3.78 | X24: 3.27
A25: Li-1-S | B25: Li-1 | C25: 1-S | D25: 0.13 | E25: 11 | F25: 9.14286 | G25: =Mass!I22 -> 16.88 | H25: =Mass!J22 -> 83.12 | I25: 1.857143 | J25: 0.001857 | K25: 0.051857 | L25: =VLOOKUP($B25,BD!$A$2:$O$93,11,FALSE) -> 0.90 | M25: 0.184 | N25: 0.1934248115 | O25: 0.0100 | P25: 0.0110 | Q25: 1.10 | R25: 0.284 | S25: 0.2377135592 | T25: 0.0123 | U25: 0.0135 | V25: 1.35 | W25: 1.29 | X25: 1.58
A26: BL1-13.07 | F26: 0.00000 | I26: 0.000000 | J26: 0.000000 | K26: 0.050000 | M26: -0.02094 | N26: 0.002488714108 | O26: 0.0001 | R26: 0.09262 | S26: 0.06109896823 | T26: 0.0031
A27: BL2-13.07 | F27: 0.00000 | I27: 0.000000 | J27: 0.000000 | K27: 0.050000 | M27: -0.01788 | N27: 0.005341428614 | O27: 0.0003 | R27: 0.07257 | S27: 0.04263831475 | T27: 0.0021
A28: Ai-0-T | B28: Ai-0 | C28: 0-T | D28: 0.17 | E28: 11.02 | F28: 9.83222 | G28: =Mass!I23 -> 10.78 | H28: =Mass!J23 -> 89.22 | I28: 1.187784 | J28: 0.001188 | K28: 0.051188 | L28: =VLOOKUP($B28,BD!$A$2:$O$93,11,FALSE) -> 1.35 | M28: 0.360 | N28: 0.3572414759 | O28: 0.0183 | P28: =(10*O28)/F28 -> 0.0186 | Q28: 1.86 | R28: 0.600 | S28: 0.5280844463 | T28: 0.0270 | U28: 0.0275 | V28: 2.75 | W28: =((L28*1000)*D28*10000)*(Q28/1000000) -> 4.28 | X28: =((L28*1000)*D28*10000)*(V28/1000000) -> 6.32
A29: Ai-0-S | B29: Ai-0 | C29: 0-S | D29: 0.13 | E29: 11 | F29: 9.96600 | G29: =Mass!I24 -> 9.40 | H29: =Mass!J24 -> 90.60 | I29: 1.034000 | J29: 0.001034 | K29: 0.051034 | L29: =VLOOKUP($B29,BD!$A$2:$O$93,11,FALSE) -> 1.35 | M29: 0.455 | N29: 0.4462722717 | O29: 0.0228 | P29: 0.0229 | Q29: 2.29 | R29: 0.437 | S29: 0.3781894645 | T29: 0.0193 | U29: 0.0194 | V29: 1.94 | W29: =((L29*1000)*D29*10000)*(Q29/1000000) -> 4.02 | X29: 3.41
A30: Ai-1-T | B30: Ai-1 | C30: 1-T | D30: 0.17 | E30: 11.01 | F30: 9.46223 | G30: =Mass!I25 -> 14.06 | H30: =Mass!J25 -> 85.94 | I30: 1.547767 | J30: 0.001548 | K30: 0.051548 | L30: =VLOOKUP($B30,BD!$A$2:$O$93,11,FALSE) -> 1.32 | M30: 0.042 | N30: 0.06090410331 | O30: 0.0031 | P30: 0.0033 | Q30: 0.33 | R30: 0.235 | S30: 0.1926161624 | T30: 0.0099 | U30: 0.0105 | V30: 1.05 | W30: 0.75 | X30: 2.36
A31: Ai-1-S | B31: Ai-1 | C31: 1-S | D31: 0.13 | E31: 11 | F31: 9.82300 | G31: =Mass!I26 -> 10.70 | H31: =Mass!J26 -> 89.30 | I31: 1.177000 | J31: 0.001177 | K31: 0.051177 | L31: =VLOOKUP($B31,BD!$A$2:$O$93,11,FALSE) -> 1.32 | M31: 0.321 | N31: 0.3212842214 | O31: 0.0164 | P31: 0.0167 | Q31: 1.67 | R31: 0.190 | S31: 0.1509162623 | T31: 0.0077 | U31: 0.0079 | V31: 0.79 | W31: 2.88 | X31: 1.35
A32: Pi-0-T | B32: Pi-0 | C32: 0-T | D32: 0.17 | E32: 11 | F32: 8.95604 | G32: =Mass!I27 -> 18.58 | H32: =Mass!J27 -> 81.42 | I32: 2.043956 | J32: 0.002044 | K32: 0.052044 | L32: =VLOOKUP($B32,BD!$A$2:$O$93,11,FALSE) -> 0.99 | M32: 0.745 | N32: 0.7161521156 | O32: 0.0373 | P32: =(10*O32)/F32 -> 0.0416 | Q32: 4.16 | R32: 0.340 | S32: 0.2890995478 | T32: 0.0150 | U32: 0.0168 | V32: 1.68 | W32: 7.02 | X32: 2.83
A33: Pi-0-S | B33: Pi-0 | C33: 0-S | D33: 0.13 | E33: 11.01 | F33: 9.05022 | G33: =Mass!I28 -> 17.80 | H33: =Mass!J28 -> 82.20 | I33: 1.959780 | J33: 0.001960 | K33: 0.051960 | L33: =VLOOKUP($B33,BD!$A$2:$O$93,11,FALSE) -> 0.99 | M33: 0.172 | N33: 0.1822376958 | O33: 0.0095 | P33: 0.0105 | Q33: 1.05 | R33: 0.245 | S33: 0.20114213 | T33: 0.0105 | U33: 0.0115 | V33: 1.15 | W33: 1.35 | X33: 1.49
A34: Pi-1-T | B34: Pi-1 | C34: 1-T | D34: 0.17 | E34: 11 | F34: 8.86813 | G34: =Mass!I29 -> 19.38 | H34: =Mass!J29 -> 80.62 | I34: 2.131868 | J34: 0.002132 | K34: 0.052132 | L34: =VLOOKUP($B34,BD!$A$2:$O$93,11,FALSE) -> 0.88 | M34: 0.332 | N34: 0.3318560458 | O34: 0.0173 | P34: 0.0195 | Q34: 1.95 | R34: 0.278 | S34: 0.2319774061 | T34: 0.0121 | U34: 0.0136 | V34: 1.36 | W34: 2.92 | X34: 2.04
A35: Pi-1-S | B35: Pi-1 | C35: 1-S | D35: 0.13 | E35: 11.01 | F35: 8.94219 | G35: =Mass!I30 -> 18.78 | H35: =Mass!J30 -> 81.22 | I35: 2.067812 | J35: 0.002068 | K35: 0.052068 | L35: =VLOOKUP($B35,BD!$A$2:$O$93,11,FALSE) -> 0.88 | M35: 0.281 | N35: 0.2842362233 | O35: 0.0148 | P35: 0.0166 | Q35: 1.66 | R35: 0.281 | S35: 0.2343252697 | T35: 0.0122 | U35: 0.0136 | V35: 1.36 | W35: 1.89 | X35: 1.56
A36: Ja-0-T | B36: Ja-0 | C36: 0-T | D36: 0.17 | E36: 11 | F36: 8.56044 | G36: =Mass!I31 -> 22.18 | H36: =Mass!J31 -> 77.82 | I36: 2.439560 | J36: 0.002440 | K36: 0.052440 | L36: =VLOOKUP($B36,BD!$A$2:$O$93,11,FALSE) -> 0.73 | M36: 1.006 | N36: 0.9599753025 | O36: 0.0503 | P36: 0.0588 | Q36: 5.88 | R36: 0.363 | S36: 0.3096042237 | T36: 0.0162 | U36: 0.0190 | V36: 1.90 | W36: 7.34 | X36: 2.37
A37: Ja-1-T | B37: Ja-1 | C37: 1-T | D37: 0.17 | E37: 11.01 | F37: 8.66487 | G37: =Mass!I32 -> 21.30 | H37: =Mass!J32 -> 78.70 | I37: 2.345130 | J37: 0.002345 | K37: 0.052345 | L37: =VLOOKUP($B37,BD!$A$2:$O$93,11,FALSE) -> 1.00 | M37: 0.817 | N37: 0.7833493906 | O37: 0.0410 | P37: 0.0473 | Q37: 4.73 | R37: 0.317 | S37: 0.2680240187 | T37: 0.0140 | U37: 0.0162 | V37: 1.62 | W37: 8.01 | X37: 2.74
A38: BL1-14.07 | F38: 0.00000 | I38: 0.000000 | J38: 0.000000 | K38: 0.050000 | M38: -0.04309 | N38: -0.01816083697 | O38: -0.0009 | R38: 0.10809 | S38: 0.07534267442 | T38: 0.0038
A39: BL2-14.07 | F39: 0.00000 | I39: 0.000000 | J39: 0.000000 | K39: 0.050000 | M39: -0.03805 | N39: -0.01346224837 | O39: -0.0007 | R39: 0.06789 | S39: 0.03832929439 | T39: 0.0019
A40: Mu-0-T | B40: Mu-0 | C40: 0-T | D40: 0.17 | E40: 11.01 | F40: 8.77497 | G40: =Mass!I33 -> 20.30 | H40: =Mass!J33 -> 79.70 | I40: 2.235030 | J40: 0.002235 | K40: 0.052235 | L40: =VLOOKUP($B40,BD!$A$2:$O$93,11,FALSE) -> 1.05 | M40: 0.573 | N40: 0.5563348451 | O40: 0.0291 | P40: =(10*O40)/F40 -> 0.0331 | Q40: 3.31 | R40: 0.402 | S40: 0.3463874211 | T40: 0.0181 | U40: 0.0206 | V40: 2.06 | W40: =((L40*1000)*D40*10000)*(Q40/1000000) -> 5.92 | X40: =((L40*1000)*D40*10000)*(V40/1000000) -> 3.68
A41: Mu-0-S | B41: Mu-0 | C41: 0-S | D41: 0.13 | E41: 11.01 | F41: 8.77720 | G41: =Mass!I34 -> 20.28 | H41: =Mass!J34 -> 79.72 | I41: 2.232797 | J41: 0.002233 | K41: 0.052233 | L41: =VLOOKUP($B41,BD!$A$2:$O$93,11,FALSE) -> 1.05 | M41: 0.218 | N41: 0.225522511 | O41: 0.0118 | P41: 0.0134 | Q41: 1.34 | R41: 0.390 | S41: 0.3350163951 | T41: 0.0175 | U41: 0.0199 | V41: 1.99 | W41: =((L41*1000)*D41*10000)*(Q41/1000000) -> 1.83 | X41: 2.72
A42: Mu-1-T | B42: Mu-1 | C42: 1-T | D42: 0.17 | E42: 11.01 | F42: 8.68921 | G42: =Mass!I35 -> 21.08 | H42: =Mass!J35 -> 78.92 | I42: 2.320789 | J42: 0.002321 | K42: 0.052321 | L42: =VLOOKUP($B42,BD!$A$2:$O$93,11,FALSE) -> 1.03 | M42: 0.495 | N42: 0.4834134959 | O42: 0.0253 | P42: 0.0291 | Q42: 2.91 | R42: 0.448 | S42: 0.38874104 | T42: 0.0203 | U42: 0.0234 | V42: 2.34 | W42: 5.07 | X42: 4.08
A43: Mu-1-S | B43: Mu-1 | C43: 1-S | D43: 0.13 | E43: 11.01 | F43: 8.68921 | G43: =Mass!I36 -> 21.08 | H43: =Mass!J36 -> 78.92 | I43: 2.320789 | J43: 0.002321 | K43: 0.052321 | L43: =VLOOKUP($B43,BD!$A$2:$O$93,11,FALSE) -> 1.03 | M43: 0.309 | N43: 0.3097055567 | O43: 0.0162 | P43: 0.0186 | Q43: 1.86 | R43: 0.379 | S43: 0.3251369531 | T43: 0.0170 | U43: 0.0196 | V43: 1.96 | W43: 2.49 | X43: 2.61
A44: Kp-0-T | B44: Kp-0 | C44: 0-T | D44: 0.17 | E44: 11.01 | F44: 9.23739 | G44: =Mass!I37 -> 16.10 | H44: =Mass!J37 -> 83.90 | I44: 1.772610 | J44: 0.001773 | K44: 0.051773 | L44: =VLOOKUP($B44,BD!$A$2:$O$93,11,FALSE) -> 0.84 | M44: 0.265 | N44: 0.2693946497 | O44: 0.0139 | P44: 0.0151 | Q44: 1.51 | R44: 0.285 | S44: 0.2380726443 | T44: 0.0123 | U44: 0.0133 | V44: 1.33 | W44: 2.15 | X44: 1.90
A45: Kp-0-S | B45: Kp-0 | C45: 0-S | D45: 0.13 | E45: 11 | F45: 9.04396 | G45: =Mass!I38 -> 17.78 | H45: =Mass!J38 -> 82.22 | I45: 1.956044 | J45: 0.001956 | K45: 0.051956 | L45: =VLOOKUP($B45,BD!$A$2:$O$93,11,FALSE) -> 0.84 | M45: 0.210 | N45: 0.2176262718 | O45: 0.0113 | P45: 0.0125 | Q45: 1.25 | R45: 0.283 | S45: 0.2367467918 | T45: 0.0123 | U45: 0.0136 | V45: 1.36 | W45: 1.36 | X45: 1.48
A46: Kp-1-T | B46: Kp-1 | C46: 1-T | D46: 0.17 | E46: 11 | F46: 9.24000 | G46: =Mass!I39 -> 16.00 | H46: =Mass!J39 -> 84.00 | I46: 1.760000 | J46: 0.001760 | K46: 0.051760 | L46: =VLOOKUP($B46,BD!$A$2:$O$93,11,FALSE) -> 0.85 | M46: 0.346 | N46: 0.344394938 | O46: 0.0178 | P46: 0.0193 | Q46: 1.93 | R46: 0.276 | S46: 0.2300530786 | T46: 0.0119 | U46: 0.0129 | V46: 1.29 | W46: 2.78 | X46: 1.86
A47: Kp-1-S | B47: Kp-1 | C47: 1-S | D47: 0.13 | E47: 11 | F47: 8.99800 | G47: =Mass!I40 -> 18.20 | H47: =Mass!J40 -> 81.80 | I47: 2.002000 | J47: 0.002002 | K47: 0.052002 | L47: =VLOOKUP($B47,BD!$A$2:$O$93,11,FALSE) -> 0.85 | M47: 0.261 | N47: 0.2654605141 | O47: 0.0138 | P47: 0.0153 | Q47: 1.53 | R47: 0.255 | S47: 0.2106809016 | T47: 0.0110 | U47: 0.0122 | V47: 1.22 | W47: 1.69 | X47: 1.34
A48: Ki-0-T | B48: Ki-0 | C48: 0-T | D48: 0.17 | E48: 11.01 | F48: 9.89910 | G48: =Mass!I41 -> 10.09 | H48: =Mass!J41 -> 89.91 | I48: 1.110899 | J48: 0.001111 | K48: 0.051111 | L48: =VLOOKUP($B48,BD!$A$2:$O$93,11,FALSE) -> 1.03 | M48: 3.035 | N48: 2.851213149 | O48: 0.1457 | P48: 0.1472 | Q48: 14.72 | R48: 1.037 | S48: 0.9302320582 | T48: 0.0475 | U48: 0.0480 | V48: 4.80 | W48: 25.67 | X48: 8.37
A49: Ki-0-S | B49: Ki-0 | C49: 0-S | D49: 0.13 | E49: 11.01 | F49: 9.97506 | G49: =Mass!I42 -> 9.40 | H49: =Mass!J42 -> 90.60 | I49: 1.034940 | J49: 0.001035 | K49: 0.051035 | L49: =VLOOKUP($B49,BD!$A$2:$O$93,11,FALSE) -> 1.03 | M49: 0.680 | N49: 0.6562171432 | O49: 0.0335 | P49: 0.0336 | Q49: 3.36 | R49: 0.344 | S49: 0.2924694227 | T49: 0.0149 | U49: 0.0150 | V49: 1.50 | W49: 4.48 | X49: 1.99
A50: Ki-1-T | B50: Ki-1 | C50: 1-T | D50: 0.17 | E50: 11 | F50: 9.93407 | G50: =Mass!I43 -> 9.69 | H50: =Mass!J43 -> 90.31 | I50: 1.065934 | J50: 0.001066 | K50: 0.051066 | L50: =VLOOKUP($B50,BD!$A$2:$O$93,11,FALSE) -> 0.98 | M50: 1.305 | N50: 1.238776871 | O50: 0.0633 | P50: 0.0637 | Q50: 6.37 | R50: 1.025 | S50: 0.91921091 | T50: 0.0469 | U50: 0.0473 | V50: 4.73 | W50: 10.63 | X50: 7.88
A51: Ki-1-S | B51: Ki-1 | C51: 1-S | D51: 0.13 | E51: 11 | F51: 10.15300 | G51: =Mass!I44 -> 7.70 | H51: =Mass!J44 -> 92.30 | I51: 0.847000 | J51: 0.000847 | K51: 0.050847 | L51: =VLOOKUP($B51,BD!$A$2:$O$93,11,FALSE) -> 0.98 | M51: 0.298 | N51: 0.2997583463 | O51: 0.0152 | P51: 0.0150 | Q51: 1.50 | R51: 0.290 | S51: 0.2431642858 | T51: 0.0124 | U51: 0.0122 | V51: 1.22 | W51: 1.92 | X51: 1.55
A52: BL1-20.07 | F52: 0.00000 | I52: 0.000000 | J52: 0.000000 | K52: 0.050000 | M52: 0.09947 | N52: 0.1147420977 | O52: 0.0057 | R52: 0.15231 | S52: 0.1160573925 | T52: 0.0058
A53: BL2-20.07 | F53: 0.00000 | I53: 0.000000 | J53: 0.000000 | K53: 0.050000 | M53: -0.02211 | N53: 0.001397970326 | O53: 0.0001 | R53: 0.12394 | S53: 0.08993625834 | T53: 0.0045
A54: Na-0-T | B54: Na-0 | C54: 0-T | D54: 0.17 | E54: 11 | F54: 8.51648 | G54: =Mass!I45 -> 22.58 | H54: =Mass!J45 -> 77.42 | I54: 2.483516 | J54: 0.002484 | K54: 0.052484 | L54: =VLOOKUP($B54,BD!$A$2:$O$93,11,FALSE) -> 1.00 | M54: 0.593 | N54: 0.575278361 | O54: 0.0302 | P54: =(10*O54)/F54 -> 0.0355 | Q54: 3.55 | R54: 0.402 | S54: 0.3462124822 | T54: 0.0182 | U54: 0.0213 | V54: 2.13 | W54: =((L54*1000)*D54*10000)*(Q54/1000000) -> 6.05 | X54: =((L54*1000)*D54*10000)*(V54/1000000) -> 3.64
A55: Na-0-S | B55: Na-0 | C55: 0-S | D55: 0.13 | E55: 11 | F55: 8.84615 | G55: =Mass!I46 -> 19.58 | H55: =Mass!J46 -> 80.42 | I55: 2.153846 | J55: 0.002154 | K55: 0.052154 | L55: =VLOOKUP($B55,BD!$A$2:$O$93,11,FALSE) -> 1.00 | M55: 0.339 | N55: 0.3382327017 | O55: 0.0176 | P55: 0.0199 | Q55: 1.99 | R55: 0.326 | S55: 0.2757765724 | T55: 0.0144 | U55: 0.0163 | V55: 1.63 | W55: =((L55*1000)*D55*10000)*(Q55/1000000) -> 2.60 | X55: 2.12
A56: Na-1-T | B56: Na-1 | C56: 1-T | D56: 0.17 | E56: 11.01 | F56: 8.63184 | G56: =Mass!I47 -> 21.60 | H56: =Mass!J47 -> 78.40 | I56: 2.378160 | J56: 0.002378 | K56: 0.052378 | L56: =VLOOKUP($B56,BD!$A$2:$O$93,11,FALSE) -> 0.93 | M56: 0.710 | N56: 0.6841383195 | O56: 0.0358 | P56: 0.0415 | Q56: 4.15 | R56: 0.482 | S56: 0.4194934503 | T56: 0.0220 | U56: 0.0255 | V56: 2.55 | W56: 6.54 | X56: 4.01
A57: Na-1-S | B57: Na-1 | C57: 1-S | D57: 0.13 | E57: 11.01 | F57: 8.89608 | G57: =Mass!I48 -> 19.20 | H57: =Mass!J48 -> 80.80 | I57: 2.113920 | J57: 0.002114 | K57: 0.052114 | L57: =VLOOKUP($B57,BD!$A$2:$O$93,11,FALSE) -> 0.93 | M57: 0.324 | N57: 0.3240810004 | O57: 0.0169 | P57: 0.0190 | Q57: 1.90 | R57: 0.420 | S57: 0.3625462474 | T57: 0.0189 | U57: 0.0212 | V57: 2.12 | W57: 2.29 | X57: 2.56
A58: Ik-0-T | B58: Ik-0 | C58: 0-T | D58: 0.17 | E58: 11 | F58: 8.34900 | G58: =Mass!I49 -> 24.10 | H58: =Mass!J49 -> 75.90 | I58: 2.651000 | J58: 0.002651 | K58: 0.052651 | L58: =VLOOKUP($B58,BD!$A$2:$O$93,11,FALSE) -> 0.84 | M58: 1.687 | N58: 1.594517828 | O58: 0.0840 | P58: 0.1006 | Q58: 10.06 | R58: 0.436 | S58: 0.3771950752 | T58: 0.0199 | U58: 0.0238 | V58: 2.38 | W58: 14.42 | X58: 3.41
A59: Ik-0-S | B59: Ik-0 | C59: 0-S | D59: 0.13 | E59: 11 | F59: 8.37100 | G59: =Mass!I50 -> 23.90 | H59: =Mass!J50 -> 76.10 | I59: 2.629000 | J59: 0.002629 | K59: 0.052629 | L59: =VLOOKUP($B59,BD!$A$2:$O$93,11,FALSE) -> 0.84 | M59: 0.808 | N59: 0.7753412803 | O59: 0.0408 | P59: 0.0487 | Q59: 4.87 | R59: 0.603 | S59: 0.5309571266 | T59: 0.0279 | U59: 0.0334 | V59: 3.34 | W59: 5.35 | X59: 3.66
A60: Ik-1-T | B60: Ik-1 | C60: 1-T | D60: 0.17 | E60: 11 | F60: 8.52747 | G60: =Mass!I51 -> 22.48 | H60: =Mass!J51 -> 77.52 | I60: 2.472527 | J60: 0.002473 | K60: 0.052473 | L60: =VLOOKUP($B60,BD!$A$2:$O$93,11,FALSE) -> 0.94 | M60: 0.287 | N60: 0.2898577489 | O60: 0.0152 | P60: 0.0178 | Q60: 1.78 | R60: 0.602 | S60: 0.5305427977 | T60: 0.0278 | U60: 0.0326 | V60: 3.26 | W60: 2.85 | X60: 5.21
A61: Ik-1-S | B61: Ik-1 | C61: 1-S | D61: 0.13 | E61: 11 | F61: 8.74500 | G61: =Mass!I52 -> 20.50 | H61: =Mass!J52 -> 79.50 | I61: 2.255000 | J61: 0.002255 | K61: 0.052255 | L61: =VLOOKUP($B61,BD!$A$2:$O$93,11,FALSE) -> 0.94 | M61: 0.294 | N61: 0.2964208568 | O61: 0.0155 | P61: 0.0177 | Q61: 1.77 | R61: 0.464 | S61: 0.4031780997 | T61: 0.0211 | U61: 0.0241 | V61: 2.41 | W61: 2.16 | X61: 2.94
A62: Ne-0-T | B62: Ne-0 | C62: 0-T | D62: 0.17 | E62: 11 | F62: 9.19600 | G62: =Mass!I53 -> 16.40 | H62: =Mass!J53 -> 83.60 | I62: 1.804000 | J62: 0.001804 | K62: 0.051804 | L62: =VLOOKUP($B62,BD!$A$2:$O$93,11,FALSE) -> 0.94 | M62: 0.304 | N62: 0.3051747748 | O62: 0.0158 | P62: 0.0172 | Q62: 1.72 | R62: 0.217 | S62: 0.1753064224 | T62: 0.0091 | U62: 0.0099 | V62: 0.99 | W62: 2.76 | X62: 1.58
A63: Ne-0-S | B63: Ne-0 | C63: 0-S | D63: 0.13 | E63: 11.01 | F63: 9.28143 | G63: =Mass!I54 -> 15.70 | H63: =Mass!J54 -> 84.30 | I63: 1.728570 | J63: 0.001729 | K63: 0.051729 | L63: =VLOOKUP($B63,BD!$A$2:$O$93,11,FALSE) -> 0.94 | M63: 0.209 | N63: 0.2168897867 | O63: 0.0112 | P63: 0.0121 | Q63: 1.21 | R63: 0.247 | S63: 0.2035728594 | T63: 0.0105 | U63: 0.0113 | V63: 1.13 | W63: 1.48 | X63: 1.39
A64: Ne-1-T | B64: Ne-1 | C64: 1-T | D64: 0.17 | E64: 11 | F64: 8.94505 | G64: =Mass!I55 -> 18.68 | H64: =Mass!J55 -> 81.32 | I64: 2.054945 | J64: 0.002055 | K64: 0.052055 | L64: =VLOOKUP($B64,BD!$A$2:$O$93,11,FALSE) -> 0.93 | M64: 0.254 | N64: 0.2590745355 | O64: 0.0135 | P64: 0.0151 | Q64: 1.51 | R64: 0.298 | S64: 0.2498764137 | T64: 0.0130 | U64: 0.0145 | V64: 1.45 | W64: 2.40 | X64: 2.31
A65: Ne-1-S | B65: Ne-1 | C65: 1-S | D65: 0.13 | E65: 11 | F65: 9.00900 | G65: =Mass!I56 -> 18.10 | H65: =Mass!J56 -> 81.90 | I65: 1.991000 | J65: 0.001991 | K65: 0.051991 | L65: =VLOOKUP($B65,BD!$A$2:$O$93,11,FALSE) -> 0.93 | M65: 0.157 | N65: 0.168188543 | O65: 0.0087 | P65: 0.0097 | Q65: 0.97 | R65: 0.239 | S65: 0.195709818 | T65: 0.0102 | U65: 0.0113 | V65: 1.13 | W65: 1.18 | X65: 1.37
A66: Ae-0-T | B66: Ae-0 | C66: 0-T | D66: 0.17 | E66: 11 | F66: 8.54700 | G66: =Mass!I57 -> 22.30 | H66: =Mass!J57 -> 77.70 | I66: 2.453000 | J66: 0.002453 | K66: 0.052453 | L66: =VLOOKUP($B66,BD!$A$2:$O$93,11,FALSE) -> 0.87 | M66: 0.208 | N66: 0.2162278823 | O66: 0.0113 | P66: 0.0133 | Q66: 1.33 | R66: 0.382 | S66: 0.3277242068 | T66: 0.0172 | U66: 0.0201 | V66: 2.01 | W66: 1.96 | X66: =((L66*1000)*D66*10000)*(V66/1000000) -> 2.97
A67: Ae-0-S | B67: Ae-0 | C67: 0-S | D67: 0.13 | E67: 11 | F67: 8.44800 | G67: =Mass!I58 -> 23.20 | H67: =Mass!J58 -> 76.80 | I67: 2.552000 | J67: 0.002552 | K67: 0.052552 | L67: =VLOOKUP($B67,BD!$A$2:$O$93,11,FALSE) -> 0.87 | M67: 0.185 | N67: 0.1948884591 | O67: 0.0102 | P67: 0.0121 | Q67: =P67*100 -> 1.21 | R67: 0.433 | S67: 0.3746538581 | T67: 0.0197 | U67: 0.0233 | V67: 2.33 | W67: 1.37 | X67: 2.63
A68: Ae-1-T | B68: Ae-1 | C68: 1-T | D68: 0.17 | E68: 11.01 | F68: 8.48871 | G68: =Mass!I59 -> 22.90 | H68: =Mass!J59 -> 77.10 | I68: 2.521290 | J68: 0.002521 | K68: 0.052521 | L68: =VLOOKUP($B68,BD!$A$2:$O$93,11,FALSE) -> 0.86 | M68: 0.226 | N68: 0.2326076843 | O68: 0.0122 | P68: 0.0144 | Q68: 1.44 | R68: 0.359 | S68: 0.3063724585 | T68: 0.0161 | U68: 0.0190 | V68: =U68*100 -> 1.90 | W68: 2.10 | X68: =((L68*1000)*D68*10000)*(V68/1000000) -> 2.76
A69: Ae-1-S | B69: Ae-1 | C69: 1-S | D69: 0.13 | E69: 11.01 | F69: =E69*(H69/100) -> 8.41424 | G69: =Mass!I60 -> 23.58 | H69: =Mass!J60 -> 76.42 | I69: =(E69-F69) -> 2.595764 | J69: =I69/1000 -> 0.002596 | K69: =0.05+J69 -> 0.052596 | L69: =VLOOKUP($B69,BD!$A$2:$O$93,11,FALSE) -> 0.86 | M69: 0.269 | N69: 0.2723965258 | O69: =N69*K69 -> 0.0143 | P69: 0.0170 | Q69: 1.70 | R69: 0.385 | S69: 0.3299799974 | T69: =S69*K69 -> 0.0174 | U69: =(10*T69)/F69 -> 0.0206 | V69: 2.06 | W69: 1.90 | X69: =((L69*1000)*D69*10000)*(V69/1000000) -> 2.30
A70: BL1-21.07 | F70: 0.00000 | I70: 0.000000 | J70: 0.000000 | K70: 0.050000 | M70: -0.02452 | N70: -0.0008487754123 | O70: -0.0000 | R70: 0.32217 | S70: 0.2724527341 | T70: 0.0136
A71: BL2-21.07 | F71: 0.00000 | I71: 0.000000 | J71: 0.000000 | K71: 0.050000 | M71: -0.0241 | N71: -0.0004572263624 | O71: -0.0000 | R71: 0.24643 | S71: 0.2027165797 | T71: 0.0101
A72: Jn-0-T | B72: Jn-0 | C72: 0-T | D72: 0.17 | E72: 11.01 | F72: 8.76620 | G72: =Mass!I61 -> 20.38 | H72: =Mass!J61 -> 79.62 | I72: 2.243796 | J72: 0.002244 | K72: 0.052244 | L72: =VLOOKUP($B72,BD!$A$2:$O$93,11,FALSE) -> 1.02 | M72: 0.247 | N72: 0.2518588459 | O72: 0.0132 | P72: =(10*O72)/F72 -> 0.0150 | Q72: 1.50 | R72: 0.451 | S72: 0.391457196 | T72: 0.0205 | U72: 0.0233 | V72: 2.33 | W72: =((L72*1000)*D72*10000)*(Q72/1000000) -> 2.61 | X72: =((L72*1000)*D72*10000)*(V72/1000000) -> 4.06
A73: Jn-0-S | B73: Jn-0 | C73: 0-S | D73: 0.13 | E73: 11.01 | F73: 9.08517 | G73: =Mass!I62 -> 17.48 | H73: =Mass!J62 -> 82.52 | I73: 1.924825 | J73: 0.001925 | K73: 0.051925 | L73: =VLOOKUP($B73,BD!$A$2:$O$93,11,FALSE) -> 1.02 | M73: 0.195 | N73: 0.2039966358 | O73: 0.0106 | P73: 0.0117 | Q73: 1.17 | R73: 0.399 | S73: 0.3431188266 | T73: 0.0178 | U73: 0.0196 | V73: 1.96 | W73: =((L73*1000)*D73*10000)*(Q73/1000000) -> 1.55 | X73: =((L73*1000)*D73*10000)*(V73/1000000) -> 2.61
A74: Jn-1-T | B74: Jn-1 | C74: 1-T | D74: 0.17 | E74: 11.01 | F74: 8.74194 | G74: =Mass!I63 -> 20.60 | H74: =Mass!J63 -> 79.40 | I74: 2.268060 | J74: 0.002268 | K74: 0.052268 | L74: =VLOOKUP($B74,BD!$A$2:$O$93,11,FALSE) -> 0.90 | M74: 0.361 | N74: 0.3586025749 | O74: 0.0187 | P74: 0.0214 | Q74: 2.14 | R74: 0.656 | S74: 0.5793691545 | T74: 0.0303 | U74: 0.0346 | V74: 3.46 | W74: 3.30 | X74: 5.33
A75: Jn-1-S | B75: Jn-1 | C75: 1-S | D75: 0.13 | E75: 11 | F75: 9.13000 | G75: =Mass!I64 -> 17.00 | H75: =Mass!J64 -> 83.00 | I75: 1.870000 | J75: 0.001870 | K75: 0.051870 | L75: =VLOOKUP($B75,BD!$A$2:$O$93,11,FALSE) -> 0.90 | M75: 0.274 | N75: 0.2770298562 | O75: 0.0144 | P75: 0.0157 | Q75: 1.57 | R75: 0.523 | S75: 0.4570776834 | T75: 0.0237 | U75: 0.0260 | V75: 2.60 | W75: 1.85 | X75: 3.05
A76: Ni-0-T | B76: Ni-0 | C76: 0-T | D76: 0.17 | E76: 11.01 | F76: 7.27407 | G76: =Mass!I65 -> 33.93 | H76: =Mass!J65 -> 66.07 | I76: 3.735928 | J76: 0.003736 | K76: 0.053736 | L76: =VLOOKUP($B76,BD!$A$2:$O$93,11,FALSE) -> 0.93 | M76: 0.433 | N76: 0.4255388173 | O76: 0.0229 | P76: 0.0314 | Q76: 3.14 | R76: 0.816 | S76: 0.7269162727 | T76: 0.0391 | U76: 0.0537 | V76: 5.37 | W76: 4.99 | X76: 8.53
A77: Ni-1-T | B77: Ni-1 | C77: 1-T | D77: 0.17 | E77: 11.01 | F77: 6.90327 | G77: =Mass!I66 -> 37.30 | H77: =Mass!J66 -> 62.70 | I77: 4.106730 | J77: 0.004107 | K77: 0.054107 | L77: =VLOOKUP($B77,BD!$A$2:$O$93,11,FALSE) -> 0.71 | M77: 0.344 | N77: 0.3425490639 | O77: 0.0185 | P77: 0.0268 | Q77: 2.68 | R77: 0.741 | S77: 0.6583678611 | T77: 0.0356 | U77: 0.0516 | V77: 5.16 | W77: 3.23 | X77: 6.21
A78: BL1-27.07 | C78: 1-T | F78: 0.00000 | I78: 0.000000 | J78: 0.000000 | K78: 0.050000 | M78: -0.02734 | N78: -0.003477747604 | O78: -0.0002 | R78: 0.06144 | S78: 0.03239058043 | T78: 0.0016
A79: BL2-27.07 | C79: 1-S | F79: 0.00000 | I79: 0.000000 | J79: 0.000000 | K79: 0.050000 | M79: 0.08122 | N79: 0.09772835918 | O79: 0.0049 | R79: 0.09193 | S79: 0.06046366394 | T79: 0.0030
A80: La-0-T | B80: La-0 | C80: 0-T | D80: 0.17 | E80: 11 | F80: 8.93200 | G80: =Mass!I67 -> 18.80 | H80: =Mass!J67 -> 81.20 | I80: 2.068000 | J80: 0.002068 | K80: 0.052068 | L80: =VLOOKUP($B80,BD!$A$2:$O$93,11,FALSE) -> 1.17 | M80: 0.465 | N80: 0.4551660287 | O80: 0.0237 | P80: =(10*O80)/F80 -> 0.0265 | Q80: 2.65 | R80: 0.493 | S80: 0.4293544777 | T80: 0.0224 | U80: 0.0250 | V80: 2.50 | W80: =((L80*1000)*D80*10000)*(Q80/1000000) -> 5.28 | X80: 4.98
A81: La-0-S | B81: La-0 | C81: 0-S | D81: 0.13 | E81: 11 | F81: 8.94300 | G81: =Mass!I68 -> 18.70 | H81: =Mass!J68 -> 81.30 | I81: 2.057000 | J81: 0.002057 | K81: 0.052057 | L81: =VLOOKUP($B81,BD!$A$2:$O$93,11,FALSE) -> 1.17 | M81: 0.568 | N81: 0.5518133858 | O81: 0.0287 | P81: 0.0321 | Q81: 3.21 | R81: 0.549 | S81: 0.4813757705 | T81: 0.0251 | U81: 0.0280 | V81: 2.80 | W81: =((L81*1000)*D81*10000)*(Q81/1000000) -> 4.89 | X81: 4.27
A82: La-1-T | B82: La-1 | C82: 1-T | D82: 0.17 | E82: 11.01 | F82: 8.96214 | G82: =Mass!I69 -> 18.60 | H82: =Mass!J69 -> 81.40 | I82: 2.047860 | J82: 0.002048 | K82: 0.052048 | L82: =VLOOKUP($B82,BD!$A$2:$O$93,11,FALSE) -> 1.17 | M82: 0.593 | N82: 0.5748215538 | O82: 0.0299 | P82: 0.0334 | Q82: 3.34 | R82: 0.471 | S82: 0.4091996794 | T82: 0.0213 | U82: 0.0238 | V82: 2.38 | W82: 6.62 | X82: 4.72
A83: La-1-S | B83: La-1 | C83: 1-S | D83: 0.13 | E83: 11 | F83: 8.97600 | G83: =Mass!I70 -> 18.40 | H83: =Mass!J70 -> 81.60 | I83: 2.024000 | J83: 0.002024 | K83: 0.052024 | L83: =VLOOKUP($B83,BD!$A$2:$O$93,11,FALSE) -> 1.17 | M83: 0.655 | N83: 0.632752168 | O83: 0.0329 | P83: 0.0367 | Q83: 3.67 | R83: 0.486 | S83: 0.4235078368 | T83: 0.0220 | U83: 0.0245 | V83: 2.45 | W83: 5.57 | X83: 3.72
A84: Ko-0-T | B84: Ko-0 | C84: 0-T | D84: 0.17 | E84: 11.01 | F84: 8.74421 | G84: =Mass!I71 -> 20.58 | H84: =Mass!J71 -> 79.42 | I84: 2.265794 | J84: 0.002266 | K84: 0.052266 | L84: =VLOOKUP($B84,BD!$A$2:$O$93,11,FALSE) -> 1.16 | M84: 0.361 | N84: 0.3583974778 | O84: 0.0187 | P84: 0.0214 | Q84: 2.14 | R84: 0.458 | S84: 0.3972117638 | T84: 0.0208 | U84: 0.0237 | V84: 2.37 | W84: 4.21 | X84: 4.66
A85: Ko-0-S | B85: Ko-0 | C85: 0-S | D85: 0.13 | E85: 11.01 | F85: 8.97315 | G85: =Mass!I72 -> 18.50 | H85: =Mass!J72 -> 81.50 | I85: 2.036850 | J85: 0.002037 | K85: 0.052037 | L85: =VLOOKUP($B85,BD!$A$2:$O$93,11,FALSE) -> 1.16 | M85: 0.328 | N85: 0.3275210385 | O85: 0.0170 | P85: 0.0190 | Q85: 1.90 | R85: 0.290 | S85: 0.2429064812 | T85: 0.0126 | U85: 0.0141 | V85: 1.41 | W85: 2.85 | X85: 2.12
A86: Ko-1-T | B86: Ko-1 | C86: 1-T | D86: 0.17 | E86: 11 | F86: 8.71429 | G86: =Mass!I73 -> 20.78 | H86: =Mass!J73 -> 79.22 | I86: 2.285714 | J86: 0.002286 | K86: 0.052286 | L86: =VLOOKUP($B86,BD!$A$2:$O$93,11,FALSE) -> 1.16 | M86: 0.372 | N86: 0.3684379142 | O86: 0.0193 | P86: 0.0221 | Q86: 2.21 | R86: 0.466 | S86: 0.4048077933 | T86: 0.0212 | U86: 0.0243 | V86: 2.43 | W86: 4.37 | X86: 4.80
A87: Ko-1-S | B87: Ko-1 | C87: 1-S | D87: 0.13 | E87: 11.01 | F87: 8.90709 | G87: =Mass!I74 -> 19.10 | H87: =Mass!J74 -> 80.90 | I87: 2.102910 | J87: 0.002103 | K87: 0.052103 | L87: =VLOOKUP($B87,BD!$A$2:$O$93,11,FALSE) -> 1.16 | M87: 0.435 | N87: 0.4270863683 | O87: 0.0223 | P87: 0.0250 | Q87: 2.50 | R87: 0.320 | S87: 0.2705928578 | T87: 0.0141 | U87: 0.0158 | V87: 1.58 | W87: 3.78 | X87: 2.39
A88: BL1-28.07 | C88: 0 | F88: 0.00000 | I88: 0.000000 | J88: 0.000000 | K88: 0.050000 | M88: -0.01674 | N88: 0.006404204606 | O88: 0.0003 | R88: 0.09943 | S88: 0.06736914529 | T88: 0.0034
A89: BL2-28.07 | C89: 0 | F89: 0.00000 | I89: 0.000000 | J89: 0.000000 | K89: 0.050000 | M89: 0.02591 | N89: 0.04616507836 | O89: 0.0023 | R89: 0.0597 | S89: 0.03078850875 | T89: 0.0015
A90: Pa-0-T | B90: Pa-0 | C90: 0-T | D90: 0.17 | E90: 11.01 | F90: 8.90709 | G90: =Mass!I75 -> 19.10 | H90: =Mass!J75 -> 80.90 | I90: 2.102910 | J90: 0.002103 | K90: 0.052103 | L90: =VLOOKUP($B90,BD!$A$2:$O$93,11,FALSE) -> 1.01 | M90: 0.596 | N90: 0.5773573 | O90: 0.0301 | P90: =(10*O90)/F90 -> 0.0338 | Q90: 3.38 | R90: 0.366 | S90: 0.3125045259 | T90: 0.0163 | U90: 0.0183 | V90: 1.83 | W90: =((L90*1000)*D90*10000)*(Q90/1000000) -> 5.78 | X90: 3.13
A91: Pa-0-S | B91: Pa-0 | C91: 0-S | D91: 0.13 | E91: 11.01 | F91: 9.02820 | G91: =Mass!I76 -> 18.00 | H91: =Mass!J76 -> 82.00 | I91: 1.981800 | J91: 0.001982 | K91: 0.051982 | L91: =VLOOKUP($B91,BD!$A$2:$O$93,11,FALSE) -> 1.01 | M91: 0.608 | N91: 0.5887961259 | O91: 0.0306 | P91: =(10*O91)/F91 -> 0.0339 | Q91: 3.39 | R91: 0.337 | S91: 0.2862084529 | T91: 0.0149 | U91: 0.0165 | V91: 1.65 | W91: =((L91*1000)*D91*10000)*(Q91/1000000) -> 4.44 | X91: 2.16
A92: Pa-1-T | B92: Pa-1 | C92: 1-T | D92: 0.17 | E92: 11.01 | F92: 8.81020 | G92: =Mass!I77 -> 19.98 | H92: =Mass!J77 -> 80.02 | I92: 2.199800 | J92: 0.002200 | K92: 0.052200 | L92: =VLOOKUP($B92,BD!$A$2:$O$93,11,FALSE) -> 0.98 | M92: 0.392 | N92: 0.3872136234 | O92: 0.0202 | P92: =(10*O92)/F92 -> 0.0229 | Q92: 2.29 | R92: 0.334 | S92: 0.2829398584 | T92: 0.0148 | U92: 0.0168 | V92: 1.68 | W92: 3.84 | X92: 2.80
A93: Pa-1-S | B93: Pa-1 | C93: 1-S | D93: 0.13 | E93: 11 | F93: 8.87912 | G93: =Mass!I78 -> 19.28 | H93: =Mass!J78 -> 80.72 | I93: 2.120879 | J93: 0.002121 | K93: 0.052121 | L93: =VLOOKUP($B93,BD!$A$2:$O$93,11,FALSE) -> 0.98 | M93: 0.423 | N93: 0.4158992526 | O93: 0.0217 | P93: =(10*O93)/F93 -> 0.0244 | Q93: 2.44 | R93: 0.285 | S93: 0.2378884981 | T93: 0.0124 | U93: 0.0140 | V93: 1.40 | W93: 3.12 | X93: 1.79

Sheet MinN_Ki_Ik_Mo (hidden)
B1: NH4 (mg/l) | C1: NO3 (mg/l) | D1: NH4_avg (mg/l) | E1: NO3_avg (mg/l) | H1: dilutions not calc yet
A2: ik0t | B2: 0.39849 | C2: 1.68674 | D2: =AVERAGE(B2:B3) -> 0.396125 | E2: =AVERAGE(C2:C3) -> 1.690295
A3: ik0t | B3: 0.39376 | C3: 1.69385
A4: ik0s | B4: 0.58986 | C4: 0.8138 | D4: =AVERAGE(B4:B5) -> 0.587555 | E4: =AVERAGE(C4:C5) -> 0.81569
A5: ik0s | B5: 0.58525 | C5: 0.81758
A6: ik1t | B6: 0.584 | C6: 0.30415 | D6: 0.5683 | E6: 0.30508
A7: ik1t | B7: 0.5526 | C7: 0.30601
A8: ik1s | B8: 0.40163 | C8: 0.2996 | D8: 0.403315 | E8: 0.296985
A9: ik1s | B9: 0.405 | C9: 0.29437
A10: ki0t | B10: 1.04507 | C10: 3.08976 | D10: 1.0447 | E10: 3.0785
A11: ki0t | B11: 1.04433 | C11: 3.06724
A12: ki0s | B12: 0.28041 | C12: 0.66766 | D12: 0.281645 | E12: 0.666855
A13: ki0s | B13: 0.28288 | C13: 0.66605
A14: ki1t | B14: 0.94952 | C14: 1.2706 | D14: 0.954355 | E14: 1.268515
A15: ki1t | B15: 0.95919 | C15: 1.26643
A16: ki1s | B16: 0.2301 | C16: 0.29177 | D16: 0.23418 | E16: 0.295075
A17: ki1s | B17: 0.23826 | C17: 0.29838
A18: mo0t | B18: 0.44554 | C18: 2.42849 | D18: 0.44225 | E18: 2.4011
A19: mo0t | B19: 0.43896 | C19: 2.37371
A20: mo0s1 | B20: 0.35713 | C20: 0.29827 | D20: 0.358305 | E20: 0.298995
A21: mo0s1 | B21: 0.35948 | C21: 0.29972
A22: mo0s2 | B22: 0.32842 | C22: 1.19401 | D22: 0.3285 | E22: 1.19214
A23: mo0s2 | B23: 0.32858 | C23: 1.19027
A24: mo1t | B24: 0.30238 | C24: 0.18402 | D24: 0.304 | E24: 0.24275
A25: mo1t | B25: 0.30562 | C25: 0.30148

Sheet toc_analysis_raw results (hidden)
A1: [Data]
A2: Sample Name | B2: Result(TOC) | C2: Result(TC) | D2: Result(IC) | E2: Result(TN) | F2: Unit | G2: Vial | H2: Date / Time | I2: C/N
A3: std TC | C3: 100 | F3: mg/L | G3: 1, 4, 4, 4, 4, 4 | H3: 2022-08-09T16:24:51
A4: std IC | D4: 10 | F4: mg/L | G4: 2, 5, 5, 5, 5, 5 | H4: 2022-08-09T17:30:09
A5: std TN | E5: 10 | F5: mg/L | G5: 3, 6, 6, 6, 6, 6 | H5: 2022-08-09T19:02:39
A6: QC mq1 | B6: 0.655 | C6: 0.903 | D6: 0.248 | E6: 0.037 | F6: mg/L | G6: 7 | H6: 2022-08-09T19:16:39
A7: Pu-0-T | B7: 17.722 | C7: 23.232 | D7: 5.51 | E7: 2.031 | F7: mg/L | G7: 8 | H7: 2022-08-09T19:30:21 | I7: =C7/E7 -> 11.43870015
A8: Pu-0-S | B8: 16.392 | C8: 18.983 | D8: 2.591 | E8: 1.794 | F8: mg/L | G8: 9 | H8: 2022-08-09T19:46:00 | I8: =C8/E8 -> 10.58138239
A9: Pu-1-T | B9: 21.652 | C9: 27.744 | D9: 6.092 | E9: 2.474 | F9: mg/L | G9: 10 | H9: 2022-08-09T20:02:31 | I9: 11.21422797
A10: Pu-1-S | B10: 20.586 | C10: 24.509 | D10: 3.922 | E10: 2.382 | F10: mg/L | G10: 11 | H10: 2022-08-09T20:22:17 | I10: 10.28925273
A11: Mo-0-T | B11: 19.501 | C11: 21.339 | D11: 1.838 | E11: 2.696 | F11: mg/L | G11: 12 | H11: 2022-08-09T20:42:09 | I11: 7.915059347
A12: Mo-0-S | B12: 16.528 | C12: 17.916 | D12: 1.388 | E12: 2.077 | F12: mg/L | G12: 13 | H12: 2022-08-09T20:58:28 | I12: 8.625902744
A13: Mo-1-T | B13: 23.84 | C13: 25.947 | D13: 2.106 | E13: 1.985 | F13: mg/L | G13: 14 | H13: 2022-08-09T21:17:26 | I13: 13.07153652
A14: Mo-1-S | B14: 15.304 | C14: 18.486 | D14: 3.182 | E14: 1.59 | F14: mg/L | G14: 15 | H14: 2022-08-09T21:30:55 | I14: 11.62641509
A15: Si-0-T | B15: 20.408 | C15: 23.37 | D15: 2.962 | E15: 2.688 | F15: mg/L | G15: 16 | H15: 2022-08-09T21:48:26 | I15: 8.694196429
A16: Si-0-S | B16: 20.871 | C16: 22.136 | D16: 1.265 | E16: 2.006 | F16: mg/L | G16: 17 | H16: 2022-08-09T22:08:09 | I16: 11.03489531
A17: Si-1-T | B17: 17.179 | C17: 19.871 | D17: 2.692 | E17: 2.823 | F17: mg/L | G17: 18 | H17: 2022-08-09T22:27:01 | I17: 7.038965639
A18: Si-1-S | B18: 18.897 | C18: 20.539 | D18: 1.642 | E18: 2.191 | F18: mg/L | G18: 19 | H18: 2022-08-09T22:44:10 | I18: 9.37425833
A19: Mi-0-T | B19: 33.755 | C19: 38.972 | D19: 5.217 | E19: 3.541 | F19: mg/L | G19: 20 | H19: 2022-08-09T23:01:00 | I19: 11.00593053
A20: Mi-0-S | B20: 18.329 | C20: 20.872 | D20: 2.543 | E20: 1.836 | F20: mg/L | G20: 21 | H20: 2022-08-09T23:17:41 | I20: 11.36819172
A21: Mi-1-T | B21: 29.347 | C21: 33.882 | D21: 4.535 | E21: 3.343 | F21: mg/L | G21: 22 | H21: 2022-08-09T23:38:15 | I21: 10.1352079
A22: Mi-1-S | B22: 23.521 | C22: 26.607 | D22: 3.086 | E22: 2.419 | F22: mg/L | G22: 23 | H22: 2022-08-09T23:57:35 | I22: 10.99917321
A23: Li-0-T | B23: 27.35 | C23: 30.436 | D23: 3.086 | E23: 2.628 | F23: mg/L | G23: 24 | H23: 2022-08-10T00:14:17 | I23: 11.58143075
A24: Li-0-S | B24: 20.219 | C24: 22.327 | D24: 2.109 | E24: 1.893 | F24: mg/L | G24: 25 | H24: 2022-08-10T00:30:16 | I24: 11.79450608
A25: Li-1-T | B25: 33.935 | C25: 38.114 | D25: 4.179 | E25: 3.202 | F25: mg/L | G25: 26 | H25: 2022-08-10T00:44:47 | I25: 11.90318551
A26: Li-1-S | B26: 25.202 | C26: 28.669 | D26: 3.467 | E26: 2.414 | F26: mg/L | G26: 27 | H26: 2022-08-10T01:01:13 | I26: 11.87613919
A27: QC mq2 | B27: 0.845 | C27: 1.296 | D27: 0.451 | E27: 0 | F27: mg/L | G27: 28 | H27: 2022-08-10T01:18:15 | I27: =C27/E27 -> 
A28: Ai-0-T | B28: 12.878 | C28: 15.395 | D28: 2.517 | E28: 1.667 | F28: mg/L | G28: 29 | H28: 2022-08-10T01:34:26 | I28: 9.235152969
A29: Ai-0-S | B29: 11.22 | C29: 13.499 | D29: 2.279 | E29: 1.325 | F29: mg/L | G29: 30 | H29: 2022-08-10T01:55:08 | I29: 10.18792453
A30: Ai-1-T | B30: 14.448 | C30: 18.686 | D30: 4.238 | E30: 1.563 | F30: mg/L | G30: 31 | H30: 2022-08-10T02:12:14 | I30: 11.95521433
A31: Ai-1-S | B31: 14.78 | C31: 17.725 | D31: 2.945 | E31: 1.679 | F31: mg/L | G31: 32 | H31: 2022-08-10T02:28:35 | I31: 10.55687909
A32: Pi-0-T | B32: 18.725 | C32: 21.302 | D32: 2.577 | E32: 2.195 | F32: mg/L | G32: 33 | H32: 2022-08-10T02:48:06 | I32: 9.704783599
A33: Pi-0-S | B33: 22.817 | C33: 25.057 | D33: 2.24 | E33: 2.269 | F33: mg/L | G33: 34 | H33: 2022-08-10T03:05:57 | I33: 11.04319083
A34: Pi-1-T | B34: 22.534 | C34: 27.12 | D34: 4.586 | E34: 2.462 | F34: mg/L | G34: 35 | H34: 2022-08-10T03:20:19 | I34: 11.01543461
A35: Pi-1-S | B35: 22.797 | C35: 25.546 | D35: 2.749 | E35: 2.462 | F35: mg/L | G35: 36 | H35: 2022-08-10T03:37:12 | I35: 10.37611698
A36: Ja-0-T | B36: 18.332 | C36: 19.982 | D36: 1.65 | E36: 2.398 | F36: mg/L | G36: 37 | H36: 2022-08-10T03:53:54 | I36: 8.332777314
A37: Ja-1-T | B37: 20.357 | C37: 22.016 | D37: 1.66 | E37: 0 | F37: mg/L | G37: 38 | H37: 2022-08-10T04:09:27
A38: Mu-0-T | B38: 34.99 | C38: 38.332 | D38: 3.342 | E38: 3.282 | F38: mg/L | G38: 39 | H38: 2022-08-10T04:26:40 | I38: 11.67946374
A39: Mu-0-S | B39: 29.394 | C39: 32.966 | D39: 3.572 | E39: 2.64 | F39: mg/L | G39: 40 | H39: 2022-08-10T04:47:09 | I39: 12.48712121
A40: Mu-1-T | B40: 36.932 | C40: 40.543 | D40: 3.611 | E40: 3.667 | F40: mg/L | G40: 41 | H40: 2022-08-10T05:07:40 | I40: 11.05617671
A41: Mu-1-S | B41: 31.1 | C41: 34.537 | D41: 3.437 | E41: 2.983 | F41: mg/L | G41: 42 | H41: 2022-08-10T05:27:24 | I41: 11.57794167
A42: Kp-0-T | B42: 20.406 | C42: 23.761 | D42: 3.355 | E42: 2.371 | F42: mg/L | G42: 43 | H42: 2022-08-10T05:47:07 | I42: 10.02150991
A43: Kp-0-S | B43: 19.038 | C43: 21.193 | D43: 2.155 | E43: 1.983 | F43: mg/L | G43: 44 | H43: 2022-08-10T06:07:17 | I43: 10.68734241
A44: Kp-1-T | B44: 19.207 | C44: 23.495 | D44: 4.288 | E44: 2.36 | F44: mg/L | G44: 45 | H44: 2022-08-10T06:22:26 | I44: 9.955508475
A45: Kp-1-S | B45: 17.988 | C45: 21.075 | D45: 3.087 | E45: 2.247 | F45: mg/L | G45: 46 | H45: 2022-08-10T06:44:07 | I45: 9.37917223
A46: BL1-03.08 | B46: 2.443 | C46: 3.228 | D46: 0.785 | E46: 0 | F46: mg/L | G46: 47 | H46: 2022-08-10T07:01:56
A47: BL2-03.08 | B47: 2.352 | C47: 3.025 | D47: 0.673 | E47: 0 | F47: mg/L | G47: 48 | H47: 2022-08-10T07:19:12
A48: QC tc100 | B48: 103.125 | C48: 103.538 | D48: 0.412 | E48: 0 | F48: mg/L | G48: 90 | H48: 2022-08-10T07:33:53
A49: QC ic10 | B49: -13.681 | C49: 14.22 | D49: 27.901 | E49: 0 | F49: mg/L | G49: 91 | H49: 2022-08-10T07:50:42
A50: QC tn10 | B50: 0.475 | C50: 1.321 | D50: 0.846 | E50: 9.808 | F50: mg/L | G50: 92 | H50: 2022-08-10T08:13:24 | I50: 0.1346859706
A51: QC mq3 | B51: 1.027 | C51: 1.467 | D51: 0.44 | E51: 0 | F51: mg/L | G51: 93 | H51: 2022-08-10T08:33:12
A52: Ki-0-T | B52: 12.207 | C52: 13.85 | D52: 1.643 | E52: 2.751 | F52: mg/L | G52: 49 | H52: 2022-08-10T08:47:09 | I52: 5.034532897
A53: Ki-0-S | B53: 10.453 | C53: 12.618 | D53: 2.165 | E53: 1.131 | F53: mg/L | G53: 50 | H53: 2022-08-10T09:05:48 | I53: 11.15649867
A54: Ki-1-T | B54: 13.5 | C54: 15.733 | D54: 2.232 | E54: 2.068 | F54: mg/L | G54: 51 | H54: 2022-08-10T09:25:47 | I54: 7.607833656
A55: Ki-1-S | B55: 10.38 | C55: 14.274 | D55: 3.895 | E55: 1.104 | F55: mg/L | G55: 52 | H55: 2022-08-10T09:44:32 | I55: 12.92934783
A56: Na-0-T | B56: 30.556 | C56: 33.083 | D56: 2.527 | E56: 2.995 | F56: mg/L | G56: 53 | H56: 2022-08-10T10:03:08 | I56: 11.04607679
A57: Na-0-S | B57: 31.371 | C57: 33.722 | D57: 2.352 | E57: 2.512 | F57: mg/L | G57: 54 | H57: 2022-08-10T10:23:38 | I57: 13.42436306
A58: Na-1-T | B58: 29.003 | C58: 31.294 | D58: 2.291 | E58: 2.821 | F58: mg/L | G58: 55 | H58: 2022-08-10T10:38:40 | I58: 11.09322935
A59: Na-1-S | B59: 29.702 | C59: 32.166 | D59: 2.465 | E59: 2.262 | F59: mg/L | G59: 56 | H59: 2022-08-10T10:58:35 | I59: 14.22015915
A60: Ik-0-T | B60: 26.734 | C60: 28.807 | D60: 2.073 | E60: 0 | F60: mg/L | G60: 57 | H60: 2022-08-10T11:14:58
A61: Ik-0-S | B61: 26.885 | C61: 29.782 | D61: 2.896 | E61: 0 | F61: mg/L | G61: 58 | H61: 2022-08-10T11:31:11
A62: Ik-1-T | B62: 22.179 | C62: 25.867 | D62: 3.688 | E62: 2.374 | F62: mg/L | G62: 59 | H62: 2022-08-10T11:50:53 | I62: 10.89595619
A63: Ik-1-S | B63: 24.436 | C63: 26.888 | D63: 2.452 | E63: 2.132 | F63: mg/L | G63: 60 | H63: 2022-08-10T12:08:35 | I63: 12.61163227
A64: Ne-0-T | B64: 34.356 | C64: 38.012 | D64: 3.657 | E64: 3.034 | F64: mg/L | G64: 61 | H64: 2022-08-10T12:29:03 | I64: 12.52867502
A65: Ne-0-S | B65: 34.675 | C65: 36.747 | D65: 2.072 | E65: 0 | F65: mg/L | G65: 62 | H65: 2022-08-10T12:45:22
A66: Ne-1-T | B66: 38.737 | C66: 41.662 | D66: 2.925 | E66: 3.416 | F66: mg/L | G66: 63 | H66: 2022-08-10T13:02:14 | I66: 12.19613583
A67: Ne-1-S | B67: 35.481 | C67: 37.838 | D67: 2.357 | E67: 2.619 | F67: mg/L | G67: 64 | H67: 2022-08-10T13:23:47 | I67: 14.44749905
A68: Ae-0-T | B68: 32.284 | C68: 34.74 | D68: 2.456 | E68: 0 | F68: mg/L | G68: 65 | H68: 2022-08-10T13:39:49
A69: Ae-0-S | B69: 31.673 | C69: 34.624 | D69: 2.951 | E69: 0 | F69: mg/L | G69: 66 | H69: 2022-08-10T13:56:30
A70: Ae-1-T | B70: 24.47 | C70: 26.45 | D70: 1.98 | E70: 0 | F70: mg/L | G70: 67 | H70: 2022-08-10T14:13:01
A71: Ae-1-S | B71: 28.367 | C71: 31.032 | D71: 2.665 | E71: 0 | F71: mg/L | G71: 68 | H71: 2022-08-10T14:29:54
A72: QC mq4 | B72: 0.799 | C72: 1.677 | D72: 0.877 | E72: 0 | F72: mg/L | G72: 69 | H72: 2022-08-10T14:44:01 | I72: =C72/E72 -> 
A73: Jn-0-T | B73: 21.671 | C73: 23.751 | D73: 2.08 | E73: 2.063 | F73: mg/L | G73: 70 | H73: 2022-08-10T14:57:36 | I73: 11.51284537
A74: Jn-0-S | B74: 17.355 | C74: 19.607 | D74: 2.252 | E74: 1.316 | F74: mg/L | G74: 71 | H74: 2022-08-10T15:17:36 | I74: 14.89893617
A75: Jn-1-T | B75: 22.148 | C75: 24.855 | D75: 2.706 | E75: 2.161 | F75: mg/L | G75: 72 | H75: 2022-08-10T15:31:46 | I75: 11.50161962
A76: Jn-1-S | B76: 18.316 | C76: 20.902 | D76: 2.587 | E76: 1.441 | F76: mg/L | G76: 73 | H76: 2022-08-10T15:51:45 | I76: 14.50520472
A77: Ni-0-T | B77: 18.815 | C77: 22.499 | D77: 3.684 | E77: 2.685 | F77: mg/L | G77: 74 | H77: 2022-08-10T16:09:34 | I77: 8.379515829
A78: Ni-1-T | B78: 23.823 | C78: 27.58 | D78: 3.757 | E78: 2.677 | F78: mg/L | G78: 75 | H78: 2022-08-10T16:26:47 | I78: 10.30257751
A79: La-0-T | B79: 17.072 | C79: 20.449 | D79: 3.377 | E79: 2.197 | F79: mg/L | G79: 76 | H79: 2022-08-10T16:44:55 | I79: 9.307692308
A80: La-0-S | B80: 13.739 | C80: 16.652 | D80: 2.913 | E80: 1.891 | F80: mg/L | G80: 77 | H80: 2022-08-10T17:04:35 | I80: 8.805922792
A81: La-1-T | B81: 15.441 | C81: 18.054 | D81: 2.613 | E81: 2.296 | F81: mg/L | G81: 78 | H81: 2022-08-10T17:21:10 | I81: 7.863240418
A82: La-1-S | B82: 11.558 | C82: 14.122 | D82: 2.564 | E82: 1.754 | F82: mg/L | G82: 79 | H82: 2022-08-10T17:40:54 | I82: 8.051311288
A83: Ko-0-T | B83: 9.091 | C83: 10.938 | D83: 1.847 | E83: 1.469 | F83: mg/L | G83: 80 | H83: 2022-08-10T17:54:30 | I83: 7.445881552
A84: Ko-0-S | B84: 8.526 | C84: 11.088 | D84: 2.562 | E84: 1.131 | F84: mg/L | G84: 81 | H84: 2022-08-10T18:10:45 | I84: 9.803713528
A85: Ko-1-T | B85: 12.231 | C85: 14.332 | D85: 2.101 | E85: 1.696 | F85: mg/L | G85: 82 | H85: 2022-08-10T18:27:51 | I85: 8.450471698
A86: Ko-1-S | B86: 9.973 | C86: 11.886 | D86: 1.914 | E86: 1.194 | F86: mg/L | G86: 83 | H86: 2022-08-10T18:44:38 | I86: 9.954773869
A87: Pa-0-T | B87: 16.572 | C87: 27.634 | D87: 11.062 | E87: 2.442 | F87: mg/L | G87: 84 | H87: 2022-08-10T19:01:33 | I87: 11.31613432
A88: Pa-0-S | B88: 21.472 | C88: 24.445 | D88: 2.973 | E88: 2.595 | F88: mg/L | G88: 85 | H88: 2022-08-10T19:18:44 | I88: 9.420038536
A89: Pa-1-T | B89: 17.323 | C89: 24.491 | D89: 7.168 | E89: 2.307 | F89: mg/L | G89: 86 | H89: 2022-08-10T19:38:05 | I89: 10.61595145
A90: Pa-1-S | B90: 19.904 | C90: 22.339 | D90: 2.435 | E90: 0 | F90: mg/L | G90: 87 | H90: 2022-08-10T19:53:11
A91: BL1-04.08 | B91: 3.489 | C91: 4.432 | D91: 0.943 | E91: 0 | F91: mg/L | G91: 88 | H91: 2022-08-10T20:08:24
A92: BL2-04.08 | B92: 3.495 | C92: 4.011 | D92: 0.516 | E92: 0 | F92: mg/L | G92: 89 | H92: 2022-08-10T20:26:41
A93: QC tc100 | B93: 103.095 | C93: 103.494 | D93: 0.399 | E93: 0 | F93: mg/L | G93: 90 | H93: 2022-08-10T20:45:26
A94: QC ic10 | B94: -15.148 | C94: 17.814 | D94: 32.961 | E94: 0.003 | F94: mg/L | G94: 91 | H94: 2022-08-10T21:02:00 | I94: 5938
A95: QC tn10 | B95: 1.291 | C95: 2.004 | D95: 0.713 | E95: 0 | F95: mg/L | G95: 92 | H95: 2022-08-10T21:22:59
A96: QC mq5 | B96: 1.1 | C96: 1.993 | D96: 0.893 | E96: 0 | F96: mg/L | G96: 93 | H96: 2022-08-10T21:37:44

Sheet Min_N_Corrected
A1: Field | D1: sampling depth (m) | E1: fresh soil (g) | F1: soil DM (g) | G1: water % | H1: =Mass!J2 -> DM% | I1: water (g) | J1: water (L) | K1: 2 M KCl (L) | L1: BD (kg/l) Calculated | M1: NO3 (mg N/L) Corrected | N1: NO3 (mg N/ weighed soil) | O1: NO3 (mg N/10 g soil) | P1: NO3 (mg N/Kg) | Q1: NH4 (mg N/L) Corrected | R1: NH4 (mg N/ weighed soil) | S1: NH4 (mg N/10 g soil) | T1: NH4 (mg N/Kg) | U1: Min_NO3 (Kg/ha) | V1: MIN_NH4 (Kg/ha) | W1: Inorg_N (mg/kg) | X1: Inorg_N (Kg/ha)
A2: BL1-06.07 | K2: 0.05 | M2: 0.07507444987 | Q2: -0.002901032924
A3: BL2-06.07 | K3: 0.05 | M3: 0.09234922105 | Q3: -0.02895771588
A4: Pu-0-T | B4: Pu-0 | C4: 0-T | D4: 0.17 | E4: 11 | F4: =E4*(H4/100) -> 10.01099 | G4: =Mass!I3 -> 8.99 | H4: =Mass!J3 -> 91.01 | I4: =(E4-F4) -> 0.989011 | J4: =I4/1000 -> 0.000989 | K4: =0.05+J4 -> 0.050989 | L4: =VLOOKUP($A4,BD!$Q$2:$T$79,4,FALSE) -> 1.221881 | M4: 0.4233107167 | N4: =(M4-(AVERAGE($M$2:$M$3)))*K4 -> 0.0173 | O4: =(10*N4)/F4 -> 0.0173 | P4: =O4*100 -> 1.73 | Q4: 0.3520407085 | R4: =((Q4-AVERAGE(Q$2:Q$3))*K4) -> 0.0188 | S4: =(10*R4)/F4 -> 0.0187 | T4: =S4*100 -> 1.87 | U4: =((L4*1000)*D4*10000)*(P4/1000000) -> 3.59 | V4: =((L4*1000)*D4*10000)*(T4/1000000) -> 3.89 | W4: =P4+T4 -> 3.60 | X4: =U4+V4 -> 7.49
A5: Pu-0-S | B5: Pu-0 | C5: 0-S | D5: 0.13 | E5: 12 | F5: =E5*(H5/100) -> 10.20508 | G5: =Mass!I4 -> 14.96 | H5: =Mass!J4 -> 85.04 | I5: =(E5-F5) -> 1.794917 | J5: =I5/1000 -> 0.001795 | K5: =0.05+J5 -> 0.051795 | L5: =VLOOKUP($A5,BD!$Q$2:$T$79,4,FALSE) -> 1.254619 | M5: 0.4364649003 | N5: 0.0183 | O5: 0.0179 | P5: =O5*100 -> 1.79 | Q5: 0.4022757835 | R5: 0.0217 | S5: 0.0212 | T5: 2.12 | U5: =((L5*1000)*D5*10000)*(P5/1000000) -> 2.92 | V5: =((L5*1000)*D5*10000)*(T5/1000000) -> 3.46 | W5: 3.91 | X5: 6.38
A6: Pu-1-T | B6: Pu-1 | C6: 1-T | D6: 0.17 | E6: 13 | F6: 11.61039 | G6: =Mass!I5 -> 10.69 | H6: =Mass!J5 -> 89.31 | I6: 1.389610 | J6: 0.001390 | K6: 0.051390 | L6: =VLOOKUP($A6,BD!$Q$2:$T$79,4,FALSE) -> 1.167631 | M6: 0.6869071306 | N6: 0.0310 | O6: 0.0267 | P6: 2.67 | Q6: 0.3358174309 | R6: 0.0181 | S6: 0.0156 | T6: 1.56 | U6: 5.30 | V6: 3.09 | W6: 4.23 | X6: 8.39
A7: Pu-1-S | B7: Pu-1 | C7: 1-S | D7: 0.13 | E7: 14 | F7: 11.87413 | G7: =Mass!I6 -> 15.18 | H7: =Mass!J6 -> 84.82 | I7: 2.125874 | J7: 0.002126 | K7: 0.052126 | L7: =VLOOKUP($A7,BD!$Q$2:$T$79,4,FALSE) -> 1.201407 | M7: 0.680222829 | N7: 0.0311 | O7: 0.0262 | P7: 2.62 | Q7: 0.3766794659 | R7: 0.0205 | S7: 0.0172 | T7: 1.72 | U7: 4.09 | V7: 2.69 | W7: 4.34 | X7: 6.78
A8: Mo-0-T | B8: Mo-0 | C8: 0-T | D8: 0.17 | E8: 15 | F8: 12.75000 | G8: =Mass!I7 -> 15.00 | H8: =Mass!J7 -> 85.00 | I8: 2.250000 | J8: 0.002250 | K8: 0.052250 | L8: =VLOOKUP($A8,BD!$Q$2:$T$79,4,FALSE) -> 1.308286 | M8: 2.199834014 | N8: 0.1106 | O8: 0.0867 | P8: =O8*100 -> 8.67 | Q8: 0.4107833365 | R8: 0.0223 | S8: 0.0175 | T8: 1.75 | U8: 19.29 | V8: 3.89 | W8: 10.42 | X8: 23.18
A9: Mo-0-S | B9: Mo-0 | C9: 0-S | D9: 0.13 | E9: 16 | F9: 13.08800 | G9: =Mass!I8 -> 18.20 | H9: =Mass!J8 -> 81.80 | I9: 2.912000 | J9: 0.002912 | K9: 0.052912 | L9: =VLOOKUP($A9,BD!$Q$2:$T$79,4,FALSE) -> 1.340281 | M9: 0.284842192 | N9: 0.0106 | O9: 0.0081 | P9: 0.81 | Q9: 0.3962910329 | R9: 0.0218 | S9: 0.0167 | T9: 1.67 | U9: 1.42 | V9: 2.90 | W9: 2.48 | X9: 4.32
A10: Mo-1-T | B10: Mo-1 | C10: 1-T | D10: 0.17 | E10: 17 | F10: 14.60539 | G10: =Mass!I9 -> 14.09 | H10: =Mass!J9 -> 85.91 | I10: 2.394605 | J10: 0.002395 | K10: 0.052395 | L10: =VLOOKUP($A10,BD!$Q$2:$T$79,4,FALSE) -> 1.296698 | M10: 0.1762432663 | N10: 0.0048 | O10: 0.0033 | P10: 0.33 | Q10: 0.330237802 | R10: 0.0181 | S10: 0.0124 | T10: 1.24 | U10: 0.73 | V10: 2.74 | W10: 1.57 | X10: 3.47
A11: Mo-1-S | B11: Mo-1 | C11: 1-S | D11: 0.13 | E11: 18 | F11: 14.81400 | G11: =Mass!I10 -> 17.70 | H11: =Mass!J10 -> 82.30 | I11: 3.186000 | J11: 0.003186 | K11: 0.053186 | L11: =VLOOKUP($A11,BD!$Q$2:$T$79,4,FALSE) -> 1.320374 | M11: 1.116343212 | N11: 0.0549 | O11: 0.0371 | P11: 3.71 | Q11: 0.3857026282 | R11: 0.0214 | S11: 0.0144 | T11: 1.44 | U11: 6.36 | V11: 2.48 | W11: 5.15 | X11: 8.84
A12: Si-0-T | B12: Si-0 | C12: 0-T | D12: 0.17 | E12: 19 | F12: 15.98503 | G12: =Mass!I11 -> 15.87 | H12: =Mass!J11 -> 84.13 | I12: 3.014970 | J12: 0.003015 | K12: 0.053015 | L12: =VLOOKUP($A12,BD!$Q$2:$T$79,4,FALSE) -> 1.249245 | M12: 1.397419495 | N12: 0.0696 | O12: 0.0436 | P12: 4.36 | Q12: 0.2658050574 | R12: 0.0149 | S12: 0.0093 | T12: 0.93 | U12: 9.25 | V12: 1.98 | W12: 5.29 | X12: 11.24
A13: Si-0-S | B13: Si-0 | C13: 0-S | D13: 0.13 | E13: 20 | F13: 16.34366 | G13: =Mass!I12 -> 18.28 | H13: =Mass!J12 -> 81.72 | I13: 3.656344 | J13: 0.003656 | K13: 0.053656 | L13: =VLOOKUP($A13,BD!$Q$2:$T$79,4,FALSE) -> 1.296698 | M13: 0.5929633265 | N13: 0.0273 | O13: 0.0167 | P13: 1.67 | Q13: 0.2030296282 | R13: 0.0117 | S13: 0.0072 | T13: 0.72 | U13: 2.82 | V13: 1.21 | W13: 2.39 | X13: 4.03
A14: Si-1-T | B14: Si-1 | C14: 1-T | D14: 0.17 | E14: 21 | F14: 17.49650 | G14: =Mass!I13 -> 16.68 | H14: =Mass!J13 -> 83.32 | I14: 3.503497 | J14: 0.003503 | K14: 0.053503 | L14: =VLOOKUP($A14,BD!$Q$2:$T$79,4,FALSE) -> 1.240854 | M14: 1.712392737 | N14: 0.0871 | O14: 0.0498 | P14: 4.98 | Q14: 0.9222769437 | R14: 0.0502 | S14: 0.0287 | T14: 2.87 | U14: 10.51 | V14: 6.05 | W14: 7.85 | X14: 16.56
A15: Si-1-S | B15: Si-1 | C15: 1-S | D15: 0.13 | E15: 22 | F15: 17.69231 | G15: =Mass!I14 -> 19.58 | H15: =Mass!J14 -> 80.42 | I15: 4.307692 | J15: 0.004308 | K15: 0.054308 | L15: =VLOOKUP($A15,BD!$Q$2:$T$79,4,FALSE) -> 1.319005 | M15: 0.5133110626 | N15: 0.0233 | O15: 0.0132 | P15: 1.32 | Q15: 0.3286633523 | R15: 0.0187 | S15: 0.0106 | T15: 1.06 | U15: 2.26 | V15: 1.81 | W15: 2.38 | X15: 4.07
A16: BL1-07-07 | C16: 0-T | F16: 0.00000 | I16: 0.000000 | J16: 0.000000 | K16: 0.050000 | L16: =VLOOKUP($A16,BD!$Q$2:$T$79,4,FALSE) ->  | M16: 0.01247321488 | N16: -0.0036 | Q16: 0.06159616288 | R16: 0.0039
A17: BL2-07-07 | C17: 0-S | F17: 0.00000 | I17: 0.000000 | J17: 0.000000 | K17: 0.050000 | L17: =VLOOKUP($A17,BD!$Q$2:$T$79,4,FALSE) ->  | M17: 0.003131973261 | N17: -0.0040 | Q17: 0.09396905945 | R17: 0.0055
A18: Mi-0-T | B18: Mi-0 | C18: 0-T | D18: 0.17 | E18: 11.02 | F18: 9.43312 | G18: =Mass!I15 -> 14.40 | H18: =Mass!J15 -> 85.60 | I18: 1.586880 | J18: 0.001587 | K18: 0.051587 | L18: =VLOOKUP($A18,BD!$Q$2:$T$79,4,FALSE) -> 1.130441 | M18: 0.5103557995 | N18: =(M18-(AVERAGE(M$16:M$17)))*K18 -> 0.0259 | O18: =(10*N18)/F18 -> 0.0275 | P18: 2.75 | Q18: 0.2913829603 | R18: =((Q18-AVERAGE(Q$16:Q$17))*K18) -> 0.0110 | S18: =(10*R18)/F18 -> 0.0117 | T18: 1.17 | U18: 5.28 | V18: 2.24 | W18: =P18+T18 -> 3.92 | X18: 7.53
A19: Mi-0-S | B19: Mi-0 | C19: 0-S | D19: 0.13 | E19: 11.03 | F19: 9.41962 | G19: =Mass!I16 -> 14.60 | H19: =Mass!J16 -> 85.40 | I19: 1.610380 | J19: 0.001610 | K19: 0.051610 | L19: =VLOOKUP($A19,BD!$Q$2:$T$79,4,FALSE) -> 1.297962 | M19: 0.3170610853 | N19: 0.0160 | O19: 0.0169 | P19: 1.69 | Q19: 0.2653723139 | R19: 0.0097 | S19: 0.0103 | T19: 1.03 | U19: 2.86 | V19: 1.73 | W19: 2.72 | X19: 4.59
A20: Mi-1-T | B20: Mi-1 | C20: 1-T | D20: 0.17 | E20: 11.01 | F20: 9.38052 | G20: =Mass!I17 -> 14.80 | H20: =Mass!J17 -> 85.20 | I20: 1.629480 | J20: 0.001629 | K20: 0.051629 | L20: =VLOOKUP($A20,BD!$Q$2:$T$79,4,FALSE) -> 1.149908 | M20: 0.5107193808 | N20: 0.0260 | O20: 0.0277 | P20: 2.77 | Q20: 0.2589732345 | R20: 0.0094 | S20: 0.0100 | T20: 1.00 | U20: 5.41 | V20: 1.95 | W20: 3.77 | X20: 7.36
A21: Mi-1-S | B21: Mi-1 | C21: 1-S | D21: 0.13 | E21: 11.01 | F21: 9.33648 | G21: =Mass!I18 -> 15.20 | H21: =Mass!J18 -> 84.80 | I21: 1.673520 | J21: 0.001674 | K21: 0.051674 | L21: =VLOOKUP($A21,BD!$Q$2:$T$79,4,FALSE) -> 1.305669 | M21: 0.6551916576 | N21: 0.0335 | O21: 0.0358 | P21: 3.58 | Q21: 0.2165643717 | R21: 0.0072 | S21: 0.0077 | T21: 0.77 | U21: 6.08 | V21: 1.30 | W21: 4.35 | X21: 7.39
A22: Li-0-T | B22: Li-0 | C22: 0-T | D22: 0.17 | E22: 11.01 | F22: 9.42614 | G22: =Mass!I19 -> 14.39 | H22: =Mass!J19 -> 85.61 | I22: 1.583856 | J22: 0.001584 | K22: 0.051584 | L22: =VLOOKUP($A22,BD!$Q$2:$T$79,4,FALSE) -> 1.205930 | M22: 0.5828949223 | N22: 0.0297 | O22: 0.0315 | P22: 3.15 | Q22: 0.2390578263 | R22: 0.0083 | S22: 0.0088 | T22: 0.88 | U22: 6.45 | V22: 1.81 | W22: 4.03 | X22: 8.26
A23: Li-0-S | B23: Li-0 | C23: 0-S | D23: 0.13 | E23: 11.01 | F23: 9.13830 | G23: =Mass!I20 -> 17.00 | H23: =Mass!J20 -> 83.00 | I23: 1.871700 | J23: 0.001872 | K23: 0.051872 | L23: =VLOOKUP($A23,BD!$Q$2:$T$79,4,FALSE) -> 1.347748 | M23: 0.2152583323 | N23: 0.0108 | O23: 0.0118 | P23: 1.18 | Q23: 0.2066112712 | R23: 0.0067 | S23: 0.0073 | T23: 0.73 | U23: 2.06 | V23: 1.28 | W23: 1.91 | X23: 3.34
A24: Li-1-T | B24: Li-1 | C24: 1-T | D24: 0.17 | E24: 11.01 | F24: 9.27042 | G24: =Mass!I21 -> 15.80 | H24: =Mass!J21 -> 84.20 | I24: 1.739580 | J24: 0.001740 | K24: 0.051740 | L24: =VLOOKUP($A24,BD!$Q$2:$T$79,4,FALSE) -> 1.141813 | M24: 0.4418160706 | N24: 0.0225 | O24: 0.0242 | P24: 2.42 | Q24: 0.3824616556 | R24: 0.0158 | S24: 0.0170 | T24: 1.70 | U24: 4.70 | V24: 3.30 | W24: 4.12 | X24: 8.00
A25: Li-1-S | B25: Li-1 | C25: 1-S | D25: 0.13 | E25: 11 | F25: 9.14286 | G25: =Mass!I22 -> 16.88 | H25: =Mass!J22 -> 83.12 | I25: 1.857143 | J25: 0.001857 | K25: 0.051857 | L25: =VLOOKUP($A25,BD!$Q$2:$T$79,4,FALSE) -> 1.289231 | M25: 0.1934248115 | N25: 0.0096 | O25: 0.0105 | P25: 1.05 | Q25: 0.2377135592 | R25: 0.0083 | S25: 0.0091 | T25: 0.91 | U25: 1.76 | V25: 1.52 | W25: 1.96 | X25: 3.28
A26: BL1-13.07 | F26: 0.00000 | I26: 0.000000 | J26: 0.000000 | K26: 0.050000 | L26: =VLOOKUP($A26,BD!$Q$2:$T$79,4,FALSE) ->  | M26: 0.002488714108 | N26: -0.0003 | Q26: 0.06109896823 | R26: -0.0008
A27: BL2-13.07 | F27: 0.00000 | I27: 0.000000 | J27: 0.000000 | K27: 0.050000 | L27: =VLOOKUP($A27,BD!$Q$2:$T$79,4,FALSE) ->  | M27: 0.005341428614 | N27: -0.0001 | Q27: 0.04263831475 | R27: -0.0018
A28: Ai-0-T | B28: Ai-0 | C28: 0-T | D28: 0.17 | E28: 11.02 | F28: 9.83222 | G28: =Mass!I23 -> 10.78 | H28: =Mass!J23 -> 89.22 | I28: 1.187784 | J28: 0.001188 | K28: 0.051188 | L28: =VLOOKUP($A28,BD!$Q$2:$T$79,4,FALSE) -> 1.412127 | M28: 0.3572414759 | N28: =(M28-(AVERAGE(M$26:M$27)))*K28 -> 0.0181 | O28: =(10*N28)/F28 -> 0.0184 | P28: 1.84 | Q28: 0.5280844463 | R28: =((Q28-AVERAGE(Q$26:Q$27))*K28) -> 0.0244 | S28: =(10*R28)/F28 -> 0.0248 | T28: 2.48 | U28: 4.42 | V28: 5.95 | W28: =P28+T28 -> 4.32 | X28: 10.37
A29: Ai-0-S | B29: Ai-0 | C29: 0-S | D29: 0.13 | E29: 11 | F29: 9.96600 | G29: =Mass!I24 -> 9.40 | H29: =Mass!J24 -> 90.60 | I29: 1.034000 | J29: 0.001034 | K29: 0.051034 | L29: =VLOOKUP($A29,BD!$Q$2:$T$79,4,FALSE) -> 1.468950 | M29: 0.4462722717 | N29: 0.0226 | O29: 0.0227 | P29: 2.27 | Q29: 0.3781894645 | R29: 0.0167 | S29: 0.0167 | T29: 1.67 | U29: 4.33 | V29: 3.19 | W29: 3.94 | X29: 7.52
A30: Ai-1-T | B30: Ai-1 | C30: 1-T | D30: 0.17 | E30: 11.01 | F30: 9.46223 | G30: =Mass!I25 -> 14.06 | H30: =Mass!J25 -> 85.94 | I30: 1.547767 | J30: 0.001548 | K30: 0.051548 | L30: =VLOOKUP($A30,BD!$Q$2:$T$79,4,FALSE) -> 1.344737 | M30: 0.06090410331 | N30: 0.0029 | O30: 0.0031 | P30: 0.31 | Q30: 0.1926161624 | R30: 0.0073 | S30: 0.0077 | T30: 0.77 | U30: 0.71 | V30: 1.75 | W30: 1.08 | X30: 2.46
A31: Ai-1-S | B31: Ai-1 | C31: 1-S | D31: 0.13 | E31: 11 | F31: 9.82300 | G31: =Mass!I26 -> 10.70 | H31: =Mass!J26 -> 89.30 | I31: 1.177000 | J31: 0.001177 | K31: 0.051177 | L31: =VLOOKUP($A31,BD!$Q$2:$T$79,4,FALSE) -> 1.358548 | M31: 0.3212842214 | N31: 0.0162 | O31: 0.0165 | P31: 1.65 | Q31: 0.1509162623 | R31: 0.0051 | S31: 0.0052 | T31: 0.52 | U31: 2.92 | V31: 0.91 | W31: 2.17 | X31: 3.83
A32: Pi-0-T | B32: Pi-0 | C32: 0-T | D32: 0.17 | E32: 11 | F32: 8.95604 | G32: =Mass!I27 -> 18.58 | H32: =Mass!J27 -> 81.42 | I32: 2.043956 | J32: 0.002044 | K32: 0.052044 | L32: =VLOOKUP($A32,BD!$Q$2:$T$79,4,FALSE) -> 1.178995 | M32: 0.7161521156 | N32: 0.0371 | O32: 0.0414 | P32: 4.14 | Q32: 0.2890995478 | R32: 0.0123 | S32: 0.0138 | T32: 1.38 | U32: 8.30 | V32: 2.76 | W32: 5.52 | X32: 11.06
A33: Pi-0-S | B33: Pi-0 | C33: 0-S | D33: 0.13 | E33: 11.01 | F33: 9.05022 | G33: =Mass!I28 -> 17.80 | H33: =Mass!J28 -> 82.20 | I33: 1.959780 | J33: 0.001960 | K33: 0.051960 | L33: =VLOOKUP($A33,BD!$Q$2:$T$79,4,FALSE) -> 1.253536 | M33: 0.1822376958 | N33: 0.0093 | O33: 0.0102 | P33: 1.02 | Q33: 0.20114213 | R33: 0.0078 | S33: 0.0086 | T33: 0.86 | U33: 1.67 | V33: 1.40 | W33: 1.88 | X33: 3.06
A34: Pi-1-T | B34: Pi-1 | C34: 1-T | D34: 0.17 | E34: 11 | F34: 8.86813 | G34: =Mass!I29 -> 19.38 | H34: =Mass!J29 -> 80.62 | I34: 2.131868 | J34: 0.002132 | K34: 0.052132 | L34: =VLOOKUP($A34,BD!$Q$2:$T$79,4,FALSE) -> 1.166045 | M34: 0.3318560458 | N34: 0.0171 | O34: 0.0193 | P34: 1.93 | Q34: 0.2319774061 | R34: 0.0094 | S34: 0.0106 | T34: 1.06 | U34: 3.82 | V34: 2.10 | W34: 2.99 | X34: 5.92
A35: Pi-1-S | B35: Pi-1 | C35: 1-S | D35: 0.13 | E35: 11.01 | F35: 8.94219 | G35: =Mass!I30 -> 18.78 | H35: =Mass!J30 -> 81.22 | I35: 2.067812 | J35: 0.002068 | K35: 0.052068 | L35: =VLOOKUP($A35,BD!$Q$2:$T$79,4,FALSE) -> 1.242928 | M35: 0.2842362233 | N35: 0.0146 | O35: 0.0163 | P35: 1.63 | Q35: 0.2343252697 | R35: 0.0095 | S35: 0.0106 | T35: 1.06 | U35: 2.64 | V35: 1.72 | W35: 2.69 | X35: 4.35
A36: Ja-0-T | B36: Ja-0 | C36: 0-T | D36: 0.17 | E36: 11 | F36: 8.56044 | G36: =Mass!I31 -> 22.18 | H36: =Mass!J31 -> 77.82 | I36: 2.439560 | J36: 0.002440 | K36: 0.052440 | L36: =VLOOKUP($A36,BD!$Q$2:$T$79,4,FALSE) -> 1.211457 | M36: 0.9599753025 | N36: 0.0501 | O36: 0.0586 | P36: 5.86 | Q36: 0.3096042237 | R36: 0.0135 | S36: 0.0158 | T36: 1.58 | U36: 12.06 | V36: 3.25 | W36: 7.44 | X36: =U36+V36 -> 15.31
A37: Ja-1-T | B37: Ja-1 | C37: 1-T | D37: 0.17 | E37: 11.01 | F37: 8.66487 | G37: =Mass!I32 -> 21.30 | H37: =Mass!J32 -> 78.70 | I37: 2.345130 | J37: 0.002345 | K37: 0.052345 | L37: =VLOOKUP($A37,BD!$Q$2:$T$79,4,FALSE) -> 1.236752 | M37: 0.7833493906 | N37: 0.0408 | O37: 0.0471 | P37: 4.71 | Q37: 0.2680240187 | R37: 0.0113 | S37: 0.0131 | T37: 1.31 | U37: 9.90 | V37: 2.75 | W37: 6.01 | X37: 12.65
A38: BL1-14.07 | F38: 0.00000 | I38: 0.000000 | J38: 0.000000 | K38: 0.050000 | L38: =VLOOKUP($A38,BD!$Q$2:$T$79,4,FALSE) ->  | M38: -0.01816083697 | N38: -0.0011 | Q38: 0.07534267442 | R38: 0.0012
A39: BL2-14.07 | F39: 0.00000 | I39: 0.000000 | J39: 0.000000 | K39: 0.050000 | L39: =VLOOKUP($A39,BD!$Q$2:$T$79,4,FALSE) ->  | M39: -0.01346224837 | N39: -0.0009 | Q39: 0.03832929439 | R39: -0.0007
A40: Mu-0-T | B40: Mu-0 | C40: 0-T | D40: 0.17 | E40: 11.01 | F40: 8.77497 | G40: =Mass!I33 -> 20.30 | H40: =Mass!J33 -> 79.70 | I40: 2.235030 | J40: 0.002235 | K40: 0.052235 | L40: =VLOOKUP($A40,BD!$Q$2:$T$79,4,FALSE) -> 1.100731 | M40: 0.5563348451 | N40: =(M40-(AVERAGE(M$38:M$39)))*K40 -> 0.0299 | O40: =(10*N40)/F40 -> 0.0341 | P40: 3.41 | Q40: 0.3463874211 | R40: =((Q40-AVERAGE(Q$38:Q$39))*K40) -> 0.0151 | S40: =(10*R40)/F40 -> 0.0172 | T40: 1.72 | U40: 6.37 | V40: 3.23 | W40: =P40+T40 -> 5.13 | X40: 9.60
A41: Mu-0-S | B41: Mu-0 | C41: 0-S | D41: 0.13 | E41: 11.01 | F41: 8.77720 | G41: =Mass!I34 -> 20.28 | H41: =Mass!J34 -> 79.72 | I41: 2.232797 | J41: 0.002233 | K41: 0.052233 | L41: =VLOOKUP($A41,BD!$Q$2:$T$79,4,FALSE) -> 1.184855 | M41: 0.225522511 | N41: 0.0126 | O41: 0.0144 | P41: 1.44 | Q41: 0.3350163951 | R41: 0.0145 | S41: 0.0166 | T41: 1.66 | U41: 2.21 | V41: 2.55 | W41: 3.09 | X41: 4.76
A42: Mu-1-T | B42: Mu-1 | C42: 1-T | D42: 0.17 | E42: 11.01 | F42: 8.68921 | G42: =Mass!I35 -> 21.08 | H42: =Mass!J35 -> 78.92 | I42: 2.320789 | J42: 0.002321 | K42: 0.052321 | L42: =VLOOKUP($A42,BD!$Q$2:$T$79,4,FALSE) -> 1.093314 | M42: 0.4834134959 | N42: 0.0261 | O42: 0.0301 | P42: 3.01 | Q42: 0.38874104 | R42: 0.0174 | S42: 0.0200 | T42: 2.00 | U42: 5.59 | V42: 3.71 | W42: 5.00 | X42: 9.30
A43: Mu-1-S | B43: Mu-1 | C43: 1-S | D43: 0.13 | E43: 11.01 | F43: 8.68921 | G43: =Mass!I36 -> 21.08 | H43: =Mass!J36 -> 78.92 | I43: 2.320789 | J43: 0.002321 | K43: 0.052321 | L43: =VLOOKUP($A43,BD!$Q$2:$T$79,4,FALSE) -> 1.177343 | M43: 0.3097055567 | N43: 0.0170 | O43: 0.0196 | P43: 1.96 | Q43: 0.3251369531 | R43: 0.0140 | S43: 0.0162 | T43: 1.62 | U43: 3.00 | V43: 2.47 | W43: 3.58 | X43: 5.47
A44: Kp-0-T | B44: Kp-0 | C44: 0-T | D44: 0.17 | E44: 11.01 | F44: 9.23739 | G44: =Mass!I37 -> 16.10 | H44: =Mass!J37 -> 83.90 | I44: 1.772610 | J44: 0.001773 | K44: 0.051773 | L44: =VLOOKUP($A44,BD!$Q$2:$T$79,4,FALSE) -> 1.223819 | M44: 0.2693946497 | N44: 0.0148 | O44: 0.0160 | P44: 1.60 | Q44: 0.2380726443 | R44: 0.0094 | S44: 0.0102 | T44: 1.02 | U44: 3.33 | V44: 2.11 | W44: 2.61 | X44: 5.44
A45: Kp-0-S | B45: Kp-0 | C45: 0-S | D45: 0.13 | E45: 11 | F45: 9.04396 | G45: =Mass!I38 -> 17.78 | H45: =Mass!J38 -> 82.22 | I45: 1.956044 | J45: 0.001956 | K45: 0.051956 | L45: =VLOOKUP($A45,BD!$Q$2:$T$79,4,FALSE) -> 1.313594 | M45: 0.2176262718 | N45: 0.0121 | O45: 0.0134 | P45: 1.34 | Q45: 0.2367467918 | R45: 0.0093 | S45: 0.0103 | T45: 1.03 | U45: 2.29 | V45: 1.76 | W45: 2.37 | X45: 4.06
A46: Kp-1-T | B46: Kp-1 | C46: 1-T | D46: 0.17 | E46: 11 | F46: 9.24000 | G46: =Mass!I39 -> 16.00 | H46: =Mass!J39 -> 84.00 | I46: 1.760000 | J46: 0.001760 | K46: 0.051760 | L46: =VLOOKUP($A46,BD!$Q$2:$T$79,4,FALSE) -> 1.202306 | M46: 0.344394938 | N46: 0.0186 | O46: 0.0202 | P46: 2.02 | Q46: 0.2300530786 | R46: 0.0090 | S46: 0.0097 | T46: 0.97 | U46: 4.12 | V46: 1.98 | W46: 2.99 | X46: 6.11
A47: Kp-1-S | B47: Kp-1 | C47: 1-S | D47: 0.13 | E47: 11 | F47: 8.99800 | G47: =Mass!I40 -> 18.20 | H47: =Mass!J40 -> 81.80 | I47: 2.002000 | J47: 0.002002 | K47: 0.052002 | L47: =VLOOKUP($A47,BD!$Q$2:$T$79,4,FALSE) -> 1.289231 | M47: 0.2654605141 | N47: 0.0146 | O47: 0.0163 | P47: 1.63 | Q47: 0.2106809016 | R47: 0.0080 | S47: 0.0089 | T47: 0.89 | U47: 2.72 | V47: 1.49 | W47: 2.51 | X47: 4.21
A48: Ki-0-T | B48: Ki-0 | C48: 0-T | D48: 0.17 | E48: 11.01 | F48: 9.89910 | G48: =Mass!I41 -> 10.09 | H48: =Mass!J41 -> 89.91 | I48: 1.110899 | J48: 0.001111 | K48: 0.051111 | L48: =VLOOKUP($A48,BD!$Q$2:$T$79,4,FALSE) -> 1.356980 | M48: 2.851213149 | N48: 0.1465 | O48: 0.1480 | P48: 14.80 | Q48: 0.9302320582 | R48: 0.0446 | S48: 0.0451 | T48: 4.51 | U48: 34.15 | V48: 10.40 | W48: 19.31 | X48: 44.55
A49: Ki-0-S | B49: Ki-0 | C49: 0-S | D49: 0.13 | E49: 11.01 | F49: 9.97506 | G49: =Mass!I42 -> 9.40 | H49: =Mass!J42 -> 90.60 | I49: 1.034940 | J49: 0.001035 | K49: 0.051035 | L49: =VLOOKUP($A49,BD!$Q$2:$T$79,4,FALSE) -> 1.473656 | M49: 0.6562171432 | N49: 0.0343 | O49: 0.0344 | P49: 3.44 | Q49: 0.2924694227 | R49: 0.0120 | S49: 0.0121 | T49: 1.21 | U49: 6.59 | V49: 2.31 | W49: 4.64 | X49: 8.90
A50: Ki-1-T | B50: Ki-1 | C50: 1-T | D50: 0.17 | E50: 11 | F50: 9.93407 | G50: =Mass!I43 -> 9.69 | H50: =Mass!J43 -> 90.31 | I50: 1.065934 | J50: 0.001066 | K50: 0.051066 | L50: =VLOOKUP($A50,BD!$Q$2:$T$79,4,FALSE) -> 1.296698 | M50: 1.238776871 | N50: 0.0641 | O50: 0.0645 | P50: 6.45 | Q50: 0.91921091 | R50: 0.0440 | S50: 0.0443 | T50: 4.43 | U50: 14.22 | V50: 9.77 | W50: 10.88 | X50: 23.99
A51: Ki-1-S | B51: Ki-1 | C51: 1-S | D51: 0.13 | E51: 11 | F51: 10.15300 | G51: =Mass!I44 -> 7.70 | H51: =Mass!J44 -> 92.30 | I51: 0.847000 | J51: 0.000847 | K51: 0.050847 | L51: =VLOOKUP($A51,BD!$Q$2:$T$79,4,FALSE) -> 1.393699 | M51: 0.2997583463 | N51: 0.0160 | O51: 0.0158 | P51: 1.58 | Q51: 0.2431642858 | R51: 0.0095 | S51: 0.0093 | T51: 0.93 | U51: 2.86 | V51: 1.69 | W51: 2.51 | X51: 4.55
A52: BL1-20.07 | F52: 0.00000 | I52: 0.000000 | J52: 0.000000 | K52: 0.050000 | L52: =VLOOKUP($A52,BD!$Q$2:$T$79,4,FALSE) ->  | M52: 0.1147420977 | N52: 0.0065 | Q52: 0.1160573925 | R52: 0.0030
A53: BL2-20.07 | F53: 0.00000 | I53: 0.000000 | J53: 0.000000 | K53: 0.050000 | L53: =VLOOKUP($A53,BD!$Q$2:$T$79,4,FALSE) ->  | M53: 0.001397970326 | N53: 0.0009 | Q53: 0.08993625834 | R53: 0.0017
A54: Na-0-T | B54: Na-0 | C54: 0-T | D54: 0.17 | E54: 11 | F54: 8.51648 | G54: =Mass!I45 -> 22.58 | H54: =Mass!J45 -> 77.42 | I54: 2.483516 | J54: 0.002484 | K54: 0.052484 | L54: =VLOOKUP($A54,BD!$Q$2:$T$79,4,FALSE) -> 1.139645 | M54: 0.575278361 | N54: =(M54-(AVERAGE(M$52:M$53)))*K54 -> 0.0271 | O54: =(10*N54)/F54 -> 0.0319 | P54: 3.19 | Q54: 0.3462124822 | R54: =((Q54-AVERAGE(Q$52:Q$53))*K54) -> 0.0128 | S54: =(10*R54)/F54 -> 0.0150 | T54: 1.50 | U54: 6.18 | V54: 2.90 | W54: =P54+T54 -> 4.69 | X54: 9.08
A55: Na-0-S | B55: Na-0 | C55: 0-S | D55: 0.13 | E55: 11 | F55: 8.84615 | G55: =Mass!I46 -> 19.58 | H55: =Mass!J46 -> 80.42 | I55: 2.153846 | J55: 0.002154 | K55: 0.052154 | L55: =VLOOKUP($A55,BD!$Q$2:$T$79,4,FALSE) -> 1.207760 | M55: 0.3382327017 | N55: 0.0146 | O55: 0.0165 | P55: 1.65 | Q55: 0.2757765724 | R55: 0.0090 | S55: 0.0102 | T55: 1.02 | U55: 2.59 | V55: 1.60 | W55: 2.67 | X55: 4.19
A56: Na-1-T | B56: Na-1 | C56: 1-T | D56: 0.17 | E56: 11.01 | F56: 8.63184 | G56: =Mass!I47 -> 21.60 | H56: =Mass!J47 -> 78.40 | I56: 2.378160 | J56: 0.002378 | K56: 0.052378 | L56: =VLOOKUP($A56,BD!$Q$2:$T$79,4,FALSE) -> 1.128359 | M56: 0.6841383195 | N56: 0.0328 | O56: 0.0380 | P56: 3.80 | Q56: 0.4194934503 | R56: 0.0166 | S56: 0.0192 | T56: 1.92 | U56: 7.29 | V56: 3.68 | W56: 5.72 | X56: 10.97
A57: Na-1-S | B57: Na-1 | C57: 1-S | D57: 0.13 | E57: 11.01 | F57: 8.89608 | G57: =Mass!I48 -> 19.20 | H57: =Mass!J48 -> 80.80 | I57: 2.113920 | J57: 0.002114 | K57: 0.052114 | L57: =VLOOKUP($A57,BD!$Q$2:$T$79,4,FALSE) -> 1.138927 | M57: 0.3240810004 | N57: 0.0139 | O57: 0.0156 | P57: 1.56 | Q57: 0.3625462474 | R57: 0.0135 | S57: 0.0152 | T57: 1.52 | U57: 2.31 | V57: 2.25 | W57: 3.08 | X57: 4.56
A58: Ik-0-T | B58: Ik-0 | C58: 0-T | D58: 0.17 | E58: 11 | F58: 8.34900 | G58: =Mass!I49 -> 24.10 | H58: =Mass!J49 -> 75.90 | I58: 2.651000 | J58: 0.002651 | K58: 0.052651 | L58: =VLOOKUP($A58,BD!$Q$2:$T$79,4,FALSE) -> 0.958830 | M58: 1.594517828 | N58: 0.0809 | O58: 0.0969 | P58: 9.69 | Q58: 0.3771950752 | R58: 0.0144 | S58: 0.0173 | T58: 1.73 | U58: 15.79 | V58: 2.82 | W58: 11.42 | X58: 18.61
A59: Ik-0-S | B59: Ik-0 | C59: 0-S | D59: 0.13 | E59: 11 | F59: 8.37100 | G59: =Mass!I50 -> 23.90 | H59: =Mass!J50 -> 76.10 | I59: 2.629000 | J59: 0.002629 | K59: 0.052629 | L59: =VLOOKUP($A59,BD!$Q$2:$T$79,4,FALSE) -> 1.009126 | M59: 0.7753412803 | N59: 0.0377 | O59: 0.0451 | P59: 4.51 | Q59: 0.5309571266 | R59: 0.0225 | S59: 0.0269 | T59: 2.69 | U59: 5.92 | V59: 3.53 | W59: 7.20 | X59: 9.45
A60: Ik-1-T | B60: Ik-1 | C60: 1-T | D60: 0.17 | E60: 11 | F60: 8.52747 | G60: =Mass!I51 -> 22.48 | H60: =Mass!J51 -> 77.52 | I60: 2.472527 | J60: 0.002473 | K60: 0.052473 | L60: =VLOOKUP($A60,BD!$Q$2:$T$79,4,FALSE) -> 1.042671 | M60: 0.2898577489 | N60: 0.0122 | O60: 0.0143 | P60: 1.43 | Q60: 0.5305427977 | R60: 0.0224 | S60: 0.0263 | T60: 2.63 | U60: 2.53 | V60: 4.66 | W60: 4.06 | X60: 7.19
A61: Ik-1-S | B61: Ik-1 | C61: 1-S | D61: 0.13 | E61: 11 | F61: 8.74500 | G61: =Mass!I52 -> 20.50 | H61: =Mass!J52 -> 79.50 | I61: 2.255000 | J61: 0.002255 | K61: 0.052255 | L61: =VLOOKUP($A61,BD!$Q$2:$T$79,4,FALSE) -> 1.087877 | M61: 0.2964208568 | N61: 0.0125 | O61: 0.0142 | P61: 1.42 | Q61: 0.4031780997 | R61: 0.0157 | S61: 0.0179 | T61: 1.79 | U61: 2.01 | V61: 2.54 | W61: 3.22 | X61: 4.55
A62: Ne-0-T | B62: Ne-0 | C62: 0-T | D62: 0.17 | E62: 11 | F62: 9.19600 | G62: =Mass!I53 -> 16.40 | H62: =Mass!J53 -> 83.60 | I62: 1.804000 | J62: 0.001804 | K62: 0.051804 | L62: =VLOOKUP($A62,BD!$Q$2:$T$79,4,FALSE) -> 1.092704 | M62: 0.3051747748 | N62: 0.0128 | O62: 0.0139 | P62: 1.39 | Q62: 0.1753064224 | R62: 0.0037 | S62: 0.0041 | T62: 0.41 | U62: 2.59 | V62: 0.76 | W62: 1.80 | X62: 3.34
A63: Ne-0-S | B63: Ne-0 | C63: 0-S | D63: 0.13 | E63: 11.01 | F63: 9.28143 | G63: =Mass!I54 -> 15.70 | H63: =Mass!J54 -> 84.30 | I63: 1.728570 | J63: 0.001729 | K63: 0.051729 | L63: =VLOOKUP($A63,BD!$Q$2:$T$79,4,FALSE) -> 1.155184 | M63: 0.2168897867 | N63: 0.0082 | O63: 0.0089 | P63: 0.89 | Q63: 0.2035728594 | R63: 0.0052 | S63: 0.0056 | T63: 0.56 | U63: 1.33 | V63: 0.84 | W63: 1.45 | X63: 2.17
A64: Ne-1-T | B64: Ne-1 | C64: 1-T | D64: 0.17 | E64: 11 | F64: 8.94505 | G64: =Mass!I55 -> 18.68 | H64: =Mass!J55 -> 81.32 | I64: 2.054945 | J64: 0.002055 | K64: 0.052055 | L64: =VLOOKUP($A64,BD!$Q$2:$T$79,4,FALSE) -> 1.079623 | M64: 0.2590745355 | N64: 0.0105 | O64: 0.0117 | P64: 1.17 | Q64: 0.2498764137 | R64: 0.0076 | S64: 0.0085 | T64: 0.85 | U64: 2.15 | V64: 1.57 | W64: 2.02 | X64: 3.72
A65: Ne-1-S | B65: Ne-1 | C65: 1-S | D65: 0.13 | E65: 11 | F65: 9.00900 | G65: =Mass!I56 -> 18.10 | H65: =Mass!J56 -> 81.90 | I65: 1.991000 | J65: 0.001991 | K65: 0.051991 | L65: =VLOOKUP($A65,BD!$Q$2:$T$79,4,FALSE) -> 1.136781 | M65: 0.168188543 | N65: 0.0057 | O65: 0.0064 | P65: 0.64 | Q65: 0.195709818 | R65: 0.0048 | S65: 0.0054 | T65: 0.54 | U65: 0.94 | V65: 0.79 | W65: 1.17 | X65: 1.73
A66: Ae-0-T | B66: Ae-0 | C66: 0-T | D66: 0.17 | E66: 11 | F66: 8.54700 | G66: =Mass!I57 -> 22.30 | H66: =Mass!J57 -> 77.70 | I66: 2.453000 | J66: 0.002453 | K66: 0.052453 | L66: =VLOOKUP($A66,BD!$Q$2:$T$79,4,FALSE) -> 0.969209 | M66: 0.2162278823 | N66: 0.0083 | O66: 0.0097 | P66: 0.97 | Q66: 0.3277242068 | R66: 0.0118 | S66: 0.0138 | T66: 1.38 | U66: 1.60 | V66: 2.27 | W66: 2.35 | X66: 3.87
A67: Ae-0-S | B67: Ae-0 | C67: 0-S | D67: 0.13 | E67: 11 | F67: 8.44800 | G67: =Mass!I58 -> 23.20 | H67: =Mass!J58 -> 76.80 | I67: 2.552000 | J67: 0.002552 | K67: 0.052552 | L67: =VLOOKUP($A67,BD!$Q$2:$T$79,4,FALSE) -> 1.041147 | M67: 0.1948884591 | N67: 0.0072 | O67: 0.0085 | P67: 0.85 | Q67: 0.3746538581 | R67: 0.0143 | S67: 0.0169 | T67: 1.69 | U67: 1.15 | V67: 2.29 | W67: 2.54 | X67: 3.44
A68: Ae-1-T | B68: Ae-1 | C68: 1-T | D68: 0.17 | E68: 11.01 | F68: 8.48871 | G68: =Mass!I59 -> 22.90 | H68: =Mass!J59 -> 77.10 | I68: 2.521290 | J68: 0.002521 | K68: 0.052521 | L68: =VLOOKUP($A68,BD!$Q$2:$T$79,4,FALSE) -> 1.021121 | M68: 0.2326076843 | N68: 0.0092 | O68: 0.0108 | P68: =O68*100 -> 1.08 | Q68: 0.3063724585 | R68: 0.0107 | S68: 0.0126 | T68: =S68*100 -> 1.26 | U68: 1.87 | V68: 2.18 | W68: 2.34 | X68: =U68+V68 -> 4.06
A69: Ae-1-S | B69: Ae-1 | C69: 1-S | D69: 0.13 | E69: 11.01 | F69: =E69*(H69/100) -> 8.41424 | G69: =Mass!I60 -> 23.58 | H69: =Mass!J60 -> 76.42 | I69: =(E69-F69) -> 2.595764 | J69: =I69/1000 -> 0.002596 | K69: =0.05+J69 -> 0.052596 | L69: =VLOOKUP($A69,BD!$Q$2:$T$79,4,FALSE) -> 1.092096 | M69: 0.2723965258 | N69: 0.0113 | O69: 0.0134 | P69: 1.34 | Q69: 0.3299799974 | R69: 0.0119 | S69: 0.0142 | T69: 1.42 | U69: =((L69*1000)*D69*10000)*(P69/1000000) -> 1.90 | V69: =((L69*1000)*D69*10000)*(T69/1000000) -> 2.01 | W69: 2.76 | X69: 3.92
A70: BL1-21.07 | F70: 0.00000 | I70: 0.000000 | J70: 0.000000 | K70: 0.050000 | L70: =VLOOKUP($A70,BD!$Q$2:$T$79,4,FALSE) ->  | M70: -0.0008487754123 | N70: -0.0029 | Q70: 0.2724527341
A71: BL2-21.07 | F71: 0.00000 | I71: 0.000000 | J71: 0.000000 | K71: 0.050000 | L71: =VLOOKUP($A71,BD!$Q$2:$T$79,4,FALSE) ->  | M71: -0.0004572263624 | N71: -0.0029 | Q71: 0.2027165797
A72: Jn-0-T | B72: Jn-0 | C72: 0-T | D72: 0.17 | E72: 11.01 | F72: 8.76620 | G72: =Mass!I61 -> 20.38 | H72: =Mass!J61 -> 79.62 | I72: 2.243796 | J72: 0.002244 | K72: 0.052244 | L72: =VLOOKUP($A72,BD!$Q$2:$T$79,4,FALSE) -> 1.178168 | M72: 0.2518588459 | N72: =(M72-(AVERAGE(M$70:M$71)))*K72 -> 0.0132 | O72: =(10*N72)/F72 -> 0.0150 | P72: 1.50 | Q72: 0.391457196 | R72: =((Q72-AVERAGE(Q$70:Q$71))*K72) -> 0.0080 | S72: =(10*R72)/F72 -> 0.0092 | T72: 0.92 | U72: 3.01 | V72: 1.84 | W72: =P72+T72 -> 2.42 | X72: 4.85
A73: Jn-0-S | B73: Jn-0 | C73: 0-S | D73: 0.13 | E73: 11.01 | F73: 9.08517 | G73: =Mass!I62 -> 17.48 | H73: =Mass!J62 -> 82.52 | I73: 1.924825 | J73: 0.001925 | K73: 0.051925 | L73: =VLOOKUP($A73,BD!$Q$2:$T$79,4,FALSE) -> 1.280764 | M73: 0.2039966358 | N73: 0.0106 | O73: 0.0117 | P73: 1.17 | Q73: 0.3431188266 | R73: 0.0055 | S73: 0.0060 | T73: 0.60 | U73: 1.95 | V73: 1.00 | W73: 1.77 | X73: 2.95
A74: Jn-1-T | B74: Jn-1 | C74: 1-T | D74: 0.17 | E74: 11.01 | F74: 8.74194 | G74: =Mass!I63 -> 20.60 | H74: =Mass!J63 -> 79.40 | I74: 2.268060 | J74: 0.002268 | K74: 0.052268 | L74: =VLOOKUP($A74,BD!$Q$2:$T$79,4,FALSE) -> 1.197840 | M74: 0.3586025749 | N74: 0.0188 | O74: 0.0215 | P74: 2.15 | Q74: 0.5793691545 | R74: 0.0179 | S74: 0.0204 | T74: 2.04 | U74: 4.37 | V74: 4.16 | W74: 4.19 | X74: 8.54
A75: Jn-1-S | B75: Jn-1 | C75: 1-S | D75: 0.13 | E75: 11 | F75: 9.13000 | G75: =Mass!I64 -> 17.00 | H75: =Mass!J64 -> 83.00 | I75: 1.870000 | J75: 0.001870 | K75: 0.051870 | L75: =VLOOKUP($A75,BD!$Q$2:$T$79,4,FALSE) -> 1.284361 | M75: 0.2770298562 | N75: 0.0144 | O75: 0.0158 | P75: 1.58 | Q75: 0.4570776834 | R75: 0.0114 | S75: 0.0125 | T75: 1.25 | U75: 2.63 | V75: 2.08 | W75: 2.82 | X75: 4.72
A76: Ni-0-T | B76: Ni-0 | C76: 0-T | D76: 0.17 | E76: 11.01 | F76: 7.27407 | G76: =Mass!I65 -> 33.93 | H76: =Mass!J65 -> 66.07 | I76: 3.735928 | J76: 0.003736 | K76: 0.053736 | L76: =VLOOKUP($A76,BD!$Q$2:$T$79,4,FALSE) -> 0.990773 | M76: 0.4255388173 | N76: 0.0229 | O76: 0.0315 | P76: 3.15 | Q76: 0.7269162727 | R76: 0.0263 | S76: 0.0361 | T76: 3.61 | U76: 5.30 | V76: 6.09 | W76: 6.76 | X76: 11.39
A77: Ni-1-T | B77: Ni-1 | C77: 1-T | D77: 0.17 | E77: 11.01 | F77: 6.90327 | G77: =Mass!I66 -> 37.30 | H77: =Mass!J66 -> 62.70 | I77: 4.106730 | J77: 0.004107 | K77: 0.054107 | L77: =VLOOKUP($A77,BD!$Q$2:$T$79,4,FALSE) -> 0.960723 | M77: 0.3425490639 | N77: 0.0186 | O77: 0.0269 | P77: 2.69 | Q77: 0.6583678611 | R77: 0.0228 | S77: 0.0330 | T77: 3.30 | U77: 4.39 | V77: 5.39 | W77: 5.99 | X77: 9.78
A78: BL1-27.07 | C78: 1-T | F78: 0.00000 | I78: 0.000000 | J78: 0.000000 | K78: 0.050000 | L78: =VLOOKUP($A78,BD!$Q$2:$T$79,4,FALSE) ->  | M78: -0.003477747604 | N78: -0.0001 | Q78: 0.03239058043
A79: BL2-27.07 | C79: 1-S | F79: 0.00000 | I79: 0.000000 | J79: 0.000000 | K79: 0.050000 | L79: =VLOOKUP($A79,BD!$Q$2:$T$79,4,FALSE) ->  | M79: 0.09772835918 | N79: 0.0049 | Q79: 0.06046366394
A80: La-0-T | B80: La-0 | C80: 0-T | D80: 0.17 | E80: 11 | F80: 8.93200 | G80: =Mass!I67 -> 18.80 | H80: =Mass!J67 -> 81.20 | I80: 2.068000 | J80: 0.002068 | K80: 0.052068 | L80: =VLOOKUP($A80,BD!$Q$2:$T$79,4,FALSE) -> 1.278391 | M80: 0.4551660287 | N80: =(M80-(AVERAGE(M$78:M$79)))*K80 -> 0.0212 | O80: =(10*N80)/F80 -> 0.0238 | P80: 2.38 | Q80: 0.4293544777 | R80: =((Q80-AVERAGE(Q$78:Q$79))*K80) -> 0.0199 | S80: =(10*R80)/F80 -> 0.0223 | T80: 2.23 | U80: 5.17 | V80: 4.85 | W80: =P80+T80 -> 4.61 | X80: 10.02
A81: La-0-S | B81: La-0 | C81: 0-S | D81: 0.13 | E81: 11 | F81: 8.94300 | G81: =Mass!I68 -> 18.70 | H81: =Mass!J68 -> 81.30 | I81: 2.057000 | J81: 0.002057 | K81: 0.052057 | L81: =VLOOKUP($A81,BD!$Q$2:$T$79,4,FALSE) -> 1.331576 | M81: 0.5518133858 | N81: 0.0263 | O81: 0.0294 | P81: 2.94 | Q81: 0.4813757705 | R81: 0.0226 | S81: 0.0253 | T81: 2.53 | U81: 5.09 | V81: 4.38 | W81: 5.47 | X81: 9.47
A82: La-1-T | B82: La-1 | C82: 1-T | D82: 0.17 | E82: 11.01 | F82: 8.96214 | G82: =Mass!I69 -> 18.60 | H82: =Mass!J69 -> 81.40 | I82: 2.047860 | J82: 0.002048 | K82: 0.052048 | L82: =VLOOKUP($A82,BD!$Q$2:$T$79,4,FALSE) -> 1.324522 | M82: 0.5748215538 | N82: 0.0275 | O82: 0.0306 | P82: 3.06 | Q82: 0.4091996794 | R82: 0.0189 | S82: 0.0211 | T82: 2.11 | U82: 6.90 | V82: 4.74 | W82: 5.17 | X82: 11.64
A83: La-1-S | B83: La-1 | C83: 1-S | D83: 0.13 | E83: 11 | F83: 8.97600 | G83: =Mass!I70 -> 18.40 | H83: =Mass!J70 -> 81.60 | I83: 2.024000 | J83: 0.002024 | K83: 0.052024 | L83: =VLOOKUP($A83,BD!$Q$2:$T$79,4,FALSE) -> 1.391921 | M83: 0.632752168 | N83: 0.0305 | O83: 0.0339 | P83: 3.39 | Q83: 0.4235078368 | R83: 0.0196 | S83: 0.0219 | T83: 2.19 | U83: 6.14 | V83: 3.95 | W83: 5.58 | X83: 10.10
A84: Ko-0-T | B84: Ko-0 | C84: 0-T | D84: 0.17 | E84: 11.01 | F84: 8.74421 | G84: =Mass!I71 -> 20.58 | H84: =Mass!J71 -> 79.42 | I84: 2.265794 | J84: 0.002266 | K84: 0.052266 | L84: =VLOOKUP($A84,BD!$Q$2:$T$79,4,FALSE) -> 1.440150 | M84: 0.3583974778 | N84: 0.0163 | O84: 0.0186 | P84: 1.86 | Q84: 0.3972117638 | R84: 0.0183 | S84: 0.0210 | T84: 2.10 | U84: 4.56 | V84: 5.13 | W84: 3.96 | X84: 9.69
A85: Ko-0-S | B85: Ko-0 | C85: 0-S | D85: 0.13 | E85: 11.01 | F85: 8.97315 | G85: =Mass!I72 -> 18.50 | H85: =Mass!J72 -> 81.50 | I85: 2.036850 | J85: 0.002037 | K85: 0.052037 | L85: =VLOOKUP($A85,BD!$Q$2:$T$79,4,FALSE) -> 1.539718 | M85: 0.3275210385 | N85: 0.0146 | O85: 0.0163 | P85: 1.63 | Q85: 0.2429064812 | R85: 0.0102 | S85: 0.0114 | T85: 1.14 | U85: 3.25 | V85: 2.28 | W85: 2.77 | X85: 5.54
A86: Ko-1-T | B86: Ko-1 | C86: 1-T | D86: 0.17 | E86: 11 | F86: 8.71429 | G86: =Mass!I73 -> 20.78 | H86: =Mass!J73 -> 79.22 | I86: 2.285714 | J86: 0.002286 | K86: 0.052286 | L86: =VLOOKUP($A86,BD!$Q$2:$T$79,4,FALSE) -> 1.433904 | M86: 0.3684379142 | N86: 0.0168 | O86: 0.0193 | P86: 1.93 | Q86: 0.4048077933 | R86: 0.0187 | S86: 0.0215 | T86: 2.15 | U86: 4.70 | V86: 5.24 | W86: 4.08 | X86: 9.94
A87: Ko-1-S | B87: Ko-1 | C87: 1-S | D87: 0.13 | E87: 11.01 | F87: 8.90709 | G87: =Mass!I74 -> 19.10 | H87: =Mass!J74 -> 80.90 | I87: 2.102910 | J87: 0.002103 | K87: 0.052103 | L87: =VLOOKUP($A87,BD!$Q$2:$T$79,4,FALSE) -> 1.514455 | M87: 0.4270863683 | N87: 0.0198 | O87: 0.0222 | P87: 2.22 | Q87: 0.2705928578 | R87: 0.0117 | S87: 0.0131 | T87: 1.31 | U87: 4.38 | V87: 2.58 | W87: 3.53 | X87: 6.96
A88: BL1-28.07 | C88: 0 | F88: 0.00000 | I88: 0.000000 | J88: 0.000000 | K88: 0.050000 | L88: =VLOOKUP($A88,BD!$Q$2:$T$79,4,FALSE) ->  | M88: 0.006404204606 | N88: -0.0020 | Q88: 0.06736914529
A89: BL2-28.07 | C89: 0 | F89: 0.00000 | I89: 0.000000 | J89: 0.000000 | K89: 0.050000 | L89: =VLOOKUP($A89,BD!$Q$2:$T$79,4,FALSE) ->  | M89: 0.04616507836 | N89: -0.0000 | Q89: 0.03078850875
A90: Pa-0-T | B90: Pa-0 | C90: 0-T | D90: 0.17 | E90: 11.01 | F90: 8.90709 | G90: =Mass!I75 -> 19.10 | H90: =Mass!J75 -> 80.90 | I90: 2.102910 | J90: 0.002103 | K90: 0.052103 | L90: =VLOOKUP($A90,BD!$Q$2:$T$79,4,FALSE) -> 1.176521 | M90: 0.5773573 | N90: =(M90-(AVERAGE(M$88:M$89)))*K90 -> 0.0287 | O90: =(10*N90)/F90 -> 0.0322 | P90: 3.22 | Q90: 0.3125045259 | R90: =((Q90-AVERAGE(Q$88:Q$89))*K90) -> 0.0137 | S90: =(10*R90)/F90 -> 0.0154 | T90: 1.54 | U90: 6.45 | V90: 3.08 | W90: =P90+T90 -> 4.76 | X90: 9.53
A91: Pa-0-S | B91: Pa-0 | C91: 0-S | D91: 0.13 | E91: 11.01 | F91: 9.02820 | G91: =Mass!I76 -> 18.00 | H91: =Mass!J76 -> 82.00 | I91: 1.981800 | J91: 0.001982 | K91: 0.051982 | L91: =VLOOKUP($A91,BD!$Q$2:$T$79,4,FALSE) -> 1.226751 | M91: 0.5887961259 | N91: =(M91-(AVERAGE(M$88:M$89)))*K91 -> 0.0292 | O91: =(10*N91)/F91 -> 0.0324 | P91: 3.24 | Q91: 0.2862084529 | R91: =((Q91-AVERAGE(Q$88:Q$89))*K91) -> 0.0123 | S91: =(10*R91)/F91 -> 0.0137 | T91: 1.37 | U91: 5.17 | V91: 2.18 | W91: =P91+T91 -> 4.60 | X91: 7.34
A92: Pa-1-T | B92: Pa-1 | C92: 1-T | D92: 0.17 | E92: 11.01 | F92: 8.81020 | G92: =Mass!I77 -> 19.98 | H92: =Mass!J77 -> 80.02 | I92: 2.199800 | J92: 0.002200 | K92: 0.052200 | L92: =VLOOKUP($A92,BD!$Q$2:$T$79,4,FALSE) -> 1.176521 | M92: 0.3872136234 | N92: =(M92-(AVERAGE(M$88:M$89)))*K92 -> 0.0188 | O92: =(10*N92)/F92 -> 0.0214 | P92: 2.14 | Q92: 0.2829398584 | R92: =((Q92-AVERAGE(Q$88:Q$89))*K92) -> 0.0122 | S92: =(10*R92)/F92 -> 0.0139 | T92: 1.39 | U92: 4.28 | V92: 2.77 | W92: =P92+T92 -> 3.52 | X92: 7.05
A93: Pa-1-S | B93: Pa-1 | C93: 1-S | D93: 0.13 | E93: 11 | F93: 8.87912 | G93: =Mass!I78 -> 19.28 | H93: =Mass!J78 -> 80.72 | I93: 2.120879 | J93: 0.002121 | K93: 0.052121 | L93: =VLOOKUP($A93,BD!$Q$2:$T$79,4,FALSE) -> 1.237772 | M93: 0.4158992526 | N93: =(M93-(AVERAGE(M$88:M$89)))*K93 -> 0.0203 | O93: =(10*N93)/F93 -> 0.0229 | P93: 2.29 | Q93: 0.2378884981 | R93: =((Q93-AVERAGE(Q$88:Q$89))*K93) -> 0.0098 | S93: =(10*R93)/F93 -> 0.0111 | T93: 1.11 | U93: 3.68 | V93: 1.78 | W93: =P93+T93 -> 3.40 | X93: 5.46

Sheet ISNT_Amino_N
B1: Titration orded | C1: BD (kg/l) | D1: sampling depth (m) | E1: weight (g) | F1: pH start | G1: pH end | H1: added H2SO4 (ul) | I1: added H2SO4 (ml) | J1: ug N/ sample | K1: mg N/sample | L1: mg N/kg soil | M1: sd | N1: % error | O1: ISNT_N Kg/ha | Q1: Titer H2SO4 | R1: 280 | S1: ugN/mL
A2: Pu-0-T | B2: 1 | C2: =VLOOKUP($A2,BD!$Q$2:$T$79,4,FALSE) -> 1.221880994 | D2: 0.17 | E2: 1.0039 | F2: 6.01 | G2: 4.31 | H2: 956 | I2: =H2/1000 -> 0.956 | J2: =I2*$R$1 -> 267.68 | K2: =J2/1000 -> 0.26768 | L2: =K2/(E2/1000) -> 266.6 | M2: =STDEVA(L2:L3) -> 0.9132931173 | N2: =(L2-L3)/L2 -> 0.48% | O2: =((C2*1000)*D2*10000)*(L2/1000000) -> 553.864207
A3: Pu-0-Ta | B3: 2 | C3: =C2 -> 1.221880994 | D3: 0.17 | E3: 1.0014 | F3: 5.99 | G3: 4.29 | H3: 949 | I3: =H3/1000 -> 0.949 | J3: 265.72 | K3: 0.26572 | L3: =K3/(E3/1000) -> 265.3 | O3: =((C3*1000)*D3*10000)*(L3/1000000) -> 551.1813161
A4: Pu-0-S | B4: 3 | C4: =VLOOKUP($A4,BD!$Q$2:$T$79,4,FALSE) -> 1.254618968 | D4: 0.13 | E4: 1.0015 | F4: 5.88 | G4: 4.33 | H4: 768 | I4: 0.768 | J4: 215.04 | K4: 0.21504 | L4: =K4/(E4/1000) -> 214.7 | O4: 350.2059329
A5: Pu-1-T | B5: 4 | C5: =VLOOKUP($A5,BD!$Q$2:$T$79,4,FALSE) -> 1.167630923 | D5: 0.17 | E5: 1.0054 | F5: 6.06 | G5: 4.35 | H5: 1092 | I5: 1.092 | J5: 305.76 | K5: 0.30576 | L5: =K5/(E5/1000) -> 304.1 | O5: 603.6654194
A6: Pu-1-S | B6: 5 | C6: =VLOOKUP($A6,BD!$Q$2:$T$79,4,FALSE) -> 1.201406759 | D6: 0.13 | E6: 1.0022 | F6: 5.99 | G6: 4.31 | H6: 992 | I6: 0.992 | J6: 277.76 | K6: 0.27776 | L6: 277.2 | O6: 432.8612692
A7: Mo-0-T | B7: 6 | C7: =VLOOKUP($A7,BD!$Q$2:$T$79,4,FALSE) -> 1.308285846 | D7: 0.17 | E7: 1.0022 | F7: 5.84 | G7: 4.3 | H7: 727 | I7: 0.727 | J7: 203.56 | K7: 0.20356 | L7: 203.1 | M7: =STDEVA(L7:L8) -> 2.201330231 | N7: =(L7-L8)/L7 -> 1.53% | O7: 451.741103
A8: Mo-0-Ta | B8: 7 | C8: =C7 -> 1.308285846 | D8: 0.17 | E8: 1.0066 | F8: 5.85 | G8: 4.32 | H8: 719 | I8: 0.719 | J8: 201.32 | K8: 0.20132 | L8: 200.0 | O8: 444.8171875
A9: Mo-0-S | B9: 8 | C9: =VLOOKUP($A9,BD!$Q$2:$T$79,4,FALSE) -> 1.340280912 | D9: 0.13 | E9: 1.0065 | F9: 5.77 | G9: 4.34 | H9: 684 | I9: 0.684 | J9: 191.52 | K9: 0.19152 | L9: 190.3 | O9: 331.5427524
A10: Mo-1-T | B10: 9 | C10: =VLOOKUP($A10,BD!$Q$2:$T$79,4,FALSE) -> 1.296697985 | D10: 0.17 | E10: 1.0007 | F10: 5.83 | G10: 4.3 | H10: 746 | I10: 0.746 | J10: 208.88 | K10: 0.20888 | L10: 208.7 | O10: 460.1301766
A11: Mo-1-S | B11: 10 | C11: =VLOOKUP($A11,BD!$Q$2:$T$79,4,FALSE) -> 1.320374054 | D11: 0.13 | E11: 1.0047 | F11: 5.78 | G11: 4.32 | H11: 656 | I11: 0.656 | J11: 183.68 | K11: 0.18368 | L11: 182.8 | O11: 313.8092944
A12: Si-0-T | B12: 11 | C12: =VLOOKUP($A12,BD!$Q$2:$T$79,4,FALSE) -> 1.249244523 | D12: 0.17 | E12: 1.0038 | F12: 5.93 | G12: 4.32 | H12: 923 | I12: 0.923 | J12: 258.44 | K12: 0.25844 | L12: 257.5 | O12: 546.7753364
A13: Si-0-S | B13: 12 | C13: =VLOOKUP($A13,BD!$Q$2:$T$79,4,FALSE) -> 1.296697985 | D13: 0.13 | E13: 1.0018 | F13: 5.85 | G13: 4.33 | H13: 781 | I13: 0.781 | J13: 218.68 | K13: 0.21868 | L13: 218.3 | O13: 367.9681473
A14: Si-1-T | B14: 13 | C14: =VLOOKUP($A14,BD!$Q$2:$T$79,4,FALSE) -> 1.240854382 | D14: 0.17 | E14: 1.0018 | F14: 5.98 | G14: 4.33 | H14: 972 | I14: 0.972 | J14: 272.16 | K14: 0.27216 | L14: 271.7 | O14: 573.0770401
A15: Si-1-S | B15: 14 | C15: =VLOOKUP($A15,BD!$Q$2:$T$79,4,FALSE) -> 1.319004858 | D15: 0.13 | E15: 1.0032 | F15: 5.82 | G15: 4.35 | H15: 750 | I15: 0.75 | J15: 210 | K15: 0.21 | L15: 209.3 | O15: 358.9397191
A16: Pu-0-Tb | B16: 15 | C16: =C3 -> 1.221880994 | D16: 0.17 | E16: 1.0035 | F16: 5.98 | G16: 4.32 | H16: 1024 | I16: 1.024 | J16: 286.72 | K16: 0.28672 | L16: 285.7 | M16: =STDEVA(L16,L2:L3) -> 11.40691751 | N16: =(L3-L16)/L3 -> -7.68% | O16: 593.4968824
A19: Mi-0-T | B19: 1 | C19: =VLOOKUP($A19,BD!$Q$2:$T$79,4,FALSE) -> 1.130441067 | D19: 0.17 | E19: 1.0016 | F19: 6.18 | G19: 4.31 | H19: 1521 | I19: =H19/1000 -> 1.521 | J19: =I19*$R$1 -> 425.88 | K19: =J19/1000 -> 0.42588 | L19: 425.2 | M19: =STDEVA(L19:L20) -> 0.9883681047 | N19: =(L19-L20)/L19 -> -0.33% | O19: 817.1274071
A20: Mi-0-Ta | B20: 2 | C20: =C19 -> 1.130441067 | D20: 0.17 | E20: 1.0016 | F20: 6.14 | G20: 4.34 | H20: 1526 | I20: =H20/1000 -> 1.526 | J20: 427.28 | K20: 0.42728 | L20: 426.6 | O20: 819.813559
A21: Mi-0-S | B21: 3 | C21: =VLOOKUP($A21,BD!$Q$2:$T$79,4,FALSE) -> 1.297962096 | D21: 0.13 | E21: 1.0058 | F21: 5.88 | G21: 4.29 | H21: 850 | I21: 0.85 | J21: 238 | K21: 0.238 | L21: 236.6 | O21: 399.273685
A22: Mi-1-T | B22: 4 | C22: =VLOOKUP($A22,BD!$Q$2:$T$79,4,FALSE) -> 1.149908365 | D22: 0.17 | E22: 1.0041 | F22: 6.14 | G22: 4.32 | H22: 1463 | I22: 1.463 | J22: 409.64 | K22: 0.40964 | L22: 408.0 | O22: 797.5125848
A23: Mi-1-S | B23: 5 | C23: =VLOOKUP($A23,BD!$Q$2:$T$79,4,FALSE) -> 1.305669004 | D23: 0.13 | E23: 1.0023 | F23: 5.91 | G23: 4.29 | H23: 899 | I23: 0.899 | J23: 251.72 | K23: 0.25172 | L23: 251.1 | O23: 426.2814549
A24: Li-0-T | B24: 6 | C24: =VLOOKUP($A24,BD!$Q$2:$T$79,4,FALSE) -> 1.205930283 | D24: 0.17 | E24: 1.0047 | F24: 6.07 | G24: 4.32 | H24: 1290 | I24: 1.29 | J24: 361.2 | K24: 0.3612 | L24: 359.5 | O24: 737.0254114
A25: Li-0-S | B25: 7 | C25: =VLOOKUP($A25,BD!$Q$2:$T$79,4,FALSE) -> 1.347748021 | D25: 0.13 | E25: 1.0044 | F25: 5.83 | G25: 4.34 | H25: 760 | I25: 0.76 | J25: 212.8 | K25: 0.2128 | L25: 211.9 | O25: 371.2076987
A26: Li-1-T | B26: 8 | C26: =VLOOKUP($A26,BD!$Q$2:$T$79,4,FALSE) -> 1.141813189 | D26: 0.17 | E26: 1.0048 | F26: 6.1 | G26: 4.33 | H26: 1418 | I26: 1.418 | J26: 397.04 | K26: 0.39704 | L26: 395.1 | O26: 767.0057368
A27: Li-1-S | B27: 9 | C27: =VLOOKUP($A27,BD!$Q$2:$T$79,4,FALSE) -> 1.289230876 | D27: 0.13 | E27: 1.0014 | F27: 5.9 | G27: 4.34 | H27: 897 | I27: 0.897 | J27: 251.16 | K27: 0.25116 | L27: 250.8 | M27: =STDEVA(L27:L28) -> 0.3345914007 | N27: =(L27-L28)/L27 -> -0.19% | O27: 420.3556969
A28: Li-1-Sa | B28: 10 | C28: =C27 -> 1.289230876 | D28: 0.13 | E28: 1.0062 | F28: 5.9 | G28: 4.35 | H28: 903 | I28: 0.903 | J28: 252.84 | K28: 0.25284 | L28: 251.3 | O28: 421.1487528
A29: Ai-0-T | B29: 11 | C29: =VLOOKUP($A29,BD!$Q$2:$T$79,4,FALSE) -> 1.412126528 | D29: 0.17 | E29: 1.0036 | F29: 5.72 | G29: 4.34 | H29: 590 | I29: 0.59 | J29: 165.2 | K29: 0.1652 | L29: 164.6 | O29: 395.1590415
A30: Ai-0-S | B30: 12 | C30: =VLOOKUP($A30,BD!$Q$2:$T$79,4,FALSE) -> 1.468949964 | D30: 0.13 | E30: 1.0056 | F30: 5.62 | G30: 4.31 | H30: 506 | I30: 0.506 | J30: 141.68 | K30: 0.14168 | L30: 140.9 | O30: 269.050398
A31: Ai-1-T | B31: 13 | C31: =VLOOKUP($A31,BD!$Q$2:$T$79,4,FALSE) -> 1.344737239 | D31: 0.17 | E31: 1.0043 | F31: 5.79 | G31: 4.3 | H31: 714 | I31: 0.714 | J31: 199.92 | K31: 0.19992 | L31: 199.1 | O31: 455.0709719
A32: Ai-1-S | B32: 14 | C32: =VLOOKUP($A32,BD!$Q$2:$T$79,4,FALSE) -> 1.358548258 | D32: 0.13 | E32: 1.0031 | F32: 5.75 | G32: 4.3 | H32: 674 | I32: 0.674 | J32: 188.72 | K32: 0.18872 | L32: 188.1 | O32: 332.2707561
A33: Mi-0-Tb | B33: 15 | C33: =C19 -> 1.130441067 | D33: 0.17 | E33: 1.0035 | F33: 6.1 | G33: 4.32 | H33: 1432 | I33: 1.432 | J33: 400.96 | K33: 0.40096 | L33: 399.6 | M33: =STDEVA(L33,L19:L20) -> 15.2217425 | N33: =(L20-L33)/L20 -> 6.34% | O33: 767.857305
A36: Pi-0-T | B36: 1 | C36: =VLOOKUP($A36,BD!$Q$2:$T$79,4,FALSE) -> 1.178994801 | D36: 0.17 | E36: 1.0014 | F36: 6.09 | G36: 4.36 | H36: 1281 | I36: =H36/1000 -> 1.281 | J36: =I36*$R$1 -> 358.68 | K36: =J36/1000 -> 0.35868 | L36: 358.2 | M36: =STDEVA(L36:L37) -> 10.41364491 | N36: =(L36-L37)/L36 -> -4.11% | O36: 717.8941023
A37: Pi-0-Ta | B37: 2 | C37: =C36 -> 1.178994801 | D37: 0.17 | E37: 1.0039 | F37: 6.14 | G37: 4.38 | H37: 1337 | I37: 1.337 | J37: 374.36 | K37: 0.37436 | L37: 372.9 | O37: 747.4115345
A38: Pi-0-S | B38: 3 | C38: =VLOOKUP($A38,BD!$Q$2:$T$79,4,FALSE) -> 1.253535795 | D38: 0.13 | E38: 1.0042 | F38: 6.01 | G38: 4.39 | H38: 1033 | I38: 1.033 | J38: 289.24 | K38: 0.28924 | L38: 288.0 | O38: 469.3731341
A39: Pi-1-T | B39: 4 | C39: =VLOOKUP($A39,BD!$Q$2:$T$79,4,FALSE) -> 1.166044516 | D39: 0.17 | E39: 1.0062 | F39: 6.11 | G39: 4.35 | H39: 1292 | I39: 1.292 | J39: 361.76 | K39: 0.36176 | L39: 359.5 | O39: 712.6893751
A40: Pi-1-S | B40: 5 | C40: =VLOOKUP($A40,BD!$Q$2:$T$79,4,FALSE) -> 1.242928466 | D40: 0.13 | E40: 1.0051 | F40: 6.02 | G40: 4.39 | H40: 1047 | I40: 1.047 | J40: 293.16 | K40: 0.29316 | L40: 291.7 | O40: 471.286421
A41: Ja-0-T | B41: 6 | C41: =VLOOKUP($A41,BD!$Q$2:$T$79,4,FALSE) -> 1.211456778 | D41: 0.17 | E41: 1.002 | F41: 6.01 | G41: 4.4 | H41: 1010 | I41: 1.01 | J41: 282.8 | K41: 0.2828 | L41: 282.2 | O41: 581.2574457
A42: Ja-1-T | B42: 7 | C42: =VLOOKUP($A42,BD!$Q$2:$T$79,4,FALSE) -> 1.236751745 | D42: 0.17 | E42: 1.0059 | F42: 5.98 | G42: 4.38 | H42: 1042 | I42: 1.042 | J42: 291.76 | K42: 0.29176 | L42: 290.0 | O42: 609.8210273
A43: Mu-0-T | B43: 8 | C43: =VLOOKUP($A43,BD!$Q$2:$T$79,4,FALSE) -> 1.100731246 | D43: 0.17 | E43: 1.0029 | F43: 6.22 | G43: 4.38 | H43: 1657 | I43: 1.657 | J43: 463.96 | K43: 0.46396 | L43: 462.6 | O43: 865.6715094
A44: Mu-0-S | B44: 9 | C44: =VLOOKUP($A44,BD!$Q$2:$T$79,4,FALSE) -> 1.184854507 | D44: 0.13 | E44: 1.0028 | F44: 6.09 | G44: 4.39 | H44: 1243 | I44: 1.243 | J44: 348.04 | K44: 0.34804 | L44: 347.1 | O44: 534.5929312
A45: Mu-1-T | B45: 10 | C45: =VLOOKUP($A45,BD!$Q$2:$T$79,4,FALSE) -> 1.093313593 | D45: 0.17 | E45: 1.0021 | F45: 6.21 | G45: 4.37 | H45: 1672 | I45: 1.672 | J45: 468.16 | K45: 0.46816 | L45: 467.2 | O45: 868.3142162
A46: Mu-1-S | B46: 11 | C46: =VLOOKUP($A46,BD!$Q$2:$T$79,4,FALSE) -> 1.177342879 | D46: 0.13 | E46: 1.0006 | F46: 6.12 | G46: 4.38 | H46: 1285 | I46: 1.285 | J46: 359.8 | K46: 0.3598 | L46: 359.6 | O46: 550.3601422
A47: Kp-0-T | B47: 12 | C47: =VLOOKUP($A47,BD!$Q$2:$T$79,4,FALSE) -> 1.223818718 | D47: 0.17 | E47: 1.005 | F47: 6.03 | G47: 4.4 | H47: 1074 | I47: 1.074 | J47: 300.72 | K47: 0.30072 | L47: 299.2 | O47: 622.5328359
A48: Kp-0-S | B48: 13 | C48: =VLOOKUP($A48,BD!$Q$2:$T$79,4,FALSE) -> 1.313594062 | D48: 0.13 | E48: 1.0021 | F48: 5.91 | G48: 4.35 | H48: 828 | I48: 0.828 | J48: 231.84 | K48: 0.23184 | L48: 231.4 | M48: =STDEVA(L48:L49) -> 7.429932214 | N48: =(L48-L49)/L48 -> 4.54% | O48: 395.0770795
A49: Kp-0-Sa | B49: 14 | C49: =C48 -> 1.313594062 | D49: 0.13 | E49: 1.0016 | F49: 5.93 | G49: 4.38 | H49: 790 | I49: 0.79 | J49: 221.2 | K49: 0.2212 | L49: 220.8 | O49: 377.1336944
A50: Kp-1-T | B50: 15 | C50: =VLOOKUP($A50,BD!$Q$2:$T$79,4,FALSE) -> 1.202305637 | D50: 0.17 | E50: 1.0032 | F50: 6.02 | G50: 4.41 | H50: 1039 | I50: 1.039 | J50: 290.92 | K50: 0.29092 | L50: 290.0 | O50: 592.7203797
A51: Kp-1-S | B51: 16 | C51: =VLOOKUP($A51,BD!$Q$2:$T$79,4,FALSE) -> 1.289230876 | D51: 0.13 | E51: 1.0029 | F51: 5.87 | G51: 4.37 | H51: 877 | I51: 0.877 | J51: 245.56 | K51: 0.24556 | L51: 244.8 | O51: 410.3685254
A54: Ki-0-T | B54: 1 | C54: =VLOOKUP($A54,BD!$Q$2:$T$79,4,FALSE) -> 1.356979626 | D54: 0.17 | E54: 1.0021 | F54: 5.69 | G54: 4.4 | H54: 562 | I54: =H54/1000 -> 0.562 | J54: =I54*$R$1 -> 157.36 | K54: =J54/1000 -> 0.15736 | L54: 157.0 | M54: =STDEVA(L54:L55) -> 0.5646767495 | N54: =(L54-L55)/L54 -> -0.51% | O54: 362.2476138
A55: Ki-0-Ta | B55: 2 | C55: =C54 -> 1.356979626 | D55: 0.17 | E55: 1.0059 | F55: 5.76 | G55: 4.38 | H55: 567 | I55: =H55/1000 -> 0.567 | J55: 158.76 | K55: 0.15876 | L55: 157.8 | O55: 364.0898154
A56: Ki-0-S | B56: 3 | C56: =VLOOKUP($A56,BD!$Q$2:$T$79,4,FALSE) -> 1.473655957 | D56: 0.13 | E56: 1.0071 | F56: 5.52 | G56: 4.37 | H56: 386 | I56: 0.386 | J56: 108.08 | K56: 0.10808 | L56: 107.3 | O56: 205.5948333
A57: Ki-1-T | B57: 4 | C57: =VLOOKUP($A57,BD!$Q$2:$T$79,4,FALSE) -> 1.296697985 | D57: 0.17 | E57: 1.0054 | F57: 5.79 | G57: 4.38 | H57: 674 | I57: 0.674 | J57: 188.72 | K57: 0.18872 | L57: 187.7 | O57: 413.7774362
A58: Ki-1-S | B58: 5 | C58: =VLOOKUP($A58,BD!$Q$2:$T$79,4,FALSE) -> 1.393698827 | D58: 0.13 | E58: 1.0033 | F58: 5.64 | G58: 4.38 | H58: 456 | I58: 0.456 | J58: 127.68 | K58: 0.12768 | L58: 127.3 | O58: 230.5708223
A59: Na-0-T | B59: 6 | C59: =VLOOKUP($A59,BD!$Q$2:$T$79,4,FALSE) -> 1.139645436 | D59: 0.17 | E59: 1.0033 | F59: 6.08 | G59: 4.37 | H59: 1233 | I59: 1.233 | J59: 345.24 | K59: 0.34524 | L59: 344.1 | M59: =STDEVA(L59:L60) -> 2.884414027 | N59: =(L59-L60)/L59 -> -1.19% | O59: 666.6670223
A60: Na-0-Ta | B60: 7 | C60: =C59 -> 1.139645436 | D60: 0.17 | E60: 1.002 | F60: 6.07 | G60: 4.38 | H60: 1246 | I60: 1.246 | J60: 348.88 | K60: 0.34888 | L60: 348.2 | O60: 674.5700094
A61: Na-0-S | B61: 8 | C61: =VLOOKUP($A61,BD!$Q$2:$T$79,4,FALSE) -> 1.207760355 | D61: 0.13 | E61: 1.006 | F61: 5.96 | G61: 4.39 | H61: 1005 | I61: 1.005 | J61: 281.4 | K61: 0.2814 | L61: 279.7 | O61: 439.1877663
A62: Na-1-T | B62: 9 | C62: =VLOOKUP($A62,BD!$Q$2:$T$79,4,FALSE) -> 1.128359273 | D62: 0.17 | E62: 1.0054 | F62: 6.08 | G62: 4.38 | H62: 1281 | I62: 1.281 | J62: 358.68 | K62: 0.35868 | L62: 356.8 | O62: 684.3284633
A63: Na-1-S | B63: 10 | C63: =VLOOKUP($A63,BD!$Q$2:$T$79,4,FALSE) -> 1.138926565 | D63: 0.13 | E63: 1.0068 | F63: 6.01 | G63: 4.35 | H63: 1120 | I63: 1.12 | J63: 313.6 | K63: 0.3136 | L63: 311.5 | O63: 461.1815475
A64: Ik-0-T | B64: 11 | C64: =VLOOKUP($A64,BD!$Q$2:$T$79,4,FALSE) -> 0.958829864 | D64: 0.17 | E64: 1.0065 | F64: 6.14 | G64: 4.35 | H64: 1467 | I64: 1.467 | J64: 410.76 | K64: 0.41076 | L64: 408.1 | O64: 665.2192979
A65: Ik-0-S | B65: 12 | C65: =VLOOKUP($A65,BD!$Q$2:$T$79,4,FALSE) -> 1.009126198 | D65: 0.13 | E65: 1.0037 | G65: 4.36 | H65: 1194 | I65: 1.194 | J65: 334.32 | K65: 0.33432 | L65: 333.1 | O65: 436.965619
A66: Ik-1-T | B66: 13 | C66: =VLOOKUP($A66,BD!$Q$2:$T$79,4,FALSE) -> 1.042670534 | D66: 0.17 | E66: 1.0022 | F66: 6.1 | G66: 4.37 | H66: 1345 | I66: 1.345 | J66: 376.6 | K66: 0.3766 | L66: 375.8 | O66: 666.0731684
A67: Ik-1-S | B67: 14 | C67: =VLOOKUP($A67,BD!$Q$2:$T$79,4,FALSE) -> 1.087876529 | D67: 0.13 | E67: 1.0044 | F67: 6.05 | G67: 4.35 | H67: 1206 | I67: 1.206 | J67: 337.68 | K67: 0.33768 | L67: 336.2 | O67: =((C67*1000)*D67*10000)*(L67/1000000) -> 475.4683297
A68: Ki-0-Tb | B68: 15 | C68: =C54 -> 1.356979626 | D68: 0.17 | E68: 1.0041 | F68: 5.68 | G68: 4.41 | H68: 530 | I68: 0.53 | J68: 148.4 | K68: 0.1484 | L68: 147.8 | M68: =STDEVA(L68,L54:L55) -> 5.577357269 | N68: =(L55-L68)/L55 -> 6.36% | O68: 340.9409622
L69: =K69/(E69/1000) -> 
A71: Ne-0-T | B71: 1 | C71: =VLOOKUP($A71,BD!$Q$2:$T$79,4,FALSE) -> 1.092704235 | D71: 0.17 | E71: 1.0061 | G71: 4.35 | H71: 1310 | I71: =H71/1000 -> 1.31 | J71: =I71*$R$1 -> 366.8 | K71: =J71/1000 -> 0.3668 | L71: 364.6 | M71: =STDEVA(L71:L72) -> 4.789614727 | N71: =(L71-L72)/L71 -> 1.86% | O71: 677.2355161
A72: Ne-0-Ta | B72: 2 | C72: =C71 -> 1.092704235 | D72: 0.17 | E72: 1.0048 | F72: 6012 | G72: 4.36 | H72: 1284 | I72: =H72/1000 -> 1.284 | J72: 359.52 | K72: 0.35952 | L72: 357.8 | O72: 664.6530107
A73: Ne-0-S | B73: 3 | C73: =VLOOKUP($A73,BD!$Q$2:$T$79,4,FALSE) -> 1.155184429 | D73: 0.13 | E73: 1.0043 | F73: 6.03 | G73: 4.31 | H73: 1072 | I73: 1.072 | J73: 300.16 | K73: 0.30016 | L73: 298.9 | O73: 448.8322272
A74: Ne-1-T | B74: 4 | C74: =VLOOKUP($A74,BD!$Q$2:$T$79,4,FALSE) -> 1.0796233 | D74: 0.17 | E74: 1.0081 | F74: 6.13 | G74: 4.33 | H74: 1368 | I74: 1.368 | J74: 383.04 | K74: 0.38304 | L74: 380.0 | O74: 697.3674686
A75: Ne-1-S | B75: 5 | C75: =VLOOKUP($A75,BD!$Q$2:$T$79,4,FALSE) -> 1.136780961 | D75: 0.13 | E75: 1.0037 | F75: 6.05 | G75: 4.36 | H75: 1130 | I75: 1.13 | J75: 316.4 | K75: 0.3164 | L75: 315.2 | O75: 465.8570736
A76: Ae-0-T | B76: 6 | C76: =VLOOKUP($A76,BD!$Q$2:$T$79,4,FALSE) -> 0.9692085401 | D76: 0.17 | E76: 1.0045 | F76: 6.31 | G76: 4.34 | H76: 2000 | I76: 2 | J76: 560 | K76: 0.56 | L76: 557.5 | O76: 918.5530415
A77: Ae-0-S | B77: 7 | C77: =VLOOKUP($A77,BD!$Q$2:$T$79,4,FALSE) -> 1.041147412 | D77: 0.13 | E77: 1.0079 | F77: 6.18 | G77: 4.37 | H77: 1533 | I77: 1.533 | J77: 429.24 | K77: 0.42924 | L77: 425.9 | O77: 576.4190391
A78: Ae-1-T | B78: 8 | C78: =VLOOKUP($A78,BD!$Q$2:$T$79,4,FALSE) -> 1.021121443 | D78: 0.17 | E78: 1.0069 | F78: 6.21 | G78: 4.35 | H78: 1663 | I78: 1.663 | J78: 465.64 | K78: 0.46564 | L78: 462.4 | O78: 802.7683787
A79: Ae-1-S | B79: 9 | C79: =VLOOKUP($A79,BD!$Q$2:$T$79,4,FALSE) -> 1.0920962 | D79: 0.13 | E79: 1.008 | F79: 6.12 | G79: 4.34 | H79: 1367 | I79: 1.367 | J79: 382.76 | K79: 0.38276 | L79: 379.7 | O79: 539.1011547
A80: Jn-0-T | B80: 10 | C80: =VLOOKUP($A80,BD!$Q$2:$T$79,4,FALSE) -> 1.178167622 | D80: 0.17 | E80: 1.0027 | F80: 6.01 | G80: 4.32 | H80: 1048 | I80: 1.048 | J80: 293.44 | K80: 0.29344 | L80: 292.6 | O80: 586.1439732
A81: Jn-0-S | B81: 11 | C81: =VLOOKUP($A81,BD!$Q$2:$T$79,4,FALSE) -> 1.280763708 | D81: 0.13 | E81: 1.0059 | F81: 5.84 | G81: 4.35 | H81: 737 | I81: 0.737 | J81: 206.36 | K81: 0.20636 | L81: 205.1 | M81: =STDEVA(L81:L82) -> 6.342514346 | N81: =(L81-L82)/L81 -> -4.37% | O81: 341.5726399
A82: Jn-0-Sa | B82: 12 | C82: =C81 -> 1.280763708 | D82: 0.13 | E82: 1.0043 | F82: 5.86 | G82: 4.35 | H82: 768 | I82: 0.768 | J82: 215.04 | K82: 0.21504 | L82: 214.1 | O82: 356.5070757
A83: Jn-1-T | B83: 13 | C83: =VLOOKUP($A83,BD!$Q$2:$T$79,4,FALSE) -> 1.197839832 | D83: 0.17 | E83: 1.0033 | F83: 5.99 | G83: 4.32 | H83: 1025 | I83: 1.025 | J83: 287 | K83: 0.287 | L83: 286.1 | O83: 582.5037917
A84: Jn-1-S | B84: 14 | C84: =VLOOKUP($A84,BD!$Q$2:$T$79,4,FALSE) -> 1.284361188 | D84: 0.13 | E84: 1.0031 | F84: 5.82 | G84: 4.35 | H84: 718 | I84: 0.718 | J84: 201.04 | K84: 0.20104 | L84: 200.4 | O84: 334.6330029
A85: Ne-0-Tb | B85: 15 | C85: =C71 -> 1.092704235 | D85: 0.17 | E85: 1.0046 | F85: 6.06 | G85: 4.36 | H85: 1254 | I85: 1.254 | J85: 351.12 | K85: 0.35112 | L85: 349.5 | M85: =STDEVA(L85,L71:L72) -> 7.544637192 | N85: =(L72-L85)/L72 -> 2.32% | O85: 649.2529651
A88: Ni-0-T | B88: 1 | C88: =VLOOKUP($A88,BD!$Q$2:$T$79,4,FALSE) -> 0.9907732964 | D88: 0.17 | E88: 1.0028 | F88: 6.21 | G88: 4.36 | H88: 1542 | I88: =H88/1000 -> 1.542 | J88: =I88*$R$1 -> 431.76 | K88: =J88/1000 -> 0.43176 | L88: 430.6 | M88: =STDEVA(L88:L89) -> 9.514830227 | N88: =(L88-L89)/L88 -> 3.13% | O88: 725.1891438
A89: Ni-0-Ta | B89: 2 | C89: =C88 -> 0.9907732964 | D89: 0.17 | E89: 1.0036 | F89: 6.2 | G89: 4.35 | H89: 1495 | I89: =H89/1000 -> 1.495 | J89: 418.6 | K89: 0.4186 | L89: 417.1 | O89: 702.5250032
A90: Ni-1-T | B90: 3 | C90: =VLOOKUP($A90,BD!$Q$2:$T$79,4,FALSE) -> 0.9607230423 | D90: 0.17 | E90: 1.0021 | F90: 6.27 | G90: 4.33 | H90: 1800 | I90: 1.8 | J90: 504 | K90: 0.504 | L90: 502.9 | O90: 821.4225153
A91: La-0-T | B91: 4 | C91: =VLOOKUP($A91,BD!$Q$2:$T$79,4,FALSE) -> 1.278390813 | D91: 0.17 | E91: 1.0064 | F91: 6 | G91: 4.36 | H91: 980 | I91: 0.98 | J91: 274.4 | K91: 0.2744 | L91: 272.7 | O91: 592.5514172
A92: La-0-S | B92: 5 | C92: =VLOOKUP($A92,BD!$Q$2:$T$79,4,FALSE) -> 1.331575547 | D92: 0.13 | E92: 1.0045 | F92: 5.88 | G92: 4.29 | H92: 815 | I92: 0.815 | J92: 228.2 | K92: 0.2282 | L92: 227.2 | O92: 393.2555519
A93: La-1-T | B93: 6 | C93: =VLOOKUP($A93,BD!$Q$2:$T$79,4,FALSE) -> 1.324522278 | D93: 0.17 | E93: 1.0048 | F93: 5.92 | G93: 4.35 | H93: 872 | I93: 0.872 | J93: 244.16 | K93: 0.24416 | L93: 243.0 | O93: 547.145811
A94: La-1-S | B94: 7 | C94: =VLOOKUP($A94,BD!$Q$2:$T$79,4,FALSE) -> 1.391921043 | D94: 0.13 | E94: 1.0056 | F94: 5.79 | G94: 4.35 | H94: 646 | I94: 0.646 | J94: 180.88 | K94: 0.18088 | L94: 179.9 | O94: 325.4791982
A95: Ko-0-T | B95: 8 | C95: =VLOOKUP($A95,BD!$Q$2:$T$79,4,FALSE) -> 1.440149896 | D95: 0.17 | E95: 1.0058 | F95: 5.72 | G95: 4.37 | H95: 583 | I95: 0.583 | J95: 163.24 | K95: 0.16324 | L95: 162.3 | O95: 397.3484961
A96: Ko-0-S | B96: 9 | C96: =VLOOKUP($A96,BD!$Q$2:$T$79,4,FALSE) -> 1.53971829 | D96: 0.13 | E96: 1.0057 | F96: 5.65 | G96: 4.33 | H96: 467 | I96: 0.467 | J96: 130.76 | K96: 0.13076 | L96: 130.0 | O96: 260.2502065
A97: Ko-1-T | B97: 10 | C97: =VLOOKUP($A97,BD!$Q$2:$T$79,4,FALSE) -> 1.433904284 | D97: 0.17 | E97: 1.006 | F97: 5.74 | G97: 4.31 | H97: 604 | I97: 0.604 | J97: 169.12 | K97: 0.16912 | L97: 168.1 | O97: 409.7944506
A98: Ko-1-S | B98: 11 | C98: =VLOOKUP($A98,BD!$Q$2:$T$79,4,FALSE) -> 1.514455264 | D98: 0.13 | E98: 1.0075 | F98: 5.63 | G98: 4.33 | H98: 497 | I98: 0.497 | J98: 139.16 | K98: 0.13916 | L98: 138.1 | M98: =STDEVA(L98:L99) -> 3.069140366 | N98: =(L98-L99)/L98 -> 3.14% | O98: 271.9375414
A99: Ko-1-Sa | B99: 12 | C99: =C96 -> 1.53971829 | D99: 0.13 | E99: 1.0067 | F99: 5.6 | G99: 4.35 | H99: 481 | I99: 0.481 | J99: 134.68 | K99: 0.13468 | L99: 133.8 | O99: 267.7858717
A100: Pa-0-T | B100: 13 | C100: =VLOOKUP($A100,BD!$Q$2:$T$79,4,FALSE) -> 1.176520558 | D100: 0.17 | E100: 1.0053 | F100: 6.1 | G100: 4.27 | H100: 1232 | I100: 1.232 | J100: 344.96 | K100: 0.34496 | L100: 343.1 | O100: 686.3118513
A101: Pa-0-S | B101: 14 | C101: =VLOOKUP($A101,BD!$Q$2:$T$79,4,FALSE) -> 1.226750682 | D101: 0.13 | E101: 1.0031 | F101: 5.97 | G101: 4.35 | H101: 989 | I101: 0.989 | J101: 276.92 | K101: 0.27692 | L101: 276.1 | O101: 440.2605307
A102: Pa-1-T | B102: 15 | C102: =VLOOKUP($A102,BD!$Q$2:$T$79,4,FALSE) -> 1.176520558 | D102: 0.17 | E102: 1.0026 | F102: 6.04 | G102: 4.37 | H102: 1185 | I102: 1.185 | J102: 331.8 | K102: 0.3318 | L102: 330.9 | O102: 661.9072274
A103: Pa-1-S | B103: 16 | C103: =VLOOKUP($A103,BD!$Q$2:$T$79,4,FALSE) -> 1.237771782 | D103: 0.13 | E103: 1.0033 | F103: 5.94 | G103: 4.34 | H103: 978 | I103: 0.978 | J103: 273.84 | K103: 0.27384 | L103: 272.9 | O103: 439.1875335
M105: =AVERAGE(M2:M103) -> 5.574812806 | N105: =AVERAGE(N2:N103) -> 0.7 %

Sheet Protein
E1: 595 | F1: 3 comp | G1: other stuff that is not protein + cuvette (Sample noice) | J1: citrate + cuvette | K1: 0.04 | S1: 465 | AB1: Standards average
B2: Soil (g) | C2: Extract solution (L) | D2: Dilution factor | E2: Rep_1 | F2: Rep_2 | G2: BL | H2: stdev | I2: error | J2: avg abs | K2: corrected | L2: avg GRSP (mg/l) | M2: mg GRSP in extr sol | N2: GRSP (mg/kg) | O2: GRSP (g/kg) | P2: GRSP (Kg/ha) | Q2: GRSP_N (Kg/ha) | R2: corr min n | S2: Rep_1 | T2: Rep_2 | U2: BL | V2: stdev | W2: error | X2: avg abs | AB2: std mg/L | AC2: 595 | AD2: 465 | AE2: 595/465
A3: Pu-0-T | B3: 1.25 | C3: 0.01 | D3: 1 | E3: 0.6466 | F3: 0.68953 | G3: 0.065123 | H3: =STDEVA(E3:F3) -> 0.03035609412 | I3: =(E3-F3)/E3 -> -6.6 % | J3: =AVERAGE(E3:F3) -> 0.668065 | K3: =J3-G3+$K$1 -> 0.642942 | L3: =(486.07*K3^2+27.514*K3-72.917)*D3 -> 145.70 | M3: =L3*C3 -> 1.46 | N3: =M3/(B3/1000) -> 1165.61 | O3: =N3/1000 -> 1.17 | P3: =(((VLOOKUP($A3,BD!$Q$2:$T$79,4,FALSE))*1000)*(VLOOKUP($A3,Mass!$A$3:$S$78,2,FALSE))*10000)*(O3/1000) -> 2421.21 | Q3: =P3*0.16 -> 387 | R3: grass or cereals | S3: 0.50363 | T3: 0.50992 | U3: 0.11873 | V3: =STDEVA(S3:T3) -> 0.004447701654 | W3: =(S3-T3)/S3 -> -1.2 % | X3: =AVERAGE(S3:T3) -> 0.506775 | AB3: 0 | AC3: =AVERAGE(AE43,AE60,AE76) -> 0.3647666667 | AD3: =AVERAGE(AF43,AF60,AF76) -> 0.5712 | AE3: =(AC3/AD3) -> 0.6385971055
A4: Pu-0-S | B4: 1.25 | C4: 0.01 | D4: 1 | E4: 0.61609 | F4: 0.63587 | G4: 0.066918 | H4: =STDEVA(E4:F4) -> 0.01398657213 | I4: =(E4-F4)/E4 -> -3.2 % | J4: =AVERAGE(E4:F4) -> 0.62598 | K4: =J4-G4+$K$1 -> 0.599062 | L4: =(486.07*K4^2+27.514*K4-72.917)*D4 -> 118.00 | M4: =L4*C4 -> 1.18 | N4: =M4/(B4/1000) -> 944.03 | O4: =N4/1000 -> 0.94 | P4: =(((VLOOKUP($A4,BD!$Q$2:$T$79,4,FALSE))*1000)*(VLOOKUP($A4,Mass!$A$3:$S$78,2,FALSE))*10000)*(O4/1000) -> 1539.72 | Q4: =P4*0.16 -> 246 | S4: 0.52151 | T4: 0.51911 | U4: 0.113 | V4: =STDEVA(S4:T4) -> 0.001697056275 | W4: =(S4-T4)/S4 -> 0.5 % | X4: =AVERAGE(S4:T4) -> 0.52031 | Z4: =VLOOKUP($A4,BD!$Q$2:$T$79,4,FALSE) -> 1.254618968 | AB4: 40 | AC4: =AVERAGE(AE44,AE61,AE77) -> 0.4482233333 | AD4: 0.5385433333 | AE4: =(AC4/AD4) -> 0.8322883333
A5: Pu-1-T | B5: 1.25 | C5: 0.01 | D5: 1 | E5: 0.66956 | F5: 0.71274 | G5: 0.070094 | H5: 0.03053287081 | I5: -6.4 % | J5: 0.69115 | K5: 0.661056 | L5: 157.68 | M5: 1.58 | N5: 1261.45 | O5: 1.26 | P5: =(((VLOOKUP($A5,BD!$Q$2:$T$79,4,FALSE))*1000)*(VLOOKUP($A5,Mass!$A$3:$S$78,2,FALSE))*10000)*(O5/1000) -> 2503.95 | Q5: 401 | S5: 0.50962 | T5: 0.5214 | U5: 0.12641 | V5: 0.008329717882 | W5: -2.3 % | X5: 0.51551 | AB5: 80 | AC5: 0.5319833333 | AD5: 0.50933 | AE5: 1.044476731
A6: Pu-1-S | B6: 1.25 | C6: 0.01 | D6: 1 | E6: 0.68073 | F6: 0.69385 | G6: 0.069319 | H6: 0.009277240969 | I6: -1.9 % | J6: 0.68729 | K6: 0.657971 | L6: 155.62 | M6: 1.56 | N6: 1244.95 | O6: 1.24 | P6: =(((VLOOKUP($A6,BD!$Q$2:$T$79,4,FALSE))*1000)*(VLOOKUP($A6,Mass!$A$3:$S$78,2,FALSE))*10000)*(O6/1000) -> 1944.40 | Q6: 311 | S6: 0.52175 | T6: 0.52088 | U6: 0.12932 | V6: 0.0006151828996 | W6: 0.2 % | X6: 0.521315 | AB6: 120 | AC6: 0.5988133333 | AD6: 0.4678366667 | AE6: 1.27996238 | AQ6: Standards Average
A7: Mo-0-T | B7: 1.25 | C7: 0.01 | D7: 1 | E7: 0.54603 | F7: 0.56635 | G7: 0.054633 | H7: 0.01436840979 | I7: -3.7 % | J7: 0.55619 | K7: =J7-G7+$K$1 -> 0.541557 | L7: 84.54 | M7: 0.85 | N7: 676.32 | O7: 0.68 | P7: =(((VLOOKUP($A7,BD!$Q$2:$T$79,4,FALSE))*1000)*(VLOOKUP($A7,Mass!$A$3:$S$78,2,FALSE))*10000)*(O7/1000) -> 1504.19 | Q7: 241 | S7: 0.53523 | T7: 0.52977 | U7: 0.086553 | V7: 0.003860803025 | W7: 1.0 % | X7: 0.5325 | AB7: 160 | AC7: 0.67287 | AD7: 0.45354 | AE7: 1.483595714 | AQ7: std mg/L | AR7: 595 | AS7: 465
A8: Mo-0-T1 | B8: 1.25 | C8: 0.01 | D8: 1 | E8: 0.56569 | F8: 0.57674 | G8: 0.05655 | H8: 0.007813529932 | I8: -2.0 % | J8: 0.571215 | K8: 0.554665 | L8: 91.89 | M8: 0.92 | N8: 735.08 | O8: 0.74 | P8: =(((VLOOKUP($A7,BD!$Q$2:$T$79,4,FALSE))*1000)*(VLOOKUP($A7,Mass!$A$3:$S$78,2,FALSE))*10000)*(O8/1000) -> 1634.88 | Q8: 262 | S8: 0.51768 | T8: 0.54369 | U8: 0.090806 | V8: 0.01839184738 | W8: -5.0 % | X8: 0.530685 | AB8: 180 | AC8: 0.7031233333 | AD8: 0.4374233333 | AE8: 1.607420729 | AQ8: 0 | AR8: 0.3247911667 | AS8: 0.5293855
A9: Mo-0-S | B9: 1.25 | C9: 0.01 | D9: 1 | E9: 0.5371 | F9: 0.55691 | G9: 0.054649 | H9: 0.01400778534 | I9: -3.7 % | J9: =AVERAGE(E9:F9) -> 0.547005 | K9: 0.532356 | L9: 79.48 | M9: 0.79 | N9: 635.87 | O9: 0.64 | P9: =(((VLOOKUP($A9,BD!$Q$2:$T$79,4,FALSE))*1000)*(VLOOKUP($A9,Mass!$A$3:$S$78,2,FALSE))*10000)*(O9/1000) -> 1107.92 | Q9: 177 | S9: 0.52777 | T9: 0.53425 | U9: 0.085403 | V9: 0.004582051942 | W9: -1.2 % | X9: 0.53101 | AB9: 220 | AC9: 0.74275 | AD9: 0.4049966667 | AE9: 1.833965712 | AQ9: 40 | AR9: 0.4082478333 | AS9: 0.4967288333
A10: Mo-1-T | B10: 1.25 | C10: 0.01 | D10: 1 | E10: 0.56305 | F10: 0.57632 | G10: 0.05709 | H10: 0.009383306986 | I10: -2.4 % | J10: 0.569685 | K10: 0.552595 | L10: 90.71 | M10: 0.91 | N10: 725.71 | O10: 0.73 | P10: =(((VLOOKUP($A10,BD!$Q$2:$T$79,4,FALSE))*1000)*(VLOOKUP($A10,Mass!$A$3:$S$78,2,FALSE))*10000)*(O10/1000) -> 1599.75 | Q10: 256 | S10: 0.53396 | T10: 0.53236 | U10: 0.094441 | V10: 0.00113137085 | W10: 0.3 % | X10: 0.53316 | AB10: 260 | AC10: 0.7923533333 | AD10: 0.3693866667 | AE10: 2.145051256 | AQ10: 80 | AR10: 0.4920078333 | AS10: 0.4675155
A11: Mo-1-S | B11: 1.25 | C11: 0.01 | D11: 1 | E11: 0.52843 | F11: 0.56899 | G11: 0.054842 | H11: 0.02868025104 | I11: -7.7 % | J11: 0.54871 | K11: 0.533868 | L11: 80.31 | M11: 0.80 | N11: 642.47 | O11: 0.64 | P11: =(((VLOOKUP($A11,BD!$Q$2:$T$79,4,FALSE))*1000)*(VLOOKUP($A11,Mass!$A$3:$S$78,2,FALSE))*10000)*(O11/1000) -> 1102.80 | Q11: 176 | S11: 0.52221 | T11: 0.55496 | U11: 0.084518 | V11: 0.02315774708 | W11: -6.3 % | X11: 0.538585 | AB11: 350 | AC11: 0.9069933333 | AD11: 0.33634 | AE11: 2.696656161 | AQ11: 120 | AR11: 0.5588378333 | AS11: 0.4260221667
A12: Si-0-T | B12: 1.25 | C12: 0.01 | D12: 1 | E12: 0.54678 | F12: 0.57784 | G12: 0.055545 | H12: 0.02196273662 | I12: -5.7 % | J12: 0.56231 | K12: 0.546765 | L12: 87.44 | M12: 0.87 | N12: 699.51 | O12: 0.70 | P12: =(((VLOOKUP($A12,BD!$Q$2:$T$79,4,FALSE))*1000)*(VLOOKUP($A12,Mass!$A$3:$S$78,2,FALSE))*10000)*(O12/1000) -> 1485.55 | Q12: 238 | S12: 0.51893 | T12: 0.53463 | U12: 0.090456 | V12: 0.01110157646 | W12: -3.0 % | X12: 0.52678 | AQ12: 160 | AR12: 0.6328945 | AS12: 0.4117255
A13: Si-0-S | B13: 1.25 | C13: 0.01 | D13: 1 | E13: 0.50448 | F13: 0.50525 | G13: 0.049756 | H13: 0.0005444722215 | I13: -0.2 % | J13: 0.504865 | K13: 0.495109 | L13: 59.86 | M13: 0.60 | N13: 478.86 | O13: 0.48 | P13: =(((VLOOKUP($A13,BD!$Q$2:$T$79,4,FALSE))*1000)*(VLOOKUP($A13,Mass!$A$3:$S$78,2,FALSE))*10000)*(O13/1000) -> 807.21 | Q13: 129 | S13: 0.53779 | T13: 0.53854 | U13: 0.074708 | V13: 0.0005303300859 | W13: -0.1 % | X13: 0.538165 | AC13: Slope | AD13: Intercept | AQ13: 180 | AR13: 0.6631478333 | AS13: 0.3956088333
A14: Si-1-T | B14: 1.25 | C14: 0.01 | D14: 1 | E14: 0.54108 | F14: 0.53396 | G14: 0.053646 | H14: 0.005034600282 | I14: 1.3 % | J14: 0.53752 | K14: 0.523874 | L14: 74.90 | M14: 0.75 | N14: 599.17 | O14: 0.60 | P14: =(((VLOOKUP($A14,BD!$Q$2:$T$79,4,FALSE))*1000)*(VLOOKUP($A14,Mass!$A$3:$S$78,2,FALSE))*10000)*(O14/1000) -> 1263.91 | Q14: 202 | S14: 0.53401 | T14: 0.51264 | U14: 0.085899 | V14: 0.01511087191 | W14: 4.0 % | X14: 0.523325 | AC14: =SLOPE(AC3:AC11,AB3:AB11) -> 0.0015381339 | AD14: =INTERCEPT(AC3:AC11,AB3:AB11) -> 0.3992342075 | AQ14: 220 | AR14: 0.7027745 | AS14: 0.3631821667
A15: Si-1-S | B15: 1.25 | C15: 0.01 | D15: 1 | E15: 0.48593 | F15: 0.48636 | G15: 0.049462 | H15: 0.0003040559159 | I15: -0.1 % | J15: 0.486145 | K15: 0.476683 | L15: 50.65 | M15: 0.51 | N15: 405.17 | O15: 0.41 | P15: =(((VLOOKUP($A15,BD!$Q$2:$T$79,4,FALSE))*1000)*(VLOOKUP($A15,Mass!$A$3:$S$78,2,FALSE))*10000)*(O15/1000) -> 694.75 | Q15: 111 | S15: 0.54622 | T15: 0.53404 | U15: 0.073927 | V15: 0.008612560595 | W15: 2.2 % | X15: 0.54013 | AQ15: 260 | AR15: 0.7523778333 | AS15: 0.3275721667
A16: Mi-0-T | B16: 1.25 | C16: 0.01 | D16: 1 | E16: 0.67506 | F16: 0.70451 | G16: 0.069825 | H16: 0.02082429471 | I16: -4.4 % | J16: 0.689785 | K16: 0.65996 | L16: 156.95 | M16: 1.57 | N16: 1255.58 | O16: 1.26 | P16: =(((VLOOKUP($A16,BD!$Q$2:$T$79,4,FALSE))*1000)*(VLOOKUP($A16,Mass!$A$3:$S$78,2,FALSE))*10000)*(O16/1000) -> 2412.91 | Q16: 386 | S16: 0.52064 | T16: 0.51052 | U16: 0.12839 | V16: 0.007155920626 | W16: 1.9 % | X16: 0.51558 | AQ16: 350 | AR16: 0.8670178333 | AS16: 0.2945255
A17: Mi-0-S | B17: 1.25 | C17: 0.01 | D17: 1 | E17: 0.5337 | F17: 0.55206 | G17: 0.052264 | H17: 0.0129824805 | I17: -3.4 % | J17: 0.54288 | K17: 0.530616 | L17: 78.54 | M17: 0.79 | N17: 628.30 | O17: 0.63 | P17: =(((VLOOKUP($A17,BD!$Q$2:$T$79,4,FALSE))*1000)*(VLOOKUP($A17,Mass!$A$3:$S$78,2,FALSE))*10000)*(O17/1000) -> 1060.16 | Q17: 170 | S17: 0.54763 | T17: 0.54166 | U17: 0.083508 | V17: 0.004221427484 | W17: 1.1 % | X17: 0.544645
A18: Mi-1-T | B18: 1.25 | C18: 0.01 | D18: 1 | E18: 0.68302 | F18: 0.67451 | G18: 0.066129 | H18: 0.006017478708 | I18: 1.2 % | J18: 0.678765 | K18: 0.652636 | L18: 152.07 | M18: 1.52 | N18: 1216.59 | O18: 1.22 | P18: =(((VLOOKUP($A18,BD!$Q$2:$T$79,4,FALSE))*1000)*(VLOOKUP($A18,Mass!$A$3:$S$78,2,FALSE))*10000)*(O18/1000) -> 2378.24 | Q18: 381 | S18: 0.51782 | T18: 0.50697 | U18: 0.11949 | V18: 0.007672108576 | W18: 2.1 % | X18: 0.512395
A19: Mi-1-S | B19: 1.25 | C19: 0.01 | D19: 1 | E19: 0.5489 | F19: 0.56884 | G19: 0.056976 | H19: 0.01409970922 | I19: -3.6 % | J19: 0.55887 | K19: 0.541894 | L19: 84.73 | M19: 0.85 | N19: 677.81 | O19: 0.68 | P19: =(((VLOOKUP($A19,BD!$Q$2:$T$79,4,FALSE))*1000)*(VLOOKUP($A19,Mass!$A$3:$S$78,2,FALSE))*10000)*(O19/1000) -> 1150.50 | Q19: 184 | S19: 0.54261 | T19: 0.54212 | U19: 0.091829 | V19: 0.0003464823228 | W19: 0.1 % | X19: 0.542365
A20: Li-0-T | B20: 1.25 | C20: 0.01 | D20: 1 | E20: 0.61252 | F20: 0.60196 | G20: 0.062837 | H20: 0.007467047609 | I20: 1.7 % | J20: 0.60724 | K20: 0.584403 | L20: 109.17 | M20: 1.09 | N20: 873.35 | O20: 0.87 | P20: =(((VLOOKUP($A20,BD!$Q$2:$T$79,4,FALSE))*1000)*(VLOOKUP($A20,Mass!$A$3:$S$78,2,FALSE))*10000)*(O20/1000) -> 1790.43 | Q20: 286 | S20: 0.55018 | T20: 0.53348 | U20: 0.10825 | V20: 0.01180868325 | W20: 3.0 % | X20: 0.54183 | AS20: Error of standards from the average
A21: Li-0-S | B21: 1.25 | C21: 0.01 | D21: 1 | E21: 0.47838 | F21: 0.4887 | G21: 0.049774 | H21: 0.007297341982 | I21: -2.2 % | J21: =AVERAGE(E21:F21) -> 0.48354 | K21: 0.473766 | L21: 49.22 | M21: 0.49 | N21: 393.75 | O21: 0.39 | P21: =(((VLOOKUP($A21,BD!$Q$2:$T$79,4,FALSE))*1000)*(VLOOKUP($A21,Mass!$A$3:$S$78,2,FALSE))*10000)*(O21/1000) -> 689.88 | Q21: 110 | S21: 0.54774 | T21: 0.54035 | U21: 0.073902 | V21: 0.005225519113 | W21: 1.3 % | X21: 0.544045 | AP21: stdev | AS21: Standard 1 | AV21: Standard 2 | AY21: Standard 3
A22: Li-1-T | B22: 1.25 | C22: 0.01 | D22: 1 | E22: 0.61171 | F22: 0.63738 | G22: 0.062941 | H22: 0.01815143107 | I22: -4.2 % | J22: 0.624545 | K22: 0.601604 | L22: 119.56 | M22: 1.20 | N22: 956.46 | O22: 0.96 | P22: =(((VLOOKUP($A22,BD!$Q$2:$T$79,4,FALSE))*1000)*(VLOOKUP($A22,Mass!$A$3:$S$78,2,FALSE))*10000)*(O22/1000) -> 1856.57 | Q22: 297 | S22: 0.55004 | T22: 0.55354 | U22: 0.10877 | V22: 0.002474873734 | W22: -0.6 % | X22: 0.55179 | AP22: =STDEVA(AG43,AG60,AG76) -> 0.01578982373 | AQ22: 0.0143278505 | AS22: =(AR8-AG43)/AR8 -> 2.3 % | AT22: 2.7 % | AV22: =(AR8-AG60)/AR8 -> 3.2 % | AW22: -0.1 % | AY22: =(AR8-AG76)/AR8 -> -5.6 % | AZ22: -2.7 %
A23: Li-1-T1 | B23: 1.25 | C23: 0.01 | D23: 1 | E23: 0.60981 | F23: 0.6278 | G23: 0.062329 | H23: 0.01272085099 | I23: -3.0 % | J23: 0.618805 | K23: 0.596476 | L23: 116.43 | M23: 1.16 | N23: 931.44 | O23: 0.93 | P23: =(((VLOOKUP($A22,BD!$Q$2:$T$79,4,FALSE))*1000)*(VLOOKUP($A22,Mass!$A$3:$S$78,2,FALSE))*10000)*(O23/1000) -> 1808.00 | Q23: 289 | S23: 0.54027 | T23: 0.54734 | U23: 0.10649 | V23: 0.004999244943 | W23: -1.3 % | X23: 0.543805 | AP23: 0.0120033176 | AQ23: 0.01510509958 | AS23: -0.4 % | AT23: -2.1 % | AV23: 3.1 % | AW23: 3.5 % | AY23: -2.7 % | AZ23: -1.4 %
A24: Li-1-S | B24: 1.25 | C24: 0.01 | D24: 1 | E24: 0.50552 | F24: 0.5188 | G24: 0.05124 | H24: 0.009390378054 | I24: -2.6 % | J24: 0.51216 | K24: 0.50092 | L24: 62.83 | M24: 0.63 | N24: 502.64 | O24: 0.50 | P24: =(((VLOOKUP($A24,BD!$Q$2:$T$79,4,FALSE))*1000)*(VLOOKUP($A24,Mass!$A$3:$S$78,2,FALSE))*10000)*(O24/1000) -> 842.43 | Q24: 135 | S24: 0.54517 | T24: 0.53641 | U24: 0.07586 | V24: 0.006194255403 | W24: 1.6 % | X24: 0.54079 | AP24: 0.004929354251 | AQ24: 0.0004233202098 | AS24: 0.4 % | AT24: 0.1 % | AV24: 0.7 % | AW24: -0.0 % | AY24: -1.1 % | AZ24: -0.1 %
A25: Ai-0-T | B25: 1.25 | C25: 0.01 | D25: 1 | E25: 0.6019 | F25: 0.62249 | G25: 0.061751 | H25: 0.01455932862 | I25: -3.4 % | J25: 0.612195 | K25: 0.590444 | L25: 112.78 | M25: 1.13 | N25: 902.27 | O25: 0.90 | P25: =(((VLOOKUP($A25,BD!$Q$2:$T$79,4,FALSE))*1000)*(VLOOKUP($A25,Mass!$A$3:$S$78,2,FALSE))*10000)*(O25/1000) -> 2166.01 | Q25: 347 | S25: 0.53592 | T25: 0.52573 | U25: 0.10339 | V25: 0.0072054181 | W25: 1.9 % | X25: 0.530825 | AP25: 0.007549121362 | AQ25: 0.01170207389 | AS25: 0.7 % | AT25: 2.9 % | AV25: 0.9 % | AW25: -0.3 % | AY25: -1.6 % | AZ25: -2.6 %
A26: Ai-0-S | B26: 1.25 | C26: 0.01 | D26: 1 | E26: 0.55403 | F26: 0.5936 | G26: 0.059778 | H26: 0.02798021533 | I26: -7.1 % | J26: 0.573815 | K26: 0.554037 | L26: 91.53 | M26: 0.92 | N26: 732.23 | O26: 0.73 | P26: =(((VLOOKUP($A26,BD!$Q$2:$T$79,4,FALSE))*1000)*(VLOOKUP($A26,Mass!$A$3:$S$78,2,FALSE))*10000)*(O26/1000) -> 1398.30 | Q26: 224 | S26: 0.51652 | T26: 0.53792 | U26: 0.095302 | V26: 0.01513208512 | W26: -4.1 % | X26: 0.52722 | AP26: 0.01188163288 | AQ26: 0.002000674886 | AS26: -2.1 % | AT26: 0.5 % | AV26: 0.6 % | AW26: -0.0 % | AY26: 1.5 % | AZ26: -0.5 %
A27: Ai-1-T | B27: 1.25 | C27: 0.01 | D27: 1 | E27: 0.58334 | F27: 0.62963 | G27: 0.063816 | H27: 0.0327319729 | I27: -7.9 % | J27: 0.606485 | K27: 0.582669 | L27: 108.14 | M27: 1.08 | N27: 865.09 | O27: 0.87 | P27: =(((VLOOKUP($A27,BD!$Q$2:$T$79,4,FALSE))*1000)*(VLOOKUP($A27,Mass!$A$3:$S$78,2,FALSE))*10000)*(O27/1000) -> 1977.65 | Q27: 316 | S27: 0.51749 | T27: 0.51579 | U27: 0.10846 | V27: 0.001202081528 | W27: 0.3 % | X27: 0.51664 | AP27: 0.0112800724 | AQ27: 0.004982261869 | AS27: -0.0 % | AT27: -1.1 % | AV27: 1.7 % | AW27: -0.2 % | AY27: -1.7 % | AZ27: 1.4 %
A28: Ai-1-S | B28: 1.25 | C28: 0.01 | D28: 1 | E28: 0.59765 | F28: 0.64479 | G28: 0.063325 | H28: 0.03333301367 | I28: -7.9 % | J28: 0.62122 | K28: 0.597895 | L28: 117.29 | M28: 1.17 | N28: 938.34 | O28: 0.94 | P28: =(((VLOOKUP($A28,BD!$Q$2:$T$79,4,FALSE))*1000)*(VLOOKUP($A28,Mass!$A$3:$S$78,2,FALSE))*10000)*(O28/1000) -> 1657.22 | Q28: 265 | S28: 0.52549 | T28: 0.53458 | U28: 0.10953 | V28: 0.006427600641 | W28: -1.7 % | X28: 0.530035 | AP28: 0.009088800801 | AQ28: 0.01233423826 | AS28: 0.3 % | AT28: 3.9 % | AV28: 1.1 % | AW28: -1.5 % | AY28: -1.4 % | AZ28: -2.4 %
A29: Ni-0-T | B29: 1.25 | C29: 0.01 | D29: 3 | E29: 0.7121 | F29: 0.75721 | G29: 0.073662 | H29: 0.0318975869 | I29: -6.3 % | J29: 0.734655 | K29: 0.700993 | L29: 555.66 | M29: 5.56 | N29: 4445.30 | O29: 4.45 | P29: =(((VLOOKUP($A29,BD!$Q$2:$T$79,4,FALSE))*1000)*(VLOOKUP($A29,Mass!$A$3:$S$78,2,FALSE))*10000)*(O29/1000) -> 7487.28 | Q29: 1198 | S29: 0.51499 | T29: 0.55087 | U29: 0.14265 | V29: 0.02537099131 | W29: -7.0 % | X29: 0.53293 | AP29: 0.03696578734 | AQ29: 0.01543199706 | AS29: -5.6 % | AT29: -5.4 % | AV29: 2.4 % | AW29: 1.9 % | AY29: 3.3 % | AZ29: 3.4 %
A30: Ni-1-T | B30: 1.25 | C30: 0.01 | D30: 3 | E30: 0.70301 | F30: 0.74002 | G30: 0.081836 | H30: 0.02617002197 | I30: -5.3 % | J30: 0.721515 | K30: 0.679679 | L30: 510.99 | M30: 5.11 | N30: 4087.93 | O30: 4.09 | P30: =(((VLOOKUP($A30,BD!$Q$2:$T$79,4,FALSE))*1000)*(VLOOKUP($A30,Mass!$A$3:$S$78,2,FALSE))*10000)*(O30/1000) -> 6676.52 | Q30: 1068 | S30: 0.53338 | T30: 0.53912 | U30: 0.15763 | V30: 0.004058792924 | W30: -1.1 % | X30: 0.53625 | AP30: 0.006300161374 | AQ30: 0.01024543313 | AS30: -0.6 % | AT30: 4.0 % | AV30: 0.8 % | AW30: -2.0 % | AY30: -0.2 % | AZ30: -2.0 %
A31: Pi-0-T | B31: 1.25 | C31: 0.01 | D31: 1 | E31: 0.65251 | F31: 0.63071 | G31: 0.06497 | H31: 0.01541492783 | I31: 3.3 % | J31: 0.64161 | K31: 0.61664 | L31: 128.87 | M31: 1.29 | N31: 1031.00 | O31: 1.03 | P31: =(((VLOOKUP($A31,BD!$Q$2:$T$79,4,FALSE))*1000)*(VLOOKUP($A31,Mass!$A$3:$S$78,2,FALSE))*10000)*(O31/1000) -> 2066.42 | Q31: 331 | S31: 0.5446 | T31: 0.52231 | U31: 0.11849 | V31: 0.01576141015 | W31: 4.1 % | X31: 0.533455
A32: Pi-0-S | B32: 1.25 | C32: 0.01 | D32: 1 | E32: 0.62791 | F32: 0.60763 | G32: 0.063583 | H32: 0.01434012552 | I32: 3.2 % | J32: 0.61777 | K32: 0.594187 | L32: 115.04 | M32: 1.15 | N32: 920.34 | O32: 0.92 | P32: =(((VLOOKUP($A32,BD!$Q$2:$T$79,4,FALSE))*1000)*(VLOOKUP($A32,Mass!$A$3:$S$78,2,FALSE))*10000)*(O32/1000) -> 1499.78 | Q32: 240 | S32: 0.55172 | T32: 0.5436 | U32: 0.1163 | V32: 0.005741707063 | W32: 1.5 % | X32: 0.54766
A33: Pi-1-T | B33: 1.25 | C33: 0.01 | D33: 1 | E33: 0.62949 | F33: 0.63785 | G33: 0.06065 | H33: 0.005911412691 | I33: -1.3 % | J33: 0.63367 | K33: 0.61302 | L33: 126.61 | M33: 1.27 | N33: 1012.89 | O33: 1.01 | P33: =(((VLOOKUP($A33,BD!$Q$2:$T$79,4,FALSE))*1000)*(VLOOKUP($A33,Mass!$A$3:$S$78,2,FALSE))*10000)*(O33/1000) -> 2007.83 | Q33: 321 | S33: 0.53313 | T33: 0.54207 | U33: 0.10489 | V33: 0.006321534624 | W33: -1.7 % | X33: 0.5376
A34: Pi-1-S | B34: 1.25 | C34: 0.01 | D34: 1 | E34: 0.60218 | F34: 0.58237 | G34: 0.058485 | H34: 0.01400778534 | I34: 3.3 % | J34: 0.592275 | K34: 0.57379 | L34: 102.90 | M34: 1.03 | N34: 823.21 | O34: 0.82 | P34: =(((VLOOKUP($A34,BD!$Q$2:$T$79,4,FALSE))*1000)*(VLOOKUP($A34,Mass!$A$3:$S$78,2,FALSE))*10000)*(O34/1000) -> 1330.15 | Q34: 213 | S34: 0.53667 | T34: 0.54391 | U34: 0.10068 | V34: 0.005119453096 | W34: -1.3 % | X34: 0.54029
A35: Mu-0-T | B35: 1.25 | C35: 0.01 | D35: 1 | E35: 0.71179 | F35: 0.70601 | G35: 0.074947 | H35: 0.004087077195 | I35: 0.8 % | J35: 0.7089 | K35: 0.673953 | L35: 166.41 | M35: 1.66 | N35: 1331.24 | O35: 1.33 | P35: =(((VLOOKUP($A35,BD!$Q$2:$T$79,4,FALSE))*1000)*(VLOOKUP($A35,Mass!$A$3:$S$78,2,FALSE))*10000)*(O35/1000) -> 2491.08 | Q35: 399 | S35: 0.54333 | T35: 0.54274 | U35: 0.14912 | V35: 0.0004171930009 | W35: 0.1 % | X35: 0.543035
A36: Mu-0-S | B36: 1.25 | C36: 0.01 | D36: 1 | E36: 0.64133 | F36: 0.64361 | G36: 0.068054 | H36: 0.001612203461 | I36: -0.4 % | J36: 0.64247 | K36: 0.614416 | L36: 127.48 | M36: 1.27 | N36: 1019.86 | O36: 1.02 | P36: =(((VLOOKUP($A36,BD!$Q$2:$T$79,4,FALSE))*1000)*(VLOOKUP($A36,Mass!$A$3:$S$78,2,FALSE))*10000)*(O36/1000) -> 1570.91 | Q36: 251 | S36: 0.55091 | T36: 0.5602 | U36: 0.12754 | V36: 0.006569021997 | W36: -1.7 % | X36: 0.555555
A37: Mu-1-T | B37: 1.25 | C37: 0.01 | D37: 1 | E37: 0.71461 | F37: 0.70222 | G37: 0.079971 | H37: 0.008761053019 | I37: 1.7 % | J37: 0.708415 | K37: 0.668444 | L37: 162.66 | M37: 1.63 | N37: 1301.27 | O37: 1.30 | P37: =(((VLOOKUP($A37,BD!$Q$2:$T$79,4,FALSE))*1000)*(VLOOKUP($A37,Mass!$A$3:$S$78,2,FALSE))*10000)*(O37/1000) -> 2418.59 | Q37: 387 | S37: 0.53636 | T37: 0.53427 | U37: 0.16168 | V37: 0.001477853173 | W37: 0.4 % | X37: 0.535315
A38: Mu-1-S | B38: 1.25 | C38: 0.01 | D38: 1 | E38: 0.65037 | F38: 0.62966 | G38: 0.069732 | H38: 0.01464418144 | I38: 3.2 % | J38: 0.640015 | K38: 0.610283 | L38: 124.91 | M38: 1.25 | N38: 999.27 | O38: 1.00 | P38: =(((VLOOKUP($A38,BD!$Q$2:$T$79,4,FALSE))*1000)*(VLOOKUP($A38,Mass!$A$3:$S$78,2,FALSE))*10000)*(O38/1000) -> 1529.43 | Q38: 245 | S38: 0.54509 | T38: 0.54489 | U38: 0.13644 | V38: 0.0001414213562 | W38: 0.0 % | X38: 0.54499
A39: Kp-0-T | B39: 1.25 | C39: 0.01 | D39: 1 | E39: 0.63557 | F39: 0.62587 | G39: 0.061094 | H39: 0.006858935778 | I39: 1.5 % | J39: 0.63072 | K39: 0.609626 | L39: 124.50 | M39: 1.25 | N39: 996.01 | O39: 1.00 | P39: =(((VLOOKUP($A39,BD!$Q$2:$T$79,4,FALSE))*1000)*(VLOOKUP($A39,Mass!$A$3:$S$78,2,FALSE))*10000)*(O39/1000) -> 2072.19 | Q39: 332 | S39: 0.53471 | T39: 0.5375 | U39: 0.10685 | V39: 0.00197282792 | W39: -0.5 % | X39: 0.536105
A40: Kp-0-S | B40: 1.25 | C40: 0.01 | D40: 1 | E40: 0.57028 | F40: 0.56418 | G40: 0.057079 | H40: 0.004313351365 | I40: 1.1 % | J40: 0.56723 | K40: 0.550151 | L40: 89.34 | M40: 0.89 | N40: 714.69 | O40: 0.71 | P40: =(((VLOOKUP($A40,BD!$Q$2:$T$79,4,FALSE))*1000)*(VLOOKUP($A40,Mass!$A$3:$S$78,2,FALSE))*10000)*(O40/1000) -> 1220.46 | Q40: 195 | S40: 0.53689 | T40: 0.52802 | U40: 0.092637 | V40: 0.006272037149 | W40: 1.7 % | X40: 0.532455
A41: Kp-1-T | B41: 1.25 | C41: 0.01 | D41: 1 | E41: 0.61442 | F41: 0.61912 | G41: 0.058162 | H41: 0.003323401872 | I41: -0.8 % | J41: 0.61677 | K41: 0.598608 | L41: 117.73 | M41: 1.18 | N41: 941.82 | O41: 0.94 | P41: =(((VLOOKUP($A41,BD!$Q$2:$T$79,4,FALSE))*1000)*(VLOOKUP($A41,Mass!$A$3:$S$78,2,FALSE))*10000)*(O41/1000) -> 1925.00 | Q41: 308 | S41: 0.51641 | T41: 0.50565 | U41: 0.098199 | V41: 0.007608468966 | W41: 2.1 % | X41: 0.51103 | AD41: Standard 1
A42: Kp-1-S | B42: 1.25 | C42: 0.01 | D42: 1 | E42: 0.55971 | F42: 0.53757 | G42: 0.054221 | H42: 0.01565534414 | I42: 4.0 % | J42: 0.54864 | K42: 0.534419 | L42: 80.61 | M42: 0.81 | N42: 644.88 | O42: 0.64 | P42: =(((VLOOKUP($A42,BD!$Q$2:$T$79,4,FALSE))*1000)*(VLOOKUP($A42,Mass!$A$3:$S$78,2,FALSE))*10000)*(O42/1000) -> 1080.82 | Q42: 173 | S42: 0.53219 | T42: 0.53116 | U42: 0.086883 | V42: 0.0007283199846 | W42: 0.2 % | X42: 0.531675 | AD42: std mg/L | AE42: 595 | AF42: 465
A43: Ki-0-T | B43: 1.25 | C43: 0.01 | D43: 2 | E43: 0.64544 | F43: 0.63487 | G43: 0.065838 | H43: 0.007474118677 | I43: 1.6 % | J43: 0.640155 | K43: 0.614317 | L43: 254.84 | M43: 2.55 | N43: 2038.74 | O43: 2.04 | P43: =(((VLOOKUP($A43,BD!$Q$2:$T$79,4,FALSE))*1000)*(VLOOKUP($A43,Mass!$A$3:$S$78,2,FALSE))*10000)*(O43/1000) -> 4703.09 | Q43: 752 | S43: 0.52417 | T43: 0.53063 | U43: 0.11435 | V43: 0.004567909806 | W43: -1.2 % | X43: 0.5274 | AD43: 0 | AE43: 0.35716 | AF43: 0.55671 | AG43: =AE43-$AE$55 -> 0.3171845 | AH43: =AF43-$AF$55 -> 0.5148955
A44: Ki-0-S | B44: 1.25 | C44: 0.01 | D44: 2 | E44: 0.59482 | F44: 0.57117 | G44: 0.057074 | H44: 0.01672307538 | I44: 4.0 % | J44: 0.582995 | K44: 0.565921 | L44: 196.65 | M44: 1.97 | N44: 1573.21 | O44: 1.57 | P44: =(((VLOOKUP($A44,BD!$Q$2:$T$79,4,FALSE))*1000)*(VLOOKUP($A44,Mass!$A$3:$S$78,2,FALSE))*10000)*(O44/1000) -> 3013.88 | Q44: 482 | S44: 0.53933 | T44: 0.52905 | U44: 0.092346 | V44: 0.007269057711 | W44: 1.9 % | X44: 0.53419 | AD44: 40 | AE44: 0.4497 | AF44: 0.54874 | AG44: =AE44-$AE$55 -> 0.4097245 | AH44: 0.5069255
A45: Ki-1-T | B45: 1.25 | C45: 0.01 | D45: 2 | E45: 0.61423 | F45: 0.59341 | G45: 0.05569 | H45: 0.01472196318 | I45: 3.4 % | J45: 0.60382 | K45: 0.58813 | L45: 222.79 | M45: 2.23 | N45: 1782.32 | O45: 1.78 | P45: =(((VLOOKUP($A45,BD!$Q$2:$T$79,4,FALSE))*1000)*(VLOOKUP($A45,Mass!$A$3:$S$78,2,FALSE))*10000)*(O45/1000) -> 3928.92 | Q45: 629 | S45: 0.54911 | T45: 0.5234 | U45: 0.088606 | V45: 0.01817971534 | W45: 4.7 % | X45: 0.536255 | AD45: 80 | AE45: 0.53003 | AF45: 0.50885 | AG45: 0.4900545 | AH45: 0.4670355
A46: Ki-1-T1 | B46: 1.25 | C46: 0.01 | D46: 2 | E46: 0.60564 | F46: 0.59425 | G46: 0.056128 | H46: 0.008053946238 | I46: 1.9 % | J46: 0.599945 | K46: 0.583817 | L46: 217.64 | M46: 2.18 | N46: 1741.11 | O46: 1.74 | P46: =(((VLOOKUP($A45,BD!$Q$2:$T$79,4,FALSE))*1000)*(VLOOKUP($A45,Mass!$A$3:$S$78,2,FALSE))*10000)*(O46/1000) -> 3838.08 | Q46: 614 | S46: 0.54245 | T46: 0.53879 | U46: 0.085508 | V46: 0.002588010819 | W46: 0.7 % | X46: 0.54062 | AD46: 120 | AE46: 0.59498 | AF46: 0.45555 | AG46: 0.5550045 | AH46: 0.4137355
A47: Ki-1-S | B47: 1.25 | C47: 0.01 | D47: 2 | E47: 0.54637 | F47: 0.55049 | G47: 0.054466 | H47: 0.002913279938 | I47: -0.8 % | J47: 0.54843 | K47: 0.533964 | L47: 160.72 | M47: 1.61 | N47: 1285.79 | O47: 1.29 | P47: =(((VLOOKUP($A47,BD!$Q$2:$T$79,4,FALSE))*1000)*(VLOOKUP($A47,Mass!$A$3:$S$78,2,FALSE))*10000)*(O47/1000) -> 2329.60 | Q47: 373 | S47: 0.52803 | T47: 0.54427 | U47: 0.080211 | V47: 0.01148341413 | W47: -3.1 % | X47: 0.53615 | AD47: 160 | AE47: 0.68613 | AF47: 0.45151 | AG47: 0.6461545 | AH47: 0.4096955
A48: Na-0-T | B48: 1.25 | C48: 0.01 | D48: 2 | E48: 0.67233 | F48: 0.64834 | G48: 0.066093 | H48: 0.01696349168 | I48: 3.6 % | J48: 0.660335 | K48: 0.634242 | L48: 280.12 | M48: 2.80 | N48: 2240.98 | O48: 2.24 | P48: =(((VLOOKUP($A48,BD!$Q$2:$T$79,4,FALSE))*1000)*(VLOOKUP($A48,Mass!$A$3:$S$78,2,FALSE))*10000)*(O48/1000) -> 4341.68 | Q48: 695 | S48: 0.53414 | T48: 0.51175 | U48: 0.11773 | V48: 0.01583212083 | W48: 4.2 % | X48: 0.522945 | AD48: 180 | AE48: 0.70317 | AF48: 0.44189 | AG48: 0.6631945 | AH48: 0.4000755
A49: Na-0-S | B49: 1.25 | C49: 0.01 | D49: 2 | E49: 0.64257 | F49: 0.6274 | G49: 0.06237 | H49: 0.01072680987 | I49: 2.4 % | J49: 0.634985 | K49: 0.612615 | L49: 252.72 | M49: 2.53 | N49: 2021.75 | O49: 2.02 | P49: =(((VLOOKUP($A49,BD!$Q$2:$T$79,4,FALSE))*1000)*(VLOOKUP($A49,Mass!$A$3:$S$78,2,FALSE))*10000)*(O49/1000) -> 3174.32 | Q49: 508 | S49: 0.54289 | T49: 0.53547 | U49: 0.10892 | V49: 0.005246732316 | W49: 1.4 % | X49: 0.53918 | AD49: 220 | AE49: 0.74041 | AF49: 0.39088 | AG49: 0.7004345 | AH49: 0.3490655
A50: Na-1-T | B50: 1.25 | C50: 0.01 | D50: 2 | E50: 0.67976 | F50: 0.66675 | G50: 0.066826 | H50: 0.009199459223 | I50: 1.9 % | J50: 0.673255 | K50: 0.646429 | L50: 295.97 | M50: 2.96 | N50: 2367.73 | O50: 2.37 | P50: =(((VLOOKUP($A50,BD!$Q$2:$T$79,4,FALSE))*1000)*(VLOOKUP($A50,Mass!$A$3:$S$78,2,FALSE))*10000)*(O50/1000) -> 4541.81 | Q50: 727 | S50: 0.53474 | T50: 0.52714 | U50: 0.11879 | V50: 0.005374011537 | W50: 1.4 % | X50: 0.53094 | AD50: 260 | AE50: 0.83486 | AF50: 0.38698 | AG50: 0.7948845 | AH50: 0.3451655
A51: Na-1-S | B51: 1.25 | C51: 0.01 | D51: 2 | E51: 0.63864 | F51: 0.61947 | G51: 0.06146 | H51: 0.013555237 | I51: 3.0 % | J51: 0.629055 | K51: 0.607595 | L51: 246.49 | M51: 2.46 | N51: 1971.90 | O51: 1.97 | P51: =(((VLOOKUP($A51,BD!$Q$2:$T$79,4,FALSE))*1000)*(VLOOKUP($A51,Mass!$A$3:$S$78,2,FALSE))*10000)*(O51/1000) -> 2919.60 | Q51: 467 | S51: 0.53303 | T51: 0.51022 | U51: 0.10623 | V51: 0.01612910568 | W51: 4.3 % | X51: 0.521625 | AD51: 350 | AE51: 0.9122 | AF51: 0.32451 | AG51: 0.8722245 | AH51: 0.2826955
A52: Ik-0-T | B52: 1.25 | C52: 0.01 | D52: 3 | E52: 0.86904 | F52: 0.78128 | G52: 0.089814 | H52: 0.06205569112 | I52: 10.1 % | J52: =AVERAGE(F52) -> 0.78128 | K52: 0.731466 | L52: 621.83 | M52: 6.22 | N52: 4974.64 | O52: 4.97 | P52: =(((VLOOKUP($A52,BD!$Q$2:$T$79,4,FALSE))*1000)*(VLOOKUP($A52,Mass!$A$3:$S$78,2,FALSE))*10000)*(O52/1000) -> 8108.72 | Q52: 1297 | S52: 0.60212 | T52: 0.53139 | U52: 0.17898 | V52: 0.05001366263 | W52: 11.7 % | X52: 0.566755
A53: Ik-0-S | B53: 1.25 | C53: 0.01 | D53: 3 | E53: 0.73482 | F53: 0.74665 | G53: 0.080489 | H53: 0.008365073221 | I53: -1.6 % | J53: 0.740735 | K53: 0.700246 | L53: 554.07 | M53: 5.54 | N53: 4432.59 | O53: 4.43 | P53: =(((VLOOKUP($A53,BD!$Q$2:$T$79,4,FALSE))*1000)*(VLOOKUP($A53,Mass!$A$3:$S$78,2,FALSE))*10000)*(O53/1000) -> 5814.96 | Q53: 930 | S53: 0.52854 | T53: 0.53549 | U53: 0.15512 | V53: 0.004914392129 | W53: -1.3 % | X53: 0.532015 | AD53: Citrate | AE53: 0.040196 | AF53: 0.040907
A54: Ik-1-T | B54: 1.25 | C54: 0.01 | D54: 3 | E54: 0.65072 | F54: 0.64255 | G54: 0.073092 | H54: 0.005777062402 | I54: 1.3 % | J54: 0.646635 | K54: 0.613543 | L54: 380.81 | M54: 3.81 | N54: 3046.51 | O54: 3.05 | P54: =(((VLOOKUP($A54,BD!$Q$2:$T$79,4,FALSE))*1000)*(VLOOKUP($A54,Mass!$A$3:$S$78,2,FALSE))*10000)*(O54/1000) -> 5400.06 | Q54: 864 | S54: 0.50102 | T54: 0.51089 | U54: 0.1362 | V54: 0.00697914393 | W54: -2.0 % | X54: 0.505955 | AD54: Citrate | AE54: 0.039755 | AF54: 0.042722
A55: Ik-1-S | B55: 1.25 | C55: 0.01 | D55: 3 | E55: 0.67773 | F55: 0.70322 | G55: 0.074302 | H55: 0.01802415185 | I55: -3.8 % | J55: 0.690475 | K55: 0.656173 | L55: 463.26 | M55: 4.63 | N55: 3706.10 | O55: 3.71 | P55: =(((VLOOKUP($A55,BD!$Q$2:$T$79,4,FALSE))*1000)*(VLOOKUP($A55,Mass!$A$3:$S$78,2,FALSE))*10000)*(O55/1000) -> 5241.31 | Q55: 839 | S55: 0.52379 | T55: 0.53436 | U55: 0.14053 | V55: 0.007474118677 | W55: -2.0 % | X55: 0.529075 | AD55: avg | AE55: =AVERAGE(AE53:AE54) -> 0.0399755 | AF55: =AVERAGE(AF53:AF54) -> 0.0418145
A56: Ja-0-T | B56: 1.25 | C56: 0.01 | D56: 1 | E56: 0.62134 | F56: 0.62979 | G56: 0.060474 | H56: 0.005975052301 | I56: -1.4 % | J56: 0.625565 | K56: 0.605091 | L56: 121.70 | M56: 1.22 | N56: 973.59 | O56: 0.97 | P56: =(((VLOOKUP($A56,BD!$Q$2:$T$79,4,FALSE))*1000)*(VLOOKUP($A56,Mass!$A$3:$S$78,2,FALSE))*10000)*(O56/1000) -> 2005.09 | Q56: 321 | S56: 0.52796 | T56: 0.54253 | U56: 0.10774 | V56: 0.0103025458 | W56: -2.8 % | X56: 0.535245
A57: Ja-0-T1 | B57: 1.25 | C57: 0.01 | D57: 1 | E57: 0.63687 | F57: 0.63452 | G57: 0.061292 | H57: 0.001661700936 | I57: 0.4 % | J57: 0.635695 | K57: 0.614403 | L57: 127.47 | M57: 1.27 | N57: 1019.80 | O57: 1.02 | P57: =(((VLOOKUP($A56,BD!$Q$2:$T$79,4,FALSE))*1000)*(VLOOKUP($A56,Mass!$A$3:$S$78,2,FALSE))*10000)*(O57/1000) -> 2100.25 | Q57: 336 | S57: 0.54069 | T57: 0.53793 | U57: 0.10924 | V57: 0.001951614716 | W57: 0.5 % | X57: 0.53931
A58: Ja-1-T | B58: 1.25 | C58: 0.01 | D58: 1 | E58: 0.56456 | F58: 0.59005 | G58: 0.056722 | H58: 0.01802415185 | I58: -4.5 % | J58: 0.577305 | K58: 0.560583 | L58: 95.26 | M58: 0.95 | N58: 762.05 | O58: 0.76 | P58: =(((VLOOKUP($A58,BD!$Q$2:$T$79,4,FALSE))*1000)*(VLOOKUP($A58,Mass!$A$3:$S$78,2,FALSE))*10000)*(O58/1000) -> 1602.19 | Q58: 256 | S58: 0.50228 | T58: 0.55741 | U58: 0.096316 | V58: 0.03898279685 | W58: -11.0 % | X58: 0.529845 | AD58: Standard 2
A59: Ne-0-T | B59: 1.25 | C59: 0.01 | D59: 2 | E59: 0.68145 | F59: 0.65661 | G59: 0.066251 | H59: 0.01756453244 | I59: 3.6 % | J59: 0.66903 | K59: 0.642779 | L59: 291.19 | M59: 2.91 | N59: 2329.53 | O59: 2.33 | P59: =(((VLOOKUP($A59,BD!$Q$2:$T$79,4,FALSE))*1000)*(VLOOKUP($A59,Mass!$A$3:$S$78,2,FALSE))*10000)*(O59/1000) -> 4327.32 | Q59: 692 | S59: 0.5206 | T59: 0.51744 | U59: 0.11747 | V59: 0.002234457429 | W59: 0.6 % | X59: 0.51902 | AE59: 595 | AF59: 465
A60: Ne-0-T1 | B60: 1.25 | C60: 0.01 | D60: 2 | E60: 0.71036 | F60: 0.68571 | G60: 0.06317 | H60: 0.01743018216 | I60: 3.5 % | J60: 0.698035 | K60: 0.674865 | L60: 334.06 | M60: 3.34 | N60: 2672.45 | O60: 2.67 | P60: =(((VLOOKUP($A59,BD!$Q$2:$T$79,4,FALSE))*1000)*(VLOOKUP($A59,Mass!$A$3:$S$78,2,FALSE))*10000)*(O60/1000) -> 4964.34 | Q60: 794 | S60: 0.52958 | T60: 0.52788 | U60: 0.10974 | V60: 0.001202081528 | W60: 0.3 % | X60: 0.52873 | AD60: 0 | AE60: 0.35422 | AF60: 0.57153 | AG60: =AE60-$AE$55 -> 0.3142445 | AH60: =AF60-$AF$55 -> 0.5297155
A61: Ne-0-S | B61: 1.25 | C61: 0.01 | D61: 2 | E61: 0.64971 | F61: 0.63566 | G61: 0.06131 | H61: 0.009934850276 | I61: 2.2 % | J61: 0.642685 | K61: 0.621375 | L61: 263.71 | M61: 2.64 | N61: 2109.67 | O61: 2.11 | P61: =(((VLOOKUP($A61,BD!$Q$2:$T$79,4,FALSE))*1000)*(VLOOKUP($A61,Mass!$A$3:$S$78,2,FALSE))*10000)*(O61/1000) -> 3168.18 | Q61: 507 | S61: 0.52884 | T61: 0.51964 | U61: 0.10514 | V61: 0.006505382387 | W61: 1.7 % | X61: 0.52424 | AD61: 40 | AE61: 0.43555 | AF61: 0.52119 | AG61: 0.3955745 | AH61: 0.4793755
A62: Ne-1-T | B62: 1.25 | C62: 0.01 | D62: 2 | E62: 0.71038 | F62: 0.74835 | G62: 0.070448 | H62: 0.02684884448 | I62: -5.3 % | J62: 0.729365 | K62: 0.698917 | L62: 367.50 | M62: 3.68 | N62: 2940.01 | O62: 2.94 | P62: =(((VLOOKUP($A62,BD!$Q$2:$T$79,4,FALSE))*1000)*(VLOOKUP($A62,Mass!$A$3:$S$78,2,FALSE))*10000)*(O62/1000) -> 5395.98 | Q62: 863 | S62: 0.52888 | T62: 0.55467 | U62: 0.1306 | V62: 0.01823628389 | W62: -4.9 % | X62: 0.541775 | AD62: 80 | AE62: 0.52833 | AF62: 0.50949 | AG62: 0.4883545 | AH62: 0.4676755
A63: Ne-1-S | B63: 1.25 | C63: 0.01 | D63: 2 | E63: 0.69449 | F63: 0.66645 | G63: 0.068103 | H63: 0.01982727414 | I63: 4.0 % | J63: 0.68047 | K63: 0.652367 | L63: 303.79 | M63: 3.04 | N63: 2430.32 | O63: 2.43 | P63: =(((VLOOKUP($A63,BD!$Q$2:$T$79,4,FALSE))*1000)*(VLOOKUP($A63,Mass!$A$3:$S$78,2,FALSE))*10000)*(O63/1000) -> 3591.57 | Q63: 575 | S63: 0.53577 | T63: 0.52551 | U63: 0.12266 | V63: 0.007254915575 | W63: 1.9 % | X63: 0.53064 | AD63: 120 | AE63: 0.59395 | AF63: 0.46911 | AG63: 0.5539745 | AH63: 0.4272955
A64: Ae-0-T | B64: 1.25 | C64: 0.01 | D64: 2 | E64: 0.79646 | F64: 0.80038 | G64: 0.089794 | H64: 0.002771858582 | I64: -0.5 % | J64: 0.79842 | K64: 0.748626 | L64: 440.19 | M64: 4.40 | N64: 3521.51 | O64: 3.52 | P64: =(((VLOOKUP($A64,BD!$Q$2:$T$79,4,FALSE))*1000)*(VLOOKUP($A64,Mass!$A$3:$S$78,2,FALSE))*10000)*(O64/1000) -> 5802.23 | Q64: 928 | S64: 0.55523 | T64: 0.5624 | U64: 0.18085 | V64: 0.005069955621 | W64: -1.3 % | X64: 0.558815 | AD64: 160 | AE64: 0.66929 | AF64: 0.4536 | AG64: 0.6293145 | AH64: 0.4117855
A65: Ae-0-S | B65: 1.25 | C65: 0.01 | D65: 2 | E65: 0.72205 | F65: 0.68432 | G65: 0.075347 | H65: 0.02667913885 | I65: 5.2 % | J65: 0.703185 | K65: 0.667838 | L65: 324.50 | M65: 3.24 | N65: 2595.98 | O65: 2.60 | P65: =(((VLOOKUP($A65,BD!$Q$2:$T$79,4,FALSE))*1000)*(VLOOKUP($A65,Mass!$A$3:$S$78,2,FALSE))*10000)*(O65/1000) -> 3513.64 | Q65: 562 | S65: 0.55492 | T65: 0.53787 | U65: 0.14314 | V65: 0.01205617062 | W65: 3.1 % | X65: 0.546395 | AD65: 180 | AE65: 0.69182 | AF65: 0.43833 | AG65: 0.6518445 | AH65: 0.3965155
A66: Ae-1-T | B66: 1.25 | C66: 0.01 | D66: 2 | E66: 0.75301 | F66: 0.72138 | G66: 0.079839 | H66: 0.02236578749 | I66: 4.2 % | J66: 0.737195 | K66: 0.697356 | L66: 365.30 | M66: 3.65 | N66: 2922.38 | O66: 2.92 | P66: =(((VLOOKUP($A66,BD!$Q$2:$T$79,4,FALSE))*1000)*(VLOOKUP($A66,Mass!$A$3:$S$78,2,FALSE))*10000)*(O66/1000) -> 5072.97 | Q66: 812 | S66: 0.55215 | T66: 0.5487 | U66: 0.15672 | V66: 0.002439518395 | W66: 0.6 % | X66: 0.550425 | AD66: 220 | AE66: 0.73506 | AF66: 0.41042 | AG66: 0.6950845 | AH66: 0.3686055
A67: Ae-1-S | B67: 1.25 | C67: 0.01 | D67: 2 | E67: 0.69313 | F67: 0.64755 | G67: 0.073158 | H67: 0.03222992709 | I67: 6.6 % | J67: 0.67034 | K67: 0.637182 | L67: 283.92 | M67: 2.84 | N67: 2271.35 | O67: 2.27 | P67: =(((VLOOKUP($A67,BD!$Q$2:$T$79,4,FALSE))*1000)*(VLOOKUP($A67,Mass!$A$3:$S$78,2,FALSE))*10000)*(O67/1000) -> 3224.69 | Q67: 516 | S67: 0.54474 | T67: 0.52741 | U67: 0.13808 | V67: 0.01225416052 | W67: 3.2 % | X67: 0.536075 | AD67: 260 | AE67: 0.77447 | AF67: 0.36304 | AG67: 0.7344945 | AH67: 0.3212255
A68: Jn-0-T | B68: 1.25 | C68: 0.01 | D68: 2 | E68: 0.66278 | F68: 0.63476 | G68: 0.062297 | H68: =STDEVA(E68:F68) -> 0.01981313201 | I68: =(E68-F68)/E68 -> 4.2 % | J68: =AVERAGE(E68:F68) -> 0.64877 | K68: =J68-G68+$K$1 -> 0.626473 | L68: =(486.07*K68^2+27.514*K68-72.917)*D68 -> 270.17 | M68: =L68*C68 -> 2.70 | N68: =M68/(B68/1000) -> 2161.39 | O68: =N68/1000 -> 2.16 | P68: =(((VLOOKUP($A68,BD!$Q$2:$T$79,4,FALSE))*1000)*(VLOOKUP($A68,Mass!$A$3:$S$78,2,FALSE))*10000)*(O68/1000) -> 4329.02 | Q68: =P68*0.16 -> 693 | S68: 0.52503 | T68: 0.51643 | U68: 0.1053 | V68: =STDEVA(S68:T68) -> 0.006081118318 | W68: =(S68-T68)/S68 -> 1.6 % | X68: =AVERAGE(S68:T68) -> 0.52073 | AD68: 350 | AE68: 0.89999 | AF68: 0.34217 | AG68: 0.8600145 | AH68: 0.3003555
A69: Jn-0-S | B69: 1.25 | C69: 0.01 | D69: 2 | E69: 0.60119 | F69: 0.57475 | G69: 0.056285 | H69: 0.01869590329 | I69: 4.4 % | J69: 0.58797 | K69: 0.571685 | L69: 203.34 | M69: 2.03 | N69: 1626.74 | O69: 1.63 | P69: =(((VLOOKUP($A69,BD!$Q$2:$T$79,4,FALSE))*1000)*(VLOOKUP($A69,Mass!$A$3:$S$78,2,FALSE))*10000)*(O69/1000) -> 2708.52 | Q69: 433 | S69: 0.538 | T69: 0.5317 | U69: 0.089268 | V69: 0.004454772721 | W69: 1.2 % | X69: 0.53485
A70: Jn-1-T | B70: 1.25 | C70: 0.01 | D70: 2 | E70: 0.63571 | F70: 0.62058 | G70: 0.059364 | H70: 0.0106985256 | I70: 2.4 % | J70: 0.628145 | K70: 0.608781 | L70: 247.95 | M70: 2.48 | N70: 1983.64 | O70: 1.98 | P70: =(((VLOOKUP($A70,BD!$Q$2:$T$79,4,FALSE))*1000)*(VLOOKUP($A70,Mass!$A$3:$S$78,2,FALSE))*10000)*(O70/1000) -> 4039.34 | Q70: 646 | S70: 0.51518 | T70: 0.52207 | U70: 0.09707 | V70: 0.004871965722 | W70: -1.3 % | X70: 0.518625 | AD70: Citrate | AE70: 0.040015 | AF70: 0.041213
A71: Jn-1-S | B71: 1.25 | C71: 0.01 | D71: 2 | E71: 0.57725 | F71: 0.56716 | G71: 0.05526 | H71: 0.007134707422 | I71: 1.7 % | J71: 0.572205 | K71: 0.556945 | L71: 186.36 | M71: 1.86 | N71: 1490.88 | O71: 1.49 | P71: =(((VLOOKUP($A71,BD!$Q$2:$T$79,4,FALSE))*1000)*(VLOOKUP($A71,Mass!$A$3:$S$78,2,FALSE))*10000)*(O71/1000) -> 2489.27 | Q71: 398 | S71: 0.54586 | T71: 0.52571 | U71: 0.084081 | V71: 0.01424820164 | W71: 3.7 % | X71: 0.535785 | AD71: Citrate | AE71: 0.038985 | AF71: 0.042057
A72: La-0-T | B72: 1.25 | C72: 0.01 | D72: 1 | E72: 0.67172 | F72: 0.65767 | G72: 0.063222 | H72: 0.009934850276 | I72: 2.1 % | J72: 0.664695 | K72: 0.641473 | L72: 144.74 | M72: 1.45 | N72: 1157.95 | O72: 1.16 | P72: =(((VLOOKUP($A72,BD!$Q$2:$T$79,4,FALSE))*1000)*(VLOOKUP($A72,Mass!$A$3:$S$78,2,FALSE))*10000)*(O72/1000) -> 2516.54 | Q72: 403 | S72: 0.5309 | T72: 0.54076 | U72: 0.11134 | V72: 0.006972072862 | W72: -1.9 % | X72: 0.53583 | AD72: avg | AE72: =AVERAGE(AE70:AE71) -> 0.0395 | AF72: =AVERAGE(AF70:AF71) -> 0.041635
A73: La-0-S | B73: 1.25 | C73: 0.01 | D73: 1 | E73: 0.62098 | F73: 0.61153 | G73: 0.058258 | H73: 0.006682159082 | I73: 1.5 % | J73: 0.616255 | K73: 0.597997 | L73: 117.36 | M73: 1.17 | N73: 938.84 | O73: 0.94 | P73: =(((VLOOKUP($A73,BD!$Q$2:$T$79,4,FALSE))*1000)*(VLOOKUP($A73,Mass!$A$3:$S$78,2,FALSE))*10000)*(O73/1000) -> 1625.18 | Q73: 260 | S73: 0.53449 | T73: 0.5383 | U73: 0.096185 | V73: 0.002694076836 | W73: -0.7 % | X73: 0.536395
A74: La-1-T | B74: 1.25 | C74: 0.01 | D74: 1 | E74: 0.64082 | F74: 0.65446 | G74: 0.060578 | H74: 0.009644936495 | I74: -2.1 % | J74: 0.64764 | K74: 0.627062 | L74: 135.46 | M74: 1.35 | N74: 1083.70 | O74: 1.08 | P74: =(((VLOOKUP($A74,BD!$Q$2:$T$79,4,FALSE))*1000)*(VLOOKUP($A74,Mass!$A$3:$S$78,2,FALSE))*10000)*(O74/1000) -> 2440.14 | Q74: 390 | S74: 0.52537 | T74: 0.55178 | U74: 0.10253 | V74: 0.01867469009 | W74: -5.0 % | X74: 0.538575
A75: La-1-S | B75: 1.25 | C75: 0.01 | D75: 1 | E75: 0.56595 | F75: 0.55644 | G75: 0.05379 | H75: 0.006724585489 | I75: 1.7 % | J75: 0.561195 | K75: 0.547405 | L75: 87.80 | M75: 0.88 | N75: 702.37 | O75: 0.70 | P75: =(((VLOOKUP($A75,BD!$Q$2:$T$79,4,FALSE))*1000)*(VLOOKUP($A75,Mass!$A$3:$S$78,2,FALSE))*10000)*(O75/1000) -> 1270.94 | Q75: 203 | S75: 0.5329 | T75: 0.53549 | U75: 0.081658 | V75: 0.001831406563 | W75: -0.5 % | X75: 0.534195 | AD75: Standard 3
A76: La-1-S1 | B76: 1.25 | C76: 0.01 | D76: 1 | E76: 0.58061 | F76: 0.55816 | G76: 0.054396 | H76: 0.01587454724 | I76: 3.9 % | J76: 0.569385 | K76: 0.554989 | L76: 92.07 | M76: 0.92 | N76: 736.55 | O76: 0.74 | P76: =(((VLOOKUP($A75,BD!$Q$2:$T$79,4,FALSE))*1000)*(VLOOKUP($A75,Mass!$A$3:$S$78,2,FALSE))*10000)*(O76/1000) -> 1332.79 | Q76: 213 | S76: 0.55328 | T76: 0.52856 | U76: 0.08285 | V76: 0.01747967963 | W76: 4.5 % | X76: 0.54092 | AD76: 0 | AE76: 0.38292 | AF76: 0.58536 | AG76: =AE76-$AE$55 -> 0.3429445 | AH76: =AF76-$AF$55 -> 0.5435455
A77: Ko-0-T | B77: 1.25 | C77: 0.01 | D77: 1 | E77: 0.58765 | F77: 0.57827 | G77: 0.052709 | H77: 0.006632661608 | I77: 1.6 % | J77: 0.58296 | K77: 0.570251 | L77: 100.84 | M77: 1.01 | N77: 806.69 | O77: 0.81 | P77: =(((VLOOKUP($A77,BD!$Q$2:$T$79,4,FALSE))*1000)*(VLOOKUP($A77,Mass!$A$3:$S$78,2,FALSE))*10000)*(O77/1000) -> 1974.98 | Q77: 316 | S77: 0.53731 | T77: 0.53684 | U77: 0.082021 | V77: 0.0003323401872 | W77: 0.1 % | X77: 0.537075 | AD77: 40 | AE77: 0.45942 | AF77: 0.5457 | AG77: 0.4194445 | AH77: 0.5038855
A78: Ko-0-S | B78: 1.25 | C78: 0.01 | D78: 1 | E78: 0.56501 | F78: 0.53013 | G78: 0.05264 | H78: 0.02466388453 | I78: 6.2 % | J78: 0.54757 | K78: 0.53493 | L78: 80.89 | M78: 0.81 | N78: 647.12 | O78: 0.65 | P78: =(((VLOOKUP($A78,BD!$Q$2:$T$79,4,FALSE))*1000)*(VLOOKUP($A78,Mass!$A$3:$S$78,2,FALSE))*10000)*(O78/1000) -> 1295.30 | Q78: 207 | S78: 0.56699 | T78: 0.52251 | U78: 0.076923 | V78: 0.03145210963 | W78: 7.8 % | X78: 0.54475 | AD78: 80 | AE78: 0.53759 | AF78: 0.50965 | AG78: 0.4976145 | AH78: 0.4678355
A79: Ko-1-T | B79: 1.25 | C79: 0.01 | D79: 1 | E79: 0.59431 | F79: 0.59558 | G79: 0.054205 | H79: 0.0008980256121 | I79: -0.2 % | J79: 0.594945 | K79: 0.58074 | L79: 106.99 | M79: 1.07 | N79: 855.94 | O79: 0.86 | P79: =(((VLOOKUP($A79,BD!$Q$2:$T$79,4,FALSE))*1000)*(VLOOKUP($A79,Mass!$A$3:$S$78,2,FALSE))*10000)*(O79/1000) -> 2086.48 | Q79: 334 | S79: 0.52469 | T79: 0.52589 | U79: 0.084936 | V79: 0.0008485281374 | W79: -0.2 % | X79: 0.52529 | AD79: 120 | AE79: 0.60751 | AF79: 0.47885 | AG79: 0.5675345 | AH79: 0.4370355
A80: Ko-1-S | B80: 1.25 | C80: 0.01 | D80: 1 | E80: 0.54546 | F80: 0.558 | G80: 0.051909 | H80: 0.008867119036 | I80: -2.3 % | J80: 0.55173 | K80: 0.539821 | L80: 83.58 | M80: 0.84 | N80: 668.64 | O80: 0.67 | P80: =(((VLOOKUP($A80,BD!$Q$2:$T$79,4,FALSE))*1000)*(VLOOKUP($A80,Mass!$A$3:$S$78,2,FALSE))*10000)*(O80/1000) -> 1316.41 | Q80: 211 | S80: 0.51292 | T80: 0.54945 | U80: 0.077174 | V80: 0.02583061072 | W80: -7.1 % | X80: 0.531185 | AD80: 160 | AE80: 0.66319 | AF80: 0.45551 | AG80: 0.6232145 | AH80: 0.4136955
A81: Pa-0-T | B81: 1.25 | C81: 0.01 | D81: 1 | E81: 0.71277 | F81: 0.7001 | G81: 0.068724 | H81: 0.008959042918 | I81: 1.8 % | J81: 0.706435 | K81: 0.677711 | L81: 168.98 | M81: 1.69 | N81: 1351.82 | O81: 1.35 | P81: =(((VLOOKUP($A81,BD!$Q$2:$T$79,4,FALSE))*1000)*(VLOOKUP($A81,Mass!$A$3:$S$78,2,FALSE))*10000)*(O81/1000) -> 2703.76 | Q81: 433 | S81: 0.51959 | T81: 0.54512 | U81: 0.1293 | V81: 0.01805243612 | W81: -4.9 % | X81: 0.532355 | AD81: 180 | AE81: 0.71438 | AF81: 0.43205 | AG81: 0.6744045 | AH81: 0.3902355
A82: Pa-0-S | B82: 1.25 | C82: 0.01 | D82: 1 | E82: 0.68384 | F82: 0.66895 | G82: 0.064876 | H82: 0.01052881997 | I82: 2.2 % | J82: 0.676395 | K82: 0.651519 | L82: 151.33 | M82: 1.51 | N82: 1210.68 | O82: 1.21 | P82: =(((VLOOKUP($A82,BD!$Q$2:$T$79,4,FALSE))*1000)*(VLOOKUP($A82,Mass!$A$3:$S$78,2,FALSE))*10000)*(O82/1000) -> 1930.76 | Q82: 309 | S82: 0.53566 | T82: 0.53973 | U82: 0.12021 | V82: 0.002877924599 | W82: -0.8 % | X82: 0.537695 | AD82: 220 | AE82: 0.75278 | AF82: 0.41369 | AG82: 0.7128045 | AH82: 0.3718755
A83: Pa-0-S1 | B83: 1.25 | C83: 0.01 | D83: 1 | E83: 0.61568 | F83: 0.6327 | G83: 0.065759 | H83: 0.01203495742 | I83: -2.8 % | J83: 0.62419 | K83: 0.598431 | L83: 117.62 | M83: 1.18 | N83: 940.96 | O83: 0.94 | P83: =(((VLOOKUP($A82,BD!$Q$2:$T$79,4,FALSE))*1000)*(VLOOKUP($A82,Mass!$A$3:$S$78,2,FALSE))*10000)*(O83/1000) -> 1500.61 | Q83: 240 | S83: 0.51505 | T83: 0.53339 | U83: 0.11616 | V83: 0.01296833837 | W83: -3.6 % | X83: 0.52422 | AD83: 260 | AE83: 0.76773 | AF83: 0.35814 | AG83: 0.7277545 | AH83: 0.3163255
A84: Pa-1-T | B84: 1.25 | C84: 0.01 | D84: 1 | E84: 0.6937 | F84: 0.69057 | G84: 0.063968 | H84: 0.002213244225 | I84: 0.5 % | J84: 0.692135 | K84: 0.668167 | L84: 162.47 | M84: 1.62 | N84: 1299.77 | O84: 1.30 | P84: =(((VLOOKUP($A84,BD!$Q$2:$T$79,4,FALSE))*1000)*(VLOOKUP($A84,Mass!$A$3:$S$78,2,FALSE))*10000)*(O84/1000) -> 2599.65 | Q84: 416 | S84: 0.53488 | T84: 0.54874 | U84: 0.11357 | V84: 0.009800499987 | W84: -2.6 % | X84: 0.54181 | AD84: 350 | AE84: 0.90879 | AF84: 0.34234 | AG84: 0.8688145 | AH84: 0.3005255
A85: Pa-1-T1 | B85: 1.25 | C85: 0.01 | D85: 1 | E85: 0.68758 | F85: 0.70319 | G85: 0.063788 | H85: 0.01103793685 | I85: -2.3 % | J85: 0.695385 | K85: 0.671597 | L85: 164.80 | M85: 1.65 | N85: 1318.40 | O85: 1.32 | P85: =(((VLOOKUP($A84,BD!$Q$2:$T$79,4,FALSE))*1000)*(VLOOKUP($A84,Mass!$A$3:$S$78,2,FALSE))*10000)*(O85/1000) -> 2636.90 | Q85: 422 | S85: 0.52178 | T85: 0.54415 | U85: 0.11377 | V85: 0.0158179787 | W85: -4.3 % | X85: 0.532965
A86: Pa-1-S | B86: 1.25 | C86: 0.01 | D86: 1 | E86: 0.62762 | F86: 0.59401 | G86: 0.062713 | H86: 0.02376585892 | I86: 5.4 % | J86: 0.610815 | K86: 0.588102 | L86: 111.38 | M86: 1.11 | N86: 891.03 | O86: 0.89 | P86: =(((VLOOKUP($A86,BD!$Q$2:$T$79,4,FALSE))*1000)*(VLOOKUP($A86,Mass!$A$3:$S$78,2,FALSE))*10000)*(O86/1000) -> 1433.75 | Q86: 229 | S86: 0.54562 | T86: 0.50985 | U86: 0.1067 | V86: 0.02529320956 | W86: 6.6 % | X86: 0.527735 | AD86: Citrate | AE86: 0.040114 | AF86: 0.040885
AD87: Citrate | AE87: 0.038842 | AF87: 0.041695
O88: =AVERAGE(O3:O86) -> 1 | Q88: =AVERAGE(Q3:Q86) -> 420 | AD88: avg | AE88: =AVERAGE(AE86:AE87) -> 0.039478 | AF88: =AVERAGE(AF86:AF87) -> 0.04129
O89: =O88*3% -> 0.04391531585 | Q89: =Q88*3% -> 12.60170376
O90: =O89*1000*16% -> 7.026450536

Sheet WEON_WEOC
A1: Sample # | B1: Field | C1: Soil g | D1: DI water L | E1: WEN (ug/L) | F1: WEON_DON (mg/kg) | G1: WEN (kg/ha) | H1: WEON_DON (kg/ha) | I1: WEOC_DOC (mg/L) | J1: WEOC_DOC (g/kg) | K1: WEOC_DOC (kg/ha)
A2: 1 | B2: BL1 (3 to 40) | C2: 0 | D2: 0.1 | E2: 410 | F2: =(D2*E2)/C2 ->  | H2: =(((VLOOKUP($B2,Min_N!$A$1:$X$93,12,FALSE))*1000)*(VLOOKUP($B2,Mass!$A$3:$S$78,2,FALSE))*10000)*(F2/1000000) ->  | I2: 5.3 | J2: =(D2*E2)/C2 ->  | K2: =(((VLOOKUP($B2,BD!$Q$2:$T$79,4,FALSE))*1000)*(VLOOKUP($B2,Mass!$A$3:$S$78,2,FALSE))*10000)*(J2/1000) -> 
A3: 2 | B3: BL2 (41 to 78) | C3: 0 | D3: 0.1 | E3: 120 | F3: =(D3*E3)/C3 ->  | H3: =(((VLOOKUP($B3,Min_N!$A$1:$X$93,12,FALSE))*1000)*(VLOOKUP($B3,Mass!$A$3:$S$78,2,FALSE))*10000)*(F3/1000000) ->  | I3: 5.4 | J3: =(D3*E3)/C3 ->  | K3: =(((VLOOKUP($B3,BD!$Q$2:$T$79,4,FALSE))*1000)*(VLOOKUP($B3,Mass!$A$3:$S$78,2,FALSE))*10000)*(J3/1000) -> 
A4: 3 | B4: Pu-0-T | C4: 10.09 | D4: 0.1 | E4: 2700 | F4: =((D4*(E4-AVERAGE(E$2:E$3)))/C4)-VLOOKUP(B4,Min_N_Corrected!A4:X93,23,FALSE) -> 20.52894088 | G4: =(((VLOOKUP($B4,BD!$Q$2:$T$79,4,FALSE))*1000)*(VLOOKUP($B4,Mass!$A$3:$S$78,2,FALSE))*10000)*(((D4*(E4-AVERAGE(E$2:E$3)))/C4)/1000000) -> 50.12860628 | H4: =(((VLOOKUP($B4,BD!$Q$2:$T$79,4,FALSE))*1000)*(VLOOKUP($B4,Mass!$A$3:$S$78,2,FALSE))*10000)*(F4/1000000) -> 42.64266855 | I4: 25 | J4: =(D4*(I4-AVERAGE(I$2:I$3)))/C4 -> 0.1947472745 | K4: =(((VLOOKUP($B4,BD!$Q$2:$T$79,4,FALSE))*1000)*(VLOOKUP($B4,Mass!$A$3:$S$78,2,FALSE))*10000)*(J4/1000) -> 404.5285886
A5: 4 | B5: Pu-0-S | C5: 10.02 | D5: 0.1 | E5: 2200 | F5: =((D5*(E5-AVERAGE(E$2:E$3)))/C5)-VLOOKUP(B5,Min_N_Corrected!A5:X94,23,FALSE) -> 15.39845291 | H5: =(((VLOOKUP($B5,BD!$Q$2:$T$79,4,FALSE))*1000)*(VLOOKUP($B5,Mass!$A$3:$S$78,2,FALSE))*10000)*(F5/1000000) -> 25.11494843 | I5: 21 | J5: =(D5*(I5-AVERAGE(I$2:I$3)))/C5 -> 0.1561876248 | K5: =(((VLOOKUP($B5,BD!$Q$2:$T$79,4,FALSE))*1000)*(VLOOKUP($B5,Mass!$A$3:$S$78,2,FALSE))*10000)*(J5/1000) -> 254.7427436
A6: 5 | B6: Pu-1-T | C6: 10.06 | D6: 0.1 | E6: 3000 | F6: =((D6*(E6-AVERAGE(E$2:E$3)))/C6)-VLOOKUP(B6,Min_N_Corrected!A6:X95,23,FALSE) -> 22.96013836 | H6: =(((VLOOKUP($B6,BD!$Q$2:$T$79,4,FALSE))*1000)*(VLOOKUP($B6,Mass!$A$3:$S$78,2,FALSE))*10000)*(F6/1000000) -> 45.57524482 | I6: 31 | J6: 0.2549701789 | K6: =(((VLOOKUP($B6,BD!$Q$2:$T$79,4,FALSE))*1000)*(VLOOKUP($B6,Mass!$A$3:$S$78,2,FALSE))*10000)*(J6/1000) -> 506.1088111
A7: 6 | B7: Pu-1-S | C7: 10.09 | D7: 0.1 | E7: 2700 | F7: =((D7*(E7-AVERAGE(E$2:E$3)))/C7)-VLOOKUP(B7,Min_N_Corrected!A7:X96,23,FALSE) -> 19.79069684 | H7: =(((VLOOKUP($B7,BD!$Q$2:$T$79,4,FALSE))*1000)*(VLOOKUP($B7,Mass!$A$3:$S$78,2,FALSE))*10000)*(F7/1000000) -> 30.90968005 | I7: 28 | J7: 0.2244796829 | K7: =(((VLOOKUP($B7,BD!$Q$2:$T$79,4,FALSE))*1000)*(VLOOKUP($B7,Mass!$A$3:$S$78,2,FALSE))*10000)*(J7/1000) -> 350.5988309
A8: 7 | B8: Mo-0-T | C8: 10.07 | D8: 0.1 | E8: 3000 | F8: =((D8*(E8-AVERAGE(E$2:E$3)))/C8)-VLOOKUP(B8,Min_N_Corrected!A8:X97,23,FALSE) -> 16.73924374 | H8: =(((VLOOKUP($B8,BD!$Q$2:$T$79,4,FALSE))*1000)*(VLOOKUP($B8,Mass!$A$3:$S$78,2,FALSE))*10000)*(F8/1000000) -> 37.22951661 | I8: 26 | J8: 0.2050645482 | K8: =(((VLOOKUP($B8,BD!$Q$2:$T$79,4,FALSE))*1000)*(VLOOKUP($B8,Mass!$A$3:$S$78,2,FALSE))*10000)*(J8/1000) -> 456.0811779
A9: 8 | B9: Mo-0-S | C9: 10.02 | D9: 0.1 | E9: 2200 | F9: =((D9*(E9-AVERAGE(E$2:E$3)))/C9)-VLOOKUP(B9,Min_N_Corrected!A9:X98,23,FALSE) -> 16.83173058 | H9: =(((VLOOKUP($B9,BD!$Q$2:$T$79,4,FALSE))*1000)*(VLOOKUP($B9,Mass!$A$3:$S$78,2,FALSE))*10000)*(F9/1000000) -> 29.32702136 | I9: 22 | J9: 0.1661676647 | K9: =(((VLOOKUP($B9,BD!$Q$2:$T$79,4,FALSE))*1000)*(VLOOKUP($B9,Mass!$A$3:$S$78,2,FALSE))*10000)*(J9/1000) -> 289.5247539
A10: 9 | B10: Mo-1-T | C10: 10.06 | D10: 0.1 | E10: 2000 | F10: =((D10*(E10-AVERAGE(E$2:E$3)))/C10)-VLOOKUP(B10,Min_N_Corrected!A10:X99,23,FALSE) -> 15.67275714 | H10: =(((VLOOKUP($B10,BD!$Q$2:$T$79,4,FALSE))*1000)*(VLOOKUP($B10,Mass!$A$3:$S$78,2,FALSE))*10000)*(F10/1000000) -> 34.54881542 | I10: 30 | J10: 0.2450298211 | K10: =(((VLOOKUP($B10,BD!$Q$2:$T$79,4,FALSE))*1000)*(VLOOKUP($B10,Mass!$A$3:$S$78,2,FALSE))*10000)*(J10/1000) -> 540.140448
A11: 10 | B11: Mo-1-S | C11: 10.07 | D11: 0.1 | E11: 1600 | F11: =((D11*(E11-AVERAGE(E$2:E$3)))/C11)-VLOOKUP(B11,Min_N_Corrected!A11:X100,23,FALSE) -> 8.107831971 | H11: =(((VLOOKUP($B11,BD!$Q$2:$T$79,4,FALSE))*1000)*(VLOOKUP($B11,Mass!$A$3:$S$78,2,FALSE))*10000)*(F11/1000000) -> 13.91698226 | I11: 23 | J11: 0.1752730884 | K11: =(((VLOOKUP($B11,BD!$Q$2:$T$79,4,FALSE))*1000)*(VLOOKUP($B11,Mass!$A$3:$S$78,2,FALSE))*10000)*(J11/1000) -> 300.8538497
A12: 11 | B12: Si-0-T | C12: 10.08 | D12: 0.1 | E12: 2400 | F12: =((D12*(E12-AVERAGE(E$2:E$3)))/C12)-VLOOKUP(B12,Min_N_Corrected!A12:X101,23,FALSE) -> 15.88921015 | H12: =(((VLOOKUP($B12,BD!$Q$2:$T$79,4,FALSE))*1000)*(VLOOKUP($B12,Mass!$A$3:$S$78,2,FALSE))*10000)*(F12/1000000) -> 33.74416489 | I12: 31 | J12: 0.2544642857 | K12: =(((VLOOKUP($B12,BD!$Q$2:$T$79,4,FALSE))*1000)*(VLOOKUP($B12,Mass!$A$3:$S$78,2,FALSE))*10000)*(J12/1000) -> 540.4097959
A13: 12 | B13: Si-0-S | C13: 10.03 | D13: 0.1 | E13: 1400 | F13: =((D13*(E13-AVERAGE(E$2:E$3)))/C13)-VLOOKUP(B13,Min_N_Corrected!A13:X102,23,FALSE) -> 8.925331452 | H13: =(((VLOOKUP($B13,BD!$Q$2:$T$79,4,FALSE))*1000)*(VLOOKUP($B13,Mass!$A$3:$S$78,2,FALSE))*10000)*(F13/1000000) -> 15.0454971 | I13: 24 | J13: 0.1859421735 | K13: =(((VLOOKUP($B13,BD!$Q$2:$T$79,4,FALSE))*1000)*(VLOOKUP($B13,Mass!$A$3:$S$78,2,FALSE))*10000)*(J13/1000) -> 313.4440942
